Workbook

Sheet 1632-2021-2.1.2,2.1.7-АР1
A2: Терминал по перевалке минеральных удобрений в морском торговом порту Усть-Луга. Береговые объекты терминала
A3: (наименование стройки)
A4: 1632-2021-2.1.2, 2.1.7-АР1-07.04.046-П-00-00
A5: (локальная смета)
A6: на Архитектурные решения, Конвейерная галерея №7
A7: (наименование работ и затрат, наименование объекта)
B8: Основание: | C8: 1632-2021-2.1.2, 2.1.7-АР1_0_0_RU_IFС
A10: № п/п | B10: Обоснование | C10: Наименование работ и затрат | D10: Ед. изм. | E10: Кол-во | F10: Цена за ед.измерения работ, руб. с НДС | G10: Всего, стоимость работ,руб. с НДС | H10: Цена за ед.измерения материалов, руб. с НДС | I10: Всего, стоимость материалов, руб. с НДС | J10: Итого, руб. с НДС
A11: 1 | B11: 2 | C11: 3 | D11: 4 | E11: 5 | F11: 6 | G11: 7 | H11: 8 | I11: 9 | J11: 10
A12: Раздел 2. Кровля | J12: =G12+I12 -> 0
A13: Монтаж кровельного покрытия из профнастила учтен в разделе КМ | J13: 0
A14: 1632-2021-2.1.2, 2.1.7-АР1. ( в осях 1-7 ) | J14: 0
A15: Кровля плоская | J15: 0
A16: 1 | B16: ТЕР11-01-009-02 | C16: Устройство тепло- и звукоизоляции сплошной из плит: древесноволокнистых // прим. ЦСП | D16: 100 м2 изолируемой поверхности | E16: 1.963 | F16: =G16/E16 -> 36149.69 | G16: 70961.85 | H16: =I16/E16 -> 0 | I16: 0 | J16: 70961.85
A17: 2 | B17: ТЦ_01.6.01.10_78_7810994931_08.02.2024_02 | C17: ЦСП 13200х1200х8 | D17: м2 | E17: 404.38 | F17: =G17/E17 -> 0 | G17: 0 | H17: =I17/E17 -> 496.75 | I17: 200877.47 | J17: 200877.47
A18: 3 | B18: ТЕР12-01-002-09 | C18: Устройство кровель плоских из наплавляемых материалов: в два слоя | D18: 100 м2 кровли | E18: 1.963 | F18: =G18/E18 -> 34049.75 | G18: 66839.65 | H18: =I18/E18 -> 1974.08 | I18: 3875.11 | J18: 70714.76
B19: 101-2278 | C19: Пропан-бутан, смесь техническая | D19: кг | J19: 0
A20: 4 | B20: ТЦ_12.0.00.00_78_7826181040_08.02.2024_02 | C20: Техноэласт Пламя Стоп | D20: м2 | E20: 223.78 | F20: =G20/E20 -> 0 | G20: 0 | H20: =I20/E20 -> 527.11 | I20: 117956.53 | J20: 117956.53
A21: 5 | B21: ТЦ_12.0.00.00_78_7826181040_08.02.2024_02 | C21: Техноэласт ЭПП | D21: м2 | E21: 227.71 | F21: =G21/E21 -> 0 | G21: 0 | H21: =I21/E21 -> 417.88 | I21: 95155.6 | J21: 95155.6
A22: 6 | B22: ТЕР12-01-009-02 | C22: Устройство желобов: подвесных | D22: 100 м желобов | E22: 0.7435 | F22: =G22/E22 -> 65794.88 | G22: 48918.49 | H22: =I22/E22 -> 21888.53 | I22: 16274.12 | J22: 65192.61
B23: 101-0173 | C23: Гвозди проволочные оцинкованные для асбестоцементной кровли: 4,5х120 мм | D23: т | J23: 0
B24: 101-0788 | C24: Поковки оцинкованные, масса: 2,825 кг | D24: т | J24: 0
A25: 7 | B25: ТЦ_12.1.01.00_78_7804606806_25.01.2024_02 | C25: Желоб водосточный D185х3000 | D25: шт | E25: 25 | F25: =G25/E25 -> 0 | G25: 0 | H25: =I25/E25 -> 1709.47 | I25: 42736.67 | J25: 42736.67
A26: 8 | B26: ТЦ_12.1.01.00_78_7804606806_25.01.2024_02 | C26: Держатель желоба | D26: шт | E26: 130 | F26: =G26/E26 -> 0 | G26: 0 | H26: =I26/E26 -> 754.15 | I26: 98039.6 | J26: 98039.6
A27: 9 | B27: ТЕР12-01-008-01 | C27: Устройство обделок на фасадах (наружные подоконники, пояски, балконы и др.): включая водосточные трубы, с изготовлением элементов труб// прим. | D27: 100 м2фасада (без вычета проемов) | E27: 6.8906 | F27: =G27/E27 -> 27777.36 | G27: 191402.66 | H27: =I27/E27 -> 2212.69 | I27: 15246.76 | J27: 206649.42
B28: 101-0195 | C28: Гвозди толевые круглые: 3,0х40 мм | D28: т | J28: 0
B29: 101-0788 | C29: Поковки оцинкованные, масса: 2,825 кг | D29: т | J29: 0
B30: 101-0795 | C30: Проволока канатная оцинкованная, диаметром: 3 мм | D30: т | J30: 0
A31: 10 | B31: ТЦ_12.1.01.00_78_7804606806_25.01.2024_02 | C31: Труба водосточная D150х2000мм | D31: шт | E31: 93 | F31: =G31/E31 -> 0 | G31: 0 | H31: =I31/E31 -> 2084.18 | I31: 193828.56 | J31: 193828.56
A32: 11 | B32: ТЦ_12.1.01.00_78_7804606806_25.01.2024_02 | C32: Крепление трубы | D32: шт | E32: 195 | F32: =G32/E32 -> 0 | G32: 0 | H32: =I32/E32 -> 314.87 | I32: 61400.09 | J32: 61400.09
A33: 12 | B33: ТЦ_12.1.01.00_78_7804606806_25.01.2024_02 | C33: Колено гофрированное | D33: шт | E33: 30 | F33: =G33/E33 -> 0 | G33: 0 | H33: =I33/E33 -> 478.84 | I33: 14365.19 | J33: 14365.19
A34: 13 | B34: ТЦ_12.1.01.00_78_7804606806_25.01.2024_02 | C34: Заглушка | D34: шт | E34: 10 | F34: =G34/E34 -> 0 | G34: 0 | H34: =I34/E34 -> 373.47 | I34: 3734.67 | J34: 3734.67
A35: 14 | B35: ТЦ_12.1.01.00_78_7804606806_25.01.2024_02 | C35: Колено сливное D150 | D35: шт | E35: 12 | F35: =G35/E35 -> 0 | G35: 0 | H35: =I35/E35 -> 478.84 | I35: 5746.08 | J35: 5746.08
A36: 15 | B36: ТЦ_12.1.01.00_78_7804606806_25.01.2024_02 | C36: Воронки выпускные D185/150 | D36: шт | E36: 12 | F36: =G36/E36 -> 0 | G36: 0 | H36: =I36/E36 -> 808.02 | I36: 9696.22 | J36: 9696.22
A37: 16 | B37: ТЕР12-01-012-01 | C37: Ограждение кровель перилами // прим. | D37: 100 м ограждения | E37: 0.74 | F37: =G37/E37 -> 16110.61 | G37: 11921.85 | H37: =I37/E37 -> 402.08 | I37: 297.54 | J37: 12219.39
B38: 101-1529 | C38: Электроды диаметром: 6 мм Э42 | D38: т | J38: 0
B39: 101-1851 | C39: Резина прессованная | D39: кг | J39: 0
A40: 17 | B40: ТЦ_12.1.01.00_78_7804606806_25.01.2024_02 | C40: Снегозадержатель трубчатый (L=3 м. в комплекте с креплением) | D40: шт | E40: 25 | F40: =G40/E40 -> 0 | G40: 0 | H40: =I40/E40 -> 2407.39 | I40: 60184.65 | J40: 60184.65
A41: 18 | C41: Ограждение кровли h=600 мм. учтено в разделе КМ | D41: м | E41: 194.9 | F41: =G41/E41 -> 0 | G41: 0 | H41: =I41/E41 -> 0 | I41: 0 | J41: 0
A42: Раздел 3. Окна | J42: 0
A43: 1632-2021-2.1.2, 2.1.7-АР1. ( в осях 1-7 ) | J43: 0
A44: 19 | B44: ТЕР10-01-034-05 | C44: Установка в жилых и общественных зданиях оконных блоков из ПВХ профилей: поворотных (откидных, поворотно-откидных) с площадью проема до 2 м2 двухстворчатых | D44: 100 м2 проемов | E44: 1.8064 | F44: =G44/E44 -> 408218.66 | G44: 737406.18 | H44: =I44/E44 -> 128138.08 | I44: 231468.62 | J44: 968874.8
B45: 101-2052 | C45: Лента бутиловая | D45: м | J45: 0
B46: 101-2054 | C46: Лента бутиловая диффузионная | D46: м | J46: 0
B47: 101-2388 | C47: Герметик пенополиуретановый (пена монтажная) типа Makrofleks, Soudal в баллонах по 750 мл | D47: шт. | J47: 0
B48: 101-2789 | C48: Лента ПСУЛ | D48: 10 м | J48: 0
B49: 101-4173 | C49: Дюбели монтажные 10х130 (10х132, 10х150) мм | D49: 10 шт. | J49: 0
B50: 102-0303 | C50: Клинья пластиковые монтажные | D50: 100 шт. | J50: 0
A51: 20 | B51: ТЦ_07.1.02.00_78_7840318754_30.01.2024_02 | C51: ОК-1.,ОК-1* 1200х1400 | D51: шт | E51: 10 | F51: =G51/E51 -> 0 | G51: 0 | H51: =I51/E51 -> 15738.26 | I51: 157382.62 | J51: 157382.62
A52: 21 | B52: ТЦ_07.1.02.00_78_7840318754_30.01.2024_02 | C52: ОК-2. 1000х1400 | D52: шт | E52: 8 | F52: =G52/E52 -> 0 | G52: 0 | H52: =I52/E52 -> 13609.67 | I52: 108877.37 | J52: 108877.37
A53: 22 | B53: ТЦ_07.1.02.00_78_7840318754_30.01.2024_02 | C53: ОК-3. 1200х1200 | D53: шт | E53: 1 | F53: =G53/E53 -> 0 | G53: 0 | H53: =I53/E53 -> 14317.16 | I53: 14317.16 | J53: 14317.16
A54: 23 | B54: ТЕР15-01-070-01 | C54: Облицовка: оконных проемов в наружных стенах откосной планкой из оцинкованной стали с полимерным покрытием с устройством водоотлива оконного из оцинкованной стали с полимерным покрытием | D54: 1 м2 проемов | E54: 180.64 | F54: =G54/E54 -> 3276.74 | G54: 591909.48 | H54: =I54/E54 -> 1423.83 | I54: 257200.59 | J54: 849110.07
B55: 101-1691 | C55: Шурупы-саморезы 4,2х16 мм | D55: 100 шт. | J55: 0
B56: 101-2409 | C56: Аквилон из оцинкованной стали с полимерным покрытием | D56: п.м | J56: 0
B57: 101-2410 | C57: Откосная планка шириной 250 мм из оцинкованной стали с полимерным покрытием | D57: п.м | J57: 0
B58: 101-2411 | C58: Водоотлив оконный шириной планки 250 мм из оцинкованной стали с полимерным покрытием | D58: п.м | J58: 0
A59: Раздел 4. Дверные проемы | J59: 0
A60: 1632-2021-2.1.2, 2.1.7-АР1. ( в осях 1-7 ) | J60: 0
A61: 24 | B61: ТЕР09-04-012-01 | C61: Установка металлических дверных блоков в готовые проемы | D61: 1 м2 проема | E61: 4.2 | F61: =G61/E61 -> 6003.1 | G61: 25213.04 | H61: =I61/E61 -> 327.69 | I61: 1376.28 | J61: 26589.32
B62: 101-1513 | C62: Электроды диаметром: 4 мм Э42 | D62: т | J62: 0
B63: 101-1921 | C63: Пена монтажная: для герметизации стыков в баллончике емкостью 0,85 л | D63: шт. | J63: 0
B64: 204-0062 | C64: Детали закладные и накладные изготовленные: без применения сварки, гнутья, сверления (пробивки) отверстий поставляемые отдельно | D64: т | J64: 0
A65: 25 | B65: ТЦ_07.1.01.03_78_7841375755_25.01.2024_02 | C65: Дверь стальная внутренняя 1000х2100 | D65: шт | E65: 2 | F65: =G65/E65 -> 0 | G65: 0 | H65: =I65/E65 -> 25965.83 | I65: 51931.65 | J65: 51931.65
A66: 26 | B66: ТЕР09-04-013-01 | C66: Установка противопожарных дверей: однопольных глухих | D66: 1 м2 проема | E66: 12.6 | F66: =G66/E66 -> 5120.13 | G66: 64513.65 | H66: =I66/E66 -> 675.03 | I66: 8505.35 | J66: 73019
B67: 101-1513 | C67: Электроды диаметром: 4 мм Э42 | D67: т | J67: 0
B68: 101-1929 | C68: Болты анкерные | D68: т | J68: 0
B69: 101-3661 | C69: Пена монтажная: противопожарная полиуретановая NULLIFIRE (0,88 л) | D69: шт. | J69: 0
A70: 27 | B70: ТЦ_07.1.01.03_78_7841375755_25.01.2024_02 | C70: Дверь противопожарная металлическая: однопольная ДПС-01/30, размером 1000х2100 мм | D70: шт | E70: 2 | F70: =G70/E70 -> 0 | G70: 0 | H70: =I70/E70 -> 25965.83 | I70: 51931.65 | J70: 51931.65
A71: 28 | B71: ТЦ_07.1.01.03_78_7841375755_25.01.2024_02 | C71: Дверь противопожарная металлическая: однопольная ДПС-01/60, размером 1000х2100 мм | D71: шт | E71: 4 | F71: =G71/E71 -> 0 | G71: 0 | H71: =I71/E71 -> 25965.83 | I71: 103863.31 | J71: 103863.31
A72: 29 | B72: ТЕР15-01-070-02 | C72: Облицовка: дверных проемов в наружных стенах откосной планкой из оцинкованной стали с полимерным покрытием с установкой наличников из оцинкованной стали с полимерным покрытием | D72: 1 м2 проемов | E72: 16.8 | F72: =G72/E72 -> 3593.87 | G72: 60376.99 | H72: =I72/E72 -> 1660.7 | I72: 27899.74 | J72: 88276.73
B73: 101-1691 | C73: Шурупы-саморезы 4,2х16 мм | D73: 100 шт. | J73: 0
B74: 101-2409 | C74: Аквилон из оцинкованной стали с полимерным покрытием | D74: п.м | J74: =G74+I74 -> 0
B75: 101-2410 | C75: Откосная планка шириной 250 мм из оцинкованной стали с полимерным покрытием | D75: п.м | J75: 0
B76: 101-2412 | C76: Наличники из оцинкованной стали с полимерным покрытием | D76: п.м | J76: 0
A77: Раздел 5. Полы | J77: 0
A78: 1632-2021-2.1.2, 2.1.7-АР1. ( в осях 1-7 ) | J78: 0
A79: Тип 1. S=4,67 м2., Тип 2. S=1678,94 м2 | J79: 0
A80: 30 | B80: ТЕР11-01-011-03 | C80: Устройство стяжек: бетонных толщиной 20 мм | D80: 100 м2 стяжки | E80: 16.8361 | F80: =G80/E80 -> 83767.95 | G80: 1410325.6 | H80: =I80/E80 -> 94.05 | I80: 1583.45 | J80: 1411909.05
B81: 411-0001 | C81: Вода | D81: м3 | J81: 0
A82: 31 | B82: ТЕР11-01-011-04 | C82: Устройство стяжек: на каждые 5 мм изменения толщины стяжки добавлять или исключать к расценке 11-01-011-03 // до толщ. 30 мм | D82: 100 м2 стяжки | E82: 16.8361 | F82: =G82/E82 -> 3226.61 | G82: 54323.59 | H82: =I82/E82 -> 0 | I82: 0 | J82: 54323.59
A83: 32 | B83: ТЦ_59.1.04.01_47_4705078395_08.02.2024_02 | C83: Бетон В22,5 | D83: м3 | E83: 51.518 | F83: =G83/E83 -> 0 | G83: 0 | H83: =I83/E83 -> 5087.84 | I83: 262115.48 | J83: 262115.48
A84: 33 | B84: ТЕР11-01-020-03 | C84: Устройство покрытий поливинилацетатных: толщиной 3 мм // прим. покрытие полимерное | D84: 100 м2 покрытия | E84: 16.8361 | F84: =G84/E84 -> 180031.65 | G84: 3031030.9 | H84: =I84/E84 -> 147312.06 | I84: 2480160.64 | J84: 5511191.54
B85: 101-0430 | C85: Краски масляные и алкидные земляные, готовые к применению: сурик железный МА-15, ПФ-14 | D85: т | J85: 0
B86: 101-0433 | C86: Краски масляные и алкидные земляные, готовые к применению: охра МА-15 | D86: т | J86: 0
B87: 101-1305 | C87: Портландцемент общестроительного назначения бездобавочный, марки: 400 | D87: т | J87: 0
B88: 101-1591 | C88: Смола каменноугольная для дорожного строительства | D88: т | J88: 0
B89: 101-2293 | C89: Кислота ортофосфорная: техническая, сорт I | D89: т | J89: 0
B90: 101-2358 | C90: Дисперсия поливинилацетатная непластифицированная марки Д50Н | D90: кг | J90: 0
B91: 113-0306 | C91: Маршалит | D91: т | J91: 0
B92: 408-0122 | C92: Песок природный для строительных: работ средний | D92: м3 | J92: 0
B93: 411-0001 | C93: Вода | D93: м3 | J93: 0
A94: Тип 3. S=346,0 м2 | J94: 0
A95: 34 | B95: ТЕР11-01-011-03 | C95: Устройство стяжек: бетонных толщиной 20 мм | D95: 100 м2 стяжки | E95: 3.46 | F95: =G95/E95 -> 83767.95 | G95: 289837.11 | H95: =I95/E95 -> 94.05 | I95: 325.41 | J95: 290162.52
B96: 411-0001 | C96: Вода | D96: м3 | J96: 0
A97: 35 | B97: ТЕР11-01-011-04 | C97: Устройство стяжек: на каждые 5 мм изменения толщины стяжки добавлять или исключать к расценке 11-01-011-03 | D97: 100 м2 стяжки | E97: 3.46 | F97: =G97/E97 -> 17746.52 | G97: 61402.96 | H97: =I97/E97 -> 0 | I97: 0 | J97: 61402.96
A98: 36 | B98: ТЦ_59.1.04.01_47_4705078395_08.02.2024_02 | C98: Бетон В22,5 | D98: м3 | E98: 26.469 | F98: =G98/E98 -> 0 | G98: 0 | H98: =I98/E98 -> 5087.84 | I98: 134670.11 | J98: 134670.11
A99: 37 | B99: ТЕР06-01-015-10 | C99: Армирование подстилающих слоев и набетонок | D99: 1 т | E99: 0.9515 | F99: =G99/E99 -> 27716.03 | G99: 26371.8 | H99: =I99/E99 -> 3009.64 | I99: 2863.67 | J99: 29235.47
B100: 101-0816 | C100: Проволока светлая диаметром: 1,1 мм | D100: т | J100: 0
A101: 38 | B101: ТЦ_08.4.02.05_78_7816587756_08.02.2024_02 | C101: Сетка арм. 100х100 5Вр1 | D101: м2 | E101: 346 | F101: =G101/E101 -> 0 | G101: 0 | H101: =I101/E101 -> 209.5 | I101: 72487.05 | J101: 72487.05
A102: 39 | B102: ТЕР11-01-020-03 | C102: Устройство покрытий поливинилацетатных: толщиной 3 мм // прим. покрытие полимерное | D102: 100 м2 покрытия | E102: 3.46 | F102: =G102/E102 -> 166529.04 | G102: 576190.49 | H102: =I102/E102 -> 147312.06 | I102: 509699.74 | J102: 1085890.23
B103: 101-0430 | C103: Краски масляные и алкидные земляные, готовые к применению: сурик железный МА-15, ПФ-14 | D103: т | J103: 0
B104: 101-0433 | C104: Краски масляные и алкидные земляные, готовые к применению: охра МА-15 | D104: т | J104: 0
B105: 101-1305 | C105: Портландцемент общестроительного назначения бездобавочный, марки: 400 | D105: т | J105: 0
B106: 101-1591 | C106: Смола каменноугольная для дорожного строительства | D106: т | J106: 0
B107: 101-2293 | C107: Кислота ортофосфорная: техническая, сорт I | D107: т | J107: 0
B108: 101-2358 | C108: Дисперсия поливинилацетатная непластифицированная марки Д50Н | D108: кг | J108: 0
B109: 113-0306 | C109: Маршалит | D109: т | J109: 0
B110: 408-0122 | C110: Песок природный для строительных: работ средний | D110: м3 | J110: 0
B111: 411-0001 | C111: Вода | D111: м3 | J111: 0
A112: Тип 5. S=11,60 м2 | J112: 0
A113: 40 | B113: ТЕР11-01-011-03 | C113: Устройство стяжек: бетонных толщиной 20 мм | D113: 100 м2 стяжки | E113: 0.116 | F113: =G113/E113 -> 83759.14 | G113: 9716.06 | H113: =I113/E113 -> 93.97 | I113: 10.9 | J113: 9726.96
B114: 411-0001 | C114: Вода | D114: м3 | J114: 0
A115: 41 | B115: ТЕР11-01-011-04 | C115: Устройство стяжек: на каждые 5 мм изменения толщины стяжки добавлять или исключать к расценке 11-01-011-03 | D115: 100 м2 стяжки | E115: 0.116 | F115: =G115/E115 -> 25808.53 | G115: 2993.79 | H115: =I115/E115 -> 0 | I115: 0 | J115: 2993.79
A116: 42 | B116: ТЦ_59.1.04.01_47_4705078395_08.02.2024_02 | C116: Бетон В22,5 | D116: м3 | E116: 1.183 | F116: =G116/E116 -> 0 | G116: 0 | H116: =I116/E116 -> 5087.84 | I116: 6018.92 | J116: 6018.92
A117: 43 | B117: ТЕР11-01-020-03 | C117: Устройство покрытий поливинилацетатных: толщиной 3 мм // прим. покрытие полимерное | D117: 100 м2 покрытия | E117: 0.116 | F117: =G117/E117 -> 180025.86 | G117: 20883 | H117: =I117/E117 -> 147312.16 | I117: 17088.21 | J117: 37971.21
B118: 101-0430 | C118: Краски масляные и алкидные земляные, готовые к применению: сурик железный МА-15, ПФ-14 | D118: т | J118: 0
B119: 101-0433 | C119: Краски масляные и алкидные земляные, готовые к применению: охра МА-15 | D119: т | J119: 0
B120: 101-1305 | C120: Портландцемент общестроительного назначения бездобавочный, марки: 400 | D120: т | J120: 0
B121: 101-1591 | C121: Смола каменноугольная для дорожного строительства | D121: т | J121: 0
B122: 101-2293 | C122: Кислота ортофосфорная: техническая, сорт I | D122: т | J122: 0
B123: 101-2358 | C123: Дисперсия поливинилацетатная непластифицированная марки Д50Н | D123: кг | J123: 0
B124: 113-0306 | C124: Маршалит | D124: т | J124: 0
B125: 408-0122 | C125: Песок природный для строительных: работ средний | D125: м3 | J125: 0
B126: 411-0001 | C126: Вода | D126: м3 | J126: 0
A127: Тип 7. S=72,27 м2 | J127: 0
A128: 44 | B128: ТЕР11-01-009-01 | C128: Устройство тепло- и звукоизоляции сплошной из плит: или матов минераловатных или стекловолокнистых | D128: 100 м2 изолируемой поверхности | E128: 0.7227 | F128: =G128/E128 -> 67009.7 | G128: 48427.91 | H128: =I128/E128 -> 25129.43 | I128: 18161.04 | J128: 66588.95
B129: 104-0013 | C129: Маты прошивные из минеральной ваты: без обкладок М-125 (ГОСТ 21880-86), толщина 40 мм | D129: м3 | J129: 0
A130: 45 | B130: ТЕР11-01-050-01 | C130: Устройство пароизоляции из полиэтиленовой пленки в один слой насухо | D130: 100 м2 поверхности | E130: 0.7227 | F130: =G130/E130 -> 7473.42 | G130: 5401.04 | H130: =I130/E130 -> 19003.68 | I130: 13733.96 | J130: 19135
B131: 113-0324 | C131: Пленка полиэтиленовая толщиной: 0,2-0,5 мм | D131: м2 | J131: 0
A132: 46 | B132: ТЕР11-01-011-03 | C132: Устройство стяжек: бетонных толщиной 20 мм | D132: 100 м2 стяжки | E132: 0.7227 | F132: =G132/E132 -> 83766.03 | G132: 60537.71 | H132: =I132/E132 -> 94.04 | I132: 67.96 | J132: 60605.67
B133: 411-0001 | C133: Вода | D133: м3 | J133: 0
A134: 47 | B134: ТЕР11-01-011-04 | C134: Устройство стяжек: на каждые 5 мм изменения толщины стяжки добавлять или исключать к расценке 11-01-011-03 | D134: 100 м2 стяжки | E134: 0.7227 | F134: =G134/E134 -> 14518.68 | G134: 10492.65 | H134: =I134/E134 -> 0 | I134: 0 | J134: 10492.65
A135: 48 | B135: ТЦ_59.1.04.01_47_4705078395_08.02.2024_02 | C135: Бетон В22,5 | D135: м3 | E135: 4.792 | F135: =G135/E135 -> 0 | G135: 0 | H135: =I135/E135 -> 5087.84 | I135: 24380.94 | J135: 24380.94
A136: 49 | B136: ТЕР06-01-015-10 | C136: Армирование подстилающих слоев и набетонок | D136: 1 т | E136: 0.126473 | F136: =G136/E136 -> 27715.56 | G136: 3505.27 | H136: =I136/E136 -> 3009.58 | I136: 380.63 | J136: 3885.9
B137: 101-0816 | C137: Проволока светлая диаметром: 1,1 мм | D137: т | J137: 0
A138: 50 | B138: ТЦ_08.4.02.05_66_6686134976_08.02.2024_02 | C138: Сетка арм. 100х100 4Вр1 | D138: м2 | E138: 72.27 | F138: =G138/E138 -> 0 | G138: 0 | H138: =I138/E138 -> 116.07 | I138: 8388.46 | J138: =G138+I138 -> 8388.46
A139: 51 | B139: ТЕР11-01-020-03 | C139: Устройство покрытий поливинилацетатных: толщиной 3 мм // прим. покрытие полимерное | D139: 100 м2 покрытия | E139: 0.7227 | F139: =G139/E139 -> 180030.04 | G139: 130107.71 | H139: =I139/E139 -> 147312.05 | I139: 106462.42 | J139: 236570.13
B140: 101-0430 | C140: Краски масляные и алкидные земляные, готовые к применению: сурик железный МА-15, ПФ-14 | D140: т | J140: 0
B141: 101-0433 | C141: Краски масляные и алкидные земляные, готовые к применению: охра МА-15 | D141: т | J141: 0
B142: 101-1305 | C142: Портландцемент общестроительного назначения бездобавочный, марки: 400 | D142: т | J142: 0
B143: 101-1591 | C143: Смола каменноугольная для дорожного строительства | D143: т | J143: 0
B144: 101-2293 | C144: Кислота ортофосфорная: техническая, сорт I | D144: т | J144: 0
B145: 101-2358 | C145: Дисперсия поливинилацетатная непластифицированная марки Д50Н | D145: кг | J145: 0
B146: 113-0306 | C146: Маршалит | D146: т | J146: 0
B147: 408-0122 | C147: Песок природный для строительных: работ средний | D147: м3 | J147: 0
B148: 411-0001 | C148: Вода | D148: м3 | J148: 0
A149: Раздел 6. Отделка | J149: 0
A150: Цоколь | J150: 0
A151: 1632-2021-2.1.2, 2.1.7-АР1. ( в осях 1-7 ) | J151: 0
A152: 52 | B152: ТЕР11-01-015-07 | C152: Шлифовка бетонных или металлоцементных покрытий // прим. | D152: 100 м2 покрытия | E152: 0.54 | F152: =G152/E152 -> 191486.48 | G152: 103402.7 | H152: =I152/E152 -> 180.13 | I152: 97.27 | J152: 103499.97
B153: 101-2109 | C153: Карборунд | D153: кг | J153: 0
B154: 411-0001 | C154: Вода | D154: м3 | J154: 0
A155: 53 | B155: ТЕР15-04-015-02 | C155: Окраска фасадов с люлек с подготовкой поверхности: силикатная // прим. | D155: 100 м2 фасада | E155: 0.54 | F155: =G155/E155 -> 71762.76 | G155: 38751.89 | H155: =I155/E155 -> 8107.43 | I155: 4378.01 | J155: 43129.9
B156: 101-1757 | C156: Ветошь | D156: кг | J156: 0
B157: 101-1841 | C157: Краски силикатные зеленая и красная | D157: т | J157: 0
B158: 113-0043 | C158: Жидкость: гидрофобизирующая ГКЖ-10 | D158: т | J158: 0
B159: 113-0368 | C159: Стекло жидкое калийное | D159: т | J159: 0
B160: 402-0083 | C160: Раствор готовый отделочный тяжелый,: цементно-известковый 1:1:6 | D160: м3 | J160: 0
B161: 409-0639 | C161: Пемза шлаковая (щебень пористый из металлургического шлака), марка 600, фракция 5-10 мм | D161: м3 | J161: 0
B162: 411-0001 | C162: Вода | D162: м3 | J162: 0
A163: Окраска конструкций стен и потолков из профлиста, учтена в сметах к разделу КМ | J163: 0
C164: Всего, руб. с НДС | G164: =SUM(G12:G163) -> 7753166.02 | I164: =SUM(I12:I163) -> 5617243.47 | J164: =SUM(J12:J163) -> 13370409.49
C165: Всего, руб. без НДС | G165: =G164/1.2 -> 6460971.68 | I165: =I164/1.2 -> 4681036.23 | J165: =J164/1.2 -> 11142007.91

Sheet 1632-2021-2.2.1-АР
A2: Терминал по перевалке минеральных удобрений в морском торговом порту Усть-Луга. Береговые объекты терминала
A3: (наименование стройки)
A4: 1632-2021-2.2.1-АР_07.04.020-П-00-00
A5: (локальная смета)
A6: на Архитектурные решения, Пересыпная станция № 1
A7: (наименование работ и затрат, наименование объекта)
B8: Основание: | C8: 1632-2021-2.2.1-АР Арх.№ 15689
A10: № п/п | B10: Обоснование | C10: Наименование работ и затрат | D10: Ед. изм. | E10: Кол-во | F10: Цена за ед.измерения работ, руб. с НДС | G10: Всего, стоимость работ,руб. с НДС | H10: Цена за ед.измерения материалов, руб. с НДС | I10: Всего, стоимость материалов, руб. с НДС | J10: Итого, руб. с НДС
A11: 1 | B11: 2 | C11: 3 | D11: 4 | E11: 5 | F11: 6 | G11: 7 | H11: 8 | I11: 9 | J11: 10
A12: Раздел 1. Фасадные работы | J12: =G12+I12 -> 0
A13: Раздел 2. Перегородки | J13: 0
A14: 1 | B14: ТЕР10-04-011-04 | C14: Устройство перегородок высотой до 3 м в общественных зданиях с двусторонней обшивкой гипсокартонными листами или гипсоволокнистыми плитами: в два слоя с изоляцией | D14: 100 м2 перегородок (за вычетом проемов) | E14: 0.71 | F14: =G14/E14 -> 655636.73 | G14: 465502.08 | H14: =I14/E14 -> 63210.75 | I14: 44879.63 | J14: 510381.71
B15: 101-0137 | C15: Дюбели с калиброванной головкой (в обоймах): 3х58,5 мм | D15: т | J15: 0
B16: 101-0622 | C16: Миткаль «Т-2» суровый (суровье) | D16: 10 м | J16: 0
B17: 101-0848 | C17: Пластина губчатая из резины АФ-1 | D17: кг | J17: 0
B18: 101-1680 | C18: Патроны для строительно-монтажного пистолета | D18: 1000 шт. | J18: 0
B19: 101-1735 | C19: Винты самонарезающие: СМ1-35 | D19: т | J19: 0
B20: 101-1736 | C20: Профили холодногнутые из оцинкованной стали толщиной: 0,5-0,55 мм, сумма размеров равная ширине исходной заготовки 101-150 мм | D20: т | J20: 0
B21: 101-1737 | C21: Профили холодногнутые из оцинкованной стали толщиной: 0,5-0,55 мм, сумма размеров равная ширине исходной заготовки 151-200 мм | D21: т | J21: 0
B22: 101-1840 | C22: Клей малярный жидкий | D22: кг | J22: 0
B23: 101-2358 | C23: Дисперсия поливинилацетатная непластифицированная марки Д50Н | D23: кг | J23: 0
B24: 101-2505 | C24: Мастика клеящая кумаронокаучуковая КН-3 | D24: т | J24: 0
B25: 113-0304 | C25: Клей резиновый: № 88-Н | D25: кг | J25: 0
B26: 405-0219 | C26: Гипсовые вяжущие, марка: Г3 | D26: т | J26: 0
A27: 2 | B27: ТЦ_01.6.01.02_97_9706006145_22.02.2024_02 | C27: Листы гипсокартонные ГКЛВО | D27: м2 | E27: 298.2 | F27: =G27/E27 -> 0 | G27: 0 | H27: =I27/E27 -> 296.46 | I27: 88404.58 | J27: 88404.58
A28: 3 | B28: ТССЦ-104-0150 | C28: Плиты из минеральной ваты: на синтетическом связующем М-75 // прим. | D28: м3 | E28: 7.313 | F28: =G28/E28 -> 0 | G28: 0 | H28: =I28/E28 -> 5850.36 | I28: 42783.69 | J28: 42783.69
A29: Раздел 3. Кровля | J29: 0
A30: Монтаж кровельного покрытия из профнастила учтен в разделе КМ | J30: 0
A31: Мягкая кровля S=470 м2 | J31: 0
A32: 4 | B32: ТЕР12-01-015-01 | C32: Устройство пароизоляции: оклеечной в один слой | D32: 100 м2 изолируемой поверхности | E32: 4.7 | F32: =G32/E32 -> 41937.52 | G32: 197106.35 | H32: =I32/E32 -> 20987.25 | I32: 98640.09 | J32: 295746.44
B33: 101-0078 | C33: Битумы нефтяные строительные кровельные марки: БНК-45/190, БНК-45/180 | D33: т | J33: 0
B34: 101-0322 | C34: Керосин для технических целей марок КТ-1, КТ-2 | D34: т | J34: 0
B35: 101-0594 | C35: Мастика битумная кровельная горячая | D35: т | J35: 0
B36: 101-0856 | C36: Рубероид кровельный с пылевидной посыпкой марки РКП-350б | D36: м2 | J36: 0
A37: 5 | B37: ТЕР12-01-013-01 | C37: Утепление покрытий плитами: из пенопласта полистирольного на битумной мастике в один слой ( толщ. 100 мм.) | D37: 100 м2 утепляемого покрытия | E37: 4.7 | F37: =G37/E37 -> 47540.11 | G37: 223438.53 | H37: =I37/E37 -> 13352.39 | I37: 62756.21 | J37: 286194.74
B38: 101-0078 | C38: Битумы нефтяные строительные кровельные марки: БНК-45/190, БНК-45/180 | D38: т | J38: 0
B39: 101-0322 | C39: Керосин для технических целей марок КТ-1, КТ-2 | D39: т | J39: 0
B40: 101-0594 | C40: Мастика битумная кровельная горячая | D40: т | J40: 0
A41: 6 | B41: ТЕР12-01-013-02 | C41: Утепление покрытий плитами: на каждый последующий слой добавлять к расценке 12-01-013-01 | D41: 100 м2 утепляемого покрытия | E41: 4.7 | F41: =G41/E41 -> 35044.47 | G41: 164709 | H41: =I41/E41 -> 9757.31 | I41: 45859.37 | J41: 210568.37
B42: 101-0594 | C42: Мастика битумная кровельная горячая | D42: т | J42: 0
A43: 7 | B43: ТССЦ-104-1223 | C43: Пенополистирол экструдированный ТЕХНОНИКОЛЬ XPS CARBON 30-280 Стандарт | D43: м3 | E43: 48.41 | F43: =G43/E43 -> 0 | G43: 0 | H43: =I43/E43 -> 16155.28 | I43: 782077.22 | J43: 782077.22
A44: 8 | B44: ТЕР12-01-014-02 | C44: Утепление покрытий: керамзитом // толщ. слоя 20-80 мм | D44: 1 м3 утеплителя | E44: 23.5 | F44: =G44/E44 -> 6968.55 | G44: 163760.87 | H44: =I44/E44 -> 3323.29 | I44: 78097.25 | J44: 241858.12
B45: 406-0014 | C45: Гравий керамзитовый, фракция: 10-20 мм, марка 400 | D45: м3 | J45: 0
A46: 9 | B46: ТЕР12-01-017-01 | C46: Устройство выравнивающих стяжек: цементно-песчаных толщиной 15 мм | D46: 100 м2 стяжки | E46: 4.7 | F46: =G46/E46 -> 64292.56 | G46: 302175.05 | H46: =I46/E46 -> 9586.76 | I46: 45057.76 | J46: 347232.81
B47: 101-0856 | C47: Рубероид кровельный с пылевидной посыпкой марки РКП-350б | D47: м2 | J47: 0
B48: 402-0004 | C48: Раствор готовый кладочный цементный марки: 100 | D48: м3 | J48: 0
B49: 411-0001 | C49: Вода | D49: м3 | J49: 0
A50: 10 | B50: ТЕР12-01-017-02 | C50: Устройство выравнивающих стяжек: на каждый 1 мм изменения толщины добавлять или исключать к расценке 12-01-017-01 | D50: 100 м2 стяжки | E50: 4.7 | F50: =G50/E50 -> 55015.74 | G50: 258573.96 | H50: =I50/E50 -> 15286.55 | I50: 71846.77 | J50: 330420.73
B51: 402-0004 | C51: Раствор готовый кладочный цементный марки: 100 | D51: м3 | J51: 0
A52: 11 | B52: ТЕР06-01-015-10 | C52: Армирование подстилающих слоев и набетонок | D52: 1 т | E52: 0.8225 | F52: =G52/E52 -> 27718.22 | G52: 22798.24 | H52: =I52/E52 -> 3009.36 | I52: 2475.2 | J52: 25273.44
B53: 101-0816 | C53: Проволока светлая диаметром: 1,1 мм | D53: т | J53: 0
A54: 12 | B54: ТЦ_08.4.02.05_66_6686134976_08.02.2024_02 | C54: Сетка арм. 100х100 4Вр1 | D54: м2 | E54: 470 | F54: =G54/E54 -> 0 | G54: 0 | H54: =I54/E54 -> 116.07 | I54: 54553.44 | J54: 54553.44
A55: 13 | B55: ТЕР12-01-016-02 | C55: Огрунтовка оснований из бетона или раствора под водоизоляционный кровельный ковер: готовой эмульсией битумной // праймер | D55: 100 м2 кровли | E55: 4.7 | F55: =G55/E55 -> 6025.31 | G55: 28318.94 | H55: =I55/E55 -> 2878.01 | I55: 13526.67 | J55: 41845.61
B56: 101-1780 | C56: Эмульсия битумная для гидроизоляционных работ | D56: т | J56: 0
A57: 14 | B57: ТЕР12-01-007-10 | C57: Комплекс работ по устройству кровель из наплавляемых рулонных материалов для зданий шириной от 12 до 24 метров: в два слоя | D57: 100 м2 кровли | E57: 4.7 | F57: =G57/E57 -> 162682.69 | G57: 764608.63 | H57: =I57/E57 -> 163542.79 | I57: 768651.11 | J57: 1533259.74
B58: 101-0142 | C58: Дюбели с калиброванной головкой (в обоймах) с цинковым хроматированным покрытием: 3х58,5 мм | D58: т | J58: 0
B59: 101-0195 | C59: Гвозди толевые круглые: 3,0х40 мм | D59: т | J59: 0
B60: 101-0618 | C60: Мастика тиоколовая строительного назначения, марки: АМ-0,5 | D60: кг | J60: 0
B61: 101-1371 | C61: Шнуры резиновые прямоугольного сечения с площадью сечения: от 30 до 50 мм2 | D61: кг | J61: 0
B62: 101-1680 | C62: Патроны для строительно-монтажного пистолета | D62: 1000 шт. | J62: 0
B63: 101-1755 | C63: Сталь полосовая, марка стали: Ст3сп шириной 50-200 мм толщиной 4-5 мм | D63: т | J63: 0
B64: 101-1780 | C64: Эмульсия битумная для гидроизоляционных работ | D64: т | J64: 0
B65: 101-1875 | C65: Сталь листовая оцинкованная толщиной листа: 0,7 мм | D65: т | J65: 0
B66: 101-1961 | C66: Изопласт: К ЭКП-4,5 | D66: м2 | J66: 0
B67: 101-1962 | C67: Изопласт: П ЭПП-4,0 | D67: м2 | J67: 0
B68: 101-2278 | C68: Пропан-бутан, смесь техническая | D68: кг | J68: 0
B69: 402-0004 | C69: Раствор готовый кладочный цементный марки: 100 | D69: м3 | J69: 0
A70: Асфальтовое покрытие кровли S=62 м2 | J70: 0
A71: 15 | B71: ТЕР12-01-015-04 | C71: Устройство пароизоляции: обмазочной в один слой | D71: 100 м2 изолируемой поверхности | E71: 0.62 | F71: =G71/E71 -> 23100.84 | G71: 14322.52 | H71: =I71/E71 -> 15690.97 | I71: 9728.4 | J71: 24050.92
B72: 101-0078 | C72: Битумы нефтяные строительные кровельные марки: БНК-45/190, БНК-45/180 | D72: т | J72: 0
B73: 101-0322 | C73: Керосин для технических целей марок КТ-1, КТ-2 | D73: т | J73: 0
B74: 101-0594 | C74: Мастика битумная кровельная горячая | D74: т | J74: 0
A75: 16 | B75: ТЕР12-01-015-05 | C75: Устройство пароизоляции: на каждый последующий слой добавлять к расценке 12-01-015-04 | D75: 100 м2 изолируемой поверхности | E75: 0.62 | F75: =G75/E75 -> 10454.47 | G75: 6481.77 | H75: =I75/E75 -> 11992.97 | I75: 7435.64 | J75: 13917.41
B76: 101-0594 | C76: Мастика битумная кровельная горячая | D76: т | J76: =G76+I76 -> 0
A77: 17 | B77: ТЕР12-01-013-01 | C77: Утепление покрытий плитами: из пенопласта полистирольного на битумной мастике в один слой ( толщ. 100 мм.) | D77: 100 м2 утепляемого покрытия | E77: 0.62 | F77: =G77/E77 -> 47538.61 | G77: 29473.94 | H77: =I77/E77 -> 13353.08 | I77: 8278.91 | J77: 37752.85
B78: 101-0078 | C78: Битумы нефтяные строительные кровельные марки: БНК-45/190, БНК-45/180 | D78: т | J78: 0
B79: 101-0322 | C79: Керосин для технических целей марок КТ-1, КТ-2 | D79: т | J79: 0
B80: 101-0594 | C80: Мастика битумная кровельная горячая | D80: т | J80: 0
A81: 18 | B81: ТЕР12-01-013-02 | C81: Утепление покрытий плитами: на каждый последующий слой добавлять к расценке 12-01-013-01 | D81: 100 м2 утепляемого покрытия | E81: 0.62 | F81: =G81/E81 -> 35045.16 | G81: 21728 | H81: =I81/E81 -> 9757.03 | I81: 6049.36 | J81: 27777.36
B82: 101-0594 | C82: Мастика битумная кровельная горячая | D82: т | J82: 0
A83: 19 | B83: ТССЦ-104-1223 | C83: Пенополистирол экструдированный ТЕХНОНИКОЛЬ XPS CARBON 30-280 Стандарт | D83: м3 | E83: 6.386 | F83: =G83/E83 -> 0 | G83: 0 | H83: =I83/E83 -> 16155.36 | I83: 103168.13 | J83: 103168.13
A84: 20 | B84: ТЕР12-01-017-01 | C84: Устройство выравнивающих стяжек: цементно-песчаных толщиной 15 мм | D84: 100 м2 стяжки | E84: 0.62 | F84: =G84/E84 -> 64290.77 | G84: 39860.28 | H84: =I84/E84 -> 9587.89 | I84: 5944.49 | J84: 45804.77
B85: 101-0856 | C85: Рубероид кровельный с пылевидной посыпкой марки РКП-350б | D85: м2 | J85: 0
B86: 402-0004 | C86: Раствор готовый кладочный цементный марки: 100 | D86: м3 | J86: 0
B87: 411-0001 | C87: Вода | D87: м3 | J87: 0
A88: 21 | B88: ТЕР12-01-017-02 | C88: Устройство выравнивающих стяжек: на каждый 1 мм изменения толщины добавлять или исключать к расценке 12-01-017-01 | D88: 100 м2 стяжки | E88: 0.62 | F88: =G88/E88 -> 55013.37 | G88: 34108.29 | H88: =I88/E88 -> 15287.81 | I88: 9478.44 | J88: 43586.73
B89: 402-0004 | C89: Раствор готовый кладочный цементный марки: 100 | D89: м3 | J89: 0
A90: 22 | B90: ТЕР06-01-015-10 | C90: Армирование подстилающих слоев и набетонок | D90: 1 т | E90: 0.1085 | F90: =G90/E90 -> 27724.98 | G90: 3008.16 | H90: =I90/E90 -> 3005.53 | I90: 326.1 | J90: 3334.26
B91: 101-0816 | C91: Проволока светлая диаметром: 1,1 мм | D91: т | J91: 0
A92: 23 | B92: ТЦ_08.4.02.05_66_6686134976_08.02.2024_02 | C92: Сетка арм. 100х100 4Вр1 | D92: м2 | E92: 62 | F92: =G92/E92 -> 0 | G92: 0 | H92: =I92/E92 -> 116.06 | I92: 7195.74 | J92: 7195.74
A93: 24 | B93: ТЕР12-01-016-02 | C93: Огрунтовка оснований из бетона или раствора под водоизоляционный кровельный ковер: готовой эмульсией битумной // праймер | D93: 100 м2 кровли | E93: 0.62 | F93: =G93/E93 -> 6028.92 | G93: 3737.93 | H93: =I93/E93 -> 2875.44 | I93: 1782.77 | J93: 5520.7
B94: 101-1780 | C94: Эмульсия битумная для гидроизоляционных работ | D94: т | J94: 0
A95: 25 | B95: ТЕР12-01-017-03 | C95: Устройство выравнивающих стяжек: асфальтобетонных толщиной 15 мм | D95: 100 м2 стяжки | E95: 0.62 | F95: =G95/E95 -> 39822.89 | G95: 24690.19 | H95: =I95/E95 -> 28279.42 | I95: 17533.24 | J95: 42223.43
B96: 101-0856 | C96: Рубероид кровельный с пылевидной посыпкой марки РКП-350б | D96: м2 | J96: 0
B97: 410-0021 | C97: Смеси асфальтобетонные дорожные, аэродромные и асфальтобетон (горячие для пористого асфальтобетона щебеночные и гравийные), марка: I | D97: т | J97: 0
A98: 26 | B98: ТЕР12-01-017-04 | C98: Устройство выравнивающих стяжек: на каждый 1 мм изменения толщины добавлять или исключать к расценке 12-01-017-03 | D98: 100 м2 стяжки | E98: 0.62 | F98: =G98/E98 -> 98367.42 | G98: 60987.8 | H98: =I98/E98 -> 65222.23 | I98: 40437.78 | J98: 101425.58
B99: 410-0021 | C99: Смеси асфальтобетонные дорожные, аэродромные и асфальтобетон (горячие для пористого асфальтобетона щебеночные и гравийные), марка: I | D99: т | J99: 0
A100: 27 | B100: ТЕР12-01-004-04 | C100: Устройство примыканий кровель из наплавляемых материалов к стенам и парапетам высотой: до 600 мм без фартуков | D100: 100 м примыканий | E100: 0.375 | F100: =G100/E100 -> 82512.29 | G100: 30942.11 | H100: =I100/E100 -> 131481.81 | I100: 49305.68 | J100: 80247.79
B101: 101-1961 | C101: Изопласт: К ЭКП-4,5 | D101: м2 | J101: 0
B102: 101-2278 | C102: Пропан-бутан, смесь техническая | D102: кг | J102: 0
B103: 402-0004 | C103: Раствор готовый кладочный цементный марки: 100 | D103: м3 | J103: 0
A104: 28 | B104: ТЕР12-01-009-02 | C104: Устройство желобов: подвесных | D104: 100 м желобов | E104: 0.78 | F104: =G104/E104 -> 65796.37 | G104: 51321.17 | H104: =I104/E104 -> 21887.31 | I104: 17072.1 | J104: 68393.27
B105: 101-0173 | C105: Гвозди проволочные оцинкованные для асбестоцементной кровли: 4,5х120 мм | D105: т | J105: 0
B106: 101-0788 | C106: Поковки оцинкованные, масса: 2,825 кг | D106: т | J106: 0
A107: 29 | B107: ТЦ_12.1.01.00_78_7804606806_25.01.2024_02 | C107: Желоб водосточный D185х3000 | D107: шт | E107: 26 | F107: =G107/E107 -> 0 | G107: 0 | H107: =I107/E107 -> 1709.45 | I107: 44445.79 | J107: 44445.79
A108: 30 | B108: ТЦ_12.1.01.00_78_7804606806_25.01.2024_02 | C108: Держатель желоба | D108: шт | E108: 130 | F108: =G108/E108 -> 0 | G108: 0 | H108: =I108/E108 -> 754.15 | I108: 98039.6 | J108: 98039.6
A109: 31 | B109: ТЕР12-01-012-01 | C109: Ограждение кровель перилами // прим. Устройство труб водосточных | D109: 100 м ограждения | E109: 0.795 | F109: =G109/E109 -> 16109.37 | G109: 12806.95 | H109: =I109/E109 -> 402.96 | I109: 320.35 | J109: 13127.3
B110: 101-1529 | C110: Электроды диаметром: 6 мм Э42 | D110: т | J110: 0
B111: 101-1851 | C111: Резина прессованная | D111: кг | J111: 0
A112: 32 | B112: ТЦ_12.1.01.00_78_7804606806_25.01.2024_02 | C112: Труба водосточная D150х2000мм | D112: шт | E112: 40 | F112: =G112/E112 -> 0 | G112: 0 | H112: =I112/E112 -> 2084.16 | I112: 83366.56 | J112: 83366.56
A113: 33 | B113: ТЦ_12.1.01.00_78_7804606806_25.01.2024_02 | C113: Крепление трубы | D113: шт | E113: 133 | F113: =G113/E113 -> 0 | G113: 0 | H113: =I113/E113 -> 314.88 | I113: 41878.65 | J113: 41878.65
A114: 34 | B114: ТЦ_12.1.01.00_78_7804606806_25.01.2024_02 | C114: Воронки выпускные D185/150 | D114: шт | E114: 10 | F114: =G114/E114 -> 0 | G114: 0 | H114: =I114/E114 -> 808.07 | I114: 8080.66 | J114: 8080.66
A115: 35 | B115: ТССЦ-301-3305 | C115: Воронка сливная диаметром: 150 мм | D115: шт. | E115: 4 | F115: =G115/E115 -> 0 | G115: 0 | H115: =I115/E115 -> 846.85 | I115: 3387.41 | J115: 3387.41
A116: 36 | B116: ТЕР12-01-012-01 | C116: Ограждение кровель перилами // прим. | D116: 100 м ограждения | E116: 0.76 | F116: =G116/E116 -> 16112.17 | G116: 12245.25 | H116: =I116/E116 -> 402.62 | I116: 305.99 | J116: 12551.24
B117: 101-1529 | C117: Электроды диаметром: 6 мм Э42 | D117: т | J117: 0
B118: 101-1851 | C118: Резина прессованная | D118: кг | J118: 0
A119: 37 | B119: ТЦ_12.1.01.00_78_7804606806_25.01.2024_02 | C119: Снегозадержатель трубчатый (L=3 м. в комплекте с креплением) | D119: шт | E119: 25 | F119: =G119/E119 -> 0 | G119: 0 | H119: =I119/E119 -> 2407.39 | I119: 60184.76 | J119: 60184.76
A120: 38 | B120: ТЕР12-01-012-01 | C120: Ограждение кровель перилами | D120: 100 м ограждения | E120: 1.05 | F120: =G120/E120 -> 16111.38 | G120: 16916.95 | H120: =I120/E120 -> 402.24 | I120: 422.35 | J120: 17339.3
B121: 101-1529 | C121: Электроды диаметром: 6 мм Э42 | D121: т | J121: 0
B122: 101-1851 | C122: Резина прессованная | D122: кг | J122: 0
A123: 39 | B123: ТЦ_08.1.06.00_50_5047239058_14.02.2024_02 | C123: Ограждение кровли h=600 мм. ( 1,86 м/шт) | D123: шт | E123: 57 | F123: =G123/E123 -> 0 | G123: 0 | H123: =I123/E123 -> 4217.24 | I123: 240382.77 | J123: 240382.77
A124: Раздел 4. Окна | J124: 0
A125: 40 | B125: ТЕР10-01-034-03 | C125: Установка в жилых и общественных зданиях оконных блоков из ПВХ профилей: поворотных (откидных, поворотно-откидных) с площадью проема до 2 м2 одностворчатых | D125: 100 м2 проемов | E125: 0.152 | F125: =G125/E125 -> 468404.21 | G125: 71197.44 | H125: =I125/E125 -> 156169.41 | I125: 23737.75 | J125: 94935.19
B126: 101-2052 | C126: Лента бутиловая | D126: м | J126: 0
B127: 101-2054 | C127: Лента бутиловая диффузионная | D127: м | J127: 0
B128: 101-2388 | C128: Герметик пенополиуретановый (пена монтажная) типа Makrofleks, Soudal в баллонах по 750 мл | D128: шт. | J128: 0
B129: 101-2789 | C129: Лента ПСУЛ | D129: 10 м | J129: 0
B130: 101-4173 | C130: Дюбели монтажные 10х130 (10х132, 10х150) мм | D130: 10 шт. | J130: 0
B131: 102-0303 | C131: Клинья пластиковые монтажные | D131: 100 шт. | J131: 0
A132: 41 | B132: ТЦ_07.1.02.00_78_7840318754_30.01.2024_02 | C132: ОК-1. 1000х1000 | D132: шт | E132: 9 | F132: =G132/E132 -> 0 | G132: 0 | H132: =I132/E132 -> 12242.38 | I132: 110181.42 | J132: 110181.42
A133: 42 | B133: ТЦ_07.1.02.00_78_7840318754_30.01.2024_02 | C133: ОК-2. 1000х1000 | D133: шт | E133: 3 | F133: =G133/E133 -> 0 | G133: 0 | H133: =I133/E133 -> 11560.01 | I133: 34680.04 | J133: 34680.04
A134: 43 | B134: ТЦ_07.1.02.00_78_7840318754_30.01.2024_02 | C134: ОК-3. 1600х1000 | D134: шт | E134: 1 | F134: =G134/E134 -> 0 | G134: 0 | H134: =I134/E134 -> 16060.76 | I134: 16060.76 | J134: 16060.76
A135: 44 | B135: ТЦ_07.1.02.00_78_7840318754_30.01.2024_02 | C135: ОК-4. 1600х1000 | D135: шт | E135: 1 | F135: =G135/E135 -> 0 | G135: 0 | H135: =I135/E135 -> 14753.49 | I135: 14753.49 | J135: 14753.49
A136: 45 | B136: ТЕР15-01-070-01 | C136: Облицовка: оконных проемов в наружных стенах откосной планкой из оцинкованной стали с полимерным покрытием с устройством водоотлива оконного из оцинкованной стали с полимерным покрытием | D136: 1 м2 проемов | E136: 15.2 | F136: =G136/E136 -> 3276.87 | G136: 49808.47 | H136: =I136/E136 -> 1423.8 | I136: 21641.8 | J136: 71450.27
B137: 101-1691 | C137: Шурупы-саморезы 4,2х16 мм | D137: 100 шт. | J137: 0
B138: 101-2409 | C138: Аквилон из оцинкованной стали с полимерным покрытием | D138: п.м | J138: 0
B139: 101-2410 | C139: Откосная планка шириной 250 мм из оцинкованной стали с полимерным покрытием | D139: п.м | J139: 0
B140: 101-2411 | C140: Водоотлив оконный шириной планки 250 мм из оцинкованной стали с полимерным покрытием | D140: п.м | J140: =G140+I140 -> 0
A141: Раздел 5. Дверные проемы и ворота | J141: 0
A142: 46 | B142: ТЕР09-04-012-01 | C142: Установка металлических дверных блоков в готовые проемы | D142: 1 м2 проема | E142: 40.74 | F142: =G142/E142 -> 6003.13 | G142: 244567.48 | H142: =I142/E142 -> 327.69 | I142: 13349.97 | J142: 257917.45
B143: 101-1513 | C143: Электроды диаметром: 4 мм Э42 | D143: т | J143: 0
B144: 101-1921 | C144: Пена монтажная: для герметизации стыков в баллончике емкостью 0,85 л | D144: шт. | J144: 0
B145: 204-0062 | C145: Детали закладные и накладные изготовленные: без применения сварки, гнутья, сверления (пробивки) отверстий поставляемые отдельно | D145: т | J145: 0
A146: 47 | B146: ТЦ_07.1.01.03_78_7841375755_25.01.2024_02 | C146: Дверной блок однопольный металлический, остекленный, правая навеска 1000х2100 | D146: шт | E146: 6 | F146: =G146/E146 -> 0 | G146: 0 | H146: =I146/E146 -> 31352.96 | I146: 188117.78 | J146: 188117.78
A147: 48 | B147: ТЦ_07.1.01.03_78_7841375755_25.01.2024_02 | C147: Дверной блок однопольный металлический, остекленный,утепленный, правая навеска 1000х2100 | D147: шт | E147: 12 | F147: =G147/E147 -> 0 | G147: 0 | H147: =I147/E147 -> 33088.81 | I147: 397065.71 | J147: 397065.71
A148: 49 | B148: ТЦ_07.1.01.03_78_7841375755_25.01.2024_02 | C148: Дверной блок двупольный металлический, остекленный,утепленный 1400х2100 | D148: шт | E148: 1 | F148: =G148/E148 -> 0 | G148: 0 | H148: =I148/E148 -> 45060.64 | I148: 45060.64 | J148: 45060.64
A149: 50 | B149: ТЕР15-01-070-02 | C149: Облицовка: дверных проемов в наружных стенах откосной планкой из оцинкованной стали с полимерным покрытием с установкой наличников из оцинкованной стали с полимерным покрытием | D149: 1 м2 проемов | E149: 40.74 | F149: =G149/E149 -> 3593.87 | G149: 146414.39 | H149: =I149/E149 -> 1660.72 | I149: 67657.76 | J149: 214072.15
B150: 101-1691 | C150: Шурупы-саморезы 4,2х16 мм | D150: 100 шт. | J150: 0
B151: 101-2409 | C151: Аквилон из оцинкованной стали с полимерным покрытием | D151: п.м | J151: 0
B152: 101-2410 | C152: Откосная планка шириной 250 мм из оцинкованной стали с полимерным покрытием | D152: п.м | J152: 0
B153: 101-2412 | C153: Наличники из оцинкованной стали с полимерным покрытием | D153: п.м | J153: 0
A154: Ворота | J154: 0
A155: 51 | B155: ТЕР09-04-011-01 | C155: Монтаж каркасов ворот большепролетных зданий, ангаров и др. без механизмов открывания | D155: 1 т конструкций | E155: 2.44 | F155: =G155/E155 -> 174277.92 | G155: 425238.12 | H155: =I155/E155 -> 8950.25 | I155: 21838.61 | J155: 447076.73
B156: 101-0309 | C156: Канаты пеньковые пропитанные | D156: т | J156: 0
B157: 101-0324 | C157: Кислород технический: газообразный | D157: м3 | J157: 0
B158: 101-0797 | C158: Проволока горячекатаная в мотках, диаметром 6,3-6,5 мм | D158: т | J158: 0
B159: 101-1019 | C159: Швеллеры № 40 из стали марки: Ст0 | D159: т | J159: 0
B160: 101-1515 | C160: Электроды диаметром: 4 мм Э46 | D160: т | J160: 0
B161: 101-1805 | C161: Гвозди строительные | D161: т | J161: 0
B162: 101-2278 | C162: Пропан-бутан, смесь техническая | D162: кг | J162: 0
B163: 101-2467 | C163: Растворитель марки: Р-4 | D163: т | J163: 0
B164: 102-0023 | C164: Бруски обрезные хвойных пород длиной: 4-6,5 м, шириной 75-150 мм, толщиной 40-75 мм, I сорта | D164: м3 | J164: 0
B165: 113-0021 | C165: Грунтовка: ГФ-021 красно-коричневая | D165: т | J165: 0
B166: 201-0756 | C166: Отдельные конструктивные элементы зданий и сооружений с преобладанием: горячекатаных профилей, средняя масса сборочной единицы от 0,1 до 0,5 т | D166: т | J166: 0
B167: 508-0097 | C167: Канат двойной свивки типа ТК, конструкции 6х19(1+6+12)+1 о.с., оцинкованный из проволок марки В, маркировочная группа: 1770 н/мм2, диаметром 5,5 мм | D167: 10 м | J167: 0
A168: 52 | B168: ТЕРм38-01-002-03 | C168: Монорельсы, балки и другие аналогичные конструкции промышленных зданий, сборка с помощью: лебедок электрических (с установкой и снятием их в процессе работы) | D168: 1 т конструкций | E168: 2.367 | F168: =G168/E168 -> 66109.76 | G168: 156481.81 | H168: =I168/E168 -> 55520.96 | I168: 131418.12 | J168: 287899.93
B169: 101-0324 | C169: Кислород технический: газообразный | D169: м3 | J169: 0
B170: 101-1015 | C170: Балки двутавровые № 60 из стали марки: Ст3сп | D170: т | J170: 0
B171: 101-1521 | C171: Электроды диаметром: 5 мм Э42 | D171: т | J171: 0
B172: 101-2278 | C172: Пропан-бутан, смесь техническая | D172: кг | J172: 0
B173: 999-9950 | C173: Вспомогательные ненормируемые ресурсы (2% от Оплаты труда рабочих) | D173: руб | J173: 0
A174: 53 | B174: ТЕРм11-05-001-01 | C174: Механизм исполнительный, масса: до 20 кг | D174: 1 шт. | E174: 3 | F174: =G174/E174 -> 2196.5 | G174: 6589.51 | H174: =I174/E174 -> 108.22 | I174: 324.66 | J174: 6914.17
B175: 101-2039 | C175: Болты с гайками и шайбами оцинкованные, диаметр: 12 мм | D175: кг | J175: 0
B176: 999-9950 | C176: Вспомогательные ненормируемые ресурсы (2% от Оплаты труда рабочих) | D176: руб | J176: 0
A177: 54 | B177: ТЦ_08.1.06.01_78_7814075047_27.02.2024_02 | C177: Ворота складчатые, металлические остекленные с калиткой 4500х4000мм (57*18)/1000 | D177: шт | E177: 1 | F177: =G177/E177 -> 0 | G177: 0 | H177: =I177/E177 -> 593001.25 | I177: 593001.25 | J177: 593001.25
A178: 55 | B178: ТЦ_08.1.06.01_78_7804564218_19.02.2024_02 | C178: Ворота складчатые, металлические остекленные с калиткой 4000х4000мм (57*16)/1000 | D178: шт | E178: 1 | F178: =G178/E178 -> 0 | G178: 0 | H178: =I178/E178 -> 414538.61 | I178: 414538.61 | J178: 414538.61
A179: 56 | B179: ТЦ_07.1.01.03_78_7810347194_06.02.2024_02 | C179: Ворота распашные, металлические остекленные утепленные 3000х2200мм ( 76*6,6)/1000 | D179: шт | E179: 1 | F179: =G179/E179 -> 0 | G179: 0 | H179: =I179/E179 -> 135515.19 | I179: 135515.19 | J179: 135515.19
A180: Раздел 6. Полы | J180: 0
A181: Тип 1. S=230,0 м2 | J181: 0
A182: 57 | B182: ТЕР11-01-011-03 | C182: Устройство стяжек: бетонных толщиной 20 мм | D182: 100 м2 стяжки | E182: 2.3 | F182: =G182/E182 -> 83768.42 | G182: 192667.37 | H182: =I182/E182 -> 94.31 | I182: 216.92 | J182: 192884.29
B183: 411-0001 | C183: Вода | D183: м3 | J183: 0
A184: 58 | B184: ТЕР11-01-011-04 | C184: Устройство стяжек: на каждые 5 мм изменения толщины стяжки добавлять или исключать к расценке 11-01-011-03 | D184: 100 м2 стяжки | E184: 2.3 | F184: =G184/E184 -> 20972.55 | G184: 48236.87 | H184: =I184/E184 -> 0 | I184: 0 | J184: 48236.87
A185: 59 | B185: Прайс | C185: Бетон В15 | D185: м3 | E185: 19.941 | F185: =G185/E185 -> 0 | G185: 0 | H185: =I185/E185 -> 8793.13 | I185: 175343.87 | J185: 175343.87
A186: 60 | B186: ТЕР11-01-020-03 | C186: Устройство покрытий поливинилацетатных: толщиной 3 мм // прим. гидроизоляция полимерная | D186: 100 м2 покрытия | E186: 3.318 | F186: =G186/E186 -> 180033.07 | G186: 597349.73 | H186: =I186/E186 -> 147311.67 | I186: 488780.13 | J186: 1086129.86
B187: 101-0430 | C187: Краски масляные и алкидные земляные, готовые к применению: сурик железный МА-15, ПФ-14 | D187: т | J187: 0
B188: 101-0433 | C188: Краски масляные и алкидные земляные, готовые к применению: охра МА-15 | D188: т | J188: 0
B189: 101-1305 | C189: Портландцемент общестроительного назначения бездобавочный, марки: 400 | D189: т | J189: 0
B190: 101-1591 | C190: Смола каменноугольная для дорожного строительства | D190: т | J190: 0
B191: 101-2293 | C191: Кислота ортофосфорная: техническая, сорт I | D191: т | J191: 0
B192: 101-2358 | C192: Дисперсия поливинилацетатная непластифицированная марки Д50Н | D192: кг | J192: 0
B193: 113-0306 | C193: Маршалит | D193: т | J193: 0
B194: 408-0122 | C194: Песок природный для строительных: работ средний | D194: м3 | J194: 0
B195: 411-0001 | C195: Вода | D195: м3 | J195: 0
A196: 61 | B196: ТЕР11-01-011-03 | C196: Устройство стяжек: бетонных толщиной 20 мм // прим. покрытие полимерцементный бетон В25 толщ.15 мм | D196: 100 м2 стяжки | E196: 2.3 | F196: =G196/E196 -> 62825.22 | G196: 144498.01 | H196: =I196/E196 -> 70.58 | I196: 162.33 | J196: 144660.34
B197: 411-0001 | C197: Вода | D197: м3 | J197: 0
A198: 62 | B198: Прайс | C198: Ветон В25 | D198: м3 | E198: 3.519 | F198: =G198/E198 -> 0 | G198: 0 | H198: =I198/E198 -> 9649.34 | I198: 33956.01 | J198: 33956.01
A199: 63 | B199: ТССЦ-113-0378 | C199: Состав полимерцементный ( 20% от массы бетона) | D199: м3 | E199: 0.7038 | F199: =G199/E199 -> 0 | G199: 0 | H199: =I199/E199 -> 3761.84 | I199: 2647.58 | J199: 2647.58
A200: Тип 1а. S=930,0 м2 | J200: 0
A201: 64 | B201: ТЕР11-01-011-03 | C201: Устройство стяжек: бетонных толщиной 20 мм | D201: 100 м2 стяжки | E201: 9.3 | F201: =G201/E201 -> 83767.93 | G201: 779041.76 | H201: =I201/E201 -> 94.23 | I201: 876.3 | J201: 779918.06
B202: 411-0001 | C202: Вода | D202: м3 | J202: 0
... 165 more rows

Sheet 1632-2021-2.2.6-АР
A2: Терминал по перевалке минеральных удобрений в морском торговом порту Усть-Луга. Береговые объекты терминала
A3: (наименование стройки)
A4: 1632-2021-2.2.6-АР_07.04.025-П-00-00
A5: (локальная смета)
A6: на Архитектурные решения, 07.04.025 Пересыпная станция №6 (код SAP 01.02.020) код ГП 2.2.6
A7: (наименование работ и затрат, наименование объекта)
B8: Основание: | C8: 1632-2021-2.2.6-АР_0_0_RU_IFR
A10: № п/п | B10: Обоснование | C10: Наименование работ и затрат | D10: Ед. изм. | E10: Кол-во | F10: Цена за ед.измерения работ, руб. с НДС | G10: Всего, стоимость работ,руб. с НДС | H10: Цена за ед.измерения материалов, руб. с НДС | I10: Всего, стоимость материалов, руб. с НДС | J10: Итого, руб. с НДС
A11: 1 | B11: 2 | C11: 3 | D11: 4 | E11: 5 | F11: 6 | G11: 7 | H11: 8 | I11: 9 | J11: 10
A12: Раздел 1. Фасады, (1632-2021-2.2.6-АР, л. 4, Спецификация элементов ограждающих конструкций) | J12: =G12+I12 -> 0
A13: Раздел 2. Кровля, (1632-2021-2.2.6-АР, л. 4, Спецификация элементов водосточной системы) | J13: 0
A14: Монтаж кровельного покрытия из профнастила учтен в разделе КМ | J14: 0
A15: 1 | B15: ТЕР12-01-009-02 | C15: Устройство желобов: подвесных | D15: 100 м желобов | E15: 0.161 | F15: =G15/E15 -> 65805.22 | G15: 10594.64 | H15: =I15/E15 -> 21878.57 | I15: 3522.45 | J15: 14117.09
B16: 101-0173 | C16: Гвозди проволочные оцинкованные для асбестоцементной кровли: 4,5х120 мм | D16: т
B17: 101-0788 | C17: Поковки оцинкованные, масса: 2,825 кг | D17: т
A18: 2 | B18: ТЦ_12.1.01.00_78_7804606806_25.01.2024_02 Аналог ТССЦ-203-0960 5219,18/5114,28=2% | C18: Водосточный желоб D185х3000 | D18: шт | E18: 5.37 | F18: =G18/E18 -> 0 | G18: 0 | H18: =I18/E18 -> 1743.67 | I18: 9363.51 | J18: =G18+I18 -> 9363.51
A19: 3 | B19: ТЦ_12.1.01.00_78_7804606806_25.01.2024_02 Аналог ТССЦ-203-0960 5219,18/5114,28=2% | C19: Держатель желоба | D19: шт | E19: 27 | F19: =G19/E19 -> 0 | G19: 0 | H19: =I19/E19 -> 769.31 | I19: 20771.25 | J19: 20771.25
A20: 4 | B20: ТЦ_12.1.01.00_78_7804606806_25.01.2024_02 Аналог ТССЦ-203-0960 5219,18/5114,28=2% | C20: Заглушка | D20: шт | E20: 3 | F20: =G20/E20 -> 0 | G20: 0 | H20: =I20/E20 -> 381.17 | I20: 1143.5 | J20: 1143.5
A21: 5 | B21: ТЕР12-01-008-01 | C21: Устройство обделок на фасадах (наружные подоконники, пояски, балконы и др.): включая водосточные трубы, с изготовлением элементов труб | D21: 100 м2фасада (без вычета проемов) | E21: 5.6775 | F21: =G21/E21 -> 27777.32 | G21: 157705.76 | H21: =I21/E21 -> 164.97 | I21: 936.64 | J21: 158642.4
B22: 101-0195 | C22: Гвозди толевые круглые: 3,0х40 мм | D22: т
A23: 6 | B23: ТЦ_12.1.01.00_78_7804606806_25.01.2024_02 Аналог ТССЦ-203-0960 5219,18/5114,28=2% | C23: Труба водосточная D150х3000мм | D23: шт | E23: 12.33 | F23: =G23/E23 -> 0 | G23: 0 | H23: =I23/E23 -> 2125.83 | I23: 26211.51 | J23: 26211.51
A24: 7 | B24: ТЦ_12.1.01.00_78_7804606806_25.01.2024_02 Аналог ТССЦ-203-0960 5219,18/5114,28=2% | C24: Крепление трубы | D24: шт | E24: 37 | F24: =G24/E24 -> 0 | G24: 0 | H24: =I24/E24 -> 321.09 | I24: 11880.37 | J24: 11880.37
A25: 8 | B25: ТЦ_12.1.01.00_78_7804606806_25.01.2024_02 Аналог ТССЦ-203-0960 5219,18/5114,28=2% | C25: Колено гофрированное | D25: шт | E25: 6 | F25: =G25/E25 -> 0 | G25: 0 | H25: =I25/E25 -> 488.43 | I25: 2930.59 | J25: 2930.59
A26: 9 | B26: ТЕР16-07-002-01 | C26: Установка воронок водосточных | D26: 1 воронка | E26: 2 | F26: =G26/E26 -> 7982.98 | G26: 15965.95 | H26: =I26/E26 -> 54.59 | I26: 109.18 | J26: 16075.13
B27: 101-0311 | C27: Каболка | D27: т
B28: 101-1355 | C28: Цемент гипсоглиноземистый расширяющийся | D28: т
B29: 101-1522 | C29: Электроды диаметром: 5 мм Э42А | D29: т
A30: 10 | B30: ТЦ_12.1.01.05_78_7804550906_25.01.2024_02 Аналог ТССЦ-203-0960 5219,18/5114,28=2% | C30: Воронка выпускная D185/150 | D30: шт | E30: 2 | F30: =G30/E30 -> 0 | G30: 0 | H30: =I30/E30 -> 823.87 | I30: 1647.74 | J30: 1647.74
A31: 11 | B31: ТЕР12-01-012-01 | C31: Ограждение кровель перилами, (установка снегозадержателя, прим.) | D31: 100 м ограждения | E31: 0.15 | F31: =G31/E31 -> 16118.2 | G31: 2417.73 | H31: =I31/E31 -> 402.27 | I31: 60.34 | J31: 2478.07
B32: 101-1529 | C32: Электроды диаметром: 6 мм Э42 | D32: т
B33: 101-1851 | C33: Резина прессованная | D33: кг
A34: 12 | B34: ТЦ_12.1.01.00_78_7804606806_25.01.2024_02 Аналог ТССЦ-203-0960 5219,18/5114,28=2% | C34: Снегозадержатель трубчатый, (L=3 м. в комплекте с креплением) | D34: шт | E34: 5 | F34: =G34/E34 -> 0 | G34: 0 | H34: =I34/E34 -> 2455.66 | I34: 12278.29 | J34: 12278.29
A35: Заполнение гофры профлиста негорючим утеплителем на 250 мм, (1632-2021-2.2.6-АР, л. 5) | J35: 0
A36: 13 | B36: ТЕР26-01-037-02 | C36: Изоляция изделиями из волокнистых и зернистых материалов на битуме холодных поверхностей: покрытий и перекрытий сверху // прим. расход 0,0072 м3 /м.п. примыкания | D36: 1 м3 изоляции | E36: 0.108 | F36: =G36/E36 -> 25232.96 | G36: 2725.16 | H36: =I36/E36 -> 15097.22 | I36: 1630.5 | J36: 4355.66
B37: 101-0079 | C37: Битумы нефтяные строительные для кровельных мастик марки: БНМ-55/60 | D37: т
B38: 104-0007 | C38: Плиты из минеральной ваты: повышенной жесткости на синтетическом связующем М-200 | D38: м3
A39: Раздел 3. Окна, (1632-2021-2.2.6-АР, л. 4, Спецификация элементов заполнения оконных проемов) | J39: 0
A40: 14 | B40: ТЕР10-01-034-03 | C40: Установка в жилых и общественных зданиях оконных блоков из ПВХ профилей: поворотных (откидных, поворотно-откидных) с площадью проема до 2 м2 одностворчатых | D40: 100 м2 проемов | E40: 0.084 | F40: =G40/E40 -> 468370.48 | G40: 39343.12 | H40: =I40/E40 -> 156174.76 | I40: 13118.68 | J40: 52461.8
B41: 101-2052 | C41: Лента бутиловая | D41: м
B42: 101-2054 | C42: Лента бутиловая диффузионная | D42: м
B43: 101-2388 | C43: Герметик пенополиуретановый (пена монтажная) типа Makrofleks, Soudal в баллонах по 750 мл | D43: шт.
B44: 101-2789 | C44: Лента ПСУЛ | D44: 10 м
B45: 101-4173 | C45: Дюбели монтажные 10х130 (10х132, 10х150) мм | D45: 10 шт.
B46: 102-0303 | C46: Клинья пластиковые монтажные | D46: 100 шт.
A47: 15 | B47: ТЦ_11.3.02.02_78_7804550906_25.01.2024_02 | C47: Ок1. Оконный блок из ПВХ профилей с одинарным остеклением, с открывающейся створкой, ОП 1100-1400 (6M1) ГОСТ 30674-99 | D47: шт | E47: 6 | F47: =G47/E47 -> 0 | G47: 0 | H47: =I47/E47 -> 9768.86 | I47: 58613.16 | J47: 58613.16
A48: Раздел 4. Дверные проемы и ворота, (1632-2021-2.2.6-АР, л. 4, Спецификация элементов заполнения дверных проемов) | J48: 0
A49: Установка дверей | J49: 0
A50: 16 | B50: ТЕР09-04-012-01 | C50: Установка металлических дверных блоков в готовые проемы | D50: 1 м2 проема | E50: 8.4 | F50: =G50/E50 -> 6003.29 | G50: 50427.63 | H50: =I50/E50 -> 327.67 | I50: 2752.45 | J50: 53180.08
B51: 101-1513 | C51: Электроды диаметром: 4 мм Э42 | D51: т
B52: 101-1921 | C52: Пена монтажная: для герметизации стыков в баллончике емкостью 0,85 л | D52: шт.
B53: 204-0062 | C53: Детали закладные и накладные изготовленные: без применения сварки, гнутья, сверления (пробивки) отверстий поставляемые отдельно | D53: т
A54: 17 | B54: ТЕР09-04-012-02 | C54: Установка дверного доводчика к металлическим дверям | D54: 1 шт. | E54: 4 | F54: =G54/E54 -> 2614.54 | G54: 10458.17 | H54: =I54/E54 -> 10.78 | I54: 43.1 | J54: 10501.27
B55: 101-1513 | C55: Электроды диаметром: 4 мм Э42 | D55: т
B56: 101-1845 | C56: Винты самонарезающие: с уплотнительной прокладкой 4,8х35 мм | D56: 100 шт.
A57: 18 | B57: ТЦ_07.1.01.03_78_7810347194_06.02.2024_02 | C57: ДСН, Оп, Л, Прг, Н, М3 1000Х2100(h) | D57: шт | E57: 2 | F57: =G57/E57 -> 0 | G57: 0 | H57: =I57/E57 -> 35195.05 | I57: 70390.1 | J57: 70390.1
A58: 19 | B58: ТЦ_07.1.01.03_78_7810347194_06.02.2024_02 | C58: ДСН, Оп, Л, Прг, Н, М3 1000Х2100(h) утепленная | D58: шт | E58: 2 | F58: =G58/E58 -> 0 | G58: 0 | H58: =I58/E58 -> 35195.05 | I58: 70390.1 | J58: 70390.1
A59: 20 | B59: ТЕР09-04-013-01 | C59: Установка противопожарных дверей: однопольных глухих | D59: 1 м2 проема | E59: 8.4 | F59: =G59/E59 -> 5120.15 | G59: 43009.23 | H59: =I59/E59 -> 675.01 | I59: 5670.11 | J59: 48679.34
B60: 101-1513 | C60: Электроды диаметром: 4 мм Э42 | D60: т
B61: 101-1929 | C61: Болты анкерные | D61: т
B62: 101-3661 | C62: Пена монтажная: противопожарная полиуретановая NULLIFIRE (0,88 л) | D62: шт.
A63: 21 | B63: ТЦ_07.1.01.03_78_7841375755_25.01.2024_02 | C63: ДПС 01 2100-1000 правая EI30 ГОСТ Р 57327-2016 | D63: шт | E63: 1 | F63: =G63/E63 -> 0 | G63: 0 | H63: =I63/E63 -> 26485.89 | I63: 26485.89 | J63: 26485.89
A64: 22 | B64: ТЦ_07.1.01.03_78_7841375755_25.01.2024_02 | C64: ДПС 01 2100-1000 левая EI30 ГОСТ Р 57327-2016 | D64: шт | E64: 1 | F64: =G64/E64 -> 0 | G64: 0 | H64: =I64/E64 -> 26485.89 | I64: 26485.89 | J64: 26485.89
A65: 23 | B65: ТЦ_07.1.01.03_78_7841375755_25.01.2024_02 | C65: ДПС 01 2100-1000 правая EI60 ГОСТ Р 57327-2016 | D65: шт | E65: 1 | F65: =G65/E65 -> 0 | G65: 0 | H65: =I65/E65 -> 26485.89 | I65: 26485.89 | J65: 26485.89
A66: 24 | B66: ТЦ_07.1.01.03_78_7841375755_25.01.2024_02 | C66: ДПС 01 2100-1000 левая EI60 ГОСТ Р 57327-2016 | D66: шт | E66: 1 | F66: =G66/E66 -> 0 | G66: 0 | H66: =I66/E66 -> 26485.89 | I66: 26485.89 | J66: 26485.89
A67: Установка ворот | J67: 0
A68: 25 | B68: ТЕР09-04-011-01 | C68: Монтаж каркасов ворот большепролетных зданий, ангаров и др. без механизмов открывания | D68: 1 т конструкций | E68: 0.73036 | F68: =G68/E68 -> 174275.28 | G68: 127283.69 | H68: =I68/E68 -> 8951.46 | I68: 6537.79 | J68: 133821.48
B69: 101-0309 | C69: Канаты пеньковые пропитанные | D69: т
B70: 101-0324 | C70: Кислород технический: газообразный | D70: м3
B71: 101-0797 | C71: Проволока горячекатаная в мотках, диаметром 6,3-6,5 мм | D71: т
B72: 101-1019 | C72: Швеллеры № 40 из стали марки: Ст0 | D72: т
B73: 101-1515 | C73: Электроды диаметром: 4 мм Э46 | D73: т
B74: 101-1805 | C74: Гвозди строительные | D74: т
B75: 101-2278 | C75: Пропан-бутан, смесь техническая | D75: кг
B76: 101-2467 | C76: Растворитель марки: Р-4 | D76: т
B77: 102-0023 | C77: Бруски обрезные хвойных пород длиной: 4-6,5 м, шириной 75-150 мм, толщиной 40-75 мм, I сорта | D77: м3
B78: 113-0021 | C78: Грунтовка: ГФ-021 красно-коричневая | D78: т
B79: 201-0756 | C79: Отдельные конструктивные элементы зданий и сооружений с преобладанием: горячекатаных профилей, средняя масса сборочной единицы от 0,1 до 0,5 т | D79: т
B80: 508-0097 | C80: Канат двойной свивки типа ТК, конструкции 6х19(1+6+12)+1 о.с., оцинкованный из проволок марки В, маркировочная группа: 1770 н/мм2, диаметром 5,5 мм | D80: 10 м
A81: 26 | B81: ТЦ_01.16.00.00_78_7841375755_25.01.2024_02 | C81: Ворота металлические распашные, открывание наружу, с калиткой 3100х3100(h) мм, (вес=76,0 кг/м²) | D81: шт | E81: 1 | F81: =G81/E81 -> 0 | G81: 0 | H81: =I81/E81 -> 201276.69 | I81: 201276.69 | J81: =G81+I81 -> 201276.69
A82: Раздел 5. Помещения, (1632-2021-2.2.6-АР, л. 4, Ведомость отделки) | J82: 0
A83: Стены | J83: 0
A84: Потолок | J84: 0
A85: Раздел 6. Полы, (1632-2021-2.2.6-АР, л. 4, Экспликация полов) | J85: 0
A86: Тип 1. S=144 м2 | J86: 0
A87: 27 | B87: ТЕР11-01-011-03 | C87: Устройство стяжек: бетонных толщиной 20 мм, (h=100 мм) | D87: 100 м2 стяжки | E87: 1.44 | F87: =G87/E87 -> 83767.52 | G87: 120625.23 | H87: =I87/E87 -> 93.78 | I87: 135.04 | J87: 120760.27
B88: 411-0001 | C88: Вода | D88: м3
A89: 28 | B89: ТЕР11-01-011-04 | C89: Устройство стяжек: на каждые 5 мм изменения толщины стяжки добавлять или исключать к расценке 11-01-011-03, (добавить 80 мм) | D89: 100 м2 стяжки | E89: 1.44 | F89: =G89/E89 -> 25814.22 | G89: 37172.48 | H89: =I89/E89 -> 0 | I89: 0 | J89: 37172.48
A90: 29 | B90: ТЦ_59.1.04.01_47_4707009037_08.02.2024_02 | C90: Бетон В22,5 | D90: м3 | E90: 14.688 | F90: =G90/E90 -> 0 | G90: 0 | H90: =I90/E90 -> 9325.72 | I90: 136976.18 | J90: 136976.18
A91: 30 | B91: ТЕР06-01-015-10 | C91: Армирование подстилающих слоев и набетонок | D91: 1 т | E91: 0.252 | F91: =G91/E91 -> 27716.51 | G91: 6984.56 | H91: =I91/E91 -> 3004.25 | I91: 757.07 | J91: 7741.63
B92: 101-0816 | C92: Проволока светлая диаметром: 1,1 мм | D92: т
A93: 31 | B93: ТЦ_08.4.02.05_66_6686134976_08.02.2024_02 Аналог ТССЦ-101-3891 21,17/20,58=2% | C93: Сетка арматурная 4Вр1 яч. 100х100, (вес=1,75 кг/м²) | D93: м2 | E93: 144 | F93: =G93/E93 -> 0 | G93: 0 | H93: =I93/E93 -> 118.44 | I93: 17054.86 | J93: 17054.86
A94: 32 | B94: ТЕР11-01-020-03 | C94: Устройство покрытий поливинилацетатных: толщиной 3 мм, (полимерное защитное покрытие, h=3 мм, прим.) | D94: 100 м2 покрытия | E94: 1.44 | F94: =G94/E94 -> 180031.13 | G94: 259244.83 | H94: =I94/E94 -> 147312.44 | I94: 212129.91 | J94: 471374.74
B95: 101-0430 | C95: Краски масляные и алкидные земляные, готовые к применению: сурик железный МА-15, ПФ-14 | D95: т
B96: 101-0433 | C96: Краски масляные и алкидные земляные, готовые к применению: охра МА-15 | D96: т
B97: 101-1305 | C97: Портландцемент общестроительного назначения бездобавочный, марки: 400 | D97: т
B98: 101-1591 | C98: Смола каменноугольная для дорожного строительства | D98: т
B99: 101-2293 | C99: Кислота ортофосфорная: техническая, сорт I | D99: т
B100: 101-2358 | C100: Дисперсия поливинилацетатная непластифицированная марки Д50Н | D100: кг
B101: 113-0306 | C101: Маршалит | D101: т
B102: 408-0122 | C102: Песок природный для строительных: работ средний | D102: м3
B103: 411-0001 | C103: Вода | D103: м3
A104: Тип 2. S=18 м2 | J104: 0
A105: 33 | B105: ТЕР26-01-039-01 | C105: Изоляция покрытий и перекрытий изделиями из волокнистых и зернистых материалов насухо | D105: 1 м3 изоляции | E105: 0.9 | F105: =G105/E105 -> 24043.26 | G105: 21638.93 | H105: =I105/E105 -> 0 | I105: 0 | J105: 21638.93
A106: 34 | B106: ТЦ_12.2.05.06_78_7805028121_08.02.2024_02 Аналог ТССЦ-104-0119 650,75/632,35=2% | C106: Пенополистирол экструдированный ТЕХНОНИКОЛЬ t=50 мм | D106: м3 | E106: 0.918 | F106: =G106/E106 -> 0 | G106: 0 | H106: =I106/E106 -> 12141.92 | I106: 11146.28 | J106: 11146.28
A107: 35 | B107: ТЕР11-01-050-01 | C107: Устройство пароизоляции из полиэтиленовой пленки в один слой насухо | D107: 100 м2 поверхности | E107: 0.18 | F107: =G107/E107 -> 7470.11 | G107: 1344.62 | H107: =I107/E107 -> 19002.5 | I107: 3420.45 | J107: 4765.07
B108: 113-0324 | C108: Пленка полиэтиленовая толщиной: 0,2-0,5 мм | D108: м2
A109: 36 | B109: ТЕР11-01-011-03 | C109: Устройство стяжек: бетонных толщиной 20 мм, (h=50 мм) | D109: 100 м2 стяжки | E109: 0.18 | F109: =G109/E109 -> 83783.5 | G109: 15081.03 | H109: =I109/E109 -> 95.78 | I109: 17.24 | J109: 15098.27
B110: 411-0001 | C110: Вода | D110: м3
A111: 37 | B111: ТЕР11-01-011-04 | C111: Устройство стяжек: на каждые 5 мм изменения толщины стяжки добавлять или исключать к расценке 11-01-011-03, (добавить 30 мм) | D111: 100 м2 стяжки | E111: 0.18 | F111: =G111/E111 -> 9664.89 | G111: 1739.68 | H111: =I111/E111 -> 0 | I111: 0 | J111: 1739.68
A112: 38 | B112: ТЦ_59.1.04.01_47_4707009037_08.02.2024_02 | C112: Бетон В22,5 | D112: м3 | E112: 0.918 | F112: =G112/E112 -> 0 | G112: 0 | H112: =I112/E112 -> 9325.13 | I112: 8560.47 | J112: 8560.47
A113: 39 | B113: ТЕР06-01-015-10 | C113: Армирование подстилающих слоев и набетонок | D113: 1 т | E113: 0.032 | F113: =G113/E113 -> 27698.75 | G113: 886.36 | H113: =I113/E113 -> 3007.81 | I113: 96.25 | J113: 982.61
B114: 101-0816 | C114: Проволока светлая диаметром: 1,1 мм | D114: т
A115: 40 | B115: ТЦ_08.4.02.05_66_6686134976_08.02.2024_02 Аналог ТССЦ-101-3891 21,17/20,58=2% | C115: Сетка арматурная 4Вр1 яч. 100х100, (вес=1,75 кг/м²) | D115: м2 | E115: 18 | F115: =G115/E115 -> 0 | G115: 0 | H115: =I115/E115 -> 118.44 | I115: 2131.86 | J115: 2131.86
A116: 41 | B116: ТЕР11-01-020-03 | C116: Устройство покрытий поливинилацетатных: толщиной 3 мм, (полимерное защитное покрытие, h=3 мм, прим.) | D116: 100 м2 покрытия | E116: 0.18 | F116: =G116/E116 -> 180017.17 | G116: 32403.09 | H116: =I116/E116 -> 147311.44 | I116: 26516.06 | J116: 58919.15
B117: 101-0430 | C117: Краски масляные и алкидные земляные, готовые к применению: сурик железный МА-15, ПФ-14 | D117: т
B118: 101-0433 | C118: Краски масляные и алкидные земляные, готовые к применению: охра МА-15 | D118: т
B119: 101-1305 | C119: Портландцемент общестроительного назначения бездобавочный, марки: 400 | D119: т
B120: 101-1591 | C120: Смола каменноугольная для дорожного строительства | D120: т
B121: 101-2293 | C121: Кислота ортофосфорная: техническая, сорт I | D121: т
B122: 101-2358 | C122: Дисперсия поливинилацетатная непластифицированная марки Д50Н | D122: кг
B123: 113-0306 | C123: Маршалит | D123: т
B124: 408-0122 | C124: Песок природный для строительных: работ средний | D124: м3
B125: 411-0001 | C125: Вода | D125: м3
A126: Тип 3. S=136,9 м2 | J126: 0
A127: 42 | B127: ТЕР11-01-011-03 | C127: Устройство стяжек: бетонных толщиной 20 мм, (h=27 мм) | D127: 100 м2 стяжки | E127: 1.369 | F127: =G127/E127 -> 83769.72 | G127: 114680.74 | H127: =I127/E127 -> 93.39 | I127: 127.85 | J127: 114808.59
B128: 411-0001 | C128: Вода | D128: м3
A129: 43 | B129: ТЕР11-01-011-04 | C129: Устройство стяжек: на каждые 5 мм изменения толщины стяжки добавлять или исключать к расценке 11-01-011-03, (добавить 7 мм) | D129: 100 м2 стяжки | E129: 1.369 | F129: =G129/E129 -> 2259.25 | G129: 3092.92 | H129: =I129/E129 -> 0 | I129: 0 | J129: 3092.92
A130: 44 | B130: ТЦ_59.1.04.01_47_4707009037_08.02.2024_02 | C130: Бетон В22,5 | D130: м3 | E130: 3.77 | F130: =G130/E130 -> 0 | G130: 0 | H130: =I130/E130 -> 9325.84 | I130: 35158.42 | J130: 35158.42
A131: 45 | B131: ТЕР11-01-020-03 | C131: Устройство покрытий поливинилацетатных: толщиной 3 мм, (полимерное защитное покрытие, h=3 мм, прим.) | D131: 100 м2 покрытия | E131: 1.369 | F131: =G131/E131 -> 180034.05 | G131: 246466.61 | H131: =I131/E131 -> 147311.08 | I131: 201668.87 | J131: 448135.48
B132: 101-0430 | C132: Краски масляные и алкидные земляные, готовые к применению: сурик железный МА-15, ПФ-14 | D132: т
B133: 101-0433 | C133: Краски масляные и алкидные земляные, готовые к применению: охра МА-15 | D133: т
B134: 101-1305 | C134: Портландцемент общестроительного назначения бездобавочный, марки: 400 | D134: т
B135: 101-1591 | C135: Смола каменноугольная для дорожного строительства | D135: т
B136: 101-2293 | C136: Кислота ортофосфорная: техническая, сорт I | D136: т
B137: 101-2358 | C137: Дисперсия поливинилацетатная непластифицированная марки Д50Н | D137: кг
B138: 113-0306 | C138: Маршалит | D138: т
B139: 408-0122 | C139: Песок природный для строительных: работ средний | D139: м3
B140: 411-0001 | C140: Вода | D140: м3
A141: Тип 4. S=4,2 м2 | J141: 0
A142: 46 | B142: ТЕР11-01-011-03 | C142: Устройство стяжек: бетонных толщиной 20 мм, (по уклону h=(50+100)/2=75 мм) | D142: 100 м2 стяжки | E142: 0.042 | F142: =G142/E142 -> 83799.52 | G142: 3519.58 | H142: =I142/E142 -> 102.62 | I142: 4.31 | J142: 3523.89
B143: 411-0001 | C143: Вода | D143: м3
A144: 47 | B144: ТЕР11-01-011-04 | C144: Устройство стяжек: на каждые 5 мм изменения толщины стяжки добавлять или исключать к расценке 11-01-011-03, (добавить 55 мм) | D144: 100 м2 стяжки | E144: 0.042 | F144: =G144/E144 -> 17717.62 | G144: 744.14 | H144: =I144/E144 -> 0 | I144: 0 | J144: =G144+I144 -> 744.14
A145: 48 | B145: ТЦ_59.1.04.01_47_4707009037_08.02.2024_02 | C145: Бетон В22,5 | D145: м3 | E145: 0.321 | F145: =G145/E145 -> 0 | G145: 0 | H145: =I145/E145 -> 9326.45 | I145: 2993.79 | J145: 2993.79
A146: 49 | B146: ТЕР11-01-020-03 | C146: Устройство покрытий поливинилацетатных: толщиной 3 мм, (полимерное защитное покрытие, h=3 мм, прим.) | D146: 100 м2 покрытия | E146: 0.042 | F146: =G146/E146 -> 180049.05 | G146: 7562.06 | H146: =I146/E146 -> 147315.95 | I146: 6187.27 | J146: 13749.33
B147: 101-0430 | C147: Краски масляные и алкидные земляные, готовые к применению: сурик железный МА-15, ПФ-14 | D147: т
B148: 101-0433 | C148: Краски масляные и алкидные земляные, готовые к применению: охра МА-15 | D148: т
B149: 101-1305 | C149: Портландцемент общестроительного назначения бездобавочный, марки: 400 | D149: т
B150: 101-1591 | C150: Смола каменноугольная для дорожного строительства | D150: т
B151: 101-2293 | C151: Кислота ортофосфорная: техническая, сорт I | D151: т
B152: 101-2358 | C152: Дисперсия поливинилацетатная непластифицированная марки Д50Н | D152: кг
B153: 113-0306 | C153: Маршалит | D153: т
B154: 408-0122 | C154: Песок природный для строительных: работ средний | D154: м3
B155: 411-0001 | C155: Вода | D155: м3
A156: Раздел 7. Отделка, (1632-2021-2.2.6-АР, л. 4, Ведомость отделки) | J156: 0
A157: Цоколь | J157: 0
A158: 50 | B158: ТЕР11-01-015-07 | C158: Шлифовка бетонных или металлоцементных покрытий, (затирка поверхности цоколя, прим.) | D158: 100 м2 покрытия | E158: 1.137 | F158: =G158/E158 -> 191488.52 | G158: 217722.45 | H158: =I158/E158 -> 179.41 | I158: 203.99 | J158: 217926.44
B159: 101-2109 | C159: Карборунд | D159: кг
B160: 411-0001 | C160: Вода | D160: м3
A161: 51 | B161: ТЕР15-04-015-02 | C161: Окраска фасадов с люлек с подготовкой поверхности: силикатная, (прим.) | D161: 100 м2 фасада | E161: 1.137 | F161: =G161/E161 -> 71764.93 | G161: 81596.72 | H161: =I161/E161 -> 8107.67 | I161: 9218.42 | J161: 90815.14
B162: 101-1757 | C162: Ветошь | D162: кг
B163: 101-1841 | C163: Краски силикатные зеленая и красная | D163: т
B164: 113-0043 | C164: Жидкость: гидрофобизирующая ГКЖ-10 | D164: т
B165: 113-0368 | C165: Стекло жидкое калийное | D165: т
B166: 402-0083 | C166: Раствор готовый отделочный тяжелый,: цементно-известковый 1:1:6 | D166: м3
B167: 409-0639 | C167: Пемза шлаковая (щебень пористый из металлургического шлака), марка 600, фракция 5-10 мм | D167: м3
B168: 411-0001 | C168: Вода | D168: м3
A169: Окраска конструкций стен и потолков из профлиста, учтена в сметах к разделу КМ | J169: 0
A170: Раздел 8. Отмостка, (1632-2021-2.2.6-АР, л. 5-6, Узлы) | J170: 0
A171: 52 | B171: ТЕР27-04-001-04 | C171: Устройство подстилающих и выравнивающих слоев оснований: из щебня | D171: 100 м3 материала основания (в плотном теле) | E171: 0.1603 | F171: =G171/E171 -> 206235.81 | G171: 33059.6 | H171: =I171/E171 -> 188.21 | I171: 30.17 | J171: 33089.77
B172: 411-0001 | C172: Вода | D172: м3
A173: 53 | B173: ТССЦ-408-0015 | C173: Щебень из природного камня для строительных работ марка: 800, фракция 20-40 мм | D173: м3 | E173: 20.2 | F173: =G173/E173 -> 0 | G173: 0 | H173: =I173/E173 -> 3394.2 | I173: 68562.79 | J173: 68562.79
A174: 54 | B174: ТЕР06-01-013-01 | C174: Устройство подливки толщиной 20 мм, (бетонное основание, h=60 мм, прим.) | D174: 100 м2 подливки под оборудование | E174: 0.5344 | F174: =G174/E174 -> 87982.43 | G174: 47017.81 | H174: =I174/E174 -> 2741.93 | I174: 1465.29 | J174: 48483.1
B175: 101-1805 | C175: Гвозди строительные | D175: т
B176: 102-0053 | C176: Доски обрезные хвойных пород длиной: 4-6,5 м, шириной 75-150 мм, толщиной 25 мм, III сорта | D176: м3
B177: 102-0061 | C177: Доски обрезные хвойных пород длиной: 4-6,5 м, шириной 75-150 мм, толщиной 44 мм и более, III сорта | D177: м3
A178: 55 | B178: ТЕР06-01-013-02 | C178: На каждые 10 мм изменения толщины добавлять или исключать к расценке 06-01-013-01, (добавить 40 мм) | D178: 100 м2 подливки под оборудование | E178: 0.5344 | F178: =G178/E178 -> 100860.68 | G178: 53899.95 | H178: =I178/E178 -> 2682.8 | I178: 1433.69 | J178: 55333.64
B179: 101-1805 | C179: Гвозди строительные | D179: т
B180: 102-0053 | C180: Доски обрезные хвойных пород длиной: 4-6,5 м, шириной 75-150 мм, толщиной 25 мм, III сорта | D180: м3
B181: 102-0061 | C181: Доски обрезные хвойных пород длиной: 4-6,5 м, шириной 75-150 мм, толщиной 44 мм и более, III сорта | D181: м3
A182: 56 | B182: ТЦ_59.1.04.01_47_4707009037_08.02.2024_02 | C182: Бетон В15 | D182: м3 | E182: 3.27 | F182: =G182/E182 -> 0 | G182: 0 | H182: =I182/E182 -> 8792.9 | I182: 28752.79 | J182: 28752.79
A183: 57 | B183: ТЕР06-01-015-10 | C183: Армирование подстилающих слоев и набетонок | D183: 1 т | E183: 0.2367 | F183: =G183/E183 -> 27711.62 | G183: 6559.34 | H183: =I183/E183 -> 3010.27 | I183: 712.53 | J183: 7271.87
B184: 101-0816 | C184: Проволока светлая диаметром: 1,1 мм | D184: т
A185: 58 | B185: ТЦ_08.4.02.05_66_6686134976_08.02.2024_02 Аналог ТССЦ-101-3891 21,17/20,58=2% | C185: Сетка арматурная 6Вр1 яч. 100х100, (вес=4,43 кг/м²) | D185: м2 | E185: 53.44 | F185: =G185/E185 -> 0 | G185: 0 | H185: =I185/E185 -> 274.68 | I185: 14678.79 | J185: 14678.79
A186: 59 | B186: ТЕР11-01-019-01 | C186: Устройство покрытий асфальтобетонных: литых толщиной 25 мм | D186: 100 м2 покрытия | E186: 0.5344 | F186: =G186/E186 -> 60524.31 | G186: 32344.19 | H186: =I186/E186 -> 18806.49 | I186: 10050.19 | J186: 42394.38
B187: 101-0073 | C187: Битумы нефтяные строительные марки: БН-90/10 | D187: т
B188: 101-0322 | C188: Керосин для технических целей марок КТ-1, КТ-2 | D188: т
B189: 102-0085 | C189: Бруски обрезные хвойных пород длиной: 2-3,75 м, шириной 75-150 мм, толщиной 40-75 мм, III сорта | D189: м3
B190: 410-1020 | C190: Асфальт литой: для покрытий тротуаров | D190: м3
C191: Всего, руб. с НДС | G191: =SUM(G12:G190) -> 1805318 | I191: =SUM(I12:I190) -> 1427412.44 | J191: =SUM(J12:J190) -> 3232730.44 | S191: =SUM(S186:S190) -> 0 | U191: =SUM(U186:U190) -> 0 | V191: =SUM(V186:V190) -> 0
C192: Всего, руб. без НДС | G192: =G191/1.2 -> 1504431.67 | I192: =I191/1.2 -> 1189510.37 | J192: =J191/1.2 -> 2693942.03 | S192: =S191/1.2 -> 0 | U192: =U191/1.2 -> 0 | V192: =V191/1.2 -> 0

Sheet 1632-2021-2.2.2-АР
A2: Терминал по перевалке минеральных удобрений в морском торговом порту Усть-Луга. Береговые объекты терминала
A3: (наименование стройки)
A4: 1632-2021-2.2.2 -АР_07.04.021-П-00-01
A5: (локальная смета)
A6: на Архитектурные решения, Пересыпная станция № 2
A7: (наименование работ и затрат, наименование объекта)
B8: Основание: | C8: 1632-2021-2.2.2 -АР_1_0_RU_IFC
A10: № п/п | B10: Обоснование | C10: Наименование работ и затрат | D10: Ед. изм. | E10: Кол-во | F10: Цена за ед.измерения работ, руб. с НДС | G10: Всего, стоимость работ,руб. с НДС | H10: Цена за ед.измерения материалов, руб. с НДС | I10: Всего, стоимость материалов, руб. с НДС | J10: Итого, руб. с НДС
A11: 1 | B11: 2 | C11: 3 | D11: 4 | E11: 5 | F11: 6 | G11: 7 | H11: 8 | I11: 9 | J11: 10
A12: Раздел 1. Фасадные работы
A13: Раздел 2. Кровля
A14: Монтаж кровельного покрытия из профнастила учтен в разделе КМ
A15: 1 | B15: ТЕР12-01-009-02 | C15: Устройство желобов: подвесных | D15: 100 м желобов | E15: 1.564 | F15: =G15/E15 -> 65795.01 | G15: 102903.4 | H15: =I15/E15 -> 21888.54 | I15: 34233.67 | J15: =G15+I15 -> 137137.07
B16: 101-0173 | C16: Гвозди проволочные оцинкованные для асбестоцементной кровли: 4,5х120 мм | D16: т | J16: =G16+I16 -> 0
B17: 101-0788 | C17: Поковки оцинкованные, масса: 2,825 кг | D17: т | J17: 0
A18: 2 | B18: ТЦ_12.1.01.00_78_7804606806_25.01.2024_02 Аналог ТССЦ-301-5883 286,47/280,65=2% | C18: Желоб водосточный D185х3000 | D18: шт | E18: 52 | F18: =G18/E18 -> 0 | G18: 0 | H18: =I18/E18 -> 1709.47 | I18: 88892.25 | J18: 88892.25
A19: 3 | B19: ТЦ_12.1.01.00_78_7804606806_25.01.2024_02 Аналог ТССЦ-301-5881 61,11/59,89=2% | C19: Держатель желоба | D19: шт | E19: 260 | F19: =G19/E19 -> 0 | G19: 0 | H19: =I19/E19 -> 754.15 | I19: 196079.19 | J19: 196079.19
A20: 4 | B20: ТЕР12-01-008-01 площадь боковой поверхности трубопровода | C20: Устройство обделок на фасадах (наружные подоконники, пояски, балконы и др.): включая водосточные трубы, с изготовлением элементов труб// прим.навеска водосточных труб | D20: 100 м2фасада (без вычета проемов) | E20: 0.8949 | F20: =G20/E20 -> 27777.08 | G20: 24857.71 | H20: =I20/E20 -> 2212.69 | I20: 1980.14 | J20: 26837.85
B21: 101-0195 | C21: Гвозди толевые круглые: 3,0х40 мм | D21: т | J21: 0
B22: 101-0788 | C22: Поковки оцинкованные, масса: 2,825 кг | D22: т | J22: 0
B23: 101-0795 | C23: Проволока канатная оцинкованная, диаметром: 3 мм | D23: т | J23: 0
A24: 5 | B24: ТЕР12-01-008-02 | C24: Устройство обделок на фасадах (наружные подоконники, пояски, балконы и др.): без водосточных труб | D24: 100 м2фасада (без вычета проемов) | E24: -0.8949 | F24: =G24/E24 -> 10153.87 | G24: -9086.7 | H24: =I24/E24 -> 164.85 | I24: -147.52 | J24: -9234.22
B25: 101-0195 | C25: Гвозди толевые круглые: 3,0х40 мм | D25: т | J25: 0
A26: 6 | B26: ТЦ_12.1.01.00_78_7804606806_25.01.2024_02_5.1 Аналог ТССЦ-301-5895 378,12/370,39=2% | C26: Труба водосточная D150х2000мм | D26: шт | E26: 161 | F26: =G26/E26 -> 0 | G26: 0 | H26: =I26/E26 -> 1389.49 | I26: 223708.46 | J26: 223708.46
A27: 7 | B27: ТЦ_12.1.01.00_78_7804606806_25.01.2024_02_6.1 Аналог ТССЦ-301-5891 68,75/67,38=2% | C27: Крепление трубы | D27: шт | E27: 323 | F27: =G27/E27 -> 0 | G27: 0 | H27: =I27/E27 -> 314.87 | I27: 101703.74 | J27: 101703.74
A28: 8 | B28: ТЦ_12.1.01.00_78_7804606806_25.01.2024_02_7.1 Аналог ТССЦ-301-5887 263,57/258,34=2% | C28: Воронки выпускные D185/150 | D28: шт | E28: 11 | F28: =G28/E28 -> 0 | G28: 0 | H28: =I28/E28 -> 808.02 | I28: 8888.21 | J28: 8888.21
A29: 9 | B29: ТЦ_12.1.01.00_78_7804606806_25.01.2024_02_8.1 Аналог ТССЦ-203-0960 5219,18/5114,28=2% | C29: Колено гофрированное | D29: шт | E29: 55 | F29: =G29/E29 -> 0 | G29: 0 | H29: =I29/E29 -> 478.84 | I29: 26336.19 | J29: 26336.19
A30: 10 | B30: ТЦ_12.1.01.00_77_7704792852_03.07.2024_02_9.2 Аналог ТССЦ-301-5848 42,01/41,12=2% | C30: Заглушка | D30: шт | E30: 10 | F30: =G30/E30 -> 0 | G30: 0 | H30: =I30/E30 -> 143.32 | I30: 1433.16 | J30: 1433.16
A31: 11 | B31: ТЕР12-01-012-01 | C31: Ограждение кровель перилами // прим. | D31: 100 м ограждения | E31: 1.498 | F31: =G31/E31 -> 16111.66 | G31: 24135.27 | H31: =I31/E31 -> 402.08 | I31: 602.32 | J31: 24737.59
B32: 101-1529 | C32: Электроды диаметром: 6 мм Э42 | D32: т | J32: 0
B33: 101-1851 | C33: Резина прессованная | D33: кг | J33: 0
A34: 12 | B34: ТЦ_12.1.01.00_78_7804606806_25.01.2024_02_10.1 Аналог ТССЦ-101-7607 13906,14/13630,62=2% | C34: Снегозадержатель трубчатый (L=3 м. в комплекте с креплением) | D34: шт | E34: 50 | F34: =G34/E34 -> 0 | G34: 0 | H34: =I34/E34 -> 2407.39 | I34: 120369.28 | J34: 120369.28
A35: Раздел 3. Окна | J35: 0
A36: 13 | B36: ТЕР10-01-034-03 | C36: Установка в жилых и общественных зданиях оконных блоков из ПВХ профилей: поворотных (откидных, поворотно-откидных) с площадью проема до 2 м2 одностворчатых | D36: 100 м2 проемов | E36: 0.406 | F36: =G36/E36 -> 468381.4 | G36: 190162.85 | H36: =I36/E36 -> 156176.26 | I36: 63407.56 | J36: 253570.41
B37: 101-2052 | C37: Лента бутиловая | D37: м | J37: 0
B38: 101-2054 | C38: Лента бутиловая диффузионная | D38: м | J38: 0
B39: 101-2388 | C39: Герметик пенополиуретановый (пена монтажная) типа Makrofleks, Soudal в баллонах по 750 мл | D39: шт. | J39: 0
B40: 101-2789 | C40: Лента ПСУЛ | D40: 10 м | J40: 0
B41: 101-4173 | C41: Дюбели монтажные 10х130 (10х132, 10х150) мм | D41: 10 шт. | J41: 0
B42: 102-0303 | C42: Клинья пластиковые монтажные | D42: 100 шт. | J42: 0
A43: 14 | B43: ТЦ_11.3.02.02_63_632412092352_11.07.2024_02_25.1 Аналог ТССЦ-203-0948 4334,49/4247,63=2% | C43: ОК-1. 1400х1000 | D43: шт | E43: 17 | F43: =G43/E43 -> 0 | G43: 0 | H43: =I43/E43 -> 20178.94 | I43: 343042.04 | J43: 343042.04
A44: 15 | B44: ТЦ_11.3.02.02_63_632412092352_11.07.2024_02_25.1 Аналог ТССЦ-203-0948 4334,49/4247,63=2% | C44: ОК-2. 1400х1200 | D44: шт | E44: 10 | F44: =G44/E44 -> 0 | G44: 0 | H44: =I44/E44 -> 30016.99 | I44: 300169.91 | J44: 300169.91
A45: 16 | B45: ТЕР15-01-070-01 | C45: Облицовка: оконных проемов в наружных стенах откосной планкой из оцинкованной стали с полимерным покрытием с устройством водоотлива оконного из оцинкованной стали с полимерным покрытием | D45: 1 м2 проемов | E45: 40.6 | F45: =G45/E45 -> 3276.74 | G45: 133035.46 | H45: =I45/E45 -> 1423.83 | I45: 57807.48 | J45: 190842.94
B46: 101-1691 | C46: Шурупы-саморезы 4,2х16 мм | D46: 100 шт. | J46: 0
B47: 101-2409 | C47: Аквилон из оцинкованной стали с полимерным покрытием | D47: п.м | J47: 0
B48: 101-2410 | C48: Откосная планка шириной 250 мм из оцинкованной стали с полимерным покрытием | D48: п.м | J48: 0
B49: 101-2411 | C49: Водоотлив оконный шириной планки 250 мм из оцинкованной стали с полимерным покрытием | D49: п.м | J49: 0
A50: Раздел 4. Дверные проемы и ворота | J50: 0
A51: 17 | B51: ТЕР09-04-013-02 | C51: Установка противопожарных дверей: двупольных глухих | D51: 1 м2 проема | E51: 3.25 | F51: =G51/E51 -> 6733.33 | G51: 21883.33 | H51: =I51/E51 -> 578.99 | I51: 1881.71 | J51: 23765.04
B52: 101-1513 | C52: Электроды диаметром: 4 мм Э42 | D52: т | J52: 0
B53: 101-1929 | C53: Болты анкерные | D53: т | J53: 0
B54: 101-3661 | C54: Пена монтажная: противопожарная полиуретановая NULLIFIRE (0,88 л) | D54: шт. | J54: 0
A55: 18 | B55: ТЦ_07.1.01.01_47_4703144902_11.07.2024_02_17.1 Аналог ТССЦ-203-8135 3132,85/3067,31=2% | C55: Дверь противопожарная стальная внутренняя ( утепленая) 1300х2500 с порогом | D55: шт | E55: 1 | F55: =G55/E55 -> 0 | G55: 0 | H55: =I55/E55 -> 37709.78 | I55: 37709.78 | J55: 37709.78
A56: 19 | B56: ТЕР09-04-013-01 | C56: Установка противопожарных дверей: однопольных глухих | D56: 1 м2 проема | E56: 39.9 | F56: =G56/E56 -> 5120.18 | G56: 204295.38 | H56: =I56/E56 -> 675.03 | I56: 26933.62 | J56: 231229
B57: 101-1513 | C57: Электроды диаметром: 4 мм Э42 | D57: т | J57: 0
B58: 101-1929 | C58: Болты анкерные | D58: т | J58: 0
B59: 101-3661 | C59: Пена монтажная: противопожарная полиуретановая NULLIFIRE (0,88 л) | D59: шт. | J59: 0
A60: 20 | B60: ТЦ_07.1.01.01_47_4703144902_11.07.2024_02_17.1 Аналог ТССЦ-203-8135 3132,85/3067,31=2% | C60: Дверь противопожарная стальная внутренняя однопольная с порогом 1000х2100 | D60: шт | E60: 17 | F60: =G60/E60 -> 0 | G60: 0 | H60: =I60/E60 -> 22745.57 | I60: 386674.68 | J60: 386674.68
A61: 21 | B61: ТЦ_07.1.01.01_47_4703144902_11.07.2024_02_17.1 Аналог ТССЦ-203-8135 3132,85/3067,31=2% | C61: Дверь противопожарная стальная наружная однопольная с порогом 1000х2100 | D61: шт | E61: 2 | F61: =G61/E61 -> 0 | G61: 0 | H61: =I61/E61 -> 22745.58 | I61: 45491.15 | J61: 45491.15
A62: 22 | B62: ТССЦ-101-6978 | C62: Доводчик дверной DS 73 BC "Серия Premium", усилие закрывания EN2-5 | D62: шт. | E62: 20 | F62: =G62/E62 -> 0 | G62: 0 | H62: =I62/E62 -> 3945.17 | I62: 78903.42 | J62: 78903.42
A63: 23 | B63: ТЕР09-04-012-01 | C63: Установка металлических дверных блоков в готовые проемы | D63: 1 м2 проема | E63: 30.16 | F63: =G63/E63 -> 6003.09 | G63: 181053.3 | H63: =I63/E63 -> 327.69 | I63: 9883.01 | J63: 190936.31
B64: 101-1513 | C64: Электроды диаметром: 4 мм Э42 | D64: т | J64: 0
B65: 101-1921 | C65: Пена монтажная: для герметизации стыков в баллончике емкостью 0,85 л | D65: шт. | J65: 0
B66: 204-0062 | C66: Детали закладные и накладные изготовленные: без применения сварки, гнутья, сверления (пробивки) отверстий поставляемые отдельно | D66: т | J66: 0
A67: 24 | B67: ТЦ_07.1.01.01_47_4703144902_11.07.2024_02_17.1 Аналог ТССЦ-203-8135 3132,85/3067,31=2% | C67: Дверь стальная наружная однопольная с порогом 1000х2100 (утепленная) | D67: шт | E67: 4 | F67: =G67/E67 -> 0 | G67: 0 | H67: =I67/E67 -> 22745.57 | I67: 90982.28 | J67: 90982.28
A68: 25 | B68: ТЦ_07.1.01.01_47_4703144902_11.07.2024_02_17.1 Аналог ТССЦ-203-8135 3132,85/3067,31=2% | C68: Дверь стальная наружная однопольная с порогом 1000х2100 | D68: шт | E68: 8 | F68: =G68/E68 -> 0 | G68: 0 | H68: =I68/E68 -> 22745.57 | I68: 181964.55 | J68: 181964.55
A69: 26 | B69: ТЦ_07.1.01.01_47_4703144902_11.07.2024_02_17.1 Аналог ТССЦ-203-8135 3132,85/3067,31=2% | C69: Дверь стальная наружная однопольная с порогом 900х1900 | D69: шт | E69: 1 | F69: =G69/E69 -> 0 | G69: 0 | H69: =I69/E69 -> 22745.57 | I69: 22745.57 | J69: 22745.57
A70: 27 | B70: ТССЦ-203-8147 Применительно | C70: Блок дверной стальной наружный двупольный ДСН ДКН, площадь 2,73 м2 (ГОСТ 31173-2003) | D70: м2 | E70: 3.25 | F70: =G70/E70 -> 0 | G70: 0 | H70: =I70/E70 -> 14478.9 | I70: 47056.42 | J70: 47056.42
A71: 28 | B71: ТЕР15-01-070-02 | C71: Облицовка: дверных проемов в наружных стенах откосной планкой из оцинкованной стали с полимерным покрытием с установкой наличников из оцинкованной стали с полимерным покрытием | D71: 1 м2 проемов | E71: 34.36 | F71: =G71/E71 -> 3593.87 | G71: 123485.48 | H71: =I71/E71 -> 1660.7 | I71: 57061.62 | J71: 180547.1
B72: 101-1691 | C72: Шурупы-саморезы 4,2х16 мм | D72: 100 шт. | J72: 0
B73: 101-2409 | C73: Аквилон из оцинкованной стали с полимерным покрытием | D73: п.м | J73: 0
B74: 101-2410 | C74: Откосная планка шириной 250 мм из оцинкованной стали с полимерным покрытием | D74: п.м | J74: 0
B75: 101-2412 | C75: Наличники из оцинкованной стали с полимерным покрытием | D75: п.м | J75: 0
A76: Ворота | J76: 0
A77: 29 | B77: ТЕР09-04-011-01 | C77: Монтаж каркасов ворот большепролетных зданий, ангаров и др. без механизмов открывания | D77: 1 т конструкций | E77: 2.02 | F77: =G77/E77 -> 174276.88 | G77: 352039.29 | H77: =I77/E77 -> 8950.91 | I77: 18080.83 | J77: 370120.12
B78: 101-0309 | C78: Канаты пеньковые пропитанные | D78: т | J78: 0
B79: 101-0324 | C79: Кислород технический: газообразный | D79: м3 | J79: 0
B80: 101-0797 | C80: Проволока горячекатаная в мотках, диаметром 6,3-6,5 мм | D80: т | J80: =G80+I80 -> 0
B81: 101-1019 | C81: Швеллеры № 40 из стали марки: Ст0 | D81: т | J81: 0
B82: 101-1515 | C82: Электроды диаметром: 4 мм Э46 | D82: т | J82: 0
B83: 101-1805 | C83: Гвозди строительные | D83: т | J83: 0
B84: 101-2278 | C84: Пропан-бутан, смесь техническая | D84: кг | J84: 0
B85: 101-2467 | C85: Растворитель марки: Р-4 | D85: т | J85: 0
B86: 102-0023 | C86: Бруски обрезные хвойных пород длиной: 4-6,5 м, шириной 75-150 мм, толщиной 40-75 мм, I сорта | D86: м3 | J86: 0
B87: 113-0021 | C87: Грунтовка: ГФ-021 красно-коричневая | D87: т | J87: 0
B88: 201-0756 | C88: Отдельные конструктивные элементы зданий и сооружений с преобладанием: горячекатаных профилей, средняя масса сборочной единицы от 0,1 до 0,5 т | D88: т | J88: 0
B89: 508-0097 | C89: Канат двойной свивки типа ТК, конструкции 6х19(1+6+12)+1 о.с., оцинкованный из проволок марки В, маркировочная группа: 1770 н/мм2, диаметром 5,5 мм | D89: 10 м | J89: 0
A90: 30 | B90: ТЦ_08.1.06.01_47_4703144902_11.07.2024_02_23.1 Аналог ТССЦ-201-0253 5403,70/5341,14=2% | C90: Ворота распашные, металлические открывание наружу, с калиткой 5000х4500 (вес 55,6 кг/м2) | D90: шт | E90: 1 | F90: =G90/E90 -> 0 | G90: 0 | H90: =I90/E90 -> 484839.68 | I90: 484839.68 | J90: 484839.68
A91: 31 | B91: ТЦ_08.1.06.01_47_4703144902_11.07.2024_02_23.1 Аналог ТССЦ-201-0253 5403,70/5341,14=2% | C91: Ворота распашные, металлические открывание наружу, с калиткой 3300х4200 (вес 55,6 кг/м2) | D91: шт | E91: 1 | F91: =G91/E91 -> 0 | G91: 0 | H91: =I91/E91 -> 305269.44 | I91: 305269.44 | J91: 305269.44
A92: Раздел 5. Полы | J92: 0
A93: Тип 1. S=1944,8 м2., Тип 2. S=20,2 м2. | J93: 0
A94: 32 | B94: ТЕР11-01-011-03 | C94: Устройство стяжек: бетонных толщиной 20 мм | D94: 100 м2 стяжки | E94: 19.65 | F94: =G94/E94 -> 83767.9 | G94: 1646039.21 | H94: =I94/E94 -> 94.05 | I94: 1848.11 | J94: 1647887.32
B95: 411-0001 | C95: Вода | D95: м3 | J95: 0
A96: 33 | B96: ТЕР11-01-011-04 | C96: Устройство стяжек: на каждые 5 мм изменения толщины стяжки добавлять или исключать к расценке 11-01-011-03 // толщ.130 мм | D96: 100 м2 стяжки | E96: 19.65 | F96: =G96/E96 -> 35493.02 | G96: 697437.87 | H96: =I96/E96 -> 0 | I96: 0 | J96: 697437.87
A97: 34 | B97: ТЦ_59.1.04.01_47_4705078395_08.02.2024_02_13.1 Аналог ТССЦ-401-0008 699,49/623,42=2% | C97: Бетон В22,5 | D97: м3 | E97: 260.559 | F97: =G97/E97 -> 0 | G97: 0 | H97: =I97/E97 -> 5087.84 | I97: 1325683.23 | J97: 1325683.23
A98: 35 | B98: ТЕР06-01-015-10 | C98: Армирование подстилающих слоев и набетонок | D98: 1 т | E98: 3.439 | F98: =G98/E98 -> 27716.25 | G98: 95316.17 | H98: =I98/E98 -> 3009.64 | I98: 10350.14 | J98: 105666.31
B99: 101-0816 | C99: Проволока светлая диаметром: 1,1 мм | D99: т | J99: 0
A100: 36 | B100: ТЦ_08.4.02.05_66_6686134976_08.02.2024_02 Аналог ТССЦ-101-3891 21,17/20,58=2% | C100: Сетка арм. 100х100 4Вр1 | D100: м2 | E100: 1965 | F100: =G100/E100 -> 0 | G100: 0 | H100: =I100/E100 -> 116.07 | I100: 228079.6 | J100: 228079.6
A101: 37 | B101: ТЕР11-01-020-03 | C101: Устройство покрытий поливинилацетатных: толщиной 3 мм // прим. покрытие полимерное | D101: 100 м2 покрытия | E101: 19.65 | F101: =G101/E101 -> 180031.63 | G101: 3537621.47 | H101: =I101/E101 -> 147312.06 | I101: 2894682.05 | J101: 6432303.52
B102: 101-0430 | C102: Краски масляные и алкидные земляные, готовые к применению: сурик железный МА-15, ПФ-14 | D102: т | J102: 0
B103: 101-0433 | C103: Краски масляные и алкидные земляные, готовые к применению: охра МА-15 | D103: т | J103: 0
B104: 101-1305 | C104: Портландцемент общестроительного назначения бездобавочный, марки: 400 | D104: т | J104: 0
B105: 101-1591 | C105: Смола каменноугольная для дорожного строительства | D105: т | J105: 0
B106: 101-2293 | C106: Кислота ортофосфорная: техническая, сорт I | D106: т | J106: 0
B107: 101-2358 | C107: Дисперсия поливинилацетатная непластифицированная марки Д50Н | D107: кг | J107: 0
B108: 113-0306 | C108: Маршалит | D108: т | J108: 0
B109: 408-0122 | C109: Песок природный для строительных: работ средний | D109: м3 | J109: 0
B110: 411-0001 | C110: Вода | D110: м3 | J110: 0
A111: Тип 3 S=2155,0 м2 | J111: 0
A112: 38 | B112: ТЕР11-01-011-03 | C112: Устройство стяжек: бетонных толщиной 20 мм | D112: 100 м2 стяжки | E112: 21.55 | F112: =G112/E112 -> 83767.97 | G112: 1805199.65 | H112: =I112/E112 -> 94.05 | I112: 2026.8 | J112: 1807226.45
B113: 411-0001 | C113: Вода | D113: м3 | J113: 0
A114: 39 | B114: ТЕР11-01-011-04 | C114: Устройство стяжек: на каждые 5 мм изменения толщины стяжки добавлять или исключать к расценке 11-01-011-03 // 30 мм | D114: 100 м2 стяжки | E114: 21.55 | F114: =G114/E114 -> 3226.63 | G114: 69533.9 | H114: =I114/E114 -> 0 | I114: 0 | J114: 69533.9
A115: 40 | B115: ТЦ_59.1.04.01_47_4705078395_08.02.2024_02_13.1 Аналог ТССЦ-401-0008 699,49/623,42=2% | C115: Бетон В22,5 | D115: м3 | E115: 65.943 | F115: =G115/E115 -> 0 | G115: 0 | H115: =I115/E115 -> 5087.84 | I115: 335507.62 | J115: 335507.62
A116: 41 | B116: ТЕР11-01-020-03 | C116: Устройство покрытий поливинилацетатных: толщиной 3 мм // прим. покрытие полимерное | D116: 100 м2 покрытия | E116: 21.55 | F116: =G116/E116 -> 180031.66 | G116: 3879682.27 | H116: =I116/E116 -> 147312.06 | I116: 3174574.98 | J116: 7054257.25
B117: 101-0430 | C117: Краски масляные и алкидные земляные, готовые к применению: сурик железный МА-15, ПФ-14 | D117: т | J117: 0
B118: 101-0433 | C118: Краски масляные и алкидные земляные, готовые к применению: охра МА-15 | D118: т | J118: 0
B119: 101-1305 | C119: Портландцемент общестроительного назначения бездобавочный, марки: 400 | D119: т | J119: 0
B120: 101-1591 | C120: Смола каменноугольная для дорожного строительства | D120: т | J120: 0
B121: 101-2293 | C121: Кислота ортофосфорная: техническая, сорт I | D121: т | J121: 0
B122: 101-2358 | C122: Дисперсия поливинилацетатная непластифицированная марки Д50Н | D122: кг | J122: 0
B123: 113-0306 | C123: Маршалит | D123: т | J123: 0
B124: 408-0122 | C124: Песок природный для строительных: работ средний | D124: м3 | J124: 0
B125: 411-0001 | C125: Вода | D125: м3 | J125: 0
A126: Тип 4. S=116,2 м2., Тип 5 S=76,3 м2 | J126: 0
A127: 42 | B127: ТЕР11-01-009-01 | C127: Устройство тепло- и звукоизоляции сплошной из плит: или матов минераловатных или стекловолокнистых | D127: 100 м2 изолируемой поверхности | E127: 1.925 | F127: =G127/E127 -> 67009.45 | G127: 128993.2 | H127: =I127/E127 -> 0 | I127: 0 | J127: 128993.2
A128: 43 | B128: ТССЦ-104-0496 | C128: Плиты минераловатные "Руф Баттс" ROCKWOOL | D128: м3 | E128: 19.83 | F128: =G128/E128 -> 0 | G128: 0 | H128: =I128/E128 -> 15021.68 | I128: 297879.97 | J128: 297879.97
A129: 44 | B129: ТЕР11-01-050-01 | C129: Устройство пароизоляции из полиэтиленовой пленки в один слой насухо | D129: 100 м2 поверхности | E129: 1.925 | F129: =G129/E129 -> 7474.59 | G129: 14388.58 | H129: =I129/E129 -> 19003.68 | I129: 36582.08 | J129: 50970.66
B130: 113-0324 | C130: Пленка полиэтиленовая толщиной: 0,2-0,5 мм | D130: м2 | J130: 0
A131: 45 | B131: ТЕР11-01-011-03 | C131: Устройство стяжек: бетонных толщиной 20 мм | D131: 100 м2 стяжки | E131: 1.925 | F131: =G131/E131 -> 83767.58 | G131: 161252.59 | H131: =I131/E131 -> 94.05 | I131: 181.05 | J131: 161433.64
B132: 411-0001 | C132: Вода | D132: м3 | J132: 0
A133: 46 | B133: ТЕР11-01-011-04 | C133: Устройство стяжек: на каждые 5 мм изменения толщины стяжки добавлять или исключать к расценке 11-01-011-03 // 30 мм | D133: 100 м2 стяжки | E133: 1.925 | F133: =G133/E133 -> 3226.11 | G133: 6210.26 | H133: =I133/E133 -> 0 | I133: 0 | J133: 6210.26
A134: 47 | B134: ТЦ_59.1.04.01_47_4705078395_08.02.2024_02_13.1 Аналог ТССЦ-401-0008 699,49/623,42=2% | C134: Бетон В22,5 | D134: м3 | E134: 5.891 | F134: =G134/E134 -> 0 | G134: 0 | H134: =I134/E134 -> 5087.84 | I134: 29972.48 | J134: 29972.48
A135: 48 | B135: ТЕР11-01-020-03 | C135: Устройство покрытий поливинилацетатных: толщиной 3 мм // прим. покрытие полимерное | D135: 100 м2 покрытия | E135: 1.925 | F135: =G135/E135 -> 180031.51 | G135: 346560.66 | H135: =I135/E135 -> 147312.06 | I135: 283575.72 | J135: 630136.38
B136: 101-0430 | C136: Краски масляные и алкидные земляные, готовые к применению: сурик железный МА-15, ПФ-14 | D136: т | J136: 0
B137: 101-0433 | C137: Краски масляные и алкидные земляные, готовые к применению: охра МА-15 | D137: т | J137: 0
B138: 101-1305 | C138: Портландцемент общестроительного назначения бездобавочный, марки: 400 | D138: т | J138: 0
B139: 101-1591 | C139: Смола каменноугольная для дорожного строительства | D139: т | J139: 0
B140: 101-2293 | C140: Кислота ортофосфорная: техническая, сорт I | D140: т | J140: 0
B141: 101-2358 | C141: Дисперсия поливинилацетатная непластифицированная марки Д50Н | D141: кг | J141: 0
B142: 113-0306 | C142: Маршалит | D142: т | J142: 0
B143: 408-0122 | C143: Песок природный для строительных: работ средний | D143: м3 | J143: 0
B144: 411-0001 | C144: Вода | D144: м3 | J144: =G144+I144 -> 0
A145: Тип 6. S=1336,3 м2 | J145: 0
A146: 49 | B146: ТЕР11-01-015-07 | C146: Шлифовка бетонных или металлоцементных покрытий | D146: 100 м2 покрытия | E146: 13.363 | F146: =G146/E146 -> 191486.76 | G146: 2558837.53 | H146: =I146/E146 -> 180.14 | I146: 2407.22 | J146: 2561244.75
B147: 101-2109 | C147: Карборунд | D147: кг | J147: 0
B148: 411-0001 | C148: Вода | D148: м3 | J148: 0
A149: 50 | B149: ТЕР11-01-015-08 | C149: Железнение цементных покрытий // прим.покрытие упрочняющ. | D149: 100 м2 покрытия | E149: 13.363 | F149: =G149/E149 -> 26258.27 | G149: 350889.2 | H149: =I149/E149 -> 5.35 | I149: 71.48 | J149: 350960.68
B150: 411-0001 | C150: Вода | D150: м3 | J150: 0
A151: 51 | B151: ТССЦ-402-0430 | C151: Смесь сухая на основе высокоактивного портландцемента и металлических заполнителей MASTERTOP 200 для упрочнения поверхности бетонных полов, цвет натуральный / расход 6-8 кг/м2 | D151: кг | E151: 10690.4 | F151: =G151/E151 -> 0 | G151: 0 | H151: =I151/E151 -> 351.45 | I151: 3757116.31 | J151: 3757116.31
A152: Раздел 6. Внутренняя отделка (лист 7, разрез 3-3) | J152: 0
A153: Потолок | J153: 0
A154: 52 | B154: ТЕР10-05-011-02 В проекте допущена ошибка, в ведомости отделки вмето гипсокартона указан утеплитель | C154: Устройство подвесных потолков из гипсокартонных листов (ГКЛ) по системе «КНАУФ»: одноуровневых (П 113) | D154: 100 м2 потолка | E154: 1.033 | F154: =G154/E154 -> 211329.19 | G154: 218303.05 | H154: =I154/E154 -> 56456.8 | I154: 58319.87 | J154: 276622.92
B155: 101-2430 | C155: Грунтовка: «Тифенгрунд», КНАУФ | D155: кг | J155: 0
B156: 101-2437 | C156: Шпаклевка «Унифлот», КНАУФ | D156: кг | J156: 0
B157: 101-2438 | C157: Шпаклевка «Фугенфюллер», КНАУФ | D157: кг | J157: 0
B158: 101-2474 | C158: Лента бумажная для повышения трещиностойкости стыков ГКЛ и ГВЛ | D158: м | J158: 0
B159: 101-2480 | C159: Лента разделительная для сопряжения потолка из ЛГК со стеной | D159: 100 м | J159: 0
B160: 101-2484 | C160: Лента эластичная самоклеящаяся для профилей направляющих «Дихтунгсбанд»: 30/30000 мм | D160: м | J160: 0
B161: 101-2509 | C161: Листы гипсокартонные: ГКЛ 12,5 мм | D161: м2 | J161: 0
B162: 101-2582 | C162: Шуруп самонарезающий: (LN) 3,5/9,5 мм | D162: 100 шт. | J162: 0
B163: 101-2583 | C163: Шуруп самонарезающий: (TN) 3,5/25 мм | D163: 100 шт. | J163: 0
B164: 101-2589 | C164: Дюбель-гвоздь 6/39 мм | D164: 100 шт. | J164: 0
B165: 101-2590 | C165: Дюбель с шурупом 6/35 мм | D165: 100 шт. | J165: 0
B166: 201-0797 | C166: Профиль направляющий: ПН 28/27/0,6 | D166: м | J166: 0
B167: 201-0802 | C167: Профиль потолочный: ПП 60/27/0,6 | D167: м | J167: 0
B168: 201-0816 | C168: Подвес с зажимом для ПП-профиля 60*27 мм | D168: 100 шт. | J168: 0
B169: 201-0823 | C169: Соединители профилей: одноуровневые ПП | D169: 100 шт. | J169: 0
B170: 201-0831 | C170: ПП- удлинитель профилей 60*27 | D170: 100 шт. | J170: 0
A171: 53 | B171: ТЕР15-04-007-04 | C171: Окраска водно-дисперсионными акриловыми составами улучшенная: по сборным конструкциям потолков, подготовленным под окраску | D171: 100 м2 окрашиваемой поверхности | E171: 1.033 | F171: =G171/E171 -> 80604.38 | G171: 83264.32 | H171: =I171/E171 -> 4925.99 | I171: 5088.55 | J171: 88352.87
B172: 101-1596 | C172: Шкурка шлифовальная двухслойная с зернистостью 40-25 | D172: м2 | J172: 0
B173: 101-1757 | C173: Ветошь | D173: кг | J173: 0
B174: 101-3585 | C174: Шпатлевка водно-дисперсионная | D174: т | J174: 0
B175: 101-4163 | C175: Грунтовка акриловая: НОРТЕКС-ГРУНТ | D175: кг | J175: 0
A176: 54 | B176: ТССЦ-101-6521 | C176: Краска акриловая водно-дисперсионная "БИРСС Фасад-Колор", тон средний // прим. | D176: т | E176: 0.0341 | F176: =G176/E176 -> 0 | G176: 0 | H176: =I176/E176 -> 397172.73 | I176: 13543.59 | J176: 13543.59
A177: Раздел 7. Цоколь ( Узлы 1-15 Лист 10) | J177: 0
A178: 55 | B178: ТЕР11-01-015-07 | C178: Шлифовка бетонных или металлоцементных покрытий // прим. затирка поверхности цоколя | D178: 100 м2 покрытия | E178: 5.182 | F178: =G178/E178 -> 177891.1 | G178: 921831.69 | H178: =I178/E178 -> 180.14 | I178: 933.49 | J178: 922765.18
B179: 101-2109 | C179: Карборунд | D179: кг | J179: 0
B180: 411-0001 | C180: Вода | D180: м3 | J180: 0
A181: 56 | B181: ТЕР15-04-015-02 | C181: Окраска фасадов с люлек с подготовкой поверхности: силикатная // прим. | D181: 100 м2 фасада | E181: 5.182 | F181: =G181/E181 -> 71764.96 | G181: 371886.02 | H181: =I181/E181 -> 4033.5 | I181: 20901.6 | J181: 392787.62
B182: 101-1757 | C182: Ветошь | D182: кг | J182: 0
B183: 113-0043 | C183: Жидкость: гидрофобизирующая ГКЖ-10 | D183: т | J183: 0
B184: 113-0368 | C184: Стекло жидкое калийное | D184: т | J184: 0
B185: 402-0083 | C185: Раствор готовый отделочный тяжелый,: цементно-известковый 1:1:6 | D185: м3 | J185: 0
B186: 409-0639 | C186: Пемза шлаковая (щебень пористый из металлургического шлака), марка 600, фракция 5-10 мм | D186: м3 | J186: 0
B187: 411-0001 | C187: Вода | D187: м3 | J187: 0
A188: 57 | B188: ТССЦ-101-6521 | C188: Краска акриловая водно-дисперсионная "БИРСС Фасад-Колор", тон средний // прим. | D188: т | E188: 0.2332 | F188: =G188/E188 -> 0 | G188: 0 | H188: =I188/E188 -> 397172.73 | I188: 92620.68 | J188: 92620.68
A189: 58 | B189: ТЕР26-01-041-05 | C189: Изоляция изделиями из пенопласта насухо холодных поверхностей покрытий и перекрытий | D189: 1 м3 изоляции | E189: 3.73 | F189: =G189/E189 -> 18039.25 | G189: 67286.41 | H189: =I189/E189 -> 11555.23 | I189: 43100.99 | J189: 110387.4
B190: 104-0103 | C190: Плиты из пенопласта полистирольного ПСБС-40 | D190: м3 | J190: 0
A191: 59 | B191: ТЕР06-01-068-03 | C191: Устройство деформационных швов в емкостных сооружениях с применением: герметика // прим. | D191: 100 м шва | E191: 1.9 | F191: =G191/E191 -> 49429.83 | G191: 93916.67 | H191: =I191/E191 -> 0 | I191: 0 | J191: 93916.67
A192: 60 | B192: ТССЦ-104-0996 | C192: Жгут уплотнительный "Стенофлекс" (в бухте), диаметром: 15 мм // прим. Жгут "Вилотерм" д.15мм | D192: 100 м | E192: 1.9 | F192: =G192/E192 -> 0 | G192: 0 | H192: =I192/E192 -> 622.03 | I192: 1181.86 | J192: 1181.86
A193: 61 | B193: ТЕР15-02-001-01 прим | C193: Улучшенная штукатурка фасадов цементно-известковым раствором по камню: стен | D193: 100 м2 оштукатуриваемой поверхности | E193: 1.634 | F193: =G193/E193 -> 159780.88 | G193: 261081.96 | H193: =I193/E193 -> 12847.44 | I193: 20992.71 | J193: 282074.67
B194: 402-0083 | C194: Раствор готовый отделочный тяжелый,: цементно-известковый 1:1:6 | D194: м3 | J194: 0
B195: 411-0001 | C195: Вода | D195: м3 | J195: 0
A196: 62 | B196: ТЕР15-04-015-02 | C196: Окраска фасадов с люлек с подготовкой поверхности: силикатная // прим. | D196: 100 м2 фасада | E196: 1.634 | F196: =G196/E196 -> 61000.18 | G196: 99674.29 | H196: =I196/E196 -> 4033.5 | I196: 6590.74 | J196: 106265.03
B197: 101-1757 | C197: Ветошь | D197: кг | J197: 0
B198: 113-0043 | C198: Жидкость: гидрофобизирующая ГКЖ-10 | D198: т | J198: 0
B199: 113-0368 | C199: Стекло жидкое калийное | D199: т | J199: 0
B200: 402-0083 | C200: Раствор готовый отделочный тяжелый,: цементно-известковый 1:1:6 | D200: м3 | J200: 0
B201: 409-0639 | C201: Пемза шлаковая (щебень пористый из металлургического шлака), марка 600, фракция 5-10 мм | D201: м3 | J201: 0
B202: 411-0001 | C202: Вода | D202: м3 | J202: 0
... 28 more rows

Sheet свод
A1: Наименование закупки: | C1: Выполнение комплекса архитектурно-строительных работ на объектах Транспортно-конвейерной системы, Купольного склада и Крытого слада №1 в рамках реализации проекта «Терминал по перевалке минеральных удобрений в МТП Усть-Луга. Береговые объекты терминала»
A2: Исх. № ______________ от __.__.2025г.
A4: Наименование Участника:
A5: ИНН Участника
A7: № п/п | B7: Наименование | C7: Требование ООО «ЕТУ» | D7: Предложение Участника, руб без НДС
D8: Материалы | E8: Работы
A9: 1 | B9: 1632-2021-2.1.2, 2.1.7-АР1-07.04.046-П-00-00 | C9: Архитектурные решения, Конвейерная галерея №7 | D9: ='1632-2021-2.1.2,2.1.7-АР1'!I165 -> 4681036.23 | E9: ='1632-2021-2.1.2,2.1.7-АР1'!G165 -> 6460971.68
A10: 2 | B10: 1632-2021-2.2.1-АР_07.04.020-П-00-00 | C10: Архитектурные решения, Пересыпная станция № 1 | D10: ='1632-2021-2.2.1-АР'!I367 -> 19277354.99 | E10: ='1632-2021-2.2.1-АР'!G367 -> 60435131.4
A11: 3 | B11: 1632-2021-2.2.6-АР_07.04.025-П-00-00 | C11: Архитектурные решения, 07.04.025 Пересыпная станция №6 (код SAP 01.02.020) код ГП 2.2.6 | D11: ='1632-2021-2.2.6-АР'!I192 -> 1189510.37 | E11: ='1632-2021-2.2.6-АР'!G192 -> 1504431.67
A12: 4 | B12: 1632-2021-2.2.2 -АР_07.04.021-П-00-01 | C12: Архитектурные решения, Пересыпная станция № 2 | D12: ='1632-2021-2.2.2-АР'!I230 -> 13723257.97 | E12: ='1632-2021-2.2.2-АР'!G230 -> 15953211.86
A13: 5 | B13: 1632-2021-2.2.7- АР_07.04.026-П-00-02 | C13: Архитектурные решения, 07.04.026 Приводная станция (код SAP 01.02.005) код ГП 2.2.7 | D13: ='1632-2021-2.2.7-АР'!I233 -> 1830239.65 | E13: ='1632-2021-2.2.7-АР'!G233 -> 1793742.3
A14: 6 | B14: 1632-2021-2.1.1-АР_07.04.040-П-00-00 | C14: Архитектурные решения, 07.04.040 Конвейерная галерея №1 (код SAP 01.02.006) код ГП 2.1.1 | D14: ='1632-2021-2.1.1-АР'!I59 -> 878669.06 | E14: ='1632-2021-2.1.1-АР'!G59 -> 443427.81
A15: 7 | B15: 1632-2021-1.1,1.2,2.1.0-АР_07.02.010_07.04.030-П-00-00 | C15: Архитектурные решения, 07.02.010 Станция разгрузки вагонов (код SAP 01.04.001) код ГП 1.1 07.04.030 Тоннель код ГП 2.1.0 | D15: ='1632-2021-1.1,1.2,2.1.0-АР'!I696 -> 22378145.79 | E15: ='1632-2021-1.1,1.2,2.1.0-АР'!G696 -> 35876793.98
A16: 8 | B16: 1632-2021-2.2.4,2.1.6-АР_07.04.023-П-01-02 | C16: Архитектурные решения, 07.04.023 Пересыпная станция №4 (код SAP 01.02.004) код ГП 2.2.4 | D16: ='1632-2021-2.2.4,2.1.6-АР'!I161 -> 2241472.31 | E16: ='1632-2021-2.2.4,2.1.6-АР'!G161 -> 2467305.47
A17: 9 | B17: 1632-2021-2.2.5,2.1.13-АР_07.04.024_07.04.052-П-00-01 | C17: Архитектурные решения, 07.04.024 Пересыпная станция №5 (код SAP 01.02.019) код ГП 2.2.5 07.04.052 Конвейерная галерея №13 (код SAP 01.02.009) код ГП 2.1.13 | D17: ='1632-2021-2.2.5,2.1.13 -АР'!I221 -> 7540470.24 | E17: ='1632-2021-2.2.5,2.1.13 -АР'!G221 -> 22948253.72
A18: 10 | B18: 1632-2021-1.1,1.2,2.1.0-АР_07.02.011_П-00-01 | C18: Архитектурные решения, 07.02.011 Здание трансбордера код ГП 1.2 | D18: ='2-1632-2021-1.1,1.2,2.1.0-АР'!I228 -> 5964250.62 | E18: ='2-1632-2021-1.1,1.2,2.1.0-АР'!G228 -> 5186266.49
A19: 11 | B19: 1632-2021-2.2.3-АР_07.04.022-П-00-00 | C19: Архитектурные решения, Пересыпная станция № 3 | D19: ='1632-2021-2.2.3-АР'!I227 -> 4583457.93 | E19: ='1632-2021-2.2.3-АР'!G227 -> 4688023.32
A20: 12 | B20: 1632-2021-2.1.2, 2.1.7-АР1_07.04.041-П-00-00 | C20: Архитектурные решения, 07.04.041 Конвейерная галерея №2 (код SAP 01.02.010) код ГП 2.1.2 | D20: ='1-1632-2021-2.1.2,2.1.7-АР1'!I37 -> 381307.15 | E20: ='1-1632-2021-2.1.2,2.1.7-АР1'!G37 -> 133967.58
A21: 13 | B21: 1632-2021-2.1.11-АР_07.04.050-П-00-00 | C21: Архитектурные решения, 07.04.050 Конвейерная галерея №11 (код SAP 01.02.008) код ГП 2.1.11 | D21: ='1632-2021-2.1.11-АР'!I47 -> 958155.47 | E21: ='1632-2021-2.1.11-АР'!G47 -> 320925.18
A22: 14 | B22: 1632-2021-2.1.2, 2.1.7-АР3_07.04.041-П-00-00 | C22: Архитектурные решения, 07.04.041 Конвейерная галерея №2 (код SAP 01.02.010) код ГП 2.1.2 | D22: ='1632-2021-2.1.2,2.1.7-АР3'!I41 -> 367723.66 | E22: ='1632-2021-2.1.2,2.1.7-АР3'!G41 -> 127620.87
A23: 15 | B23: 1632-2021-2.1.2, 2.1.7-АР2-07.04.041-П-00-00 | C23: Архитектурные решения, 07.04.041 Конвейерная галерея №2 (код SAP 01.02.010) код ГП 2.1.2 | D23: ='1632-2021-2.1.2,2.1.7-АР2'!I41 -> 362443.41 | E23: ='1632-2021-2.1.2,2.1.7-АР2'!G41 -> 124546.97
A24: 16 | B24: 1632-2021-3.1-АС_07.03.010-П-00-00 | C24: Архитектурно-строительные решения, 07.03.010 Крытый склад № 1 (код SAP 01.01.001) код ГП 3.1 | D24: ='1632-2021-3.1-АС'!I129 -> 6115763.94 | E24: ='1632-2021-3.1-АС'!G129 -> 8675926.95
A25: 17 | B25: 1632-2021-3.3-АР.СУБ_07.03.012-П-01-02 | C25: Архитектурные решения, 07.03.012 Купольный склад (код SAP 01.01.005) код ГП 3.3.1 | D25: ='1632-2021-3.3-АР.СУБ'!I211 -> 26269199.03 | E25: ='1632-2021-3.3-АР.СУБ'!G211 -> 29178434.14
A26: 18 | B26: 1632-2021-2.1.2, 2.1.7-АР2-07.04.046-П-00-02 | C26: Архитектурные решения, Конвейерная галерея №7 в осях 8-14 | D26: ='3-1632-2021-2.1.2,2.1.7-АР2'!I107 -> 5058864.48 | E26: ='3-1632-2021-2.1.2,2.1.7-АР2'!G107 -> 4636882.7
A27: 19 | B27: 1632-2021-3.1-АР_07.03.010-П-00-00 | C27: Архитектурно-строительные решения, 07.03.010 Крытый склад № 1 (код SAP 01.01.001) код ГП 3.1 | D27: ='1632-2021-3.1-АР'!I281 -> 20443651.17 | E27: ='1632-2021-3.1-АР'!G281 -> 13632251.13
A28: 20 | B28: 1632-2021-2.1.4-АР_07.04.043-П-01-01 | C28: Архитектурные решения, 07.04.040 Конвейерная галерея №1 (код SAP 01.02.006) код ГП 2.1.1 | D28: ='1632-2021-2.1.4-АР'!I47 -> 569094.62 | E28: ='1632-2021-2.1.4-АР'!G47 -> 257817.83
A29: 21 | B29: 1632-2021-2.1.2, 2.1.7-АР3_07.04.046-П-00-00 | C29: Архитектурные решения, Конвейерная галерея №7 | D29: ='1-1632-2021-2.1.2,2.1.7-АР3'!I193 -> 3727775.38 | E29: ='1-1632-2021-2.1.2,2.1.7-АР3'!G193 -> 4567659.13
A30: 22 | B30: 1632-2021-2.1.5-АР_07.04.044-П-00-00 | C30: Архитектурные решения, 07.04.040 Конвейерная галерея №1 (код SAP 01.02.006) код ГП 2.1.1 | D30: ='1632-2021-2.1.5-АР'!I38 -> 466083.39 | E30: ='1632-2021-2.1.5-АР'!G38 -> 299259.08
A31: 23 | B31: 1632-2021-2.1.12-АР_07.04.051-П-00-00 | C31: Архитектурные решения, 07.04.051 Конвейрная галерея №12 (код SAP 01.02.015) код ГП 2.1.12 | D31: ='1632-2021-2.1.12-АР'!I114 -> 868199.18 | E31: ='1632-2021-2.1.12-АР'!G114 -> 1024679.53
A32: 24 | B32: 1632-2021-2.1.3-АР_07.04.043-П-01-01 | C32: Архитектурные решения, 07.04.042 Конвейерная галерея №3 (код SAP 01.02.011) код ГП 2.1.3 | D32: ='1632-2021-2.1.3'!I68 -> 11816348.13 | E32: ='1632-2021-2.1.3'!G68 -> 4595328.85
A33: 25 | B33: 1632-2021-3.3.9-АР-03.02.080-П-00-00 | C33: Архитектурные решения, 03.02.080 Электропомещение купольного склада (ЭП-7) (код SAP 02.05.001.09) код ГП 3.3.9 | D33: ='1632-2021-3.3.9-АР'!I188 -> 1414346.66 | E33: ='1632-2021-3.3.9-АР'!G188 -> 3002955.62
B34: Итоговая стоимость строительно-монтажных работ | D34: =SUM(D9:D33) -> 163106820.8 | E34: =SUM(E9:E33) -> 228335815.3
B35: ВСЕГО | D35: =D34+E34 -> 391442636.1
B36: НДС | C36: 0.2 | D36: =D35*0.2 -> 78288527.22
B37: Итоговая стоимость СМР, руб с НДС | D37: =D35+D36 -> 469731163.3

Sheet 1632-2021-2.2.7-АР
A2: Терминал по перевалке минеральных удобрений в морском торговом порту Усть-Луга. Береговые объекты терминала
A3: (наименование стройки)
A4: 1632-2021-2.2.7- АР_07.04.026-П-00-02
A5: (локальная смета)
A6: на Архитектурные решения, 07.04.026 Приводная станция (код SAP 01.02.005) код ГП 2.2.7
A7: (наименование работ и затрат, наименование объекта)
B8: Основание: | C8: 1632-2021-2.2.7-АР_0_0_RU_IFС
A10: № п/п | B10: Обоснование | C10: Наименование работ и затрат | D10: Ед. изм. | E10: Кол-во | F10: Цена за ед.измерения работ, руб. с НДС | G10: Всего, стоимость работ,руб. с НДС | H10: Цена за ед.измерения материалов, руб. с НДС | I10: Всего, стоимость материалов, руб. с НДС | J10: Итого, руб. с НДС
A11: 1 | B11: 2 | C11: 3 | D11: 4 | E11: 5 | F11: 6 | G11: 7 | H11: 8 | I11: 9 | J11: 10
A12: Раздел 1. Фасадные работы | J12: =G12+I12 -> 0
A13: Раздел 2. Кровля | J13: 0
A14: Кровля плоская | J14: 0
A15: 8 | B15: ТЕР11-01-009-02 | C15: Устройство тепло- и звукоизоляции сплошной из плит: древесноволокнистых // прим. ЦСП в 2 слоя | D15: 100 м2 изолируемой поверхности | E15: 1.77 | F15: =G15/E15 -> 36149.42 | G15: 63984.47 | H15: =I15/E15 -> 0 | I15: 0 | J15: 63984.47
A16: 9 | B16: ТЦ_01.6.01.10_78_7810994931_08.02.2024_02 Аналог ТССЦ-101-5068 25,77/24,64=2% | C16: ЦСП 13200х1200х8 | D16: м2 | E16: 364.62 | F16: =G16/E16 -> 0 | G16: 0 | H16: =I16/E16 -> 506.71 | I16: 184755.39 | J16: =G16+I16 -> 184755.39
A17: 10 | B17: ТЕР12-01-002-09 | C17: Устройство кровель плоских из наплавляемых материалов: в два слоя | D17: 100 м2 кровли | E17: 1.77 | F17: =G17/E17 -> 34049.54 | G17: 60267.68 | H17: =I17/E17 -> 1974.08 | I17: 3494.12 | J17: 63761.8
B18: 101-2278 | C18: Пропан-бутан, смесь техническая | D18: кг | J18: 0
A19: 11 | B19: ТЦ_12.0.00.00_78_7826181040_08.02.2024_02 Аналог ТССЦ-101-4724 26,31/25,55=2% | C19: Техноэласт Пламя Стоп | D19: м2 | E19: 201.78 | F19: =G19/E19 -> 0 | G19: 0 | H19: =I19/E19 -> 537.68 | I19: 108493.85 | J19: 108493.85
A20: 12 | B20: ТЦ_12.0.00.00_78_7826181040_08.02.2024_02 Аналог ТССЦ-101-4702 22,34/21,66=2% | C20: Техноэласт ЭПП | D20: м2 | E20: 205.32 | F20: =G20/E20 -> 0 | G20: 0 | H20: =I20/E20 -> 426.22 | I20: 87510.64 | J20: 87510.64
A21: 13 | B21: ТЕР12-01-009-02 | C21: Устройство желобов: подвесных | D21: 100 м желобов | E21: 0.264 | F21: =G21/E21 -> 65790.72 | G21: 17368.75 | H21: =I21/E21 -> 21888.52 | I21: 5778.57 | J21: 23147.32
B22: 101-0173 | C22: Гвозди проволочные оцинкованные для асбестоцементной кровли: 4,5х120 мм | D22: т | J22: 0
B23: 101-0788 | C23: Поковки оцинкованные, масса: 2,825 кг | D23: т | J23: 0
A24: 14 | B24: ТЦ_12.1.01.00_78_7804606806_25.01.2024_02 Аналог ТССЦ-101-5465 31,79/31,06=2% | C24: Желоб водосточный D185х3000 | D24: шт | E24: 9 | F24: =G24/E24 -> 0 | G24: 0 | H24: =I24/E24 -> 1709.47 | I24: 15385.2 | J24: 15385.2
A25: 15 | B25: ТЦ_12.1.01.00_78_7804606806_25.01.2024_02 Аналог ТССЦ-101-5466 4,57/4,46=2% | C25: Держатель желоба | D25: шт | E25: 44 | F25: =G25/E25 -> 0 | G25: 0 | H25: =I25/E25 -> 754.15 | I25: 33182.63 | J25: 33182.63
A26: 16 | B26: ТЕР12-01-008-01 | C26: Устройство обделок на фасадах (наружные подоконники, пояски, балконы и др.): включая водосточные трубы, с изготовлением элементов труб// прим.навеска водосточных труб | D26: 100 м2фасада (без вычета проемов) | E26: 0.266586 | F26: =G26/E26 -> 27775.65 | G26: 7404.6 | H26: =I26/E26 -> 2212.68 | I26: 589.87 | J26: 7994.47
B27: 101-0195 | C27: Гвозди толевые круглые: 3,0х40 мм | D27: т | J27: 0
B28: 101-0788 | C28: Поковки оцинкованные, масса: 2,825 кг | D28: т | J28: 0
B29: 101-0795 | C29: Проволока канатная оцинкованная, диаметром: 3 мм | D29: т | J29: 0
A30: 17 | B30: ТЕР12-01-008-02 | C30: Устройство обделок на фасадах (наружные подоконники, пояски, балконы и др.): без водосточных труб | D30: 100 м2фасада (без вычета проемов) | E30: -0.266586 | F30: =G30/E30 -> 10154.58 | G30: -2707.07 | H30: =I30/E30 -> 164.82 | I30: -43.94 | J30: -2751.01
B31: 101-0195 | C31: Гвозди толевые круглые: 3,0х40 мм | D31: т | J31: 0
A32: 18 | B32: ТЦ_12.1.01.00_78_7804606806_25.01.2024_02 Аналог ТССЦ-301-5867 217,71/213,27=2% | C32: Труба водосточная D150х3000мм | D32: шт | E32: 19 | F32: =G32/E32 -> 0 | G32: 0 | H32: =I32/E32 -> 2084.18 | I32: 39599.39 | J32: 39599.39
A33: 19 | B33: ТЦ_12.1.01.00_78_7804606806_25.01.2024_02 Аналог ТССЦ-101-5466 4,57/4,46=2% | C33: Крепление трубы | D33: шт | E33: 58 | F33: =G33/E33 -> 0 | G33: 0 | H33: =I33/E33 -> 314.87 | I33: 18262.59 | J33: 18262.59
A34: 20 | B34: ТЦ_12.1.01.00_78_7804606806_25.01.2024_02 Аналог ТССЦ-203-0960 5219,18/5114,28=2% | C34: Колено гофрированное | D34: шт | E34: 16 | F34: =G34/E34 -> 0 | G34: 0 | H34: =I34/E34 -> 478.84 | I34: 7661.43 | J34: 7661.43
A35: 21 | B35: ТЦ_12.1.01.00_78_7804606806_25.01.2024_02 Аналог ТССЦ-301-5848 42,01/41,12=2% | C35: Заглушка | D35: шт | E35: 4 | F35: =G35/E35 -> 0 | G35: 0 | H35: =I35/E35 -> 373.47 | I35: 1493.87 | J35: 1493.87
A36: 22 | B36: ТЦ_12.1.01.00_78_7804606806_25.01.2024_02 Аналог ТССЦ-115-0931 8,37/8,08=3% | C36: Воронки выпускные D185/150 | D36: шт | E36: 4 | F36: =G36/E36 -> 0 | G36: 0 | H36: =I36/E36 -> 808.02 | I36: 3232.08 | J36: 3232.08
A37: 23 | B37: ТЕР12-01-012-01 | C37: Ограждение кровель перилами // прим. | D37: 100 м ограждения | E37: 0.264 | F37: =G37/E37 -> 16107.5 | G37: 4252.38 | H37: =I37/E37 -> 402.08 | I37: 106.15 | J37: 4358.53
B38: 101-1529 | C38: Электроды диаметром: 6 мм Э42 | D38: т | J38: 0
B39: 101-1851 | C39: Резина прессованная | D39: кг | J39: 0
A40: 24 | B40: ТЦ_12.1.01.00_78_7804606806_25.01.2024_02 | C40: Снегозадержатель трубчатый (L=3 м. в комплекте с креплением) | D40: шт | E40: 9 | F40: =G40/E40 -> 0 | G40: 0 | H40: =I40/E40 -> 3621.22 | I40: 32590.96 | J40: 32590.96
A41: 25 | B41: ТЕР12-01-006-02 | C41: Устройство деформационных швов с наплавлением дополнительных слоев рулонного кровельного материала | D41: 100 м деформационных швов | E41: 0.115 | F41: =G41/E41 -> 200773.3 | G41: 23088.93 | H41: =I41/E41 -> 270094.26 | I41: 31060.84 | J41: 54149.77
B42: 101-0142 | C42: Дюбели с калиброванной головкой (в обоймах) с цинковым хроматированным покрытием: 3х58,5 мм | D42: т | J42: 0
B43: 101-1680 | C43: Патроны для строительно-монтажного пистолета | D43: 1000 шт. | J43: 0
B44: 101-1875 | C44: Сталь листовая оцинкованная толщиной листа: 0,7 мм | D44: т | J44: 0
B45: 101-1961 | C45: Изопласт: К ЭКП-4,5 | D45: м2 | J45: 0
B46: 101-2278 | C46: Пропан-бутан, смесь техническая | D46: кг | J46: 0
B47: 104-0002 | C47: Вата минеральная | D47: м3 | J47: 0
A48: Заполнение гофры профлиста негорючим утеплителем на 250 мм. ( Узел 6/3 , лист 5) | F48: =G48/E48 ->  | G48: 0 | H48: =I48/E48 ->  | I48: 0 | J48: 0
A49: 26 | B49: ТЕР26-01-037-02 | C49: Изоляция изделиями из волокнистых и зернистых материалов на битуме холодных поверхностей: покрытий и перекрытий сверху // прим. расход 0,0072 м3 /м.п. примыкания | D49: 1 м3 изоляции | E49: 0.1656 | F49: =G49/E49 -> 25216.55 | G49: 4175.86 | H49: =I49/E49 -> 15095.71 | I49: 2499.85 | J49: 6675.71
B50: 101-0079 | C50: Битумы нефтяные строительные для кровельных мастик марки: БНМ-55/60 | D50: т | J50: 0
B51: 104-0007 | C51: Плиты из минеральной ваты: повышенной жесткости на синтетическом связующем М-200 | D51: м3 | J51: 0
A52: Раздел 3. Окна | F52: =G52/E52 ->  | G52: 0 | H52: =I52/E52 ->  | I52: 0 | J52: 0
A53: 27 | B53: ТЕР10-01-034-03 | C53: Установка в жилых и общественных зданиях оконных блоков из ПВХ профилей: поворотных (откидных, поворотно-откидных) с площадью проема до 2 м2 одностворчатых | D53: 100 м2 проемов | E53: 0.042 | F53: =G53/E53 -> 468351.9 | G53: 19670.78 | H53: =I53/E53 -> 156176.19 | I53: 6559.4 | J53: 26230.18
B54: 101-2052 | C54: Лента бутиловая | D54: м | J54: 0
B55: 101-2054 | C55: Лента бутиловая диффузионная | D55: м | J55: 0
B56: 101-2388 | C56: Герметик пенополиуретановый (пена монтажная) типа Makrofleks, Soudal в баллонах по 750 мл | D56: шт. | J56: 0
B57: 101-2789 | C57: Лента ПСУЛ | D57: 10 м | J57: 0
B58: 101-4173 | C58: Дюбели монтажные 10х130 (10х132, 10х150) мм | D58: 10 шт. | J58: 0
B59: 102-0303 | C59: Клинья пластиковые монтажные | D59: 100 шт. | J59: 0
A60: 28 | B60: ТЦ_07.1.02.00_78_7840318754_30.01.2024_02 Аналог ТССЦ-203-0978 4253,53/4168,26=2% | C60: ОК-1. 1000х1400 | D60: шт | E60: 3 | F60: =G60/E60 -> 0 | G60: 0 | H60: =I60/E60 -> 13881.75 | I60: 41645.24 | J60: 41645.24
A61: 29 | B61: ТЕР15-01-070-01 | C61: Облицовка: оконных проемов в наружных стенах откосной планкой из оцинкованной стали с полимерным покрытием с устройством водоотлива оконного из оцинкованной стали с полимерным покрытием | D61: 1 м2 проемов | E61: 4.2 | F61: =G61/E61 -> 3276.46 | G61: 13761.14 | H61: =I61/E61 -> 1423.83 | I61: 5980.09 | J61: 19741.23
B62: 101-1691 | C62: Шурупы-саморезы 4,2х16 мм | D62: 100 шт. | J62: 0
B63: 101-2409 | C63: Аквилон из оцинкованной стали с полимерным покрытием | D63: п.м | J63: 0
B64: 101-2410 | C64: Откосная планка шириной 250 мм из оцинкованной стали с полимерным покрытием | D64: п.м | J64: 0
B65: 101-2411 | C65: Водоотлив оконный шириной планки 250 мм из оцинкованной стали с полимерным покрытием | D65: п.м | J65: 0
A66: Раздел 4. Дверные проемы и ворота | F66: =G66/E66 ->  | G66: 0 | H66: =I66/E66 ->  | I66: 0 | J66: 0
A67: 30 | B67: ТЕР09-04-012-01 | C67: Установка металлических дверных блоков в готовые проемы | D67: 1 м2 проема | E67: 4.2 | F67: =G67/E67 -> 6003.1 | G67: 25213.04 | H67: =I67/E67 -> 327.69 | I67: 1376.28 | J67: 26589.32
B68: 101-1513 | C68: Электроды диаметром: 4 мм Э42 | D68: т | J68: 0
B69: 101-1921 | C69: Пена монтажная: для герметизации стыков в баллончике емкостью 0,85 л | D69: шт. | J69: 0
B70: 204-0062 | C70: Детали закладные и накладные изготовленные: без применения сварки, гнутья, сверления (пробивки) отверстий поставляемые отдельно | D70: т | J70: 0
A71: 31 | B71: ТЦ_07.1.01.03_78_7810347194_06.02.2024_02 Аналог ТССЦ-203-8123 2466,49/2414,02=2% | C71: Дверь стальная наружная ( утепленая) 1000х2100 правого открывания в компл. с доводчиком | D71: шт | E71: 1 | F71: =G71/E71 -> 0 | G71: 0 | H71: =I71/E71 -> 39026.62 | I71: 39026.62 | J71: 39026.62
A72: 32 | B72: ТЦ_07.1.01.03_78_7810347194_06.02.2024_02 Аналог ТССЦ-203-8123 2466,49/2414,02=2% | C72: Дверь стальная наружная 1000х2100 левого открывания в компл. с доводчиком | D72: шт | E72: 1 | F72: =G72/E72 -> 0 | G72: 0 | H72: =I72/E72 -> 39026.62 | I72: 39026.62 | J72: 39026.62
A73: 33 | B73: ТЕР09-04-012-02 | C73: Установка дверного доводчика к металлическим дверям | D73: 1 шт. | E73: 2 | F73: =G73/E73 -> 2613.9 | G73: 5227.79 | H73: =I73/E73 -> 10.7 | I73: 21.4 | J73: 5249.19
B74: 101-1513 | C74: Электроды диаметром: 4 мм Э42 | D74: т | J74: 0
B75: 101-1845 | C75: Винты самонарезающие: с уплотнительной прокладкой 4,8х35 мм | D75: 100 шт. | J75: 0
A76: 34 | B76: ТЕР15-01-070-02 | C76: Облицовка: дверных проемов в наружных стенах откосной планкой из оцинкованной стали с полимерным покрытием с установкой наличников из оцинкованной стали с полимерным покрытием | D76: 1 м2 проемов | E76: 4.2 | F76: =G76/E76 -> 3593.59 | G76: 15093.07 | H76: =I76/E76 -> 1462.77 | I76: 6143.63 | J76: 21236.7
B77: 101-1691 | C77: Шурупы-саморезы 4,2х16 мм | D77: 100 шт. | J77: 0
B78: 101-2409 | C78: Аквилон из оцинкованной стали с полимерным покрытием | D78: п.м | J78: 0
B79: 101-2410 | C79: Откосная планка шириной 250 мм из оцинкованной стали с полимерным покрытием | D79: п.м | J79: 0
A80: Ворота | F80: =G80/E80 ->  | G80: 0 | H80: =I80/E80 ->  | I80: 0 | J80: =G80+I80 -> 0
A81: 35 | B81: ТЕР09-04-011-01 | C81: Монтаж каркасов ворот большепролетных зданий, ангаров и др. без механизмов открывания | D81: 1 т конструкций | E81: 0.593 | F81: =G81/E81 -> 174274.94 | G81: 103345.04 | H81: =I81/E81 -> 8950.89 | I81: 5307.88 | J81: 108652.92
B82: 101-0309 | C82: Канаты пеньковые пропитанные | D82: т | J82: 0
B83: 101-0324 | C83: Кислород технический: газообразный | D83: м3 | J83: 0
B84: 101-0797 | C84: Проволока горячекатаная в мотках, диаметром 6,3-6,5 мм | D84: т | J84: 0
B85: 101-1019 | C85: Швеллеры № 40 из стали марки: Ст0 | D85: т | J85: 0
B86: 101-1515 | C86: Электроды диаметром: 4 мм Э46 | D86: т | J86: 0
B87: 101-1805 | C87: Гвозди строительные | D87: т | J87: 0
B88: 101-2278 | C88: Пропан-бутан, смесь техническая | D88: кг | J88: 0
B89: 101-2467 | C89: Растворитель марки: Р-4 | D89: т | J89: 0
B90: 102-0023 | C90: Бруски обрезные хвойных пород длиной: 4-6,5 м, шириной 75-150 мм, толщиной 40-75 мм, I сорта | D90: м3 | J90: 0
B91: 113-0021 | C91: Грунтовка: ГФ-021 красно-коричневая | D91: т | J91: 0
B92: 201-0756 | C92: Отдельные конструктивные элементы зданий и сооружений с преобладанием: горячекатаных профилей, средняя масса сборочной единицы от 0,1 до 0,5 т | D92: т | J92: 0
B93: 508-0097 | C93: Канат двойной свивки типа ТК, конструкции 6х19(1+6+12)+1 о.с., оцинкованный из проволок марки В, маркировочная группа: 1770 н/мм2, диаметром 5,5 мм | D93: 10 м | J93: 0
A94: 36 | B94: ТЕР09-04-012-02 | C94: Установка дверного доводчика к металлическим дверям | D94: 1 шт. | E94: 1 | F94: =G94/E94 -> 2613.9 | G94: 2613.9 | H94: =I94/E94 -> 10.7 | I94: 10.7 | J94: 2624.6
B95: 101-1513 | C95: Электроды диаметром: 4 мм Э42 | D95: т | J95: 0
B96: 101-1845 | C96: Винты самонарезающие: с уплотнительной прокладкой 4,8х35 мм | D96: 100 шт. | J96: 0
A97: 37 | B97: ТЦ_07.1.01.03_78_7841375755_26.01.2024_02 Аналог ТССЦ-201-0253 5403,70/5341,14=2% | C97: Ворота распашные металлические, с калиткой, открыванием наружу 2600х4100мм (55,6*10,66м2)/1000 | D97: шт | E97: 1 | F97: =G97/E97 -> 0 | G97: 0 | H97: =I97/E97 -> 221541.79 | I97: 221541.79 | J97: 221541.79
A98: Раздел 5. Перегородки | F98: =G98/E98 ->  | G98: 0 | H98: =I98/E98 ->  | I98: 0 | J98: 0
A99: 38 | B99: ТЕР09-04-006-04 | C99: Монтаж ограждающих конструкций стен: из многослойных панелей заводской готовности при высоте здания до 50 м | D99: 100 м2 | E99: 0.2068 | F99: =G99/E99 -> 539401.74 | G99: 111548.28 | H99: =I99/E99 -> 8429.88 | I99: 1743.3 | J99: 113291.58
B100: 101-0309 | C100: Канаты пеньковые пропитанные | D100: т | J100: 0
B101: 101-0324 | C101: Кислород технический: газообразный | D101: м3 | J101: 0
B102: 101-0797 | C102: Проволока горячекатаная в мотках, диаметром 6,3-6,5 мм | D102: т | J102: 0
B103: 101-1019 | C103: Швеллеры № 40 из стали марки: Ст0 | D103: т | J103: 0
B104: 101-1513 | C104: Электроды диаметром: 4 мм Э42 | D104: т | J104: 0
B105: 101-1714 | C105: Болты с гайками и шайбами строительные | D105: т | J105: 0
B106: 101-1805 | C106: Гвозди строительные | D106: т | J106: 0
B107: 101-2278 | C107: Пропан-бутан, смесь техническая | D107: кг | J107: 0
B108: 101-2467 | C108: Растворитель марки: Р-4 | D108: т | J108: 0
B109: 102-0023 | C109: Бруски обрезные хвойных пород длиной: 4-6,5 м, шириной 75-150 мм, толщиной 40-75 мм, I сорта | D109: м3 | J109: 0
B110: 113-0021 | C110: Грунтовка: ГФ-021 красно-коричневая | D110: т | J110: 0
B111: 201-0756 | C111: Отдельные конструктивные элементы зданий и сооружений с преобладанием: горячекатаных профилей, средняя масса сборочной единицы от 0,1 до 0,5 т | D111: т | J111: 0
B112: 508-0097 | C112: Канат двойной свивки типа ТК, конструкции 6х19(1+6+12)+1 о.с., оцинкованный из проволок марки В, маркировочная группа: 1770 н/мм2, диаметром 5,5 мм | D112: 10 м | J112: 0
A113: 39 | B113: ТССЦ-201-0382 | C113: Конструкции: стальные нащельников и деталей обрамления | D113: т | E113: 0.056 | F113: =G113/E113 -> 0 | G113: 0 | H113: =I113/E113 -> 200546.07 | I113: 11230.58 | J113: 11230.58
A114: 40 | B114: ТЦ_07.2.05.00_77_7726393266_08.02.2024_02 Аналог ТССЦ-201-1030 212,54/207,54=2% | C114: Сэндвич-панели ТСП-Z-120-1200-Г-Г-МВ | D114: м2 | E114: 21.9208 | F114: =G114/E114 -> 0 | G114: 0 | H114: =I114/E114 -> 4047.93 | I114: 88733.88 | J114: 88733.88
A115: Раздел 6. Полы | F115: =G115/E115 ->  | G115: 0 | H115: =I115/E115 ->  | I115: 0 | J115: 0
A116: Тип 1. S=27,1 м2 | F116: =G116/E116 ->  | G116: 0 | H116: =I116/E116 ->  | I116: 0 | J116: 0
A117: 41 | B117: ТЕР11-01-009-01 | C117: Устройство тепло- и звукоизоляции сплошной из плит: или матов минераловатных или стекловолокнистых | D117: 100 м2 изолируемой поверхности | E117: 0.271 | F117: =G117/E117 -> 67009.52 | G117: 18159.58 | H117: =I117/E117 -> 0 | I117: 0 | J117: 18159.58
A118: 42 | B118: ТЦ_12.2.00.00_78_7802348846_15.02.2024_02 Аналог ТССЦ-104-0313 1379,26/1347,33=2% | C118: Пеноплэкс Фундамент толщ. 40 мм | D118: м3 | E118: 1.117 | F118: =G118/E118 -> 0 | G118: 0 | H118: =I118/E118 -> 13431.03 | I118: 15002.46 | J118: 15002.46
A119: 43 | B119: ТЕР11-01-050-01 | C119: Устройство пароизоляции из полиэтиленовой пленки в один слой насухо // прим. гидроизоляция | D119: 100 м2 поверхности | E119: 0.271 | F119: =G119/E119 -> 7474.61 | G119: 2025.62 | H119: =I119/E119 -> 19003.69 | I119: 5150 | J119: 7175.62
B120: 113-0324 | C120: Пленка полиэтиленовая толщиной: 0,2-0,5 мм | D120: м2 | J120: 0
A121: 44 | B121: ТЕР11-01-011-03 | C121: Устройство стяжек: бетонных толщиной 20 мм | D121: 100 м2 стяжки | E121: 0.271 | F121: =G121/E121 -> 83767.23 | G121: 22700.92 | H121: =I121/E121 -> 94.02 | I121: 25.48 | J121: 22726.4
B122: 411-0001 | C122: Вода | D122: м3 | J122: 0
A123: 45 | B123: ТЕР11-01-011-04 | C123: Устройство стяжек: на каждые 5 мм изменения толщины стяжки добавлять или исключать к расценке 11-01-011-03 // до толщ. 50 мм | D123: 100 м2 стяжки | E123: 0.271 | F123: =G123/E123 -> 9679.56 | G123: 2623.16 | H123: =I123/E123 -> 0 | I123: 0 | J123: 2623.16
A124: 46 | B124: ТЦ_59.1.04.01_47_4705078395_08.02.2024_02 Аналог ТССЦ-401-0008 699,49/623,42=2% | C124: Бетон В22,5 | D124: м3 | E124: 1.382 | F124: =G124/E124 -> 0 | G124: 0 | H124: =I124/E124 -> 5189.61 | I124: 7172.04 | J124: 7172.04
A125: 47 | B125: ТЕР06-01-015-10 | C125: Армирование подстилающих слоев и набетонок | D125: 1 т | E125: 0.047 | F125: =G125/E125 -> 27708.3 | G125: 1302.29 | H125: =I125/E125 -> 3009.79 | I125: 141.46 | J125: 1443.75
B126: 101-0816 | C126: Проволока светлая диаметром: 1,1 мм | D126: т | J126: 0
A127: 48 | B127: ТЦ_08.4.02.05_66_6686134976_08.02.2024_02 Аналог ТССЦ-101-3891 21,17/20,58=2% | C127: Сетка арм. 100х100 4Вр1 | D127: м2 | E127: 27.1 | F127: =G127/E127 -> 0 | G127: 0 | H127: =I127/E127 -> 118.43 | I127: 3209.58 | J127: 3209.58
A128: 49 | B128: ТЕР11-01-020-03 | C128: Устройство покрытий поливинилацетатных: толщиной 3 мм // прим. покрытие полимерное | D128: 100 м2 покрытия | E128: 0.271 | F128: =G128/E128 -> 180027.93 | G128: 48787.57 | H128: =I128/E128 -> 147312.07 | I128: 39921.57 | J128: 88709.14
B129: 101-0430 | C129: Краски масляные и алкидные земляные, готовые к применению: сурик железный МА-15, ПФ-14 | D129: т | J129: 0
B130: 101-0433 | C130: Краски масляные и алкидные земляные, готовые к применению: охра МА-15 | D130: т | J130: 0
B131: 101-1305 | C131: Портландцемент общестроительного назначения бездобавочный, марки: 400 | D131: т | J131: 0
B132: 101-1591 | C132: Смола каменноугольная для дорожного строительства | D132: т | J132: 0
B133: 101-2293 | C133: Кислота ортофосфорная: техническая, сорт I | D133: т | J133: 0
B134: 101-2358 | C134: Дисперсия поливинилацетатная непластифицированная марки Д50Н | D134: кг | J134: 0
B135: 113-0306 | C135: Маршалит | D135: т | J135: 0
B136: 408-0122 | C136: Песок природный для строительных: работ средний | D136: м3 | J136: 0
B137: 411-0001 | C137: Вода | D137: м3 | J137: 0
A138: Тип 2. S=25,6 м2 | F138: =G138/E138 ->  | G138: 0 | H138: =I138/E138 ->  | I138: 0 | J138: 0
A139: 50 | B139: ТЕР11-01-009-01 | C139: Устройство тепло- и звукоизоляции сплошной из плит: или матов минераловатных или стекловолокнистых | D139: 100 м2 изолируемой поверхности | E139: 0.256 | F139: =G139/E139 -> 67007.77 | G139: 17153.99 | H139: =I139/E139 -> 0 | I139: 0 | J139: 17153.99
A140: 51 | B140: ТЦ_12.2.00.00_78_7802348846_15.02.2024_02 Аналог ТССЦ-104-0313 1379,26/1347,33=2% | C140: Пеноплэкс Фундамент толщ. 40 мм | D140: м3 | E140: 1.055 | F140: =G140/E140 -> 0 | G140: 0 | H140: =I140/E140 -> 13431.02 | I140: 14169.73 | J140: 14169.73
A141: 52 | B141: ТЕР11-01-011-03 | C141: Устройство стяжек: бетонных толщиной 20 мм | D141: 100 м2 стяжки | E141: 0.256 | F141: =G141/E141 -> 83765.23 | G141: 21443.9 | H141: =I141/E141 -> 94.06 | I141: 24.08 | J141: 21467.98
B142: 411-0001 | C142: Вода | D142: м3 | J142: 0
A143: 53 | B143: ТЕР11-01-011-04 | C143: Устройство стяжек: на каждые 5 мм изменения толщины стяжки добавлять или исключать к расценке 11-01-011-03 // до 50 мм | D143: 100 м2 стяжки | E143: 0.256 | F143: =G143/E143 -> 9679.96 | G143: 2478.07 | H143: =I143/E143 -> 0 | I143: 0 | J143: 2478.07
A144: 54 | B144: ТЦ_59.1.04.01_47_4705078395_08.02.2024_02 Аналог ТССЦ-401-0008 699,49/623,42=2% | C144: Бетон В22,5 | D144: м3 | E144: 1.306 | F144: =G144/E144 -> 0 | G144: 0 | H144: =I144/E144 -> 5189.61 | I144: 6777.63 | J144: =G144+I144 -> 6777.63
A145: 55 | B145: ТЕР06-01-015-10 | C145: Армирование подстилающих слоев и набетонок | D145: 1 т | E145: 0.0448 | F145: =G145/E145 -> 27709.6 | G145: 1241.39 | H145: =I145/E145 -> 3009.82 | I145: 134.84 | J145: 1376.23
B146: 101-0816 | C146: Проволока светлая диаметром: 1,1 мм | D146: т | J146: 0
A147: 56 | B147: ТЦ_08.4.02.05_66_6686134976_08.02.2024_02 Аналог ТССЦ-101-3891 21,17/20,58=2% | C147: Сетка арм. 100х100 4Вр1 | D147: м2 | E147: 25.6 | F147: =G147/E147 -> 0 | G147: 0 | H147: =I147/E147 -> 118.44 | I147: 3031.94 | J147: 3031.94
A148: 57 | B148: ТЕР11-01-020-03 | C148: Устройство покрытий поливинилацетатных: толщиной 3 мм // прим. покрытие полимерное | D148: 100 м2 покрытия | E148: 0.256 | F148: =G148/E148 -> 180027.62 | G148: 46087.07 | H148: =I148/E148 -> 147312.07 | I148: 37711.89 | J148: 83798.96
B149: 101-0430 | C149: Краски масляные и алкидные земляные, готовые к применению: сурик железный МА-15, ПФ-14 | D149: т | J149: 0
B150: 101-0433 | C150: Краски масляные и алкидные земляные, готовые к применению: охра МА-15 | D150: т | J150: 0
B151: 101-1305 | C151: Портландцемент общестроительного назначения бездобавочный, марки: 400 | D151: т | J151: 0
B152: 101-1591 | C152: Смола каменноугольная для дорожного строительства | D152: т | J152: 0
B153: 101-2293 | C153: Кислота ортофосфорная: техническая, сорт I | D153: т | J153: 0
B154: 101-2358 | C154: Дисперсия поливинилацетатная непластифицированная марки Д50Н | D154: кг | J154: 0
B155: 113-0306 | C155: Маршалит | D155: т | J155: 0
B156: 408-0122 | C156: Песок природный для строительных: работ средний | D156: м3 | J156: 0
B157: 411-0001 | C157: Вода | D157: м3 | J157: 0
A158: Тип 3. S=237,0 м2 | F158: =G158/E158 ->  | G158: 0 | H158: =I158/E158 ->  | I158: 0 | J158: 0
A159: 58 | B159: ТЕР11-01-011-03 | C159: Устройство стяжек: бетонных толщиной 20 мм | D159: 100 м2 стяжки | E159: 2.37 | F159: =G159/E159 -> 83767.83 | G159: 198529.75 | H159: =I159/E159 -> 94.05 | I159: 222.9 | J159: 198752.65
B160: 411-0001 | C160: Вода | D160: м3 | J160: 0
A161: 59 | B161: ТЕР11-01-011-04 | C161: Устройство стяжек: на каждые 5 мм изменения толщины стяжки добавлять или исключать к расценке 11-01-011-03 // толщ. 50-165 мм | D161: 100 м2 стяжки | E161: 2.37 | F161: =G161/E161 -> 28232.99 | G161: 66912.18 | H161: =I161/E161 -> 0 | I161: 0 | J161: 66912.18
A162: 60 | B162: ТЦ_59.1.04.01_47_4705078395_08.02.2024_02 Аналог ТССЦ-401-0008 699,49/623,42=2% | C162: Бетон В22,5 | D162: м3 | E162: 25.987 | F162: =G162/E162 -> 0 | G162: 0 | H162: =I162/E162 -> 5189.61 | I162: 134862.32 | J162: 134862.32
A163: 61 | B163: ТЕР06-01-015-10 | C163: Армирование подстилающих слоев и набетонок | D163: 1 т | E163: 0.41475 | F163: =G163/E163 -> 27713.22 | G163: 11494.06 | H163: =I163/E163 -> 3009.62 | I163: 1248.24 | J163: 12742.3
B164: 101-0816 | C164: Проволока светлая диаметром: 1,1 мм | D164: т | J164: 0
A165: 62 | B165: ТЦ_08.4.02.05_66_6686134976_08.02.2024_02 Аналог ТССЦ-101-3891 21,17/20,58=2% | C165: Сетка арм. 100х100 4Вр1 | D165: м2 | E165: 237 | F165: =G165/E165 -> 0 | G165: 0 | H165: =I165/E165 -> 118.43 | I165: 28069.04 | J165: 28069.04
A166: 63 | B166: ТЕР11-01-020-03 | C166: Устройство покрытий поливинилацетатных: толщиной 3 мм // прим. покрытие полимерное | D166: 100 м2 покрытия | E166: 2.37 | F166: =G166/E166 -> 180031.29 | G166: 426674.16 | H166: =I166/E166 -> 147312.06 | I166: 349129.59 | J166: 775803.75
B167: 101-0430 | C167: Краски масляные и алкидные земляные, готовые к применению: сурик железный МА-15, ПФ-14 | D167: т | J167: 0
B168: 101-0433 | C168: Краски масляные и алкидные земляные, готовые к применению: охра МА-15 | D168: т | J168: 0
B169: 101-1305 | C169: Портландцемент общестроительного назначения бездобавочный, марки: 400 | D169: т | J169: 0
B170: 101-1591 | C170: Смола каменноугольная для дорожного строительства | D170: т | J170: 0
B171: 101-2293 | C171: Кислота ортофосфорная: техническая, сорт I | D171: т | J171: 0
B172: 101-2358 | C172: Дисперсия поливинилацетатная непластифицированная марки Д50Н | D172: кг | J172: 0
B173: 113-0306 | C173: Маршалит | D173: т | J173: 0
B174: 408-0122 | C174: Песок природный для строительных: работ средний | D174: м3 | J174: 0
B175: 411-0001 | C175: Вода | D175: м3 | J175: 0
A176: Тип 4. S=151,0 м2 | F176: =G176/E176 ->  | G176: 0 | H176: =I176/E176 ->  | I176: 0 | J176: 0
A177: 64 | B177: ТЕР11-01-011-03 | C177: Устройство стяжек: бетонных толщиной 20 мм | D177: 100 м2 стяжки | E177: 1.51 | F177: =G177/E177 -> 83767.87 | G177: 126489.48 | H177: =I177/E177 -> 94.05 | I177: 142.02 | J177: 126631.5
B178: 411-0001 | C178: Вода | D178: м3 | J178: 0
A179: 65 | B179: ТЕР11-01-011-04 | C179: Устройство стяжек: на каждые 5 мм изменения толщины стяжки добавлять или исключать к расценке 11-01-011-03 // толщ. 30 мм | D179: 100 м2 стяжки | E179: 1.51 | F179: =G179/E179 -> 3226.08 | G179: 4871.38 | H179: =I179/E179 -> 0 | I179: 0 | J179: 4871.38
A180: 66 | B180: ТЦ_59.1.04.01_47_4705078395_08.02.2024_02 Аналог ТССЦ-401-0008 699,49/623,42=2% | C180: Бетон В22,5 | D180: м3 | E180: 4.621 | F180: =G180/E180 -> 0 | G180: 0 | H180: =I180/E180 -> 5189.61 | I180: 23981.17 | J180: 23981.17
A181: 67 | B181: ТЕР11-01-020-03 | C181: Устройство покрытий поливинилацетатных: толщиной 3 мм // прим. покрытие полимерное | D181: 100 м2 покрытия | E181: 1.51 | F181: =G181/E181 -> 180030.91 | G181: 271846.68 | H181: =I181/E181 -> 147312.07 | I181: 222441.22 | J181: 494287.9
B182: 101-0430 | C182: Краски масляные и алкидные земляные, готовые к применению: сурик железный МА-15, ПФ-14 | D182: т | J182: 0
B183: 101-0433 | C183: Краски масляные и алкидные земляные, готовые к применению: охра МА-15 | D183: т | J183: 0
B184: 101-1305 | C184: Портландцемент общестроительного назначения бездобавочный, марки: 400 | D184: т | J184: 0
B185: 101-1591 | C185: Смола каменноугольная для дорожного строительства | D185: т | J185: 0
B186: 101-2293 | C186: Кислота ортофосфорная: техническая, сорт I | D186: т | J186: 0
B187: 101-2358 | C187: Дисперсия поливинилацетатная непластифицированная марки Д50Н | D187: кг | J187: 0
B188: 113-0306 | C188: Маршалит | D188: т | J188: 0
B189: 408-0122 | C189: Песок природный для строительных: работ средний | D189: м3 | J189: 0
B190: 411-0001 | C190: Вода | D190: м3 | J190: 0
A191: Тип 5. S=18,1 м2 ( h=1200 мм.) Учтено в разделе КМ | F191: =G191/E191 ->  | G191: 0 | H191: =I191/E191 ->  | I191: 0 | J191: 0
A192: Раздел 7. Отделка | F192: =G192/E192 ->  | G192: 0 | H192: =I192/E192 ->  | I192: 0 | J192: 0
A193: Цоколь | F193: =G193/E193 ->  | G193: 0 | H193: =I193/E193 ->  | I193: 0 | J193: 0
A194: 68 | B194: ТЕР15-04-015-02 | C194: Окраска фасадов с люлек с подготовкой поверхности: силикатная // прим. | D194: 100 м2 фасада | E194: 0.84 | F194: =G194/E194 -> 71763.7 | G194: 60281.51 | H194: =I194/E194 -> 8107.43 | I194: 6810.24 | J194: 67091.75
B195: 101-1757 | C195: Ветошь | D195: кг | J195: 0
B196: 101-1841 | C196: Краски силикатные зеленая и красная | D196: т | J196: 0
B197: 113-0043 | C197: Жидкость: гидрофобизирующая ГКЖ-10 | D197: т | J197: 0
B198: 113-0368 | C198: Стекло жидкое калийное | D198: т | J198: 0
B199: 402-0083 | C199: Раствор готовый отделочный тяжелый,: цементно-известковый 1:1:6 | D199: м3 | J199: 0
B200: 409-0639 | C200: Пемза шлаковая (щебень пористый из металлургического шлака), марка 600, фракция 5-10 мм | D200: м3 | J200: 0
B201: 411-0001 | C201: Вода | D201: м3 | J201: 0
A202: Окраска конструкций стен и потолков из профлиста, учтена в сметах к разделу КМ | F202: =G202/E202 ->  | G202: 0 | H202: =I202/E202 ->  | I202: 0 | J202: 0
... 31 more rows

Sheet 1632-2021-2.1.1-АР
A2: Терминал по перевалке минеральных удобрений в морском торговом порту Усть-Луга. Береговые объекты терминала
A3: (наименование стройки)
A4: 1632-2021-2.1.1-АР_07.04.040-П-00-00
A5: (локальная смета)
A6: на Архитектурные решения, 07.04.040 Конвейерная галерея №1 (код SAP 01.02.006) код ГП 2.1.1
A7: (наименование работ и затрат, наименование объекта)
B8: Основание: | C8: 1632-2021-2.1.1-АР_07.04.040
A10: № п/п | B10: Обоснование | C10: Наименование работ и затрат | D10: Ед. изм. | E10: Кол-во | F10: Цена за ед.измерения работ, руб. с НДС | G10: Всего, стоимость работ,руб. с НДС | H10: Цена за ед.измерения материалов, руб. с НДС | I10: Всего, стоимость материалов, руб. с НДС | J10: Итого, руб. с НДС
A11: 1 | B11: 2 | C11: 3 | D11: 4 | E11: 5 | F11: 6 | G11: 7 | H11: 8 | I11: 9 | J11: 10
A13: 1 | B13: 2 | C13: 3 | D13: 4 | E13: 5 | J13: =G13+I13 -> 0
A14: Раздел 1. Фасадные работы | J14: =G14+I14 -> 0
A15: Раздел 2. Дверные проемы | J15: 0
A16: 6 | B16: ТЕР09-04-013-01 | C16: Установка противопожарных дверей: однопольных глухих | D16: 1 м2 проема | E16: 6.3 | F16: =G16/E16 -> 5120.02 | G16: 32256.1 | H16: =I16/E16 -> 675.03 | I16: 4252.68 | J16: 36508.78
B17: 101-1513 | C17: Электроды диаметром: 4 мм Э42 | D17: т | J17: 0
B18: 101-1929 | C18: Болты анкерные | D18: т | J18: 0
B19: 101-3661 | C19: Пена монтажная: противопожарная полиуретановая NULLIFIRE (0,88 л) | D19: шт. | J19: 0
A20: 7 | B20: ТЦ_07.1.01.01_78_7841375755_25.01.2024_02 | C20: Дверь ДПС 1000-2100 EI30 | D20: шт | E20: 3 | F20: =G20/E20 -> 0 | G20: 0 | H20: =I20/E20 -> 28958.17 | I20: 86874.51 | J20: 86874.51
A21: 8 | B21: ТЕР09-04-012-01 | C21: Установка металлических дверных блоков в готовые проемы | D21: 1 м2 проема | E21: 6.3 | F21: =G21/E21 -> 6002.99 | G21: 37818.84 | H21: =I21/E21 -> 327.69 | I21: 2064.43 | J21: 39883.27
B22: 101-1513 | C22: Электроды диаметром: 4 мм Э42 | D22: т | J22: 0
B23: 101-1921 | C23: Пена монтажная: для герметизации стыков в баллончике емкостью 0,85 л | D23: шт. | J23: 0
B24: 204-0062 | C24: Детали закладные и накладные изготовленные: без применения сварки, гнутья, сверления (пробивки) отверстий поставляемые отдельно | D24: т | J24: 0
A25: 9 | B25: ТЦ_07.1.01.03_78_7810347194_06.02.2024_02 | C25: Дверь ДСН 1000-2100 | D25: шт | E25: 3 | F25: =G25/E25 -> 0 | G25: 0 | H25: =I25/E25 -> 35195.28 | I25: 105585.83 | J25: 105585.83
A26: Раздел 3. Оконные проемы
A27: 10 | B27: ТЕР10-01-034-03 | C27: Установка в жилых и общественных зданиях оконных блоков из ПВХ профилей: поворотных (откидных, поворотно-откидных) с площадью проема до 2 м2 одностворчатых | D27: 100 м2 проемов | E27: 0.056 | F27: =G27/E27 -> 468368.93 | G27: 26228.66 | H27: =I27/E27 -> 156176.25 | I27: 8745.87 | J27: 34974.53
B28: 101-2052 | C28: Лента бутиловая | D28: м | J28: 0
B29: 101-2054 | C29: Лента бутиловая диффузионная | D29: м | J29: 0
B30: 101-2388 | C30: Герметик пенополиуретановый (пена монтажная) типа Makrofleks, Soudal в баллонах по 750 мл | D30: шт. | J30: 0
B31: 101-2789 | C31: Лента ПСУЛ | D31: 10 м | J31: 0
B32: 101-4173 | C32: Дюбели монтажные 10х130 (10х132, 10х150) мм | D32: 10 шт. | J32: 0
B33: 102-0303 | C33: Клинья пластиковые монтажные | D33: 100 шт. | J33: 0
A34: 11 | B34: ТЦ_11.3.02.02_78_7804550906_25.01.2024_02 Аналог ТССЦ-203-0960 5219,18/5114,28=2% | C34: Оконный проем ОП-П-1400х100-ОЛ (6М1)-ПОТ | D34: шт | E34: 4 | F34: =G34/E34 -> 0 | G34: 0 | H34: =I34/E34 -> 9768.88 | I34: 39075.5 | J34: 39075.5
A35: Раздел 4. Снегозадерживающие устройства
A36: 12 | B36: ТЕР12-01-012-01 | C36: Ограждение кровель перилами | D36: 100 м ограждения | E36: 1.72 | F36: =G36/E36 -> 16111.7 | G36: 27712.13 | H36: =I36/E36 -> 402.08 | I36: 691.58 | J36: 28403.71
B37: 101-1529 | C37: Электроды диаметром: 6 мм Э42 | D37: т | J37: 0
B38: 101-1851 | C38: Резина прессованная | D38: кг | J38: 0
A39: 13 | B39: ТЦ_11.3.02.02_78_7804606806_25.01.2024_02 Аналог ТССЦ-203-0960 5219,18/5114,28=2% | C39: Металлическое ограждение | D39: м | E39: 172 | F39: =G39/E39 -> 0 | G39: 0 | H39: =I39/E39 -> 1460.41 | I39: 251189.67 | J39: 251189.67
A40: Раздел 5. Водосточная система
A41: 14 | B41: ТЕР12-01-009-02 | C41: Устройство желобов: подвесных | D41: 100 м желобов | E41: 1.72 | F41: =G41/E41 -> 65795.53 | G41: 113168.32 | H41: =I41/E41 -> 427.46 | I41: 735.23 | J41: 113903.55
B42: 101-0173 | C42: Гвозди проволочные оцинкованные для асбестоцементной кровли: 4,5х120 мм | D42: т | J42: 0
A43: 15 | B43: ТЦ_12.1.01.05_78_7804550906_25.01.2024_02 Аналог ТССЦ-203-0960 5219,18/5114,28=2% | C43: Водосточный желоб д.185х3000 | D43: м | E43: 172 | F43: =G43/E43 -> 0 | G43: 0 | H43: =I43/E43 -> 581.23 | I43: 99970.87 | J43: 99970.87
A44: 16 | B44: ТЦ_12.1.01.05_78_7804550906_25.01.2024_02 Аналог ТССЦ-203-0960 5219,18/5114,28=2% | C44: 185 мм Заглушка желоба коттеджная RAL 7005 | D44: шт | E44: 12 | F44: =G44/E44 -> 0 | G44: 0 | H44: =I44/E44 -> 380.93 | I44: 4571.18 | J44: 4571.18
A45: 17 | B45: ТЦ_12.1.01.05_78_7804550906_25.01.2024_02 Аналог ТССЦ-203-0960 5219,18/5114,28=2% | C45: 185 мм Крюк желоба под профлист на болтовом соединении RAL 7004 Мебельный болт М8х30 - 2 шт; Гайка М8 - 2 шт; Шайба М8 - 2 шт; Шайба уплотнительная - 2 шт | D45: шт | E45: 288 | F45: =G45/E45 -> 0 | G45: 0 | H45: =I45/E45 -> 769.33 | I45: 221566.56 | J45: 221566.56
A46: 18 | B46: ТЕР12-01-008-01 | C46: Устройство обделок на фасадах (наружные подоконники, пояски, балконы и др.): включая водосточные трубы, с изготовлением элементов труб | D46: 100 м2фасада (без вычета проемов) | E46: 6.202703 | F46: =G46/E46 -> 27777.23 | G46: 172293.93 | H46: =I46/E46 -> 790.48 | I46: 4903.1 | J46: 177197.03
B47: 101-0195 | C47: Гвозди толевые круглые: 3,0х40 мм | D47: т | J47: 0
B48: 101-0795 | C48: Проволока канатная оцинкованная, диаметром: 3 мм | D48: т | J48: 0
A49: 19 | B49: ТЦ_12.1.01.05_78_7804550906_25.01.2024_02 Аналог ТССЦ-203-0960 5219,18/5114,28=2% | C49: 150 мм Труба 3000 мм RAL 7004 | D49: м | E49: 172 | F49: =G49/E49 -> 0 | G49: 0 | H49: =I49/E49 -> 708.24 | I49: 121818.11 | J49: 121818.11
A50: 20 | B50: ТЦ_12.1.01.05_78_7804550906_25.01.2024_02 Аналог ТССЦ-203-0960 5219,18/5114,28=2% | C50: 150 мм Колено ГОФРИРОВАННОЕ RAL 7004 | D50: шт | E50: 48 | F50: =G50/E50 -> 0 | G50: 0 | H50: =I50/E50 -> 488.42 | I50: 23444.12 | J50: 23444.12
A51: 21 | B51: ТЦ_12.1.01.05_78_7804550906_25.01.2024_02 Аналог ТССЦ-203-0960 5219,18/5114,28=2% | C51: 150 мм Охват на площадке (прут- 10х100мм; площадка- 2,5х100х50мм) (черная полоса) RAL 7004 Болт 6х30 - 2 шт; Гайка М6 - 2 шт; Шайба М6 - 4 шт | D51: шт | E51: 202 | F51: =G51/E51 -> 0 | G51: 0 | H51: =I51/E51 -> 321.09 | I51: 64860.7 | J51: 64860.7
A52: 22 | B52: ТЕР16-07-002-01 | C52: Установка воронок водосточных | D52: 1 воронка | E52: 16 | F52: =G52/E52 -> 7664.71 | G52: 122635.39 | H52: =I52/E52 -> 54.12 | I52: 865.87 | J52: 123501.26
B53: 101-0311 | C53: Каболка | D53: т | J53: 0
B54: 101-1355 | C54: Цемент гипсоглиноземистый расширяющийся | D54: т | J54: 0
B55: 101-1522 | C55: Электроды диаметром: 5 мм Э42А | D55: т | J55: 0
A56: 23 | B56: ТЦ_12.1.01.05_78_7804550906_25.01.2024_02 Аналог ТССЦ-203-0960 5219,18/5114,28=2% | C56: 150 мм Воронка под желоб (верх 185мм.) RAL 7004Водосточный желоб д.185х3000 | D56: шт | E56: 16 | F56: =G56/E56 -> 0 | G56: 0 | H56: =I56/E56 -> 824.19 | I56: 13187.06 | J56: 13187.06
A57: ВСЕГО по смете | J57: 0
C58: Всего, руб. с НДС | G58: =SUM(G12:G57) -> 532113.37 | I58: =SUM(I12:I57) -> 1054402.87 | J58: =SUM(J12:J57) -> 1586516.24
C59: Всего, руб. без НДС | G59: =G58/1.2 -> 443427.81 | I59: =I58/1.2 -> 878669.06 | J59: =J58/1.2 -> 1322096.87

Sheet 1632-2021-1.1,1.2,2.1.0-АР
A2: Терминал по перевалке минеральных удобрений в морском торговом порту Усть-Луга. Береговые объекты терминала
A3: (наименование стройки)
A4: 1632-2021-1.1,1.2,2.1.0-АР_07.02.010_07.04.030-П-00-00
A5: (локальная смета)
A6: на Архитектурные решения, 07.02.010 Станция разгрузки вагонов (код SAP 01.04.001) код ГП 1.1 07.04.030 Тоннель код ГП 2.1.0
A7: (наименование работ и затрат, наименование объекта)
B8: Основание: | C8: 1632-2021-1.1, 1.2, 2.1.0-АР_1_0_RU_IFC
A10: № п/п | B10: Обоснование | C10: Наименование работ и затрат | D10: Ед. изм. | E10: Кол-во | F10: Цена за ед.измерения работ, руб. с НДС | G10: Всего, стоимость работ,руб. с НДС | H10: Цена за ед.измерения материалов, руб. с НДС | I10: Всего, стоимость материалов, руб. с НДС | J10: Итого, руб. с НДС
A11: 1 | B11: 2 | C11: 3 | D11: 4 | E11: 5 | F11: 6 | G11: 7 | H11: 8 | I11: 9 | J11: 10
A12: Раздел 2. Установка дверных блоков и ворот. Станция разгрузки вагонов, (Спецификации по шифру 1632-2021-1.1,1.2,2.1.0-АР, Приложение к письму ООО “Морстройтехнология” вх. №9С01-8000370513-MST-ETU-LET-ENG-00384 от 19.02.2024 г.)
A13: Установка дверных блоков | J13: =G13+I13 -> 0
A14: 1 | B14: ТЕР09-04-012-01 | C14: Установка металлических дверных блоков в готовые проемы | D14: 1 м2 проема | E14: 50.4 | F14: =G14/E14 -> 6003.15 | G14: 302558.61 | H14: =I14/E14 -> 327.7 | I14: 16516.15 | J14: 319074.76
B15: 101-1513 | C15: Электроды диаметром: 4 мм Э42 | D15: т | J15: =G15+I15 -> 0
B16: 101-1921 | C16: Пена монтажная: для герметизации стыков в баллончике емкостью 0,85 л | D16: шт. | J16: 0
B17: 204-0062 | C17: Детали закладные и накладные изготовленные: без применения сварки, гнутья, сверления (пробивки) отверстий поставляемые отдельно | D17: т | J17: 0
A18: 2 | B18: ТЦ_07.1.01.03_78_7841375755_27.02.2024_02 | C18: Дверной блок однопольный, металлический, остекленный, правая (7 эл.) левая (2 эл.) навеска 1000Х2100(h), с доводчиком | D18: шт | E18: 9 | F18: =G18/E18 -> 0 | G18: 0 | H18: =I18/E18 -> 33506.37 | I18: 301557.32 | J18: 301557.32
A19: 3 | B19: ТЦ_07.1.01.03_78_7841375755_27.02.2024_02 | C19: Дверной блок однопольный, металлический, остекленный, утеплённый, правая (14 эл.) левая (1 эл.) навеска 1000Х2100(h), с доводчиком | D19: шт | E19: 15 | F19: =G19/E19 -> 0 | G19: 0 | H19: =I19/E19 -> 33506.37 | I19: 502595.54 | J19: 502595.54
A20: 4 | B20: ТЕР09-04-012-02 | C20: Установка дверного доводчика к металлическим дверям | D20: 1 шт. | E20: 24 | F20: =G20/E20 -> 2614.54 | G20: 62749.02 | H20: =I20/E20 -> 10.71 | I20: 257.14 | J20: 63006.16
B21: 101-1513 | C21: Электроды диаметром: 4 мм Э42 | D21: т | J21: 0
B22: 101-1845 | C22: Винты самонарезающие: с уплотнительной прокладкой 4,8х35 мм | D22: 100 шт. | J22: 0
A23: 5 | B23: ТЕР15-01-070-02 | C23: Облицовка: дверных проемов в наружных стенах откосной планкой из оцинкованной стали с полимерным покрытием с установкой наличников из оцинкованной стали с полимерным покрытием | D23: 1 м2 проемов | E23: 50.4 | F23: =G23/E23 -> 3593.91 | G23: 181133.21 | H23: =I23/E23 -> 1693.92 | I23: 85373.44 | J23: 266506.65
B24: 101-1691 | C24: Шурупы-саморезы 4,2х16 мм | D24: 100 шт. | J24: 0
B25: 101-2409 | C25: Аквилон из оцинкованной стали с полимерным покрытием | D25: п.м | J25: 0
B26: 101-2410 | C26: Откосная планка шириной 250 мм из оцинкованной стали с полимерным покрытием | D26: п.м | J26: 0
B27: 101-2412 | C27: Наличники из оцинкованной стали с полимерным покрытием | D27: п.м | J27: 0
A28: 6 | B28: ТЕР09-04-013-03 | C28: Установка противопожарных дверей: однопольных остекленных | D28: 1 м2 проема | E28: 27.3 | F28: =G28/E28 -> 5120.16 | G28: 139780.34 | H28: =I28/E28 -> 675.03 | I28: 18428.22 | J28: 158208.56
B29: 101-1513 | C29: Электроды диаметром: 4 мм Э42 | D29: т | J29: 0
B30: 101-1929 | C30: Болты анкерные | D30: т | J30: 0
B31: 101-3661 | C31: Пена монтажная: противопожарная полиуретановая NULLIFIRE (0,88 л) | D31: шт. | J31: 0
A32: 7 | B32: ТЦ_07.1.01.03_78_7841375755_27.02.2024_02 | C32: Дверной блок однопольный, металлический, остекленный, противопожарный, правая навеска 1000Х2100(h), EIS 60, с доводчиком и уплотнением притворов | D32: шт | E32: 5 | F32: =G32/E32 -> 0 | G32: 0 | H32: =I32/E32 -> 35533.36 | I32: 177666.79 | J32: 177666.79
A33: 8 | B33: ТЦ_07.1.01.03_78_7841375755_27.02.2024_02 | C33: Дверной блок однопольный, металлический, остекленный, противопожарный, правая навеска1000Х2100(h), EIS 30, с доводчиком и уплотнением притворов | D33: шт | E33: 8 | F33: =G33/E33 -> 0 | G33: 0 | H33: =I33/E33 -> 35533.36 | I33: 284266.87 | J33: 284266.87
A34: 9 | B34: ТЕР15-01-070-02 | C34: Облицовка: дверных проемов в наружных стенах откосной планкой из оцинкованной стали с полимерным покрытием с установкой наличников из оцинкованной стали с полимерным покрытием | D34: 1 м2 проемов | E34: 27.3 | F34: =G34/E34 -> 3593.93 | G34: 98114.3 | H34: =I34/E34 -> 1693.88 | I34: 46242.93 | J34: 144357.23
B35: 101-1691 | C35: Шурупы-саморезы 4,2х16 мм | D35: 100 шт. | J35: 0
B36: 101-2409 | C36: Аквилон из оцинкованной стали с полимерным покрытием | D36: п.м | J36: 0
B37: 101-2410 | C37: Откосная планка шириной 250 мм из оцинкованной стали с полимерным покрытием | D37: п.м | J37: 0
B38: 101-2412 | C38: Наличники из оцинкованной стали с полимерным покрытием | D38: п.м | J38: 0
A39: 10 | B39: ТЕР10-01-039-03 | C39: Установка блоков в наружных и внутренних дверных проемах: в перегородках и деревянных нерубленых стенах, площадь проема до 3 м2 | D39: 100 м2 проемов | E39: 0.1596 | F39: =G39/E39 -> 256114.85 | G39: 40875.93 | H39: =I39/E39 -> 22187.53 | I39: 3541.13 | J39: 44417.06
B40: 101-1705 | C40: Пакля пропитанная | D40: кг | J40: 0
B41: 101-1805 | C41: Гвозди строительные | D41: т | J41: 0
B42: 102-0053 | C42: Доски обрезные хвойных пород длиной: 4-6,5 м, шириной 75-150 мм, толщиной 25 мм, III сорта | D42: м3 | J42: 0
A43: 11 | B43: ТЦ_11.2.02.01_78_7810851080_06.03.2024_02 | C43: Дверной блок однопольный, деревянный, глухой, правая навеска 800Х2100(h) | D43: шт | E43: 2 | F43: =G43/E43 -> 0 | G43: 0 | H43: =I43/E43 -> 13187.64 | I43: 26375.28 | J43: 26375.28
A44: 12 | B44: ТЦ_11.2.02.01_78_7810424032_06.03.2024_02 | C44: Дверной блок однопольный, деревянный, глухой, правая навеска 1000Х2100(h), с доводчиком | D44: шт | E44: 6 | F44: =G44/E44 -> 0 | G44: 0 | H44: =I44/E44 -> 16826.45 | I44: 100958.7 | J44: 100958.7
A45: 13 | B45: ТЕР09-04-012-02 | C45: Установка дверного доводчика к металлическим дверям // прим. | D45: 1 шт. | E45: 6 | F45: =G45/E45 -> 2614.3 | G45: 15685.82 | H45: =I45/E45 -> 10.78 | I45: 64.65 | J45: 15750.47
B46: 101-1513 | C46: Электроды диаметром: 4 мм Э42 | D46: т | J46: 0
B47: 101-1845 | C47: Винты самонарезающие: с уплотнительной прокладкой 4,8х35 мм | D47: 100 шт. | J47: 0
A48: 14 | B48: ТССЦ-101-6899 | C48: Доводчик дверной гидравлический TS-68 с зубчатым приводом (нагрузка до 90 кг) | D48: шт. | E48: 6 | F48: =G48/E48 -> 0 | G48: 0 | H48: =I48/E48 -> 2893.24 | I48: 17359.41 | J48: 17359.41
A49: 15 | B49: ТЕР10-01-039-05 | C49: Установка люков в перекрытиях, площадь проема до 2 м2 | D49: 100 м2 проемов | E49: 0.0384 | F49: =G49/E49 -> 287798.7 | G49: 11051.47 | H49: =I49/E49 -> 22109.64 | I49: 849.01 | J49: 11900.48
B50: 101-1482 | C50: Шурупы с полукруглой головкой: 5х70 мм | D50: т | J50: 0
B51: 101-1705 | C51: Пакля пропитанная | D51: кг | J51: 0
B52: 402-0087 | C52: Раствор готовый отделочный тяжелый,: известковый 1:2,0 | D52: м3 | J52: 0
A53: 16 | B53: ТЦ_11.2.02.01_78_7804356514_06.03.2024_02 | C53: Лаз металлический, противопожарный, 800Х1600(h), EIS 60, с доводчиком и уплотнением притворов. Низ 500 мм от пола | D53: шт | E53: 3 | F53: =G53/E53 -> 0 | G53: 0 | H53: =I53/E53 -> 14652.93 | I53: 43958.79 | J53: 43958.79
A54: 17 | B54: ТЕР09-04-012-02 | C54: Установка дверного доводчика к металлическим дверям // прим. | D54: 1 шт. | E54: 3 | F54: =G54/E54 -> 2614.06 | G54: 7842.19 | H54: =I54/E54 -> 11.01 | I54: 33.04 | J54: 7875.23
B55: 101-1513 | C55: Электроды диаметром: 4 мм Э42 | D55: т | J55: 0
B56: 101-1845 | C56: Винты самонарезающие: с уплотнительной прокладкой 4,8х35 мм | D56: 100 шт. | J56: 0
A57: 18 | B57: ТССЦ-101-6899 | C57: Доводчик дверной гидравлический TS-68 с зубчатым приводом (нагрузка до 90 кг) | D57: шт. | E57: 3 | F57: =G57/E57 -> 0 | G57: 0 | H57: =I57/E57 -> 2893.24 | I57: 8679.71 | J57: 8679.71
A58: Установка ворот | J58: 0
A59: 19 | B59: ТЕР09-04-011-01 | C59: Монтаж каркасов ворот большепролетных зданий, ангаров и др. без механизмов открывания | D59: 1 т конструкций | E59: 6.607 | F59: =G59/E59 -> 174276.9 | G59: 1151447.45 | H59: =I59/E59 -> 8950.95 | I59: 59138.94 | J59: 1210586.39
B60: 101-0309 | C60: Канаты пеньковые пропитанные | D60: т | J60: 0
B61: 101-0324 | C61: Кислород технический: газообразный | D61: м3 | J61: 0
B62: 101-0797 | C62: Проволока горячекатаная в мотках, диаметром 6,3-6,5 мм | D62: т | J62: 0
B63: 101-1019 | C63: Швеллеры № 40 из стали марки: Ст0 | D63: т | J63: 0
B64: 101-1515 | C64: Электроды диаметром: 4 мм Э46 | D64: т | J64: 0
B65: 101-1805 | C65: Гвозди строительные | D65: т | J65: 0
B66: 101-2278 | C66: Пропан-бутан, смесь техническая | D66: кг | J66: 0
B67: 101-2467 | C67: Растворитель марки: Р-4 | D67: т | J67: 0
B68: 102-0023 | C68: Бруски обрезные хвойных пород длиной: 4-6,5 м, шириной 75-150 мм, толщиной 40-75 мм, I сорта | D68: м3 | J68: 0
B69: 113-0021 | C69: Грунтовка: ГФ-021 красно-коричневая | D69: т | J69: 0
B70: 201-0756 | C70: Отдельные конструктивные элементы зданий и сооружений с преобладанием: горячекатаных профилей, средняя масса сборочной единицы от 0,1 до 0,5 т | D70: т | J70: 0
B71: 508-0097 | C71: Канат двойной свивки типа ТК, конструкции 6х19(1+6+12)+1 о.с., оцинкованный из проволок марки В, маркировочная группа: 1770 н/мм2, диаметром 5,5 мм | D71: 10 м | J71: 0
A72: 20 | B72: ТЕРм11-05-001-01 | C72: Механизм исполнительный, масса: до 20 кг | D72: 1 шт. | E72: 8 | F72: =G72/E72 -> 2196.5 | G72: 17572.02 | H72: =I72/E72 -> 108.1 | I72: 864.81 | J72: 18436.83
B73: 101-2039 | C73: Болты с гайками и шайбами оцинкованные, диаметр: 12 мм | D73: кг | J73: 0
B74: 999-9950 | C74: Вспомогательные ненормируемые ресурсы (2% от Оплаты труда рабочих) | D74: руб | J74: 0
A75: 21 | B75: ТЦ_08.1.06.01_78_7814075047_25.06.2024_02 | C75: Ворота распашные с калиткой, металлические, утеплённые, 2950Х3000(h), (вес=55,6 кг/м²) | D75: шт | E75: 1 | F75: =G75/E75 -> 0 | G75: 0 | H75: =I75/E75 -> 385573.21 | I75: 385573.21 | J75: 385573.21
A76: 22 | B76: ТЦ_11.2.02.01_77_7751024400_06.03.2024_02 | C76: Ворота распашные, металлические, остекленные, утеплённые, 4400Х4500(h), (вес=42,44 кг/м²) | D76: шт | E76: 1 | F76: =G76/E76 -> 0 | G76: 0 | H76: =I76/E76 -> 441297.45 | I76: 441297.45 | J76: 441297.45
A77: 23 | B77: ТЦ_08.1.06.01_78_7819033805_06.03.2024_02 | C77: Ворота складчатые, металлические, 5000Х4500(h), (вес=42,44 кг/м²) | D77: шт | E77: 5 | F77: =G77/E77 -> 0 | G77: 0 | H77: =I77/E77 -> 460041.13 | I77: 2300205.65 | J77: 2300205.65
A78: 24 | B78: ТЦ_08.1.06.01_78_7814075047_25.06.2024_02 | C78: Ворота распашные, металлические, с калиткой, остекленные, утеплённые, 3000Х3000(h), (вес=55,6 кг/м²) | D78: шт | E78: 1 | F78: =G78/E78 -> 0 | G78: 0 | H78: =I78/E78 -> 393284.67 | I78: 393284.67 | J78: 393284.67
A79: Раздел 3. Установка оконных блоков. Станция разгрузки вагонов, (Спецификации по шифру 1632-2021-1.1,1.2,2.1.0-АР, Приложение к письму ООО “Морстройтехнология” вх. №9С01-8000370513-MST-ETU-LET-ENG-00384 от 19.02.2024 г.) | J79: =G79+I79 -> 0
A80: 25 | B80: ТЕР09-04-009-04 | C80: Монтаж оконных блоков: из алюминиевых многокамерных профилей с герметичными стеклопакетами | D80: 100 м2 | E80: 0.24 | F80: =G80/E80 -> 1088548.79 | G80: 261251.71 | H80: =I80/E80 -> 315893.96 | I80: 75814.55 | J80: 337066.26
B81: 101-1714 | C81: Болты с гайками и шайбами строительные | D81: т | J81: 0
B82: 101-1836 | C82: Стеклопакеты двухслойные из неполированного стекла толщиной 4 мм | D82: м2 | J82: 0
A83: 26 | B83: ТЦ_02.6.00.00_78_7811474519_29.02.2024_02 | C83: ОК-1. Оконный блок металлический противопожарный EIW30 с двухкамерным стеклопакетом 2000х2000(h) | D83: м2 | E83: 24 | F83: =G83/E83 -> 0 | G83: 0 | H83: =I83/E83 -> 80591.12 | I83: 1934186.92 | J83: 1934186.92
A84: 27 | B84: ТЕР10-01-034-06 | C84: Установка в жилых и общественных зданиях оконных блоков из ПВХ профилей: поворотных (откидных, поворотно-откидных) с площадью проема более 2 м2 двухстворчатых | D84: 100 м2 проемов | E84: 0.12 | F84: =G84/E84 -> 316737.92 | G84: 38008.55 | H84: =I84/E84 -> 95268 | I84: 11432.16 | J84: 49440.71
B85: 101-2052 | C85: Лента бутиловая | D85: м | J85: 0
B86: 101-2054 | C86: Лента бутиловая диффузионная | D86: м | J86: 0
B87: 101-2388 | C87: Герметик пенополиуретановый (пена монтажная) типа Makrofleks, Soudal в баллонах по 750 мл | D87: шт. | J87: 0
B88: 101-2789 | C88: Лента ПСУЛ | D88: 10 м | J88: 0
B89: 101-4173 | C89: Дюбели монтажные 10х130 (10х132, 10х150) мм | D89: 10 шт. | J89: 0
B90: 102-0303 | C90: Клинья пластиковые монтажные | D90: 100 шт. | J90: 0
A91: 28 | B91: ТЦ_59.1.09.04_78_7816539174_26.02.2024_02 | C91: ОК-2. Оп-П-2000х1500-ОСП (4М1-12-4М1-12-4М1)-ПОТ-ГОСТ 34914-2022 (оконный блок из ПВХ профилей с поворотно-откидными створками и двухкамерным стеклопакетом) | D91: м2 | E91: 12 | F91: =G91/E91 -> 0 | G91: 0 | H91: =I91/E91 -> 14402.49 | I91: 172829.89 | J91: 172829.89
A92: 29 | B92: ТЕР10-01-034-03 | C92: Установка в жилых и общественных зданиях оконных блоков из ПВХ профилей: поворотных (откидных, поворотно-откидных) с площадью проема до 2 м2 одностворчатых | D92: 100 м2 проемов | E92: 0.192 | F92: =G92/E92 -> 468371.56 | G92: 89927.34 | H92: =I92/E92 -> 156181.2 | I92: 29986.79 | J92: 119914.13
B93: 101-2052 | C93: Лента бутиловая | D93: м | J93: 0
B94: 101-2054 | C94: Лента бутиловая диффузионная | D94: м | J94: 0
B95: 101-2388 | C95: Герметик пенополиуретановый (пена монтажная) типа Makrofleks, Soudal в баллонах по 750 мл | D95: шт. | J95: 0
B96: 101-2789 | C96: Лента ПСУЛ | D96: 10 м | J96: 0
B97: 101-4173 | C97: Дюбели монтажные 10х130 (10х132, 10х150) мм | D97: 10 шт. | J97: 0
B98: 102-0303 | C98: Клинья пластиковые монтажные | D98: 100 шт. | J98: 0
A99: 30 | B99: ТЦ_59.1.09.04_78_7816539174_26.02.2024_02 | C99: ОК-3. Оп-П-1600х1000-ОСП (4М1-16-4М1)-ПОТ-ГОСТ 34914-2022 (оконный блок из ПВХ профилей с поворотно-откидными створками и однокамерным стеклопакетом) | D99: м2 | E99: 1.6 | F99: =G99/E99 -> 0 | G99: 0 | H99: =I99/E99 -> 19776.97 | I99: 31643.15 | J99: 31643.15
A100: 31 | B100: ТЦ_59.1.09.04_78_7816539174_26.02.2024_02 | C100: ОК-4. Оп-П-1600х1000-ОЛ (6М1)-ПОТ-ГОСТ 34914-2022 (оконный блок из ПВХ профилей с поворотно-откидными створками и одинарным стеклом) | D100: м2 | E100: 17.6 | F100: =G100/E100 -> 0 | G100: 0 | H100: =I100/E100 -> 11033.12 | I100: 194182.94 | J100: 194182.94
A101: 32 | B101: ТЕР15-01-070-01 | C101: Облицовка: оконных проемов в наружных стенах откосной планкой из оцинкованной стали с полимерным покрытием с устройством водоотлива оконного из оцинкованной стали с полимерным покрытием | D101: 1 м2 проемов | E101: 55.2 | F101: =G101/E101 -> 3276.71 | G101: 180874.63 | H101: =I101/E101 -> 1423.84 | I101: 78595.74 | J101: 259470.37
B102: 101-1691 | C102: Шурупы-саморезы 4,2х16 мм | D102: 100 шт. | J102: 0
B103: 101-2409 | C103: Аквилон из оцинкованной стали с полимерным покрытием | D103: п.м | J103: 0
B104: 101-2410 | C104: Откосная планка шириной 250 мм из оцинкованной стали с полимерным покрытием | D104: п.м | J104: 0
B105: 101-2411 | C105: Водоотлив оконный шириной планки 250 мм из оцинкованной стали с полимерным покрытием | D105: п.м | J105: 0
A106: 33 | B106: ТЕР09-03-022-04 | C106: Монтаж оконных фонарных покрытий из поликарбонатных и акриловых плит с боковыми планками, профилями и резиновыми прокладками | D106: 100 м2 | E106: 3.924 | F106: =G106/E106 -> 326838.33 | G106: 1282513.61 | H106: =I106/E106 -> 549.88 | I106: 2157.72 | J106: 1284671.33
B107: 101-0309 | C107: Канаты пеньковые пропитанные | D107: т | J107: 0
B108: 101-0797 | C108: Проволока горячекатаная в мотках, диаметром 6,3-6,5 мм | D108: т | J108: 0
B109: 101-1019 | C109: Швеллеры № 40 из стали марки: Ст0 | D109: т | J109: 0
B110: 101-1714 | C110: Болты с гайками и шайбами строительные | D110: т | J110: 0
B111: 101-1805 | C111: Гвозди строительные | D111: т | J111: 0
B112: 101-2467 | C112: Растворитель марки: Р-4 | D112: т | J112: 0
B113: 113-0021 | C113: Грунтовка: ГФ-021 красно-коричневая | D113: т | J113: 0
B114: 508-0097 | C114: Канат двойной свивки типа ТК, конструкции 6х19(1+6+12)+1 о.с., оцинкованный из проволок марки В, маркировочная группа: 1770 н/мм2, диаметром 5,5 мм | D114: 10 м | J114: 0
A115: 34 | B115: ТЦ_25.3.06.01_47_4707044627_25.01.2024_02 | C115: Профилированный монолитный поликарбонат (прозрачный) 2000х1150х1 мм Royal Plast МП20(У) | D115: м2 | E115: 412.02 | F115: =G115/E115 -> 0 | G115: 0 | H115: =I115/E115 -> 751.29 | I115: 309546.05 | J115: 309546.05
A116: Раздел 4. Полы. Станция разгрузки вагонов, (Спецификации по шифру 1632-2021-1.1,1.2,2.1.0-АР, Приложение к письму ООО “Морстройтехнология” вх. №9С01-8000370513-MST-ETU-LET-ENG-00384 от 19.02.2024 г.) | J116: 0
A117: Полы на отм. - 7,000. Тип 2. S=26,0 м² | J117: 0
A118: 35 | B118: ТЕР11-01-011-03 | C118: Устройство стяжек: бетонных толщиной 20 мм, (h=135 мм) | D118: 100 м2 стяжки | E118: 0.26 | F118: =G118/E118 -> 83762.62 | G118: 21778.28 | H118: =I118/E118 -> 93.92 | I118: 24.42 | J118: 21802.7
B119: 411-0001 | C119: Вода | D119: м3 | J119: 0
A120: 36 | B120: ТЕР11-01-011-04 | C120: Устройство стяжек: на каждые 5 мм изменения толщины стяжки добавлять или исключать к расценке 11-01-011-03, (добавить 115 мм) | D120: 100 м2 стяжки | E120: 0.26 | F120: =G120/E120 -> 37107.5 | G120: 9647.95 | H120: =I120/E120 -> 0 | I120: 0 | J120: 9647.95
A121: 37 | B121: ТЦ_59.1.04.01_78_4707009037_08.02.2024_02 | C121: Бетон В15 | D121: м3 | E121: 3.58 | F121: =G121/E121 -> 0 | G121: 0 | H121: =I121/E121 -> 8792.72 | I121: 31477.94 | J121: 31477.94
A122: 38 | B122: ТЕР11-01-004-05 | C122: Устройство гидроизоляции обмазочной: в один слой толщиной 2 мм | D122: 100 м2 изолируемой поверхности | E122: 0.26 | F122: =G122/E122 -> 78204.23 | G122: 20333.1 | H122: =I122/E122 -> 12166.58 | I122: 3163.31 | J122: 23496.41
B123: 101-0009 | C123: Асбест хризотиловый марки: К-6-30 | D123: т | J123: 0
B124: 101-0073 | C124: Битумы нефтяные строительные марки: БН-90/10 | D124: т | J124: 0
B125: 101-0074 | C125: Битумы нефтяные строительные марки: БН-70/30 | D125: т | J125: 0
B126: 101-1745 | C126: Бензин растворитель | D126: т | J126: 0
B127: 101-1757 | C127: Ветошь | D127: кг | J127: 0
B128: 113-0101 | C128: Мука андезитовая кислотоупорная, марка: А | D128: т | J128: 0
A129: 39 | B129: ТЕР11-01-011-03 | C129: Устройство стяжек: бетонных толщиной 20 мм, (покрытие полимерцементный бетон В25 h=15 мм, прим.) | D129: 100 м2 стяжки | E129: 0.26 | F129: =G129/E129 -> 83762.62 | G129: 21778.28 | H129: =I129/E129 -> 93.92 | I129: 24.42 | J129: 21802.7
B130: 411-0001 | C130: Вода | D130: м3 | J130: 0
A131: 40 | B131: ТЕР11-01-011-04 | C131: Устройство стяжек: на каждые 5 мм изменения толщины стяжки добавлять или исключать к расценке 11-01-011-03, (исключить 5 мм) | D131: 100 м2 стяжки | E131: -0.26 | F131: =G131/E131 -> 1624.42 | G131: -422.35 | H131: =I131/E131 -> 0 | I131: 0 | J131: -422.35
A132: 41 | B132: ТЦ_59.1.04.01_78_4707009037_08.02.2024_02 | C132: Бетон В25 | D132: м3 | E132: 0.4 | F132: =G132/E132 -> 0 | G132: 0 | H132: =I132/E132 -> 9650.1 | I132: 3860.04 | J132: 3860.04
A133: 42 | B133: ТССЦ-113-0378 | C133: Состав полимерцементный, (20% от массы бетона) | D133: м3 | E133: 0.08 | F133: =G133/E133 -> 0 | G133: 0 | H133: =I133/E133 -> 3753 | I133: 300.24 | J133: 300.24
A134: Полы на отм. - 7,000. Тип 1б. S=1200 м² | J134: 0
A135: 43 | B135: ТЕР11-01-011-03 | C135: Устройство стяжек: бетонных толщиной 20 мм, (уклонообразующий слой, hср.=(35+135)/2=85 мм) | D135: 100 м2 стяжки | E135: 12 | F135: =G135/E135 -> 83767.96 | G135: 1005215.5 | H135: =I135/E135 -> 93.98 | I135: 1127.7 | J135: 1006343.2
B136: 411-0001 | C136: Вода | D136: м3 | J136: 0
A137: 44 | B137: ТЕР11-01-011-04 | C137: Устройство стяжек: на каждые 5 мм изменения толщины стяжки добавлять или исключать к расценке 11-01-011-03, (добавить 65 мм) | D137: 100 м2 стяжки | E137: 12 | F137: =G137/E137 -> 20973.21 | G137: 251678.46 | H137: =I137/E137 -> 0 | I137: 0 | J137: 251678.46
A138: 45 | B138: ТЦ_59.1.04.01_78_4707009037_08.02.2024_02 | C138: Бетон В15 | D138: м3 | E138: 104.04 | F138: =G138/E138 -> 0 | G138: 0 | H138: =I138/E138 -> 8792.91 | I138: 914814.1 | J138: 914814.1
A139: 46 | B139: ТЕР11-01-004-05 | C139: Устройство гидроизоляции обмазочной: в один слой толщиной 2 мм | D139: 100 м2 изолируемой поверхности | E139: 12 | F139: =G139/E139 -> 78207.51 | G139: 938490.08 | H139: =I139/E139 -> 12167.56 | I139: 146010.71 | J139: 1084500.79
B140: 101-0009 | C140: Асбест хризотиловый марки: К-6-30 | D140: т | J140: 0
B141: 101-0073 | C141: Битумы нефтяные строительные марки: БН-90/10 | D141: т | J141: 0
B142: 101-0074 | C142: Битумы нефтяные строительные марки: БН-70/30 | D142: т | J142: 0
B143: 101-1745 | C143: Бензин растворитель | D143: т | J143: =G143+I143 -> 0
B144: 101-1757 | C144: Ветошь | D144: кг | J144: 0
B145: 113-0101 | C145: Мука андезитовая кислотоупорная, марка: А | D145: т | J145: 0
A146: 47 | B146: ТЕР11-01-011-03 | C146: Устройство стяжек: бетонных толщиной 20 мм, (покрытие полимерцементный бетон В25 h=15 мм, прим.) | D146: 100 м2 стяжки | E146: 12 | F146: =G146/E146 -> 83767.96 | G146: 1005215.5 | H146: =I146/E146 -> 93.98 | I146: 1127.7 | J146: 1006343.2
B147: 411-0001 | C147: Вода | D147: м3 | J147: 0
A148: 48 | B148: ТЕР11-01-011-04 | C148: Устройство стяжек: на каждые 5 мм изменения толщины стяжки добавлять или исключать к расценке 11-01-011-03, (исключить 5 мм) | D148: 100 м2 стяжки | E148: -12 | F148: =G148/E148 -> 1613.38 | G148: -19360.54 | H148: =I148/E148 -> 0 | I148: 0 | J148: -19360.54
A149: 49 | B149: ТЦ_59.1.04.01_78_4707009037_08.02.2024_02 | C149: Бетон В25 | D149: м3 | E149: 18.36 | F149: =G149/E149 -> 0 | G149: 0 | H149: =I149/E149 -> 9648.99 | I149: 177155.38 | J149: 177155.38
A150: 50 | B150: ТССЦ-113-0378 | C150: Состав полимерцементный, (20% от массы бетона) | D150: м3 | E150: 3.67 | F150: =G150/E150 -> 0 | G150: 0 | H150: =I150/E150 -> 3761.68 | I150: 13805.36 | J150: 13805.36
A151: Полы на отм. - 7,000. Тип 3. S=370 м² | J151: 0
A152: 51 | B152: ТЕР11-01-015-07 | C152: Шлифовка бетонных или металлоцементных покрытий | D152: 100 м2 покрытия | E152: 3.7 | F152: =G152/E152 -> 191486.32 | G152: 708499.39 | H152: =I152/E152 -> 180.15 | I152: 666.56 | J152: 709165.95
B153: 101-2109 | C153: Карборунд | D153: кг | J153: 0
B154: 411-0001 | C154: Вода | D154: м3 | J154: 0
A155: 52 | B155: ТЕР11-01-052-01 | C155: Устройство полимерных наливных полов из полиуретана: с толщиной покрытия 2 мм, (упрочнение полиуретан. составами h=1 мм, прим.) | D155: 100 м2 пола | E155: 3.7 | F155: =G155/E155 -> 58943.69 | G155: 218091.64 | H155: =I155/E155 -> 102113.54 | I155: 377820.09 | J155: 595911.73
B156: 101-5869 | C156: Покрытие полиуретановое монолитное "Полиплан 1001" | D156: кг | J156: 0
B157: 101-5870 | C157: Грунтовка полиуретановая "Праймер 1101" | D157: кг | J157: 0
B158: 113-0659 | C158: Финишлак 105 | D158: кг | J158: 0
A159: Полы на отм. 0,000. Тип 4. S=570 м² | J159: 0
A160: 53 | B160: ТЕР11-01-011-03 | C160: Устройство стяжек: бетонных толщиной 20 мм, (h=185 мм) | D160: 100 м2 стяжки | E160: 5.7 | F160: =G160/E160 -> 83767.94 | G160: 477477.26 | H160: =I160/E160 -> 94.26 | I160: 537.27 | J160: 478014.53
B161: 411-0001 | C161: Вода | D161: м3 | J161: 0
A162: 54 | B162: ТЕР11-01-011-04 | C162: Устройство стяжек: на каждые 5 мм изменения толщины стяжки добавлять или исключать к расценке 11-01-011-03, (добавить 165 мм) | D162: 100 м2 стяжки | E162: 5.7 | F162: =G162/E162 -> 53239.99 | G162: 303467.95 | H162: =I162/E162 -> 0 | I162: 0 | J162: 303467.95
A163: 55 | B163: ТЦ_59.1.04.01_78_4707009037_08.02.2024_02 | C163: Бетон В15 | D163: м3 | E163: 107.559 | F163: =G163/E163 -> 0 | G163: 0 | H163: =I163/E163 -> 8792.91 | I163: 945756.21 | J163: 945756.21
A164: 56 | B164: ТЕР11-01-011-03 | C164: Устройство стяжек: бетонных толщиной 20 мм, (покрытие полимерцементный бетон В25 h=15 мм, прим.) | D164: 100 м2 стяжки | E164: 5.7 | F164: =G164/E164 -> 83767.94 | G164: 477477.26 | H164: =I164/E164 -> 94.26 | I164: 537.27 | J164: 478014.53
B165: 411-0001 | C165: Вода | D165: м3 | J165: 0
A166: 57 | B166: ТЕР11-01-011-04 | C166: Устройство стяжек: на каждые 5 мм изменения толщины стяжки добавлять или исключать к расценке 11-01-011-03, (исключить 5 мм) | D166: 100 м2 стяжки | E166: -5.7 | F166: =G166/E166 -> 1613.23 | G166: -9195.43 | H166: =I166/E166 -> 0 | I166: 0 | J166: -9195.43
A167: 58 | B167: ТЦ_59.1.04.01_78_4707009037_08.02.2024_02 | C167: Бетон В25 | D167: м3 | E167: 8.72 | F167: =G167/E167 -> 0 | G167: 0 | H167: =I167/E167 -> 9649.02 | I167: 84139.43 | J167: 84139.43
A168: 59 | B168: ТССЦ-113-0378 | C168: Состав полимерцементный, (20% от массы бетона) | D168: м3 | E168: 1.74 | F168: =G168/E168 -> 0 | G168: 0 | H168: =I168/E168 -> 3761.48 | I168: 6544.98 | J168: 6544.98
A169: Полы на отм. 0,000. Тип 3. S=1750 м² | J169: 0
A170: 60 | B170: ТЕР11-01-015-07 | C170: Шлифовка бетонных или металлоцементных покрытий | D170: 100 м2 покрытия | E170: 17.5 | F170: =G170/E170 -> 191486.8 | G170: 3351019.07 | H170: =I170/E170 -> 180.1 | I170: 3151.82 | J170: 3354170.89
B171: 101-2109 | C171: Карборунд | D171: кг | J171: 0
B172: 411-0001 | C172: Вода | D172: м3 | J172: 0
A173: 61 | B173: ТЕР11-01-052-01 | C173: Устройство полимерных наливных полов из полиуретана: с толщиной покрытия 2 мм, (упрочнение полиуретан. составами h=1 мм, прим.) | D173: 100 м2 пола | E173: 17.5 | F173: =G173/E173 -> 58943.2 | G173: 1031506.02 | H173: =I173/E173 -> 102113.77 | I173: 1786991.05 | J173: 2818497.07
B174: 101-5869 | C174: Покрытие полиуретановое монолитное "Полиплан 1001" | D174: кг | J174: 0
B175: 101-5870 | C175: Грунтовка полиуретановая "Праймер 1101" | D175: кг | J175: 0
B176: 113-0659 | C176: Финишлак 105 | D176: кг | J176: 0
A177: Полы на отм. 0,000. Тип 9. S=100 м² | J177: 0
A178: 62 | B178: ТЕР11-01-009-01 | C178: Устройство тепло- и звукоизоляции сплошной из плит: или матов минераловатных или стекловолокнистых | D178: 100 м2 изолируемой поверхности | E178: 1 | F178: =G178/E178 -> 67011.3 | G178: 67011.3 | H178: =I178/E178 -> 0 | I178: 0 | J178: 67011.3
A179: 63 | B179: ТЦ_01.4.00.00_77_7705935398_21.02.2024_02 | C179: Утеплитель Пеноплэкс-30 толщ. 50 мм | D179: м3 | E179: 5 | F179: =G179/E179 -> 0 | G179: 0 | H179: =I179/E179 -> 14736.54 | I179: 73682.7 | J179: 73682.7
A180: 64 | B180: ТЕР11-01-011-03 | C180: Устройство стяжек: бетонных толщиной 20 мм, (уклонообразующий слой, hср.=(45+135)/2=90 мм) | D180: 100 м2 стяжки | E180: 1 | F180: =G180/E180 -> 83764.49 | G180: 83764.49 | H180: =I180/E180 -> 94.81 | I180: 94.81 | J180: 83859.3
B181: 411-0001 | C181: Вода | D181: м3 | J181: 0
A182: 65 | B182: ТЕР11-01-011-04 | C182: Устройство стяжек: на каждые 5 мм изменения толщины стяжки добавлять или исключать к расценке 11-01-011-03, (добавить 70 мм) | D182: 100 м2 стяжки | E182: 1 | F182: =G182/E182 -> 22587.06 | G182: 22587.06 | H182: =I182/E182 -> 0 | I182: 0 | J182: 22587.06
A183: 66 | B183: ТЦ_59.1.04.01_78_4707009037_08.02.2024_02 | C183: Бетон В15 | D183: м3 | E183: 9.18 | F183: =G183/E183 -> 0 | G183: 0 | H183: =I183/E183 -> 8792.92 | I183: 80718.98 | J183: 80718.98
A184: 67 | B184: ТЕР06-01-015-10 | C184: Армирование подстилающих слоев и набетонок | D184: 1 т | E184: 0.175 | F184: =G184/E184 -> 27713.31 | G184: 4849.83 | H184: =I184/E184 -> 3012.69 | I184: 527.22 | J184: 5377.05
B185: 101-0816 | C185: Проволока светлая диаметром: 1,1 мм | D185: т | J185: 0
A186: 68 | B186: ТЦ_08.4.02.05_66_6686134976_08.02.2024_02 | C186: Сетка арматурная 4Вр1 яч. 100х100, (вес=1,75 кг/м²) | D186: м2 | E186: 100 | F186: =G186/E186 -> 0 | G186: 0 | H186: =I186/E186 -> 118.43 | I186: 11843.02 | J186: 11843.02
A187: 69 | B187: ТЕР11-01-004-05 | C187: Устройство гидроизоляции обмазочной: в один слой толщиной 2 мм | D187: 100 м2 изолируемой поверхности | E187: 1 | F187: =G187/E187 -> 78207.87 | G187: 78207.87 | H187: =I187/E187 -> 12167.68 | I187: 12167.68 | J187: 90375.55
B188: 101-0009 | C188: Асбест хризотиловый марки: К-6-30 | D188: т | J188: 0
B189: 101-0073 | C189: Битумы нефтяные строительные марки: БН-90/10 | D189: т | J189: 0
B190: 101-0074 | C190: Битумы нефтяные строительные марки: БН-70/30 | D190: т | J190: 0
B191: 101-1745 | C191: Бензин растворитель | D191: т | J191: 0
B192: 101-1757 | C192: Ветошь | D192: кг | J192: 0
B193: 113-0101 | C193: Мука андезитовая кислотоупорная, марка: А | D193: т | J193: 0
A194: 70 | B194: ТЕР11-01-011-03 | C194: Устройство стяжек: бетонных толщиной 20 мм, (покрытие полимерцементный бетон В25 h=15 мм, прим.) | D194: 100 м2 стяжки | E194: 1 | F194: =G194/E194 -> 83764.49 | G194: 83764.49 | H194: =I194/E194 -> 94.81 | I194: 94.81 | J194: 83859.3
B195: 411-0001 | C195: Вода | D195: м3 | J195: 0
A196: 71 | B196: ТЕР11-01-011-04 | C196: Устройство стяжек: на каждые 5 мм изменения толщины стяжки добавлять или исключать к расценке 11-01-011-03, (исключить 5 мм) | D196: 100 м2 стяжки | E196: -1 | F196: =G196/E196 -> 1613.26 | G196: -1613.26 | H196: =I196/E196 -> 0 | I196: 0 | J196: -1613.26
A197: 72 | B197: ТЦ_59.1.04.01_78_4707009037_08.02.2024_02 | C197: Бетон В25 | D197: м3 | E197: 1.53 | F197: =G197/E197 -> 0 | G197: 0 | H197: =I197/E197 -> 9649.38 | I197: 14763.55 | J197: 14763.55
A198: 73 | B198: ТССЦ-113-0378 | C198: Состав полимерцементный, (20% от массы бетона) | D198: м3 | E198: 0.31 | F198: =G198/E198 -> 0 | G198: 0 | H198: =I198/E198 -> 3762.87 | I198: 1166.49 | J198: 1166.49
A199: Полы на отм. 0,000. Тип 6а. S=84 м² | J199: 0
A200: 74 | B200: ТЕР11-01-009-01 | C200: Устройство тепло- и звукоизоляции сплошной из плит: или матов минераловатных или стекловолокнистых | D200: 100 м2 изолируемой поверхности | E200: 0.84 | F200: =G200/E200 -> 67012.19 | G200: 56290.24 | H200: =I200/E200 -> 0 | I200: 0 | J200: 56290.24
A201: 75 | B201: ТЦ_01.4.00.00_77_7705935398_21.02.2024_02 | C201: Утеплитель Пеноплэкс-30 толщ. 50 мм | D201: м3 | E201: 4.2 | F201: =G201/E201 -> 0 | G201: 0 | H201: =I201/E201 -> 14736.39 | I201: 61892.83 | J201: 61892.83
A202: 76 | B202: ТЕР11-01-011-03 | C202: Устройство стяжек: бетонных толщиной 20 мм, (h=135 мм) | D202: 100 м2 стяжки | E202: 0.84 | F202: =G202/E202 -> 83766.95 | G202: 70364.24 | H202: =I202/E202 -> 94.06 | I202: 79.01 | J202: 70443.25
... 494 more rows

Sheet 1632-2021-2.2.4,2.1.6-АР
A2: Терминал по перевалке минеральных удобрений в морском торговом порту Усть-Луга. Береговые объекты терминала
A3: (наименование стройки)
A4: 1632-2021-2.2.4,2.1.6-АР_07.04.023-П-01-02
A5: (локальная смета)
A6: на Архитектурные решения, 07.04.023 Пересыпная станция №4 (код SAP 01.02.004) код ГП 2.2.4
A7: (наименование работ и затрат, наименование объекта)
B8: Основание: | C8: 1632-2021-2.2.4, 2.1.6-АР_2_0_RU_IFC
A10: № п/п | B10: Обоснование | C10: Наименование работ и затрат | D10: Ед. изм. | E10: Кол-во | F10: Цена за ед.измерения работ, руб. с НДС | G10: Всего, стоимость работ,руб. с НДС | H10: Цена за ед.измерения материалов, руб. с НДС | I10: Всего, стоимость материалов, руб. с НДС | J10: Итого, руб. с НДС
A11: 1 | B11: 2 | C11: 3 | D11: 4 | E11: 5 | F11: 6 | G11: 7 | H11: 8 | I11: 9 | J11: 10
A12: Раздел 2. Кровля | J12: =G12+I12 -> 0
A13: Монтаж кровельного покрытия из профнастила учтен в разделе КМ | J13: 0
A14: 1 | B14: ТЕР12-01-009-02 | C14: Устройство желобов: подвесных | D14: 100 м желобов | E14: 0.21 | F14: =G14/E14 -> 65794.52 | G14: 13816.85 | H14: =I14/E14 -> 21890.48 | I14: 4597 | J14: 18413.85
B15: 101-0173 | C15: Гвозди проволочные оцинкованные для асбестоцементной кровли: 4,5х120 мм | D15: т | J15: 0
B16: 101-0788 | C16: Поковки оцинкованные, масса: 2,825 кг | D16: т | J16: 0
A17: 2 | B17: ТЦ_12.1.01.00_78_7804606806_25.01.2024_02 Аналог ТССЦ-203-0960 5219,18/5114,28=2% | C17: Желоб водосточный D185х3000 | D17: шт | E17: 7 | F17: =G17/E17 -> 0 | G17: 0 | H17: =I17/E17 -> 1709.51 | I17: 11966.56 | J17: 11966.56
A18: 3 | B18: ТЦ_12.1.01.00_78_7804606806_25.01.2024_02 Аналог ТССЦ-301-5881 61,11/59,89=2% | C18: Держатель желоба | D18: шт | E18: 35 | F18: =G18/E18 -> 0 | G18: 0 | H18: =I18/E18 -> 754.15 | I18: 26395.39 | J18: 26395.39
A19: 4 | B19: ТЕР12-01-012-01 | C19: Ограждение кровель перилами // прим. Устройство труб водосточных | D19: 100 м ограждения | E19: 1.22 | F19: =G19/E19 -> 16110.69 | G19: 19655.04 | H19: =I19/E19 -> 402.7 | I19: 491.3 | J19: 20146.34
B20: 101-1529 | C20: Электроды диаметром: 6 мм Э42 | D20: т | J20: 0
B21: 101-1851 | C21: Резина прессованная | D21: кг | J21: 0
A22: 5 | B22: ТЕР12-01-008-01 | C22: Устройство обделок на фасадах (наружные подоконники, пояски, балконы и др.): включая водосточные трубы, с изготовлением элементов труб// прим. | D22: 100 м2фасада (без вычета проемов) | E22: 12.48 | F22: =G22/E22 -> 27777.44 | G22: 346662.49 | H22: =I22/E22 -> 2212.63 | I22: 27613.59 | J22: 374276.08
B23: 101-0195 | C23: Гвозди толевые круглые: 3,0х40 мм | D23: т | J23: 0
B24: 101-0788 | C24: Поковки оцинкованные, масса: 2,825 кг | D24: т | J24: 0
B25: 101-0795 | C25: Проволока канатная оцинкованная, диаметром: 3 мм | D25: т | J25: 0
A26: 6 | B26: ТЕР12-01-008-02 | C26: Устройство обделок на фасадах (наружные подоконники, пояски, балконы и др.): без водосточных труб | D26: 100 м2фасада (без вычета проемов) | E26: -12.48 | F26: =G26/E26 -> 10154.7 | G26: -126730.62 | H26: =I26/E26 -> 164.84 | I26: -2057.16 | J26: -128787.78
B27: 101-0195 | C27: Гвозди толевые круглые: 3,0х40 мм | D27: т | J27: 0
A28: 7 | B28: ТЦ_12.1.01.00_78_7804606806_25.01.2024_02 Аналог ТССЦ-301-5867 217,71/213,27=2% | C28: Труба водосточная D150х2000мм | D28: шт | E28: 61 | F28: =G28/E28 -> 0 | G28: 0 | H28: =I28/E28 -> 2084.17 | I28: 127134.29 | J28: 127134.29
A29: 8 | B29: ТЦ_12.1.01.00_78_7804606806_25.01.2024_02 Аналог ТССЦ-203-0960 5219,18/5114,28=2% | C29: Колено гофрированное | D29: шт | E29: 12 | F29: =G29/E29 -> 0 | G29: 0 | H29: =I29/E29 -> 478.85 | I29: 5746.25 | J29: 5746.25
A30: 9 | B30: ТЦ_12.1.01.00_78_7804606806_25.01.2024_02 Аналог ТССЦ-115-0931 8,37/8,08=3% | C30: Воронки выпускные D185/150 | D30: шт | E30: 6 | F30: =G30/E30 -> 0 | G30: 0 | H30: =I30/E30 -> 808.07 | I30: 4848.4 | J30: 4848.4
A31: 10 | B31: ТЕР12-01-012-01 | C31: Ограждение кровель перилами // прим. | D31: 100 м ограждения | E31: 0.192 | F31: =G31/E31 -> 16131.41 | G31: 3097.23 | H31: =I31/E31 -> 396.56 | I31: 76.14 | J31: 3173.37
B32: 101-1529 | C32: Электроды диаметром: 6 мм Э42 | D32: т | J32: 0
B33: 101-1851 | C33: Резина прессованная | D33: кг | J33: 0
A34: 11 | B34: ТЦ_12.1.01.00_78_7804606806_25.01.2024_02 Аналог ТССЦ-101-7317 128,60/126,01=2% | C34: Снегозадержатель трубчатый ( L=3000d в комплекте с креплением) | D34: м | E34: 19.2 | F34: =G34/E34 -> 0 | G34: 0 | H34: =I34/E34 -> 2407.36 | I34: 46221.38 | J34: 46221.38
A35: 12 | B35: ТЕР12-01-012-01 | C35: Ограждение кровель перилами | D35: 100 м ограждения | E35: 0.79 | F35: =G35/E35 -> 16113.13 | G35: 12729.37 | H35: =I35/E35 -> 401.87 | I35: 317.48 | J35: 13046.85
B36: 101-1529 | C36: Электроды диаметром: 6 мм Э42 | D36: т | J36: 0
B37: 101-1851 | C37: Резина прессованная | D37: кг | J37: 0
A38: 13 | C38: Ограждение h=600 мм. ( учтено в разделе КМ) | D38: м | E38: 79 | F38: =G38/E38 -> 0 | G38: 0 | H38: =I38/E38 -> 0 | I38: 0 | J38: 0
A39: Раздел 3. Окна | J39: 0
A40: 14 | B40: ТЕР10-01-034-03 | C40: Установка в жилых и общественных зданиях оконных блоков из ПВХ профилей: поворотных (откидных, поворотно-откидных) с площадью проема до 2 м2 одностворчатых | D40: 100 м2 проемов | E40: 0.14 | F40: =G40/E40 -> 468380.71 | G40: 65573.3 | H40: =I40/E40 -> 156174.79 | I40: 21864.47 | J40: 87437.77
B41: 101-2052 | C41: Лента бутиловая | D41: м | J41: 0
B42: 101-2054 | C42: Лента бутиловая диффузионная | D42: м | J42: 0
B43: 101-2388 | C43: Герметик пенополиуретановый (пена монтажная) типа Makrofleks, Soudal в баллонах по 750 мл | D43: шт. | J43: 0
B44: 101-2789 | C44: Лента ПСУЛ | D44: 10 м | J44: 0
B45: 101-4173 | C45: Дюбели монтажные 10х130 (10х132, 10х150) мм | D45: 10 шт. | J45: 0
B46: 102-0303 | C46: Клинья пластиковые монтажные | D46: 100 шт. | J46: 0
A47: 15 | B47: ТЦ_07.1.02.00_78_7840318754_30.01.2024_02 Аналог ТССЦ-203-0978 4253,53/4168,26=2% | C47: Оконный блок 1000х1400 | D47: шт | E47: 10 | F47: =G47/E47 -> 0 | G47: 0 | H47: =I47/E47 -> 13609.7 | I47: 136097 | J47: 136097
A48: 16 | B48: ТЕР15-01-070-01 | C48: Облицовка: оконных проемов в наружных стенах откосной планкой из оцинкованной стали с полимерным покрытием с устройством водоотлива оконного из оцинкованной стали с полимерным покрытием | D48: 1 м2 проемов | E48: 14 | F48: =G48/E48 -> 3276.7 | G48: 45873.73 | H48: =I48/E48 -> 1423.84 | I48: 19933.73 | J48: 65807.46
B49: 101-1691 | C49: Шурупы-саморезы 4,2х16 мм | D49: 100 шт. | J49: 0
B50: 101-2409 | C50: Аквилон из оцинкованной стали с полимерным покрытием | D50: п.м | J50: 0
B51: 101-2410 | C51: Откосная планка шириной 250 мм из оцинкованной стали с полимерным покрытием | D51: п.м | J51: 0
B52: 101-2411 | C52: Водоотлив оконный шириной планки 250 мм из оцинкованной стали с полимерным покрытием | D52: п.м | J52: 0
A53: Раздел 4. Дверные проемы | J53: 0
A54: 17 | B54: ТЕР09-04-012-01 | C54: Установка металлических дверных блоков в готовые проемы | D54: 1 м2 проема | E54: 18.9 | F54: =G54/E54 -> 6003.16 | G54: 113459.66 | H54: =I54/E54 -> 327.67 | I54: 6193.02 | J54: 119652.68
B55: 101-1513 | C55: Электроды диаметром: 4 мм Э42 | D55: т | J55: 0
B56: 101-1921 | C56: Пена монтажная: для герметизации стыков в баллончике емкостью 0,85 л | D56: шт. | J56: 0
B57: 204-0062 | C57: Детали закладные и накладные изготовленные: без применения сварки, гнутья, сверления (пробивки) отверстий поставляемые отдельно | D57: т | J57: 0
A58: 18 | B58: ТССЦ-203-8146 | C58: Блок дверной стальной внутренний однопольный ДСВ, площадь 2,1 м2 (ГОСТ 31173-2003) // прим. утепленный ( п.1, п.2) | D58: м2 | E58: 6.3 | F58: =G58/E58 -> 0 | G58: 0 | H58: =I58/E58 -> 17779.85 | I58: 112013.04 | J58: 112013.04
A59: 19 | B59: ТССЦ-101-0892 | C59: Скобяные изделия при заполнении отдельными элементами дверей входных в здание: однопольных | D59: компл. | E59: 9 | F59: =G59/E59 -> 0 | G59: 0 | H59: =I59/E59 -> 1049.33 | I59: 9443.96 | J59: 9443.96
A60: 20 | B60: ТЕР09-04-012-02 | C60: Установка дверного доводчика к металлическим дверям | D60: 1 шт. | E60: 3 | F60: =G60/E60 -> 2614.06 | G60: 7842.19 | H60: =I60/E60 -> 11.01 | I60: 33.04 | J60: 7875.23
B61: 101-1513 | C61: Электроды диаметром: 4 мм Э42 | D61: т | J61: 0
B62: 101-1845 | C62: Винты самонарезающие: с уплотнительной прокладкой 4,8х35 мм | D62: 100 шт. | J62: 0
A63: 21 | B63: ТССЦ-101-0961 | C63: Закрыватель дверной гидравлический рычажный в алюминиевом корпусе | D63: шт. | E63: 3 | F63: =G63/E63 -> 0 | G63: 0 | H63: =I63/E63 -> 4746.88 | I63: 14240.64 | J63: 14240.64
A64: 22 | B64: ТССЦ-101-6976 | C64: Замок электромагнитный универсальный сдвиговый AL-400S | D64: шт. | E64: 3 | F64: =G64/E64 -> 0 | G64: 0 | H64: =I64/E64 -> 14108.95 | I64: 42326.86 | J64: 42326.86
A65: 23 | B65: ТЦ_07.1.01.03_78_7841375755_25.01.2024_02 Аналог ТССЦ-203-8123 2466,49/2414,02=2% | C65: Дверь стальная наружная 1000х2100 ( п.3, п. 3/1) | D65: шт | E65: 6 | F65: =G65/E65 -> 0 | G65: 0 | H65: =I65/E65 -> 25965.86 | I65: 155795.14 | J65: 155795.14
A66: 24 | B66: ТЕР09-04-013-01 | C66: Установка противопожарных дверей: однопольных глухих | D66: 1 м2 проема | E66: 23.1 | F66: =G66/E66 -> 5120.13 | G66: 118275.01 | H66: =I66/E66 -> 675.06 | I66: 15593.88 | J66: 133868.89
B67: 101-1513 | C67: Электроды диаметром: 4 мм Э42 | D67: т | J67: 0
B68: 101-1929 | C68: Болты анкерные | D68: т | J68: 0
B69: 101-3661 | C69: Пена монтажная: противопожарная полиуретановая NULLIFIRE (0,88 л) | D69: шт. | J69: 0
A70: 25 | B70: ТЦ_07.1.01.03_78_7841375755_25.01.2024_02 Аналог ТССЦ-203-8118 2304,38/2255,09=2% | C70: Дверь противопожарная металлическая: однопольная ДПС-01/30, размером 1000х2100 мм | D70: шт | E70: 7 | F70: =G70/E70 -> 0 | G70: 0 | H70: =I70/E70 -> 25965.86 | I70: 181760.99 | J70: 181760.99
A71: 26 | B71: ТЦ_07.1.01.03_78_7841375755_25.01.2024_02 Аналог ТССЦ-203-8123 2466,49/2414,02=2% | C71: Дверь противопожарная металлическая: однопольная ДПС-01/60, размером 1000х2100 мм | D71: шт | E71: 4 | F71: =G71/E71 -> 0 | G71: 0 | H71: =I71/E71 -> 25965.86 | I71: 103863.42 | J71: 103863.42
A72: Раздел 5. Полы ( Экспликация полов. Лист 2) | J72: 0
A73: Тип 1. S=62,87 м2 | J73: 0
A74: 27 | B74: ТЕР11-01-009-01 | C74: Устройство тепло- и звукоизоляции сплошной из плит: или матов минераловатных или стекловолокнистых | D74: 100 м2 изолируемой поверхности | E74: 0.6287 | F74: =G74/E74 -> 67011.37 | G74: 42130.05 | H74: =I74/E74 -> 25130.13 | I74: 15799.31 | J74: 57929.36
B75: 104-0013 | C75: Маты прошивные из минеральной ваты: без обкладок М-125 (ГОСТ 21880-86), толщина 40 мм | D75: м3 | J75: =G75+I75 -> 0
A76: 28 | B76: ТЕР11-01-050-01 | C76: Устройство пароизоляции из полиэтиленовой пленки в один слой насухо | D76: 100 м2 поверхности | E76: 0.6287 | F76: =G76/E76 -> 7476.43 | G76: 4700.43 | H76: =I76/E76 -> 19004.12 | I76: 11947.89 | J76: 16648.32
B77: 113-0324 | C77: Пленка полиэтиленовая толщиной: 0,2-0,5 мм | D77: м2 | J77: 0
A78: 29 | B78: ТЕР11-01-011-03 | C78: Устройство стяжек: бетонных толщиной 20 мм | D78: 100 м2 стяжки | E78: 0.6287 | F78: =G78/E78 -> 83764.78 | G78: 52662.92 | H78: =I78/E78 -> 95.98 | I78: 60.34 | J78: 52723.26
B79: 411-0001 | C79: Вода | D79: м3 | J79: 0
A80: 30 | B80: ТЕР11-01-011-04 | C80: Устройство стяжек: на каждые 5 мм изменения толщины стяжки добавлять или исключать к расценке 11-01-011-03 // до толщ. 50 мм | D80: 100 м2 стяжки | E80: 0.6287 | F80: =G80/E80 -> 9679.15 | G80: 6085.28 | H80: =I80/E80 -> 0 | I80: 0 | J80: 6085.28
A81: 31 | B81: ТЦ_59.1.04.01_47_4705078395_08.02.2024_02 Аналог ТССЦ-401-0008 699,49/623,42=2% | C81: Бетон В22,5 | D81: м3 | E81: 3.206 | F81: =G81/E81 -> 0 | G81: 0 | H81: =I81/E81 -> 5088.01 | I81: 16312.16 | J81: 16312.16
A82: 32 | B82: ТЕР06-01-015-10 | C82: Армирование подстилающих слоев и набетонок | D82: 1 т | E82: 0.1099 | F82: =G82/E82 -> 27724.75 | G82: 3046.95 | H82: =I82/E82 -> 3006.46 | I82: 330.41 | J82: 3377.36
B83: 101-0816 | C83: Проволока светлая диаметром: 1,1 мм | D83: т | J83: 0
A84: 33 | B84: ТЦ_08.4.02.05_66_6686134976_08.02.2024_02 Аналог ТССЦ-101-3891 21,17/20,58=2% | C84: Сетка арм. 100х100 4Вр1 | D84: м2 | E84: 62.87 | F84: =G84/E84 -> 0 | G84: 0 | H84: =I84/E84 -> 116.08 | I84: 7297.73 | J84: 7297.73
A85: 34 | B85: ТЕР11-01-020-03 | C85: Устройство покрытий поливинилацетатных: толщиной 3 мм // прим. покрытие полимерное | D85: 100 м2 покрытия | E85: 0.6287 | F85: =G85/E85 -> 180030.65 | G85: 113185.27 | H85: =I85/E85 -> 147312.14 | I85: 92615.14 | J85: 205800.41
B86: 101-0430 | C86: Краски масляные и алкидные земляные, готовые к применению: сурик железный МА-15, ПФ-14 | D86: т | J86: 0
B87: 101-0433 | C87: Краски масляные и алкидные земляные, готовые к применению: охра МА-15 | D87: т | J87: 0
B88: 101-1305 | C88: Портландцемент общестроительного назначения бездобавочный, марки: 400 | D88: т | J88: 0
B89: 101-1591 | C89: Смола каменноугольная для дорожного строительства | D89: т | J89: 0
B90: 101-2293 | C90: Кислота ортофосфорная: техническая, сорт I | D90: т | J90: 0
B91: 101-2358 | C91: Дисперсия поливинилацетатная непластифицированная марки Д50Н | D91: кг | J91: 0
B92: 113-0306 | C92: Маршалит | D92: т | J92: 0
B93: 408-0122 | C93: Песок природный для строительных: работ средний | D93: м3 | J93: 0
B94: 411-0001 | C94: Вода | D94: м3 | J94: 0
A95: Тип 1.1 S=26,1м2 | J95: 0
A96: 35 | B96: ТЕР11-01-009-01 | C96: Устройство тепло- и звукоизоляции сплошной из плит: или матов минераловатных или стекловолокнистых | D96: 100 м2 изолируемой поверхности | E96: 0.261 | F96: =G96/E96 -> 67012.03 | G96: 17490.14 | H96: =I96/E96 -> 25126.09 | I96: 6557.91 | J96: 24048.05
B97: 104-0013 | C97: Маты прошивные из минеральной ваты: без обкладок М-125 (ГОСТ 21880-86), толщина 40 мм | D97: м3 | J97: 0
A98: 36 | B98: ТЕР11-01-050-01 | C98: Устройство пароизоляции из полиэтиленовой пленки в один слой насухо | D98: 100 м2 поверхности | E98: 0.261 | F98: =G98/E98 -> 7469 | G98: 1949.41 | H98: =I98/E98 -> 19005.56 | I98: 4960.45 | J98: 6909.86
B99: 113-0324 | C99: Пленка полиэтиленовая толщиной: 0,2-0,5 мм | D99: м2 | J99: 0
A100: 37 | B100: ТЕР11-01-011-03 | C100: Устройство стяжек: бетонных толщиной 20 мм | D100: 100 м2 стяжки | E100: 0.261 | F100: =G100/E100 -> 83766.44 | G100: 21863.04 | H100: =I100/E100 -> 93.56 | I100: 24.42 | J100: 21887.46
B101: 411-0001 | C101: Вода | D101: м3 | J101: 0
A102: 38 | B102: ТЕР11-01-011-04 | C102: Устройство стяжек: на каждые 5 мм изменения толщины стяжки добавлять или исключать к расценке 11-01-011-03 | D102: 100 м2 стяжки | E102: 0.261 | F102: =G102/E102 -> 14525.25 | G102: 3791.09 | H102: =I102/E102 -> 0 | I102: 0 | J102: 3791.09
A103: 39 | B103: ТЦ_59.1.04.01_47_4705078395_08.02.2024_02 Аналог ТССЦ-401-0008 699,49/623,42=2% | C103: Бетон В22,5 | D103: м3 | E103: 1.73 | F103: =G103/E103 -> 0 | G103: 0 | H103: =I103/E103 -> 5087.75 | I103: 8801.81 | J103: 8801.81
A104: 40 | B104: ТЕР06-01-015-10 | C104: Армирование подстилающих слоев и набетонок | D104: 1 т | E104: 0.045675 | F104: =G104/E104 -> 27677.5 | G104: 1264.17 | H104: =I104/E104 -> 3019.38 | I104: 137.91 | J104: 1402.08
B105: 101-0816 | C105: Проволока светлая диаметром: 1,1 мм | D105: т | J105: 0
A106: 41 | B106: ТЦ_08.4.02.05_66_6686134976_08.02.2024_02 Аналог ТССЦ-101-3891 21,17/20,58=2% | C106: Сетка арм. 100х100 4Вр1 | D106: м2 | E106: 26.1 | F106: =G106/E106 -> 0 | G106: 0 | H106: =I106/E106 -> 116.08 | I106: 3029.71 | J106: 3029.71
A107: 42 | B107: ТЕР11-01-020-03 | C107: Устройство покрытий поливинилацетатных: толщиной 3 мм // прим. покрытие полимерное | D107: 100 м2 покрытия | E107: 0.261 | F107: =G107/E107 -> 180038.08 | G107: 46989.94 | H107: =I107/E107 -> 147310.88 | I107: 38448.14 | J107: 85438.08
B108: 101-0430 | C108: Краски масляные и алкидные земляные, готовые к применению: сурик железный МА-15, ПФ-14 | D108: т | J108: 0
B109: 101-0433 | C109: Краски масляные и алкидные земляные, готовые к применению: охра МА-15 | D109: т | J109: 0
B110: 101-1305 | C110: Портландцемент общестроительного назначения бездобавочный, марки: 400 | D110: т | J110: 0
B111: 101-1591 | C111: Смола каменноугольная для дорожного строительства | D111: т | J111: 0
B112: 101-2293 | C112: Кислота ортофосфорная: техническая, сорт I | D112: т | J112: 0
B113: 101-2358 | C113: Дисперсия поливинилацетатная непластифицированная марки Д50Н | D113: кг | J113: 0
B114: 113-0306 | C114: Маршалит | D114: т | J114: 0
B115: 408-0122 | C115: Песок природный для строительных: работ средний | D115: м3 | J115: 0
B116: 411-0001 | C116: Вода | D116: м3 | J116: 0
A117: Тип 2. S=521м2 | J117: 0
A118: 43 | B118: ТЕР11-01-011-03 | C118: Устройство стяжек: бетонных толщиной 20 мм | D118: 100 м2 стяжки | E118: 5.21 | F118: =G118/E118 -> 83768.1 | G118: 436431.81 | H118: =I118/E118 -> 94.02 | I118: 489.87 | J118: 436921.68
B119: 411-0001 | C119: Вода | D119: м3 | J119: 0
A120: 44 | B120: ТЕР11-01-011-04 | C120: Устройство стяжек: на каждые 5 мм изменения толщины стяжки добавлять или исключать к расценке 11-01-011-03 | D120: 100 м2 стяжки | E120: 5.21 | F120: =G120/E120 -> 3226.34 | G120: 16809.21 | H120: =I120/E120 -> 0 | I120: 0 | J120: 16809.21
A121: 45 | B121: ТЦ_59.1.04.01_47_4705078395_08.02.2024_02 Аналог ТССЦ-401-0008 699,49/623,42=2% | C121: Бетон В22,5 | D121: м3 | E121: 15.943 | F121: =G121/E121 -> 0 | G121: 0 | H121: =I121/E121 -> 5087.84 | I121: 81115.47 | J121: 81115.47
A122: 46 | B122: ТЕР11-01-020-03 | C122: Устройство покрытий поливинилацетатных: толщиной 3 мм // прим. покрытие полимерное | D122: 100 м2 покрытия | E122: 5.21 | F122: =G122/E122 -> 181832.69 | G122: 947348.29 | H122: =I122/E122 -> 147311.84 | I122: 767494.68 | J122: 1714842.97
B123: 101-0430 | C123: Краски масляные и алкидные земляные, готовые к применению: сурик железный МА-15, ПФ-14 | D123: т | J123: 0
B124: 101-0433 | C124: Краски масляные и алкидные земляные, готовые к применению: охра МА-15 | D124: т | J124: 0
B125: 101-1305 | C125: Портландцемент общестроительного назначения бездобавочный, марки: 400 | D125: т | J125: 0
B126: 101-1591 | C126: Смола каменноугольная для дорожного строительства | D126: т | J126: 0
B127: 101-2293 | C127: Кислота ортофосфорная: техническая, сорт I | D127: т | J127: 0
B128: 101-2358 | C128: Дисперсия поливинилацетатная непластифицированная марки Д50Н | D128: кг | J128: 0
B129: 113-0306 | C129: Маршалит | D129: т | J129: 0
B130: 408-0122 | C130: Песок природный для строительных: работ средний | D130: м3 | J130: 0
B131: 411-0001 | C131: Вода | D131: м3 | J131: 0
A132: Тип 3. S=188м2 | J132: 0
A133: 47 | B133: ТЕР11-01-011-03 | C133: Устройство стяжек: бетонных толщиной 20 мм | D133: 100 м2 стяжки | E133: 1.82 | F133: =G133/E133 -> 92143.21 | G133: 167700.64 | H133: =I133/E133 -> 94.72 | I133: 172.39 | J133: 167873.03
B134: 411-0001 | C134: Вода | D134: м3 | J134: 0
A135: 48 | B135: ТЕР11-01-011-04 | C135: Устройство стяжек: на каждые 5 мм изменения толщины стяжки добавлять или исключать к расценке 11-01-011-03 | D135: 100 м2 стяжки | E135: 1.82 | F135: =G135/E135 -> 14518.75 | G135: 26424.12 | H135: =I135/E135 -> 0 | I135: 0 | J135: 26424.12
A136: 49 | B136: ТЦ_59.1.04.01_47_4705078395_08.02.2024_02 Аналог ТССЦ-401-0008 699,49/623,42=2% | C136: Бетон В22,5 | D136: м3 | E136: 12.067 | F136: =G136/E136 -> 0 | G136: 0 | H136: =I136/E136 -> 5087.79 | I136: 61394.35 | J136: 61394.35
A137: 50 | B137: ТЕР06-01-015-10 | C137: Армирование подстилающих слоев и набетонок | D137: 1 т | E137: 0.3185 | F137: =G137/E137 -> 27716.39 | G137: 8827.67 | H137: =I137/E137 -> 3008.45 | I137: 958.19 | J137: 9785.86
B138: 101-0816 | C138: Проволока светлая диаметром: 1,1 мм | D138: т | J138: 0
A139: 51 | B139: ТЦ_08.4.02.05_66_6686134976_08.02.2024_02 Аналог ТССЦ-101-3891 21,17/20,58=2% | C139: Сетка арм. 100х100 4Вр1 | D139: м2 | E139: 182 | F139: =G139/E139 -> 0 | G139: 0 | H139: =I139/E139 -> 116.07 | I139: 21124.64 | J139: =G139+I139 -> 21124.64
A140: 52 | B140: ТЕР11-01-020-03 | C140: Устройство покрытий поливинилацетатных: толщиной 3 мм // прим. покрытие полимерное | D140: 100 м2 покрытия | E140: 1.82 | F140: =G140/E140 -> 196234.87 | G140: 357147.46 | H140: =I140/E140 -> 147311.53 | I140: 268106.98 | J140: 625254.44
B141: 101-0430 | C141: Краски масляные и алкидные земляные, готовые к применению: сурик железный МА-15, ПФ-14 | D141: т | J141: 0
B142: 101-0433 | C142: Краски масляные и алкидные земляные, готовые к применению: охра МА-15 | D142: т | J142: 0
B143: 101-1305 | C143: Портландцемент общестроительного назначения бездобавочный, марки: 400 | D143: т | J143: 0
B144: 101-1591 | C144: Смола каменноугольная для дорожного строительства | D144: т | J144: 0
B145: 101-2293 | C145: Кислота ортофосфорная: техническая, сорт I | D145: т | J145: 0
B146: 101-2358 | C146: Дисперсия поливинилацетатная непластифицированная марки Д50Н | D146: кг | J146: 0
B147: 113-0306 | C147: Маршалит | D147: т | J147: 0
B148: 408-0122 | C148: Песок природный для строительных: работ средний | D148: м3 | J148: 0
B149: 411-0001 | C149: Вода | D149: м3 | J149: 0
A150: Раздел 6. Отделка | J150: 0
A151: Цоколь | J151: 0
A152: 53 | B152: ТЕР11-01-015-07 | C152: Шлифовка бетонных или металлоцементных покрытий // прим. | D152: 100 м2 покрытия | E152: 0.3411 | F152: =G152/E152 -> 189576.14 | G152: 64664.42 | H152: =I152/E152 -> 181.09 | I152: 61.77 | J152: 64726.19
B153: 101-2109 | C153: Карборунд | D153: кг | J153: 0
B154: 411-0001 | C154: Вода | D154: м3 | J154: 0
A155: Окраска конструкций стен и потолков из профлиста, учтена в сметах к разделу КМ | J155: 0
A156: Раздел 7. Перевозка | J156: 0
A157: Товарный бетон - 62 км. ООО "КДСК" | J157: 0
A158: 54 | C158: Товарный бетон | D158: т | E158: 80.718 | F158: =G158/E158 -> 0 | G158: 0 | H158: =I158/E158 -> 0 | I158: 0 | J158: 0
A159: 55 | B159: ТССЦпг-03-33-01-032 | C159: Перевозка бетонных смесей и строительных растворов, готовых к употреблению, автобетоносмесителем 6 м3: до 32 км; класс груза 1 | D159: 1 т груза | E159: 80.718 | F159: =G159/E159 -> 0 | G159: 0 | H159: =I159/E159 -> 2601.84 | I159: 210015.29 | J159: 210015.29
C160: Всего, руб. с НДС | G160: =SUM(G13:G159) -> 2960766.56 | I160: =SUM(I13:I159) -> 2689766.77 | J160: =SUM(J13:J159) -> 5650533.33
C161: Всего, руб. без НДС | G161: =G160/1.2 -> 2467305.47 | I161: =I160/1.2 -> 2241472.31 | J161: =J160/1.2 -> 4708777.78

Sheet 1632-2021-2.2.5,2.1.13 -АР
A2: Терминал по перевалке минеральных удобрений в морском торговом порту Усть-Луга. Береговые объекты терминала
A3: (наименование стройки)
A4: 1632-2021-2.2.5,2.1.13-АР_07.04.024_07.04.052-П-00-01
A5: (локальная смета)
A6: на Архитектурные решения, 07.04.024 Пересыпная станция №5 (код SAP 01.02.019) код ГП 2.2.5 07.04.052 Конвейерная галерея №13 (код SAP 01.02.009) код ГП 2.1.13
A7: (наименование работ и затрат, наименование объекта)
B8: Основание: | C8: 1632-2021-2.2.5,2.1.13-АР 07.04.024_07.04.052-П-00-00
A10: № п/п | B10: Обоснование | C10: Наименование работ и затрат | D10: Ед. изм. | E10: Кол-во | F10: Цена за ед.измерения работ, руб. с НДС | G10: Всего, стоимость работ,руб. с НДС | H10: Цена за ед.измерения материалов, руб. с НДС | I10: Всего, стоимость материалов, руб. с НДС | J10: Итого, руб. с НДС
A11: 1 | B11: 2 | C11: 3 | D11: 4 | E11: 5 | F11: 6 | G11: 7 | H11: 8 | I11: 9 | J11: 10
A12: Раздел 2. Кровля
A13: Устройство кровли из профлиста см. в разделе КМ
A14: 1 | B14: ТЕР12-01-009-02 | C14: Устройство желобов: подвесных | D14: 100 м желобов | E14: 0.74 | F14: =G14/E14 -> 65798.42 | G14: 48690.83 | H14: =I14/E14 -> 21888.16 | I14: 16197.24 | J14: =G14+I14 -> 64888.07
B15: 101-0173 | C15: Гвозди проволочные оцинкованные для асбестоцементной кровли: 4,5х120 мм | D15: т | J15: 0
B16: 101-0788 | C16: Поковки оцинкованные, масса: 2,825 кг | D16: т | J16: 0
A17: 2 | B17: ТЦ_12.1.01.00_78_7804606806_25.01.2024_02 Аналог ТССЦ-101-5465 31,79/31,06=2% | C17: Желоб водосточный D185х3000 | D17: шт | E17: 25 | F17: =G17/E17 -> 0 | G17: 0 | H17: =I17/E17 -> 1709.45 | I17: 42736.28 | J17: 42736.28
A18: 3 | B18: ТЦ_12.1.01.00_78_7804606806_25.01.2024_02 Аналог ТССЦ-101-5466 4,57/4,46=2% | C18: Держатель желоба | D18: шт | E18: 123 | F18: =G18/E18 -> 0 | G18: 0 | H18: =I18/E18 -> 754.15 | I18: 92760.24 | J18: 92760.24
A19: 4 | B19: ТЕР12-01-012-01 | C19: Ограждение кровель перилами // прим. Устройство труб водосточных | D19: 100 м ограждения | E19: 1.16 | F19: =G19/E19 -> 16110.54 | G19: 18688.23 | H19: =I19/E19 -> 402.48 | I19: 466.88 | J19: 19155.11
B20: 101-1529 | C20: Электроды диаметром: 6 мм Э42 | D20: т | J20: 0
B21: 101-1851 | C21: Резина прессованная | D21: кг | J21: 0
A22: 5 | B22: ТЕР12-01-008-01 | C22: Устройство обделок на фасадах (наружные подоконники, пояски, балконы и др.): включая водосточные трубы, с изготовлением элементов труб// прим. | D22: 100 м2фасада (без вычета проемов) | E22: 19.532 | F22: =G22/E22 -> 27777.31 | G22: 542546.33 | H22: =I22/E22 -> 2212.73 | I22: 43218.96 | J22: 585765.29
B23: 101-0195 | C23: Гвозди толевые круглые: 3,0х40 мм | D23: т | J23: 0
B24: 101-0788 | C24: Поковки оцинкованные, масса: 2,825 кг | D24: т | J24: 0
B25: 101-0795 | C25: Проволока канатная оцинкованная, диаметром: 3 мм | D25: т | J25: 0
A26: 6 | B26: ТЦ_12.1.01.00_78_7804606806_25.01.2024_02 Аналог ТССЦ-301-5867 217,71/213,27=2% | C26: Труба водосточная D150х2000мм | D26: шт | E26: 58 | F26: =G26/E26 -> 0 | G26: 0 | H26: =I26/E26 -> 2084.18 | I26: 120882.37 | J26: 120882.37
A27: 7 | B27: ТЦ_12.1.01.00_78_7804606806_25.01.2024_02 Аналог ТССЦ-101-5466 4,57/4,46=2% | C27: Крепление трубы | D27: шт | E27: 193 | F27: =G27/E27 -> 0 | G27: 0 | H27: =I27/E27 -> 314.88 | I27: 60770.88 | J27: 60770.88
A28: 8 | B28: ТЦ_12.1.01.00_78_7804606806_25.01.2024_02 Аналог ТССЦ-115-0931 8,37/8,08=3% | C28: Воронки выпускные D185/150 | D28: шт | E28: 9 | F28: =G28/E28 -> 0 | G28: 0 | H28: =I28/E28 -> 807.99 | I28: 7271.88 | J28: 7271.88
A29: 9 | B29: ТЕР12-01-012-01 | C29: Ограждение кровель перилами // прим. | D29: 100 м ограждения | E29: 0.71 | F29: =G29/E29 -> 16113.77 | G29: 11440.78 | H29: =I29/E29 -> 400.62 | I29: 284.44 | J29: 11725.22
B30: 101-1529 | C30: Электроды диаметром: 6 мм Э42 | D30: т | J30: 0
B31: 101-1851 | C31: Резина прессованная | D31: кг | J31: 0
A32: 10 | B32: ТЦ_12.1.01.00_78_7804606806_25.01.2024_02 Аналог ТССЦ-101-7317 128,60/126,01=2% | C32: Снегозадержатель трубчатый (L=3 м. в комплекте с креплением) | D32: шт | E32: 24 | F32: =G32/E32 -> 0 | G32: 0 | H32: =I32/E32 -> 2407.38 | I32: 57777.08 | J32: 57777.08
A33: Раздел 3. Окна | J33: 0
A34: 11 | B34: ТЕР10-01-034-03 | C34: Установка в жилых и общественных зданиях оконных блоков из ПВХ профилей: поворотных (откидных, поворотно-откидных) с площадью проема до 2 м2 одностворчатых | D34: 100 м2 проемов | E34: 0.154 | F34: =G34/E34 -> 468375.13 | G34: 72129.77 | H34: =I34/E34 -> 156174.81 | I34: 24050.92 | J34: 96180.69
B35: 101-2052 | C35: Лента бутиловая | D35: м | J35: 0
B36: 101-2054 | C36: Лента бутиловая диффузионная | D36: м | J36: 0
B37: 101-2388 | C37: Герметик пенополиуретановый (пена монтажная) типа Makrofleks, Soudal в баллонах по 750 мл | D37: шт. | J37: 0
B38: 101-2789 | C38: Лента ПСУЛ | D38: 10 м | J38: 0
B39: 101-4173 | C39: Дюбели монтажные 10х130 (10х132, 10х150) мм | D39: 10 шт. | J39: 0
B40: 102-0303 | C40: Клинья пластиковые монтажные | D40: 100 шт. | J40: 0
A41: 12 | B41: ТЦ_07.1.02.00_78_7840318754_30.01.2024_02 Аналог ТССЦ-203-0978 4253,53/4168,26=2% | C41: ОК-1. 1000х1400 | D41: шт | E41: 11 | F41: =G41/E41 -> 0 | G41: 0 | H41: =I41/E41 -> 12489.21 | I41: 137381.29 | J41: 137381.29
A42: 13 | B42: ТЕР10-01-034-05 | C42: Установка в жилых и общественных зданиях оконных блоков из ПВХ профилей: поворотных (откидных, поворотно-откидных) с площадью проема до 2 м2 двухстворчатых | D42: 100 м2 проемов | E42: 0.1008 | F42: =G42/E42 -> 408223.02 | G42: 41148.88 | H42: =I42/E42 -> 5418617.36 | I42: 546196.63 | J42: 587345.51
B43: 101-2052 | C43: Лента бутиловая | D43: м | J43: 0
B44: 101-2054 | C44: Лента бутиловая диффузионная | D44: м | J44: 0
B45: 101-2388 | C45: Герметик пенополиуретановый (пена монтажная) типа Makrofleks, Soudal в баллонах по 750 мл | D45: шт. | J45: 0
B46: 101-2789 | C46: Лента ПСУЛ | D46: 10 м | J46: 0
B47: 101-4173 | C47: Дюбели монтажные 10х130 (10х132, 10х150) мм | D47: 10 шт. | J47: 0
B48: 102-0303 | C48: Клинья пластиковые монтажные | D48: 100 шт. | J48: 0
B49: 203-0991 | C49: Блок оконный пластиковый: двустворчатый, с глухой и поворотно-откидной створкой, однокамерным стеклопакетом (24 мм), площадью до 2 м2 | D49: м2 | J49: 0
A50: 14 | B50: ТЦ_07.1.02.00_78_7840318754_30.01.2024_02 Аналог ТССЦ-203-0978 4253,53/4168,26=2% | C50: ОК-2. 1200х1400 | D50: шт | E50: 11 | F50: =G50/E50 -> 0 | G50: 0 | H50: =I50/E50 -> 15738.32 | I50: 173121.51 | J50: 173121.51
A51: 15 | B51: ТЕР10-01-034-01 | C51: Установка в жилых и общественных зданиях оконных блоков из ПВХ профилей: глухих с площадью проема до 2 м2 | D51: 100 м2 проемов | E51: 0.0168 | F51: =G51/E51 -> 371881.55 | G51: 6247.61 | H51: =I51/E51 -> 2953759.52 | I51: 49623.16 | J51: 55870.77
B52: 101-2052 | C52: Лента бутиловая | D52: м | J52: 0
B53: 101-2054 | C53: Лента бутиловая диффузионная | D53: м | J53: 0
B54: 101-2388 | C54: Герметик пенополиуретановый (пена монтажная) типа Makrofleks, Soudal в баллонах по 750 мл | D54: шт. | J54: 0
B55: 101-2789 | C55: Лента ПСУЛ | D55: 10 м | J55: 0
B56: 101-4173 | C56: Дюбели монтажные 10х130 (10х132, 10х150) мм | D56: 10 шт. | J56: 0
B57: 102-0303 | C57: Клинья пластиковые монтажные | D57: 100 шт. | J57: 0
B58: 203-0938 | C58: Блок оконный пластиковый: глухой, одностворчатый с однокамерным стеклопакетом (24 мм), площадью до 2 м2 | D58: м2 | J58: 0
A59: 16 | B59: ТЦ_07.1.02.00_78_7840318754_30.01.2024_02 Аналог ТССЦ-203-0978 4253,53/4168,26=2% | C59: ОК-2/1. 1200х1400 | D59: шт | E59: 1 | F59: =G59/E59 -> 0 | G59: 0 | H59: =I59/E59 -> 8556.16 | I59: 8556.16 | J59: 8556.16
A60: 17 | B60: ТЕР15-01-070-01 | C60: Облицовка: оконных проемов в наружных стенах откосной планкой из оцинкованной стали с полимерным покрытием с устройством водоотлива оконного из оцинкованной стали с полимерным покрытием | D60: 1 м2 проемов | E60: 27.16 | F60: =G60/E60 -> 3276.69 | G60: 88995.01 | H60: =I60/E60 -> 1423.81 | I60: 38670.81 | J60: 127665.82
B61: 101-1691 | C61: Шурупы-саморезы 4,2х16 мм | D61: 100 шт. | J61: 0
B62: 101-2409 | C62: Аквилон из оцинкованной стали с полимерным покрытием | D62: п.м | J62: 0
B63: 101-2410 | C63: Откосная планка шириной 250 мм из оцинкованной стали с полимерным покрытием | D63: п.м | J63: 0
B64: 101-2411 | C64: Водоотлив оконный шириной планки 250 мм из оцинкованной стали с полимерным покрытием | D64: п.м | J64: 0
A65: Раздел 4. Дверные проемы и ворота | J65: 0
A66: 18 | B66: ТЕР09-04-012-01 | C66: Установка металлических дверных блоков в готовые проемы | D66: 1 м2 проема | E66: 42.34 | F66: =G66/E66 -> 6003.16 | G66: 254173.77 | H66: =I66/E66 -> 327.69 | I66: 13874.31 | J66: 268048.08
B67: 101-1513 | C67: Электроды диаметром: 4 мм Э42 | D67: т | J67: 0
B68: 101-1921 | C68: Пена монтажная: для герметизации стыков в баллончике емкостью 0,85 л | D68: шт. | J68: 0
B69: 204-0062 | C69: Детали закладные и накладные изготовленные: без применения сварки, гнутья, сверления (пробивки) отверстий поставляемые отдельно | D69: т | J69: 0
A70: 19 | B70: ТЦ_07.1.01.03_78_7810347194_06.02.2024_02 Аналог ТССЦ-203-8123 2466,49/2414,02=2% | C70: Дверь стальная наружная утепленная 1200х2100 левого открывания | D70: шт | E70: 2 | F70: =G70/E70 -> 0 | G70: 0 | H70: =I70/E70 -> 29210.33 | I70: 58420.66 | J70: 58420.66
A71: 20 | B71: ТЦ_07.1.01.03_78_7810347194_06.02.2024_02 Аналог ТССЦ-203-8123 2466,49/2414,02=2% | C71: Дверь стальная наружная 1000х2100 | D71: шт | E71: 4 | F71: =G71/E71 -> 0 | G71: 0 | H71: =I71/E71 -> 29209.97 | I71: 116839.89 | J71: 116839.89
A72: 21 | B72: ТЕР09-04-012-02 | C72: Установка дверного доводчика к металлическим дверям | D72: 1 шт. | E72: 6 | F72: =G72/E72 -> 2614.3 | G72: 15685.82 | H72: =I72/E72 -> 10.78 | I72: 64.65 | J72: 15750.47
B73: 101-1513 | C73: Электроды диаметром: 4 мм Э42 | D73: т | J73: 0
B74: 101-1845 | C74: Винты самонарезающие: с уплотнительной прокладкой 4,8х35 мм | D74: 100 шт. | J74: 0
A75: 22 | B75: ТЕР09-04-013-01 | C75: Установка противопожарных дверей: однопольных глухих | D75: 1 м2 проема | E75: 27.3 | F75: =G75/E75 -> 5120.16 | G75: 139780.34 | H75: =I75/E75 -> 675.03 | I75: 18428.22 | J75: =G75+I75 -> 158208.56
B76: 101-1513 | C76: Электроды диаметром: 4 мм Э42 | D76: т | J76: 0
B77: 101-1929 | C77: Болты анкерные | D77: т | J77: 0
B78: 101-3661 | C78: Пена монтажная: противопожарная полиуретановая NULLIFIRE (0,88 л) | D78: шт. | J78: 0
A79: 23 | B79: ТЦ_07.1.01.03_78_7841375755_25.01.2024_02 Аналог ТССЦ-203-8118 2304,38/2255,09=2% | C79: Дверь противопожарная металлическая: однопольная ДПС-01/30, размером 1000х2100 мм (левая, правая) | D79: шт | E79: 5 | F79: =G79/E79 -> 0 | G79: 0 | H79: =I79/E79 -> 25965.86 | I79: 129829.28 | J79: 129829.28
A80: 24 | B80: ТЦ_07.1.01.03_78_7841375755_25.01.2024_02 Аналог ТССЦ-203-8123 2466,49/2414,02=2% | C80: Дверь противопожарная металлическая: однопольная ДПС-01/60, размером 1000х2100 мм (левая, правая) | D80: шт | E80: 8 | F80: =G80/E80 -> 0 | G80: 0 | H80: =I80/E80 -> 25965.86 | I80: 207726.85 | J80: 207726.85
A81: 25 | B81: ТЕР15-01-070-02 | C81: Облицовка: дверных проемов в наружных стенах откосной планкой из оцинкованной стали с полимерным покрытием с установкой наличников из оцинкованной стали с полимерным покрытием | D81: 1 м2 проемов | E81: 69.64 | F81: =G81/E81 -> 3593.9 | G81: 250279.25 | H81: =I81/E81 -> 1660.71 | I81: 115651.85 | J81: 365931.1
B82: 101-1691 | C82: Шурупы-саморезы 4,2х16 мм | D82: 100 шт. | J82: 0
B83: 101-2409 | C83: Аквилон из оцинкованной стали с полимерным покрытием | D83: п.м | J83: 0
B84: 101-2410 | C84: Откосная планка шириной 250 мм из оцинкованной стали с полимерным покрытием | D84: п.м | J84: 0
B85: 101-2412 | C85: Наличники из оцинкованной стали с полимерным покрытием | D85: п.м | J85: 0
A86: Ворота | J86: 0
A87: 26 | B87: ТЕР09-04-011-01 | C87: Монтаж каркасов ворот большепролетных зданий, ангаров и др. без механизмов открывания | D87: 1 т конструкций | E87: 1.89 | F87: =G87/E87 -> 174277 | G87: 329383.53 | H87: =I87/E87 -> 8950.77 | I87: 16916.95 | J87: 346300.48
B88: 101-0309 | C88: Канаты пеньковые пропитанные | D88: т | J88: 0
B89: 101-0324 | C89: Кислород технический: газообразный | D89: м3 | J89: 0
B90: 101-0797 | C90: Проволока горячекатаная в мотках, диаметром 6,3-6,5 мм | D90: т | J90: 0
B91: 101-1019 | C91: Швеллеры № 40 из стали марки: Ст0 | D91: т | J91: 0
B92: 101-1515 | C92: Электроды диаметром: 4 мм Э46 | D92: т | J92: 0
B93: 101-1805 | C93: Гвозди строительные | D93: т | J93: 0
B94: 101-2278 | C94: Пропан-бутан, смесь техническая | D94: кг | J94: 0
B95: 101-2467 | C95: Растворитель марки: Р-4 | D95: т | J95: 0
B96: 102-0023 | C96: Бруски обрезные хвойных пород длиной: 4-6,5 м, шириной 75-150 мм, толщиной 40-75 мм, I сорта | D96: м3 | J96: 0
B97: 113-0021 | C97: Грунтовка: ГФ-021 красно-коричневая | D97: т | J97: 0
B98: 201-0756 | C98: Отдельные конструктивные элементы зданий и сооружений с преобладанием: горячекатаных профилей, средняя масса сборочной единицы от 0,1 до 0,5 т | D98: т | J98: 0
B99: 508-0097 | C99: Канат двойной свивки типа ТК, конструкции 6х19(1+6+12)+1 о.с., оцинкованный из проволок марки В, маркировочная группа: 1770 н/мм2, диаметром 5,5 мм | D99: 10 м | J99: 0
A100: 27 | B100: ТЕРм11-05-001-01 | C100: Механизм исполнительный, масса: до 20 кг | D100: 1 шт. | E100: 3 | F100: =G100/E100 -> 2196.5 | G100: 6589.51 | H100: =I100/E100 -> 108.22 | I100: 324.66 | J100: 6914.17
B101: 101-2039 | C101: Болты с гайками и шайбами оцинкованные, диаметр: 12 мм | D101: кг | J101: 0
B102: 999-9950 | C102: Вспомогательные ненормируемые ресурсы (2% от Оплаты труда рабочих) | D102: руб | J102: 0
A103: 28 | B103: ТЦ_07.1.01.03_78_7841375755_26.01.2024_02 Аналог ТССЦ-201-0253 5403,70/5341,14=2% | C103: Ворота распашные металлические, утепленные , с калиткой 1000х2100мм, открыванием наружу 3000х3000мм EI60 (76*9,0 м2)/1000 | D103: шт | E103: 1 | F103: =G103/E103 -> 0 | G103: 0 | H103: =I103/E103 -> 186741.55 | I103: 186741.55 | J103: 186741.55
A104: 29 | B104: ТЦ_07.1.01.03_78_7841375755_26.01.2024_02 Аналог ТССЦ-201-0253 5403,70/5341,14=2% | C104: Ворота распашные металлические, с калиткой 1000х2100 мм, открыванием наружу 2600х4000 мм EI60 (62*10,4 м2)/1000 | D104: шт | E104: 1 | F104: =G104/E104 -> 0 | G104: 0 | H104: =I104/E104 -> 211042.43 | I104: 211042.43 | J104: 211042.43
A105: 30 | B105: ТЦ_07.1.01.03_78_7841375755_26.01.2024_02 Аналог ТССЦ-201-0253 5403,70/5341,14=2% | C105: Ворота распашные металлические, с калиткой 1000х2100мм, открыванием наружу 3000х3000мм EI60 (62*9,0м2)/1000 | D105: шт | E105: 1 | F105: =G105/E105 -> 0 | G105: 0 | H105: =I105/E105 -> 186741.55 | I105: 186741.55 | J105: 186741.55
A106: Раздел 5. Полы | J106: 0
A107: Тип 1. S=167,1 м2 | J107: 0
A108: 31 | B108: ТЕР26-01-039-01 | C108: Изоляция покрытий и перекрытий изделиями из волокнистых и зернистых материалов насухо | D108: 1 м3 изоляции | E108: 7.8537 | F108: =G108/E108 -> 24040.01 | G108: 188803.02 | H108: =I108/E108 -> 0 | I108: 0 | J108: 188803.02
A109: 32 | B109: ТССЦ-104-0111 | C109: Плиты или маты теплоизоляционные | D109: м3 | E109: 8.48 | F109: =G109/E109 -> 0 | G109: 0 | H109: =I109/E109 -> 4694.58 | I109: 39810 | J109: 39810
A110: 33 | B110: ТЕР11-01-050-01 | C110: Устройство пароизоляции из полиэтиленовой пленки в один слой насухо | D110: 100 м2 поверхности | E110: 1.671 | F110: =G110/E110 -> 7475.11 | G110: 12490.91 | H110: =I110/E110 -> 19003.71 | I110: 31755.2 | J110: 44246.11
B111: 113-0324 | C111: Пленка полиэтиленовая толщиной: 0,2-0,5 мм | D111: м2 | J111: 0
A112: 34 | B112: ТЕР11-01-011-03 | C112: Устройство стяжек: бетонных толщиной 20 мм | D112: 100 м2 стяжки | E112: 1.671 | F112: =G112/E112 -> 83768.49 | G112: 139977.15 | H112: =I112/E112 -> 93.71 | I112: 156.59 | J112: 140133.74
B113: 411-0001 | C113: Вода | D113: м3 | J113: 0
A114: 35 | B114: ТЕР11-01-011-04 | C114: Устройство стяжек: на каждые 5 мм изменения толщины стяжки добавлять или исключать к расценке 11-01-011-03 // до толщ. 50 мм | D114: 100 м2 стяжки | E114: 1.671 | F114: =G114/E114 -> 9680.25 | G114: 16175.69 | H114: =I114/E114 -> 0 | I114: 0 | J114: 16175.69
A115: 36 | B115: ТЦ_59.1.04.01_47_4705078395_08.02.2024_02 Аналог ТССЦ-401-0008 699,49/623,42=2% | C115: Бетон В22,5 | D115: м3 | E115: 8.522 | F115: =G115/E115 -> 0 | G115: 0 | H115: =I115/E115 -> 5087.81 | I115: 43358.31 | J115: 43358.31
A116: 37 | B116: ТЕР06-01-015-10 | C116: Армирование подстилающих слоев и набетонок | D116: 1 т | E116: 0.292 | F116: =G116/E116 -> 27712.84 | G116: 8092.15 | H116: =I116/E116 -> 3010.89 | I116: 879.18 | J116: 8971.33
B117: 101-0816 | C117: Проволока светлая диаметром: 1,1 мм | D117: т | J117: 0
A118: 38 | B118: ТЦ_08.4.02.05_66_6686134976_08.02.2024_02 Аналог ТССЦ-101-3891 21,17/20,58=2% | C118: Сетка арм. 100х100 4Вр1 | D118: м2 | E118: 167.1 | F118: =G118/E118 -> 0 | G118: 0 | H118: =I118/E118 -> 116.07 | I118: 19395.02 | J118: 19395.02
A119: 39 | B119: ТЕР11-01-020-03 | C119: Устройство покрытий поливинилацетатных: толщиной 3 мм // прим. покрытие полимерное | D119: 100 м2 покрытия | E119: 1.671 | F119: =G119/E119 -> 180031.9 | G119: 300833.3 | H119: =I119/E119 -> 147311.64 | I119: 246157.75 | J119: 546991.05
B120: 101-0430 | C120: Краски масляные и алкидные земляные, готовые к применению: сурик железный МА-15, ПФ-14 | D120: т | J120: 0
B121: 101-0433 | C121: Краски масляные и алкидные земляные, готовые к применению: охра МА-15 | D121: т | J121: 0
B122: 101-1305 | C122: Портландцемент общестроительного назначения бездобавочный, марки: 400 | D122: т | J122: 0
B123: 101-1591 | C123: Смола каменноугольная для дорожного строительства | D123: т | J123: 0
B124: 101-2293 | C124: Кислота ортофосфорная: техническая, сорт I | D124: т | J124: 0
B125: 101-2358 | C125: Дисперсия поливинилацетатная непластифицированная марки Д50Н | D125: кг | J125: 0
B126: 113-0306 | C126: Маршалит | D126: т | J126: 0
B127: 408-0122 | C127: Песок природный для строительных: работ средний | D127: м3 | J127: 0
B128: 411-0001 | C128: Вода | D128: м3 | J128: 0
A129: Тип 2. S=399,75 м2 | J129: 0
A130: 40 | B130: ТЕР11-01-011-03 | C130: Устройство стяжек: бетонных толщиной 20 мм | D130: 100 м2 стяжки | E130: 3.9975 | F130: =G130/E130 -> 83768 | G130: 334862.58 | H130: =I130/E130 -> 94.15 | I130: 376.38 | J130: 335238.96
B131: 411-0001 | C131: Вода | D131: м3 | J131: 0
A132: 41 | B132: ТЕР11-01-011-04 | C132: Устройство стяжек: на каждые 5 мм изменения толщины стяжки добавлять или исключать к расценке 11-01-011-03 // до 100 мм | D132: 100 м2 стяжки | E132: 3.9975 | F132: =G132/E132 -> 25812.83 | G132: 103186.8 | H132: =I132/E132 -> 0 | I132: 0 | J132: 103186.8
A133: 42 | B133: ТЦ_59.1.04.01_47_4705078395_08.02.2024_02 Аналог ТССЦ-401-0008 699,49/623,42=2% | C133: Бетон В22,5 | D133: м3 | E133: 40.775 | F133: =G133/E133 -> 0 | G133: 0 | H133: =I133/E133 -> 5087.84 | I133: 207456.77 | J133: 207456.77
A134: 43 | B134: ТЕР11-01-020-03 | C134: Устройство покрытий поливинилацетатных: толщиной 3 мм // прим. покрытие полимерное | D134: 100 м2 покрытия | E134: 3.9975 | F134: =G134/E134 -> 180031.84 | G134: 719677.28 | H134: =I134/E134 -> 147312.01 | I134: 588879.76 | J134: 1308557.04
B135: 101-0430 | C135: Краски масляные и алкидные земляные, готовые к применению: сурик железный МА-15, ПФ-14 | D135: т | J135: 0
B136: 101-0433 | C136: Краски масляные и алкидные земляные, готовые к применению: охра МА-15 | D136: т | J136: 0
B137: 101-1305 | C137: Портландцемент общестроительного назначения бездобавочный, марки: 400 | D137: т | J137: 0
B138: 101-1591 | C138: Смола каменноугольная для дорожного строительства | D138: т | J138: 0
B139: 101-2293 | C139: Кислота ортофосфорная: техническая, сорт I | D139: т | J139: =G139+I139 -> 0
B140: 101-2358 | C140: Дисперсия поливинилацетатная непластифицированная марки Д50Н | D140: кг | J140: 0
B141: 113-0306 | C141: Маршалит | D141: т | J141: 0
B142: 408-0122 | C142: Песок природный для строительных: работ средний | D142: м3 | J142: 0
B143: 411-0001 | C143: Вода | D143: м3 | J143: 0
A144: Тип 3. S=924,75 м2 | J144: 0
A145: 44 | B145: ТЕР11-01-011-03 | C145: Устройство стяжек: бетонных толщиной 20 мм | D145: 100 м2 стяжки | E145: 9.2475 | F145: =G145/E145 -> 83767.99 | G145: 774644.45 | H145: =I145/E145 -> 93.98 | I145: 869.12 | J145: 775513.57
B146: 411-0001 | C146: Вода | D146: м3 | J146: 0
A147: 45 | B147: ТЕР11-01-011-04 | C147: Устройство стяжек: на каждые 5 мм изменения толщины стяжки добавлять или исключать к расценке 11-01-011-03 | D147: 100 м2 стяжки | E147: 9.2475 | F147: =G147/E147 -> 3226.69 | G147: 29838.83 | H147: =I147/E147 -> 0 | I147: 0 | J147: 29838.83
A148: 46 | B148: ТЦ_59.1.04.01_47_4705078395_08.02.2024_02 Аналог ТССЦ-401-0008 699,49/623,42=2% | C148: Бетон В22,5 | D148: м3 | E148: 28.297 | F148: =G148/E148 -> 0 | G148: 0 | H148: =I148/E148 -> 5087.85 | I148: 143970.8 | J148: 143970.8
A149: 47 | B149: ТЕР11-01-020-03 | C149: Устройство покрытий поливинилацетатных: толщиной 3 мм // прим. покрытие полимерное | D149: 100 м2 покрытия | E149: 9.2475 | F149: =G149/E149 -> 180031.69 | G149: 1664843.06 | H149: =I149/E149 -> 147312.1 | I149: 1362268.65 | J149: 3027111.71
B150: 101-0430 | C150: Краски масляные и алкидные земляные, готовые к применению: сурик железный МА-15, ПФ-14 | D150: т | J150: 0
B151: 101-0433 | C151: Краски масляные и алкидные земляные, готовые к применению: охра МА-15 | D151: т | J151: 0
B152: 101-1305 | C152: Портландцемент общестроительного назначения бездобавочный, марки: 400 | D152: т | J152: 0
B153: 101-1591 | C153: Смола каменноугольная для дорожного строительства | D153: т | J153: 0
B154: 101-2293 | C154: Кислота ортофосфорная: техническая, сорт I | D154: т | J154: 0
B155: 101-2358 | C155: Дисперсия поливинилацетатная непластифицированная марки Д50Н | D155: кг | J155: 0
B156: 113-0306 | C156: Маршалит | D156: т | J156: 0
B157: 408-0122 | C157: Песок природный для строительных: работ средний | D157: м3 | J157: 0
B158: 411-0001 | C158: Вода | D158: м3 | J158: 0
A159: Тип 4. S=77,8 м2 | J159: 0
A160: 48 | B160: ТЕР11-01-015-07 | C160: Шлифовка бетонных или металлоцементных покрытий // прим. | D160: 100 м2 покрытия | E160: 0.778 | F160: =G160/E160 -> 191487.42 | G160: 148977.21 | H160: =I160/E160 -> 179.11 | I160: 139.35 | J160: 149116.56
B161: 101-2109 | C161: Карборунд | D161: кг | J161: 0
B162: 411-0001 | C162: Вода | D162: м3 | J162: 0
A163: 49 | B163: ТЕР11-01-015-08 | C163: Железнение цементных покрытий // прим. | D163: 100 м2 покрытия | E163: 0.778 | F163: =G163/E163 -> 26260.64 | G163: 20430.78 | H163: =I163/E163 -> 537.33 | I163: 418.04 | J163: 20848.82
B164: 101-1305 | C164: Портландцемент общестроительного назначения бездобавочный, марки: 400 | D164: т | J164: 0
B165: 411-0001 | C165: Вода | D165: м3 | J165: 0
A166: Раздел 6. Отделка | J166: 0
A167: Цоколь | J167: 0
A168: 50 | B168: ТЕР11-01-015-07 | C168: Шлифовка бетонных или металлоцементных покрытий // прим. затирка поверхности цоколя | D168: 100 м2 покрытия | E168: 2.588 | F168: =G168/E168 -> 191487.37 | G168: 495569.32 | H168: =I168/E168 -> 179.85 | I168: 465.45 | J168: 496034.77
B169: 101-2109 | C169: Карборунд | D169: кг | J169: 0
B170: 411-0001 | C170: Вода | D170: м3 | J170: 0
A171: 51 | B171: ТЕР15-04-015-02 | C171: Окраска фасадов с люлек с подготовкой поверхности: силикатная // прим. | D171: 100 м2 фасада | E171: 258.8 | F171: =G171/E171 -> 71765.1 | G171: 18572808.69 | H171: =I171/E171 -> 8107.43 | I171: 2098203.5 | J171: 20671012.19
B172: 101-1757 | C172: Ветошь | D172: кг | J172: 0
B173: 101-1841 | C173: Краски силикатные зеленая и красная | D173: т | J173: 0
B174: 113-0043 | C174: Жидкость: гидрофобизирующая ГКЖ-10 | D174: т | J174: 0
B175: 113-0368 | C175: Стекло жидкое калийное | D175: т | J175: 0
B176: 402-0083 | C176: Раствор готовый отделочный тяжелый,: цементно-известковый 1:1:6 | D176: м3 | J176: 0
B177: 409-0639 | C177: Пемза шлаковая (щебень пористый из металлургического шлака), марка 600, фракция 5-10 мм | D177: м3 | J177: 0
B178: 411-0001 | C178: Вода | D178: м3 | J178: 0
A179: Окраска конструкций стен и потолков из профлиста, учтена в сметах к разделу КМ | J179: 0
A180: Раздел 7. Отмостка | J180: 0
A181: 52 | B181: ТЕР01-02-005-01 | C181: Уплотнение грунта пневматическими трамбовками, группа грунтов: 1-2 | D181: 100 м3 уплотненного грунта | E181: 0.1644 | F181: =G181/E181 -> 32794.53 | G181: 5391.42 | H181: =I181/E181 -> 0 | I181: 0 | J181: 5391.42
A182: 53 | B182: ТЕР27-04-001-04 | C182: Устройство подстилающих и выравнивающих слоев оснований: из щебня | D182: 100 м3 материала основания (в плотном теле) | E182: 0.3288 | F182: =G182/E182 -> 206243.61 | G182: 67812.9 | H182: =I182/E182 -> 187.86 | I182: 61.77 | J182: 67874.67
B183: 411-0001 | C183: Вода | D183: м3 | J183: 0
A184: 54 | B184: ТССЦ-408-0015 | C184: Щебень из природного камня для строительных работ марка: 800, фракция 20-40 мм | D184: м3 | E184: 41.43 | F184: =G184/E184 -> 0 | G184: 0 | H184: =I184/E184 -> 3394.18 | I184: 140620.73 | J184: 140620.73
A185: 55 | B185: ТЕР26-01-041-05 | C185: Изоляция изделиями из пенопласта насухо холодных поверхностей покрытий и перекрытий // прим. | D185: 1 м3 изоляции | E185: 5.48 | F185: =G185/E185 -> 21222.58 | G185: 116299.74 | H185: =I185/E185 -> 0 | I185: 0 | J185: 116299.74
A186: 56 | B186: ТССЦ-104-0313 | C186: Плиты теплоизоляционные: из экструзионного вспененного полистирола ПЕНОПЛЭКС-45 // толщ. 50 мм | D186: м3 | E186: 5.64 | F186: =G186/E186 -> 0 | G186: 0 | H186: =I186/E186 -> 17158.76 | I186: 96775.43 | J186: 96775.43
A187: 57 | B187: ТЕР06-01-013-01 | C187: Устройство подливки толщиной 20 мм // прим. бетонное основание | D187: 100 м2 подливки под оборудование | E187: 1.096 | F187: =G187/E187 -> 97759.61 | G187: 107144.53 | H187: =I187/E187 -> 2743.36 | I187: 3006.72 | J187: 110151.25
B188: 101-1805 | C188: Гвозди строительные | D188: т | J188: 0
B189: 102-0053 | C189: Доски обрезные хвойных пород длиной: 4-6,5 м, шириной 75-150 мм, толщиной 25 мм, III сорта | D189: м3 | J189: 0
B190: 102-0061 | C190: Доски обрезные хвойных пород длиной: 4-6,5 м, шириной 75-150 мм, толщиной 44 мм и более, III сорта | D190: м3 | J190: 0
A191: 58 | B191: ТЕР06-01-013-02 | C191: На каждые 10 мм изменения толщины добавлять или исключать к расценке 06-01-013-01 // до 60 мм | D191: 100 м2 подливки под оборудование | E191: 1.096 | F191: =G191/E191 -> 112072.8 | G191: 122831.79 | H191: =I191/E191 -> 2680.45 | I191: 2937.77 | J191: 125769.56
B192: 101-1805 | C192: Гвозди строительные | D192: т | J192: 0
B193: 102-0053 | C193: Доски обрезные хвойных пород длиной: 4-6,5 м, шириной 75-150 мм, толщиной 25 мм, III сорта | D193: м3 | J193: 0
B194: 102-0061 | C194: Доски обрезные хвойных пород длиной: 4-6,5 м, шириной 75-150 мм, толщиной 44 мм и более, III сорта | D194: м3 | J194: 0
A195: 59 | B195: ТЦ_59.1.04.01_78_7806468968_26.06.2024_02 Аналог ТССЦ-401-0006 661,66/586,34=2% | C195: Бетон В15 | D195: м3 | E195: 6.708 | F195: =G195/E195 -> 0 | G195: 0 | H195: =I195/E195 -> 4352.73 | I195: 29198.12 | J195: 29198.12
A196: 60 | B196: ТЕР06-01-015-10 | C196: Армирование подстилающих слоев и набетонок | D196: 1 т | E196: 0.3803 | F196: =G196/E196 -> 27718.88 | G196: 10541.49 | H196: =I196/E196 -> 3010.62 | I196: 1144.94 | J196: 11686.43
B197: 101-0816 | C197: Проволока светлая диаметром: 1,1 мм | D197: т | J197: 0
A198: 61 | B198: ТЦ_08.4.02.05_78_7816723705_16.02.2024_02 Аналог ТССЦ-101-3891 21,17/20,58=2% | C198: Сетка арм. 100х100 6Вр1 | D198: м2 | E198: 109.6 | F198: =G198/E198 -> 0 | G198: 0 | H198: =I198/E198 -> 583.59 | I198: 63961.48 | J198: 63961.48
A199: 62 | B199: ТЕР11-01-019-01 | C199: Устройство покрытий асфальтобетонных: литых толщиной 25 мм | D199: 100 м2 покрытия | E199: 1.096 | F199: =G199/E199 -> 60525.66 | G199: 66336.12 | H199: =I199/E199 -> 18805.06 | I199: 20610.35 | J199: 86946.47
B200: 101-0073 | C200: Битумы нефтяные строительные марки: БН-90/10 | D200: т | J200: 0
B201: 101-0322 | C201: Керосин для технических целей марок КТ-1, КТ-2 | D201: т | J201: 0
B202: 102-0085 | C202: Бруски обрезные хвойных пород длиной: 2-3,75 м, шириной 75-150 мм, толщиной 40-75 мм, III сорта | D202: м3 | J202: 0
... 19 more rows

Sheet 2-1632-2021-1.1,1.2,2.1.0-АР
A2: Терминал по перевалке минеральных удобрений в морском торговом порту Усть-Луга. Береговые объекты терминала
A3: (наименование стройки)
A4: 1632-2021-1.1,1.2,2.1.0-АР_07.02.011_П-00-01
A5: (локальная смета)
A6: на Архитектурные решения, 07.02.011 Здание трансбордера код ГП 1.2
A7: (наименование работ и затрат, наименование объекта)
B8: Основание: | C8: 1632-2021-1.1,1.2,2.1.0-АР_2_0_RU_IFC
A10: № п/п | B10: Обоснование | C10: Наименование работ и затрат | D10: Ед. изм. | E10: Кол-во | F10: Цена за ед.измерения работ, руб. с НДС | G10: Всего, стоимость работ,руб. с НДС | H10: Цена за ед.измерения материалов, руб. с НДС | I10: Всего, стоимость материалов, руб. с НДС | J10: Итого, руб. с НДС
A11: 1 | B11: 2 | C11: 3 | D11: 4 | E11: 5 | F11: 6 | G11: 7 | H11: 8 | I11: 9 | J11: 10
A12: Учтено в разделе КМ
A13: Раздел 2. Перегородки. Трансбордер, (Спецификации по шифру 1632-2021-1.1,1.2,2.1.0-АР, Приложение к письму ООО “Морстройтехнология” вх. №9С01-8000370513-MST-ETU-LET-ENG-00384 от 19.02.2024 г.)
A14: П1 | J14: =G14+I14 -> 0
A15: 1 | B15: ТЕР10-05-002-02 | C15: Устройство перегородок из гипсокартонных листов (ГКЛ) по системе «КНАУФ» с одинарным металлическим каркасом и двухслойной обшивкой с обеих сторон (С 112): с одним дверным проемом | D15: 100 м2 перегородок (за вычетом проемов) | E15: 0.7685 | F15: =G15/E15 -> 296152.32 | G15: 227593.06 | H15: =I15/E15 -> 44059.54 | I15: 33859.76 | J15: 261452.82
B16: 101-2430 | C16: Грунтовка: «Тифенгрунд», КНАУФ | D16: кг | J16: =G16+I16 -> 0
B17: 101-2437 | C17: Шпаклевка «Унифлот», КНАУФ | D17: кг | J17: 0
B18: 101-2438 | C18: Шпаклевка «Фугенфюллер», КНАУФ | D18: кг | J18: 0
B19: 101-2474 | C19: Лента бумажная для повышения трещиностойкости стыков ГКЛ и ГВЛ | D19: м | J19: 0
B20: 101-2480 | C20: Лента разделительная для сопряжения потолка из ЛГК со стеной | D20: 100 м | J20: 0
B21: 101-2485 | C21: Лента эластичная самоклеящаяся для профилей направляющих «Дихтунгсбанд»: 50/30000 мм | D21: м | J21: 0
B22: 101-2583 | C22: Шуруп самонарезающий: (TN) 3,5/25 мм | D22: 100 шт. | J22: 0
B23: 101-2584 | C23: Шуруп самонарезающий: (TN) 3,5/35 мм | D23: 100 шт. | J23: 0
B24: 101-2589 | C24: Дюбель-гвоздь 6/39 мм | D24: 100 шт. | J24: 0
B25: 101-2590 | C25: Дюбель с шурупом 6/35 мм | D25: 100 шт. | J25: 0
B26: 201-0786 | C26: Профиль направляющий: ПН-2 50/40/0,6 | D26: м | J26: 0
B27: 201-0805 | C27: Профиль стоечный: ПС-2 50/50/0,6 | D27: м | J27: 0
B28: 201-0812 | C28: Верхний уголок для крепления несущих элементов двери 100х123 мм | D28: 100 шт. | J28: 0
B29: 201-0814 | C29: Нижний уголок для крепления несущих элементов двери 100х123 мм | D29: 100 шт. | J29: 0
B30: 201-0832 | C30: Бруски деревянные: 50*50 мм | D30: м | J30: 0
A31: 2 | B31: ТЦ_01.6.01.02_78_7802348846_13.02.2024_02 Аналог ТССЦ-101-2512 18,24/17,33=2% | C31: Лист ГКЛВ-А-УК-3000-1200-12,5 мм, (2 листа, hобщ.=25 мм) | D31: м2 | E31: 172.53 | F31: =G31/E31 -> 0 | G31: 0 | H31: =I31/E31 -> 179.14 | I31: 30907.63 | J31: 30907.63
A32: 3 | B32: ТЦ_01.6.01.02_78_7802348846_22.02.2024_02 Аналог ТССЦ-101-2509 11,37/12,56=2% | C32: Лист ГКЛ-А-УК-3000-1200-12,5 мм, (2 листа, hобщ.=25 мм) | D32: м2 | E32: 172.53 | F32: =G32/E32 -> 0 | G32: 0 | H32: =I32/E32 -> 179.77 | I32: 31015.37 | J32: 31015.37
A33: 4 | B33: ТССЦ-104-0150 | C33: Плиты из минеральной ваты: на синтетическом связующем М-75, (минеральные маты группы НГ с плотностью 40 кг/м³, h=75 мм, прим.) | D33: м3 | E33: 5.94 | F33: =G33/E33 -> 0 | G33: 0 | H33: =I33/E33 -> 5850.24 | I33: 34750.43 | J33: 34750.43
A34: П2 | F34: =G34/E34 ->  | G34: 0 | H34: =I34/E34 ->  | I34: 0 | J34: 0
A35: 5 | B35: ТЕР10-05-002-02 | C35: Устройство перегородок из гипсокартонных листов (ГКЛ) по системе «КНАУФ» с одинарным металлическим каркасом и двухслойной обшивкой с обеих сторон (С 112): с одним дверным проемом | D35: 100 м2 перегородок (за вычетом проемов) | E35: 2.02 | F35: =G35/E35 -> 296152.21 | G35: 598227.47 | H35: =I35/E35 -> 44059.07 | I35: 88999.32 | J35: 687226.79
B36: 101-2430 | C36: Грунтовка: «Тифенгрунд», КНАУФ | D36: кг | J36: 0
B37: 101-2437 | C37: Шпаклевка «Унифлот», КНАУФ | D37: кг | J37: 0
B38: 101-2438 | C38: Шпаклевка «Фугенфюллер», КНАУФ | D38: кг | J38: 0
B39: 101-2474 | C39: Лента бумажная для повышения трещиностойкости стыков ГКЛ и ГВЛ | D39: м | J39: 0
B40: 101-2480 | C40: Лента разделительная для сопряжения потолка из ЛГК со стеной | D40: 100 м | J40: 0
B41: 101-2485 | C41: Лента эластичная самоклеящаяся для профилей направляющих «Дихтунгсбанд»: 50/30000 мм | D41: м | J41: 0
B42: 101-2583 | C42: Шуруп самонарезающий: (TN) 3,5/25 мм | D42: 100 шт. | J42: 0
B43: 101-2584 | C43: Шуруп самонарезающий: (TN) 3,5/35 мм | D43: 100 шт. | J43: 0
B44: 101-2589 | C44: Дюбель-гвоздь 6/39 мм | D44: 100 шт. | J44: 0
B45: 101-2590 | C45: Дюбель с шурупом 6/35 мм | D45: 100 шт. | J45: 0
B46: 201-0786 | C46: Профиль направляющий: ПН-2 50/40/0,6 | D46: м | J46: 0
B47: 201-0805 | C47: Профиль стоечный: ПС-2 50/50/0,6 | D47: м | J47: 0
B48: 201-0812 | C48: Верхний уголок для крепления несущих элементов двери 100х123 мм | D48: 100 шт. | J48: 0
B49: 201-0814 | C49: Нижний уголок для крепления несущих элементов двери 100х123 мм | D49: 100 шт. | J49: 0
B50: 201-0832 | C50: Бруски деревянные: 50*50 мм | D50: м | J50: 0
A51: 6 | B51: ТЦ_01.6.01.02_77_9706006145_22.02.2024_02 Аналог ТССЦ-101-2511 14,79/13,95=2% | C51: Лист ГКЛВО-А-УК-3000-1200-12,5 мм, (2 листа, hобщ.=25 мм) | D51: м2 | E51: 906.98 | F51: =G51/E51 -> 0 | G51: 0 | H51: =I51/E51 -> 302.43 | I51: 274300 | J51: 274300
A52: 7 | B52: ТССЦ-104-0150 | C52: Плиты из минеральной ваты: на синтетическом связующем М-75, (минеральные маты группы НГ с плотностью 40 кг/м³, h=100 мм, прим.) | D52: м3 | E52: 20.81 | F52: =G52/E52 -> 0 | G52: 0 | H52: =I52/E52 -> 5850.35 | I52: 121745.75 | J52: 121745.75
A53: П3 | F53: =G53/E53 ->  | G53: 0 | H53: =I53/E53 ->  | I53: 0 | J53: 0
A54: 8 | B54: ТЕР10-05-010-02 | C54: Облицовка стен по системе «КНАУФ» по одинарному металлическому каркасу из ПН и ПС профилей гипсокартонными листами в два слоя (С 626): с дверным проемом | D54: 100 м2 стен (за вычетом проемов) | E54: 1.25 | F54: =G54/E54 -> 182946.73 | G54: 228683.41 | H54: =I54/E54 -> 41139.69 | I54: 51424.61 | J54: 280108.02
B55: 101-2430 | C55: Грунтовка: «Тифенгрунд», КНАУФ | D55: кг | J55: 0
B56: 101-2435 | C56: Клей «Перлфикс», КНАУФ | D56: кг | J56: 0
B57: 101-2437 | C57: Шпаклевка «Унифлот», КНАУФ | D57: кг | J57: 0
B58: 101-2438 | C58: Шпаклевка «Фугенфюллер», КНАУФ | D58: кг | J58: 0
B59: 101-2474 | C59: Лента бумажная для повышения трещиностойкости стыков ГКЛ и ГВЛ | D59: м | J59: 0
B60: 101-2480 | C60: Лента разделительная для сопряжения потолка из ЛГК со стеной | D60: 100 м | J60: 0
B61: 101-2486 | C61: Лента эластичная самоклеящаяся для профилей направляющих «Дихтунгсбанд»: 70/30000 мм | D61: м | J61: 0
B62: 101-2583 | C62: Шуруп самонарезающий: (TN) 3,5/25 мм | D62: 100 шт. | J62: 0
B63: 101-2584 | C63: Шуруп самонарезающий: (TN) 3,5/35 мм | D63: 100 шт. | J63: 0
B64: 101-2590 | C64: Дюбель с шурупом 6/35 мм | D64: 100 шт. | J64: 0
B65: 201-0793 | C65: Профиль направляющий: ПН-4 75/40/0,6 | D65: м | J65: 0
B66: 201-0807 | C66: Профиль стоечный: ПС-4 75/50/0,6 | D66: м | J66: 0
B67: 201-0834 | C67: Бруски деревянные: 75*50 мм | D67: м | J67: 0
A68: 9 | B68: ТЦ_01.6.01.02_78_7802348846_22.02.2024_02 Аналог ТССЦ-101-2512 18,24/17,33=2% | C68: Лист ГКЛ-А-УК-3000-1200-12,5 мм, (2 листа, hобщ.=25 мм) | D68: м2 | E68: 281.25 | F68: =G68/E68 -> 0 | G68: 0 | H68: =I68/E68 -> 179.77 | I68: 50559.8 | J68: 50559.8
A69: 10 | B69: ТЕР26-01-036-02 | C69: Изоляция изделиями из волокнистых и зернистых материалов с креплением на клее и дюбелями холодных поверхностей: внутренних стен и перегородок | D69: 100 м2 поверхности | E69: 1.25 | F69: =G69/E69 -> 26675.23 | G69: 33344.04 | H69: =I69/E69 -> 403.38 | I69: 504.23 | J69: 33848.27
B70: 113-8076 | C70: Клей для приклеивания минеральной ваты типа "BOLIX ZW" | D70: кг | J70: 0
B71: 411-0001 | C71: Вода | D71: м3 | J71: 0
A72: 11 | B72: ТССЦ-104-0150 | C72: Плиты из минеральной ваты: на синтетическом связующем М-75, (минеральные маты группы НГ с плотностью 40 кг/м³, h=100 мм, прим.) | D72: м3 | E72: 12.88 | F72: =G72/E72 -> 0 | G72: 0 | H72: =I72/E72 -> 5850.31 | I72: 75351.98 | J72: 75351.98
A73: 12 | B73: ТССЦ-101-2797 | C73: Дюбель распорный с металлическим стержнем: 10х150 мм, (9 шт./м² при двухслойном утепл.) | D73: 10 шт. | E73: 112.5 | F73: =G73/E73 -> 0 | G73: 0 | H73: =I73/E73 -> 73.4 | I73: 8257.36 | J73: 8257.36
A74: Раздел 3. Установка дверных блоков и ворот. Трансбордер, (Спецификации по шифру 1632-2021-1.1,1.2,2.1.0-АР, Приложение к письму ООО “Морстройтехнология” вх. №9С01-8000370513-MST-ETU-LET-ENG-00384 от 19.02.2024 г.) | F74: =G74/E74 ->  | G74: 0 | H74: =I74/E74 ->  | I74: 0 | J74: 0
A75: Установка дверных блоков | F75: =G75/E75 ->  | G75: 0 | H75: =I75/E75 ->  | I75: 0 | J75: 0
A76: 13 | B76: ТЕР09-04-012-01 | C76: Установка металлических дверных блоков в готовые проемы | D76: 1 м2 проема | E76: 39.9 | F76: =G76/E76 -> 6003.17 | G76: 239526.58 | H76: =I76/E76 -> 327.67 | I76: 13074.15 | J76: 252600.73
B77: 101-1513 | C77: Электроды диаметром: 4 мм Э42 | D77: т | J77: 0
B78: 101-1921 | C78: Пена монтажная: для герметизации стыков в баллончике емкостью 0,85 л | D78: шт. | J78: 0
B79: 204-0062 | C79: Детали закладные и накладные изготовленные: без применения сварки, гнутья, сверления (пробивки) отверстий поставляемые отдельно | D79: т | J79: 0
A80: 14 | B80: ТЦ_07.1.01.03_78_7841375755_27.02.2024_02 | C80: Дверной блок однопольный, металлический, остекленный, правая (7 эл.) левая (2 эл.) навеска 1000Х2100(h), с доводчиком | D80: шт | E80: 4 | F80: =G80/E80 -> 0 | G80: 0 | H80: =I80/E80 -> 33506.37 | I80: 134025.48 | J80: =G80+I80 -> 134025.48
A81: 15 | B81: ТЦ_07.1.01.03_78_7841375755_27.02.2024_02 | C81: Дверной блок однопольный, металлический, остекленный, утеплённый, правая (14 эл.) левая (1 эл.) навеска 1000Х2100(h), с доводчиком | D81: шт | E81: 15 | F81: =G81/E81 -> 0 | G81: 0 | H81: =I81/E81 -> 33506.37 | I81: 502595.54 | J81: 502595.54
A82: 16 | B82: ТЕР09-04-012-02 | C82: Установка дверного доводчика к металлическим дверям | D82: 1 шт. | E82: 19 | F82: =G82/E82 -> 2614.54 | G82: 49676.31 | H82: =I82/E82 -> 10.66 | I82: 202.56 | J82: 49878.87
B83: 101-1513 | C83: Электроды диаметром: 4 мм Э42 | D83: т | J83: 0
B84: 101-1845 | C84: Винты самонарезающие: с уплотнительной прокладкой 4,8х35 мм | D84: 100 шт. | J84: 0
A85: 17 | B85: ТЕР15-01-070-02 | C85: Облицовка: дверных проемов в наружных стенах откосной планкой из оцинкованной стали с полимерным покрытием с установкой наличников из оцинкованной стали с полимерным покрытием | D85: 1 м2 проемов | E85: 39.9 | F85: =G85/E85 -> 3593.89 | G85: 143396.17 | H85: =I85/E85 -> 1693.92 | I85: 67587.36 | J85: 210983.53
B86: 101-1691 | C86: Шурупы-саморезы 4,2х16 мм | D86: 100 шт. | J86: 0
B87: 101-2409 | C87: Аквилон из оцинкованной стали с полимерным покрытием | D87: п.м | J87: 0
B88: 101-2410 | C88: Откосная планка шириной 250 мм из оцинкованной стали с полимерным покрытием | D88: п.м | J88: 0
B89: 101-2412 | C89: Наличники из оцинкованной стали с полимерным покрытием | D89: п.м | J89: 0
A90: 18 | B90: ТЕР09-04-013-03 | C90: Установка противопожарных дверей: однопольных остекленных | D90: 1 м2 проема | E90: 27.3 | F90: =G90/E90 -> 5120.16 | G90: 139780.34 | H90: =I90/E90 -> 675.03 | I90: 18428.22 | J90: 158208.56
B91: 101-1513 | C91: Электроды диаметром: 4 мм Э42 | D91: т | J91: 0
B92: 101-1929 | C92: Болты анкерные | D92: т | J92: 0
B93: 101-3661 | C93: Пена монтажная: противопожарная полиуретановая NULLIFIRE (0,88 л) | D93: шт. | J93: 0
A94: 19 | B94: ТЦ_07.1.01.03_78_7841375755_27.02.2024_02 | C94: Дверной блок однопольный, металлический, остекленный, противопожарный, правая навеска 1000Х2100(h), EIS 60, с доводчиком и уплотнением притворов | D94: шт | E94: 5 | F94: =G94/E94 -> 0 | G94: 0 | H94: =I94/E94 -> 35533.36 | I94: 177666.79 | J94: 177666.79
A95: 20 | B95: ТЦ_07.1.01.03_78_7841375755_27.02.2024_02 | C95: Дверной блок однопольный, металлический, остекленный, противопожарный, правая навеска1000Х2100(h), EIS 30, с доводчиком и уплотнением притворов | D95: шт | E95: 8 | F95: =G95/E95 -> 0 | G95: 0 | H95: =I95/E95 -> 35533.36 | I95: 284266.87 | J95: 284266.87
A96: 21 | B96: ТЕР15-01-070-02 | C96: Облицовка: дверных проемов в наружных стенах откосной планкой из оцинкованной стали с полимерным покрытием с установкой наличников из оцинкованной стали с полимерным покрытием | D96: 1 м2 проемов | E96: 27.3 | F96: =G96/E96 -> 3593.93 | G96: 98114.3 | H96: =I96/E96 -> 1693.88 | I96: 46242.93 | J96: 144357.23
B97: 101-1691 | C97: Шурупы-саморезы 4,2х16 мм | D97: 100 шт. | J97: 0
B98: 101-2409 | C98: Аквилон из оцинкованной стали с полимерным покрытием | D98: п.м | J98: 0
B99: 101-2410 | C99: Откосная планка шириной 250 мм из оцинкованной стали с полимерным покрытием | D99: п.м | J99: 0
B100: 101-2412 | C100: Наличники из оцинкованной стали с полимерным покрытием | D100: п.м | J100: 0
A101: 22 | B101: ТЕР10-01-039-03 | C101: Установка блоков в наружных и внутренних дверных проемах: в перегородках и деревянных нерубленых стенах, площадь проема до 3 м2 | D101: 100 м2 проемов | E101: 0.1596 | F101: =G101/E101 -> 256114.85 | G101: 40875.93 | H101: =I101/E101 -> 22187.53 | I101: 3541.13 | J101: 44417.06
B102: 101-1705 | C102: Пакля пропитанная | D102: кг | J102: 0
B103: 101-1805 | C103: Гвозди строительные | D103: т | J103: 0
B104: 102-0053 | C104: Доски обрезные хвойных пород длиной: 4-6,5 м, шириной 75-150 мм, толщиной 25 мм, III сорта | D104: м3 | J104: 0
A105: 23 | B105: ТЦ_11.2.02.01_78_7810851080_06.03.2024_02 | C105: Дверной блок однопольный, деревянный, глухой, правая навеска 800Х2100(h) | D105: шт | E105: 2 | F105: =G105/E105 -> 0 | G105: 0 | H105: =I105/E105 -> 13187.64 | I105: 26375.28 | J105: 26375.28
A106: 24 | B106: ТЦ_11.2.02.01_78_7810424032_06.03.2024_02 | C106: Дверной блок однопольный, деревянный, глухой, правая навеска 1000Х2100(h), с доводчиком | D106: шт | E106: 6 | F106: =G106/E106 -> 0 | G106: 0 | H106: =I106/E106 -> 16826.45 | I106: 100958.7 | J106: 100958.7
A107: 25 | B107: ТЕР09-04-012-02 | C107: Установка дверного доводчика к металлическим дверям // прим. | D107: 1 шт. | E107: 6 | F107: =G107/E107 -> 2614.3 | G107: 15685.82 | H107: =I107/E107 -> 10.78 | I107: 64.65 | J107: 15750.47
B108: 101-1513 | C108: Электроды диаметром: 4 мм Э42 | D108: т | J108: 0
B109: 101-1845 | C109: Винты самонарезающие: с уплотнительной прокладкой 4,8х35 мм | D109: 100 шт. | J109: 0
A110: 26 | B110: ТССЦ-101-6899 | C110: Доводчик дверной гидравлический TS-68 с зубчатым приводом (нагрузка до 90 кг) | D110: шт. | E110: 6 | F110: =G110/E110 -> 0 | G110: 0 | H110: =I110/E110 -> 2893.24 | I110: 17359.41 | J110: 17359.41
A111: 27 | B111: ТЕР10-01-039-05 | C111: Установка люков в перекрытиях, площадь проема до 2 м2 | D111: 100 м2 проемов | E111: 0.0384 | F111: =G111/E111 -> 287798.7 | G111: 11051.47 | H111: =I111/E111 -> 22109.64 | I111: 849.01 | J111: 11900.48
B112: 101-1482 | C112: Шурупы с полукруглой головкой: 5х70 мм | D112: т | J112: 0
B113: 101-1705 | C113: Пакля пропитанная | D113: кг | J113: 0
B114: 402-0087 | C114: Раствор готовый отделочный тяжелый,: известковый 1:2,0 | D114: м3 | J114: 0
A115: 28 | B115: ТЦ_11.2.02.01_78_7804356514_06.03.2024_02 | C115: Лаз металлический, противопожарный, 800Х1600(h), EIS 60, с доводчиком и уплотнением притворов. Низ 500 мм от пола | D115: шт | E115: 3 | F115: =G115/E115 -> 0 | G115: 0 | H115: =I115/E115 -> 14652.93 | I115: 43958.79 | J115: 43958.79
A116: 29 | B116: ТЕР09-04-012-02 | C116: Установка дверного доводчика к металлическим дверям // прим. | D116: 1 шт. | E116: 3 | F116: =G116/E116 -> 2614.06 | G116: 7842.19 | H116: =I116/E116 -> 11.01 | I116: 33.04 | J116: 7875.23
B117: 101-1513 | C117: Электроды диаметром: 4 мм Э42 | D117: т | J117: 0
B118: 101-1845 | C118: Винты самонарезающие: с уплотнительной прокладкой 4,8х35 мм | D118: 100 шт. | J118: 0
A119: 30 | B119: ТССЦ-101-6899 | C119: Доводчик дверной гидравлический TS-68 с зубчатым приводом (нагрузка до 90 кг) | D119: шт. | E119: 3 | F119: =G119/E119 -> 0 | G119: 0 | H119: =I119/E119 -> 2893.24 | I119: 8679.71 | J119: 8679.71
A120: Установка ворот | F120: =G120/E120 ->  | G120: 0 | H120: =I120/E120 ->  | I120: 0 | J120: 0
A121: 31 | B121: ТЕР09-04-011-01 | C121: Монтаж каркасов ворот большепролетных зданий, ангаров и др. без механизмов открывания | D121: 1 т конструкций | E121: 6.607 | F121: =G121/E121 -> 174276.9 | G121: 1151447.45 | H121: =I121/E121 -> 8950.95 | I121: 59138.94 | J121: 1210586.39
B122: 101-0309 | C122: Канаты пеньковые пропитанные | D122: т | J122: 0
B123: 101-0324 | C123: Кислород технический: газообразный | D123: м3 | J123: 0
B124: 101-0797 | C124: Проволока горячекатаная в мотках, диаметром 6,3-6,5 мм | D124: т | J124: 0
B125: 101-1019 | C125: Швеллеры № 40 из стали марки: Ст0 | D125: т | J125: 0
B126: 101-1515 | C126: Электроды диаметром: 4 мм Э46 | D126: т | J126: 0
B127: 101-1805 | C127: Гвозди строительные | D127: т | J127: 0
B128: 101-2278 | C128: Пропан-бутан, смесь техническая | D128: кг | J128: 0
B129: 101-2467 | C129: Растворитель марки: Р-4 | D129: т | J129: 0
B130: 102-0023 | C130: Бруски обрезные хвойных пород длиной: 4-6,5 м, шириной 75-150 мм, толщиной 40-75 мм, I сорта | D130: м3 | J130: 0
B131: 113-0021 | C131: Грунтовка: ГФ-021 красно-коричневая | D131: т | J131: 0
B132: 201-0756 | C132: Отдельные конструктивные элементы зданий и сооружений с преобладанием: горячекатаных профилей, средняя масса сборочной единицы от 0,1 до 0,5 т | D132: т | J132: 0
B133: 508-0097 | C133: Канат двойной свивки типа ТК, конструкции 6х19(1+6+12)+1 о.с., оцинкованный из проволок марки В, маркировочная группа: 1770 н/мм2, диаметром 5,5 мм | D133: 10 м | J133: 0
A134: 32 | B134: ТЕРм11-05-001-01 | C134: Механизм исполнительный, масса: до 20 кг | D134: 1 шт. | E134: 8 | F134: =G134/E134 -> 2196.5 | G134: 17572.02 | H134: =I134/E134 -> 108.1 | I134: 864.81 | J134: 18436.83
B135: 101-2039 | C135: Болты с гайками и шайбами оцинкованные, диаметр: 12 мм | D135: кг | J135: 0
B136: 999-9950 | C136: Вспомогательные ненормируемые ресурсы (2% от Оплаты труда рабочих) | D136: руб | J136: 0
A137: 33 | B137: ТЦ_08.1.06.01_78_7814075047_25.06.2024_02 | C137: Ворота распашные с калиткой, металлические, утеплённые, 2950Х3000(h), (вес=55,6 кг/м²) | D137: шт | E137: 1 | F137: =G137/E137 -> 0 | G137: 0 | H137: =I137/E137 -> 385573.21 | I137: 385573.21 | J137: 385573.21
A138: 34 | B138: ТЦ_11.2.02.01_77_7751024400_06.03.2024_02 | C138: Ворота распашные, металлические, остекленные, утеплённые, 4400Х4500(h), (вес=42,44 кг/м²) | D138: шт | E138: 1 | F138: =G138/E138 -> 0 | G138: 0 | H138: =I138/E138 -> 441297.45 | I138: 441297.45 | J138: 441297.45
A139: 35 | B139: ТЦ_08.1.06.01_78_7819033805_06.03.2024_02 | C139: Ворота складчатые, металлические, 5000Х4500(h), (вес=42,44 кг/м²) | D139: шт | E139: 5 | F139: =G139/E139 -> 0 | G139: 0 | H139: =I139/E139 -> 460041.13 | I139: 2300205.65 | J139: 2300205.65
A140: 36 | B140: ТЦ_08.1.06.01_78_7814075047_25.06.2024_02 | C140: Ворота распашные, металлические, с калиткой, остекленные, утеплённые, 3000Х3000(h), (вес=55,6 кг/м²) | D140: шт | E140: 1 | F140: =G140/E140 -> 0 | G140: 0 | H140: =I140/E140 -> 393284.67 | I140: 393284.67 | J140: 393284.67
A141: Раздел 4. Установка оконных блоков. Трансбордер, (Спецификации по шифру 1632-2021-1.1,1.2,2.1.0-АР, Приложение к письму ООО “Морстройтехнология” вх. №9С01-8000370513-MST-ETU-LET-ENG-00384 от 19.02.2024 г.) | F141: =G141/E141 ->  | G141: 0 | H141: =I141/E141 ->  | I141: 0 | J141: 0
A142: 37 | B142: ТЕР10-01-034-03 | C142: Установка в жилых и общественных зданиях оконных блоков из ПВХ профилей: поворотных (откидных, поворотно-откидных) с площадью проема до 2 м2 одностворчатых | D142: 100 м2 проемов | E142: 0.176 | F142: =G142/E142 -> 468368.13 | G142: 82432.79 | H142: =I142/E142 -> 156177.16 | I142: 27487.18 | J142: 109919.97
B143: 101-2052 | C143: Лента бутиловая | D143: м | J143: 0
B144: 101-2054 | C144: Лента бутиловая диффузионная | D144: м | J144: =G144+I144 -> 0
B145: 101-2388 | C145: Герметик пенополиуретановый (пена монтажная) типа Makrofleks, Soudal в баллонах по 750 мл | D145: шт. | J145: 0
B146: 101-2789 | C146: Лента ПСУЛ | D146: 10 м | J146: 0
B147: 101-4173 | C147: Дюбели монтажные 10х130 (10х132, 10х150) мм | D147: 10 шт. | J147: 0
B148: 102-0303 | C148: Клинья пластиковые монтажные | D148: 100 шт. | J148: 0
A149: 38 | B149: ТЦ_59.1.09.04_78_7816539174_26.02.2024_02 Аналог ТССЦ-203-0946 5029,91/4929,41=2% | C149: ОК-4. Оп-П-1600х1000-ОЛ (6М1)-ПОТ-ГОСТ 34914-2022 (оконный блок из ПВХ профилей с поворотно-откидными створками и одинарным стеклом) | D149: м2 | E149: 17.6 | F149: =G149/E149 -> 0 | G149: 0 | H149: =I149/E149 -> 11033.12 | I149: 194182.94 | J149: 194182.94
A150: 39 | B150: ТЕР15-01-070-01 | C150: Облицовка: оконных проемов в наружных стенах откосной планкой из оцинкованной стали с полимерным покрытием с устройством водоотлива оконного из оцинкованной стали с полимерным покрытием | D150: 1 м2 проемов | E150: 17.6 | F150: =G150/E150 -> 3276.75 | G150: 57670.78 | H150: =I150/E150 -> 1423.83 | I150: 25059.39 | J150: 82730.17
B151: 101-1691 | C151: Шурупы-саморезы 4,2х16 мм | D151: 100 шт. | J151: 0
B152: 101-2409 | C152: Аквилон из оцинкованной стали с полимерным покрытием | D152: п.м | J152: 0
B153: 101-2410 | C153: Откосная планка шириной 250 мм из оцинкованной стали с полимерным покрытием | D153: п.м | J153: 0
B154: 101-2411 | C154: Водоотлив оконный шириной планки 250 мм из оцинкованной стали с полимерным покрытием | D154: п.м | J154: 0
A155: 40 | B155: ТЕР09-03-022-04 | C155: Монтаж оконных фонарных покрытий из поликарбонатных и акриловых плит с боковыми планками, профилями и резиновыми прокладками | D155: 100 м2 | E155: 4.04 | F155: =G155/E155 -> 326838.45 | G155: 1320427.35 | H155: =I155/E155 -> 550.09 | I155: 2222.36 | J155: 1322649.71
B156: 101-0309 | C156: Канаты пеньковые пропитанные | D156: т | J156: 0
B157: 101-0797 | C157: Проволока горячекатаная в мотках, диаметром 6,3-6,5 мм | D157: т | J157: 0
B158: 101-1019 | C158: Швеллеры № 40 из стали марки: Ст0 | D158: т | J158: 0
B159: 101-1714 | C159: Болты с гайками и шайбами строительные | D159: т | J159: 0
B160: 101-1805 | C160: Гвозди строительные | D160: т | J160: 0
B161: 101-2467 | C161: Растворитель марки: Р-4 | D161: т | J161: 0
B162: 113-0021 | C162: Грунтовка: ГФ-021 красно-коричневая | D162: т | J162: 0
B163: 508-0097 | C163: Канат двойной свивки типа ТК, конструкции 6х19(1+6+12)+1 о.с., оцинкованный из проволок марки В, маркировочная группа: 1770 н/мм2, диаметром 5,5 мм | D163: 10 м | J163: 0
A164: 41 | B164: ТЦ_25.3.06.01_47_4707044627_25.01.2024_02 Аналог ТССЦ-101-5003 83,19/81,49=2% | C164: Профилированный монолитный поликарбонат (прозрачный) 2000х1150х1 мм Royal Plast МП20(У) | D164: м2 | E164: 424.2 | F164: =G164/E164 -> 0 | G164: 0 | H164: =I164/E164 -> 751.29 | I164: 318696.94 | J164: 318696.94
A165: Раздел 5. Полы. Трансбордер, (Спецификации по шифру 1632-2021-1.1,1.2,2.1.0-АР, Приложение к письму ООО “Морстройтехнология” вх. №9С01-8000370513-MST-ETU-LET-ENG-00384 от 19.02.2024 г.) | F165: =G165/E165 ->  | G165: 0 | H165: =I165/E165 ->  | I165: 0 | J165: 0
A166: Тип 3. S=181,4 м2 | F166: =G166/E166 ->  | G166: 0 | H166: =I166/E166 ->  | I166: 0 | J166: 0
A167: 42 | B167: ТЕР11-01-015-07 | C167: Шлифовка бетонных или металлоцементных покрытий | D167: 100 м2 покрытия | E167: 1.814 | F167: =G167/E167 -> 191488.79 | G167: 347360.66 | H167: =I167/E167 -> 179.77 | I167: 326.1 | J167: 347686.76
B168: 101-2109 | C168: Карборунд | D168: кг | J168: 0
B169: 411-0001 | C169: Вода | D169: м3 | J169: 0
A170: 43 | B170: ТЕР11-01-052-01 | C170: Устройство полимерных наливных полов из полиуретана: с толщиной покрытия 2 мм, (упрочнение полиуретан. составами h=1 мм, прим.) | D170: 100 м2 пола | E170: 1.814 | F170: =G170/E170 -> 58942.59 | G170: 106921.86 | H170: =I170/E170 -> 102114.69 | I170: 185236.04 | J170: 292157.9
B171: 101-5869 | C171: Покрытие полиуретановое монолитное "Полиплан 1001" | D171: кг | J171: 0
B172: 101-5870 | C172: Грунтовка полиуретановая "Праймер 1101" | D172: кг | J172: 0
B173: 113-0659 | C173: Финишлак 105 | D173: кг | J173: 0
A174: Устройство кровли из кровельного профлиста учтено в разделе КМ | F174: =G174/E174 ->  | G174: 0 | H174: =I174/E174 ->  | I174: 0 | J174: 0
A175: Цоколь | F175: =G175/E175 ->  | G175: 0 | H175: =I175/E175 ->  | I175: 0 | J175: 0
A176: 44 | B176: ТЕР11-01-015-07 | C176: Шлифовка бетонных или металлоцементных покрытий, (затирка поверхности цоколя, прим.) | D176: 100 м2 покрытия | E176: 0.871 | F176: =G176/E176 -> 191486.6 | G176: 166784.83 | H176: =I176/E176 -> 179.78 | I176: 156.59 | J176: 166941.42
B177: 101-2109 | C177: Карборунд | D177: кг | J177: 0
B178: 411-0001 | C178: Вода | D178: м3 | J178: 0
A179: 45 | B179: ТЕР15-04-015-02 | C179: Окраска фасадов с люлек с подготовкой поверхности: силикатная, (прим.) | D179: 100 м2 фасада | E179: 0.8712 | F179: =G179/E179 -> 71763.79 | G179: 62520.61 | H179: =I179/E179 -> 8107.86 | I179: 7063.57 | J179: 69584.18
B180: 101-1757 | C180: Ветошь | D180: кг | J180: 0
B181: 101-1841 | C181: Краски силикатные зеленая и красная | D181: т | J181: 0
B182: 113-0043 | C182: Жидкость: гидрофобизирующая ГКЖ-10 | D182: т | J182: 0
B183: 113-0368 | C183: Стекло жидкое калийное | D183: т | J183: 0
B184: 402-0083 | C184: Раствор готовый отделочный тяжелый,: цементно-известковый 1:1:6 | D184: м3 | J184: 0
B185: 409-0639 | C185: Пемза шлаковая (щебень пористый из металлургического шлака), марка 600, фракция 5-10 мм | D185: м3 | J185: 0
B186: 411-0001 | C186: Вода | D186: м3 | J186: 0
A187: Раздел 8. Отмостка | F187: =G187/E187 ->  | G187: 0 | H187: =I187/E187 ->  | I187: 0 | J187: 0
A188: 46 | B188: ТЕР27-04-001-04 | C188: Устройство подстилающих и выравнивающих слоев оснований: из щебня, (подготовка из щебня h=90 мм) | D188: 100 м3 материала основания (в плотном теле) | E188: 0.1568 | F188: =G188/E188 -> 206258.42 | G188: 32341.32 | H188: =I188/E188 -> 192.41 | I188: 30.17 | J188: 32371.49
B189: 411-0001 | C189: Вода | D189: м3 | J189: 0
A190: 47 | B190: ТССЦ-408-0015 | C190: Щебень из природного камня для строительных работ марка: 800, фракция 20-40 мм | D190: м3 | E190: 19.76 | F190: =G190/E190 -> 0 | G190: 0 | H190: =I190/E190 -> 3394.17 | I190: 67068.76 | J190: 67068.76
A191: 48 | B191: ТЕР27-04-001-01 | C191: Устройство подстилающих и выравнивающих слоев оснований: из песка, (подготовка из песка h=150 мм) | D191: 100 м3 материала основания (в плотном теле) | E191: 0.26136 | F191: =G191/E191 -> 132371.9 | G191: 34596.72 | H191: =I191/E191 -> 131.93 | I191: 34.48 | J191: 34631.2
B192: 411-0001 | C192: Вода | D192: м3 | J192: 0
A193: 49 | B193: ТССЦ-408-0123 | C193: Песок природный для строительных: работ средний с крупностью зерен размером свыше 5 мм - до 5% по массе | D193: м3 | E193: 28.7496 | F193: =G193/E193 -> 0 | G193: 0 | H193: =I193/E193 -> 954.44 | I193: 27439.77 | J193: 27439.77
A194: 50 | B194: ТЕР06-01-001-20 | C194: Устройство ленточных фундаментов: бетонных | D194: 100 м3 бетона, бутобетона и железобетона в деле | E194: 0.17424 | F194: =G194/E194 -> 775664.26 | G194: 135151.74 | H194: =I194/E194 -> 37282.66 | I194: 6496.13 | J194: 141647.87
B195: 101-0797 | C195: Проволока горячекатаная в мотках, диаметром 6,3-6,5 мм | D195: т | J195: 0
B196: 101-1668 | C196: Рогожа | D196: м2 | J196: 0
B197: 101-1805 | C197: Гвозди строительные | D197: т | J197: 0
B198: 102-0061 | C198: Доски обрезные хвойных пород длиной: 4-6,5 м, шириной 75-150 мм, толщиной 44 мм и более, III сорта | D198: м3 | J198: 0
B199: 203-0511 | C199: Щиты: из досок толщиной 25 мм | D199: м2 | J199: 0
B200: 405-0253 | C200: Известь строительная: негашеная комовая, сорт I | D200: т | J200: 0
B201: 411-0001 | C201: Вода | D201: м3 | J201: 0
A202: 51 | B202: Прайс Аналог ТССЦ-401-0307 713,38/652,56=2% | C202: Бетон В15 | D202: м3 | E202: 17.772 | F202: =G202/E202 -> 0 | G202: 0 | H202: =I202/E202 -> 8792.92 | I202: 156267.77 | J202: 156267.77
... 26 more rows

Sheet 1632-2021-2.2.3-АР
A2: Терминал по перевалке минеральных удобрений в морском торговом порту Усть-Луга. Береговые объекты терминала
A3: (наименование стройки)
A4: 1632-2021-2.2.3-АР_07.04.022-П-00-00
A5: (локальная смета)
A6: на Архитектурные решения, Пересыпная станция № 3
A7: (наименование работ и затрат, наименование объекта)
B8: Основание: | C8: 1632-2021-2.2.3-АР_2_0_RU_IFC
A10: № п/п | B10: Обоснование | C10: Наименование работ и затрат | D10: Ед. изм. | E10: Кол-во | F10: Цена за ед.измерения работ, руб. с НДС | G10: Всего, стоимость работ,руб. с НДС | H10: Цена за ед.измерения материалов, руб. с НДС | I10: Всего, стоимость материалов, руб. с НДС | J10: Итого, руб. с НДС
A11: 1 | B11: 2 | C11: 3 | D11: 4 | E11: 5 | F11: 6 | G11: 7 | H11: 8 | I11: 9 | J11: 10
A12: Раздел 2. Кровля | J12: =G12+I12 -> 0
A13: Монтаж кровельного покрытия из профнастила учтен в разделе КМ | J13: 0
A14: Кровля плоская | J14: 0
A15: 1 | B15: ТЕР11-01-009-02 | C15: Устройство тепло- и звукоизоляции сплошной из плит: древесноволокнистых // прим. ЦСП | D15: 100 м2 изолируемой поверхности | E15: 4.54 | F15: =G15/E15 -> 36149.78 | G15: 164120.01 | H15: =I15/E15 -> 0 | I15: 0 | J15: 164120.01
A16: 2 | B16: ТЦ_01.6.01.10_78_7810994931_08.02.2024_02 | C16: ЦСП 13200х1200х8 | D16: м2 | E16: 935.24 | F16: =G16/E16 -> 0 | G16: 0 | H16: =I16/E16 -> 496.75 | I16: 464584.39 | J16: =G16+I16 -> 464584.39
A17: 3 | B17: ТЕР12-01-002-09 | C17: Устройство кровель плоских из наплавляемых материалов: в два слоя | D17: 100 м2 кровли | E17: 4.54 | F17: =G17/E17 -> 34049.77 | G17: 154585.94 | H17: =I17/E17 -> 1974.08 | I17: 8962.32 | J17: 163548.26
B18: 101-2278 | C18: Пропан-бутан, смесь техническая | D18: кг | J18: 0
A19: 4 | B19: ТЦ_12.0.00.00_78_7826181040_08.02.2024_02 | C19: Техноэласт Пламя Стоп | D19: м2 | E19: 517.56 | F19: =G19/E19 -> 0 | G19: 0 | H19: =I19/E19 -> 527.11 | I19: 272810.7 | J19: 272810.7
A20: 5 | B20: ТЦ_12.0.00.00_78_7826181040_08.02.2024_02 | C20: Техноэласт ЭПП | D20: м2 | E20: 526.64 | F20: =G20/E20 -> 0 | G20: 0 | H20: =I20/E20 -> 417.88 | I20: 220072.65 | J20: 220072.65
A21: 6 | B21: ТЕР12-01-009-02 | C21: Устройство желобов: подвесных | D21: 100 м желобов | E21: 0.327 | F21: =G21/E21 -> 65794.43 | G21: 21514.78 | H21: =I21/E21 -> 21888.53 | I21: 7157.55 | J21: 28672.33
B22: 101-0173 | C22: Гвозди проволочные оцинкованные для асбестоцементной кровли: 4,5х120 мм | D22: т | J22: 0
B23: 101-0788 | C23: Поковки оцинкованные, масса: 2,825 кг | D23: т | J23: 0
A24: 7 | B24: ТЦ_12.1.01.00_78_7804606806_25.01.2024_02 | C24: Желоб водосточный D185х3000 | D24: шт | E24: 11 | F24: =G24/E24 -> 0 | G24: 0 | H24: =I24/E24 -> 1709.47 | I24: 18804.14 | J24: 18804.14
A25: 8 | B25: ТЦ_12.1.01.00_78_7804606806_25.01.2024_02 | C25: Держатель желоба | D25: шт | E25: 54.5 | F25: =G25/E25 -> 0 | G25: 0 | H25: =I25/E25 -> 754.15 | I25: 41101.21 | J25: 41101.21
A26: 9 | B26: ТЕР12-01-008-01 | C26: Устройство обделок на фасадах (наружные подоконники, пояски, балконы и др.): включая водосточные трубы, с изготовлением элементов труб// прим. | D26: 100 м2фасада (без вычета проемов) | E26: 4.54 | F26: =G26/E26 -> 27777.28 | G26: 126108.86 | H26: =I26/E26 -> 2212.69 | I26: 10045.6 | J26: 136154.46
B27: 101-0195 | C27: Гвозди толевые круглые: 3,0х40 мм | D27: т | J27: 0
B28: 101-0788 | C28: Поковки оцинкованные, масса: 2,825 кг | D28: т | J28: 0
B29: 101-0795 | C29: Проволока канатная оцинкованная, диаметром: 3 мм | D29: т | J29: 0
A30: 10 | B30: ТЕР12-01-008-02 | C30: Устройство обделок на фасадах (наружные подоконники, пояски, балконы и др.): без водосточных труб | D30: 100 м2фасада (без вычета проемов) | E30: -4.54 | F30: =G30/E30 -> 10154.68 | G30: -46102.23 | H30: =I30/E30 -> 164.84 | I30: -748.36 | J30: -46850.59
B31: 101-0195 | C31: Гвозди толевые круглые: 3,0х40 мм | D31: т | J31: 0
A32: 11 | B32: ТЦ_12.1.01.00_78_7804606806_25.01.2024_02 | C32: Труба водосточная D150х2000мм | D32: шт | E32: 49 | F32: =G32/E32 -> 0 | G32: 0 | H32: =I32/E32 -> 2084.18 | I32: 102124.72 | J32: 102124.72
A33: 12 | B33: ТЦ_12.1.01.00_78_7804606806_25.01.2024_02 | C33: Крепление трубы | D33: шт | E33: 98 | F33: =G33/E33 -> 0 | G33: 0 | H33: =I33/E33 -> 314.87 | I33: 30857.48 | J33: 30857.48
A34: 13 | B34: ТЦ_12.1.01.00_78_7804606806_25.01.2024_02 | C34: Колено гофрированное | D34: шт | E34: 16 | F34: =G34/E34 -> 0 | G34: 0 | H34: =I34/E34 -> 478.84 | I34: 7661.43 | J34: 7661.43
A35: 14 | B35: ТЦ_12.1.01.00_78_7804606806_25.01.2024_02 | C35: Заглушка | D35: шт | E35: 6 | F35: =G35/E35 -> 0 | G35: 0 | H35: =I35/E35 -> 373.47 | I35: 2240.81 | J35: 2240.81
A36: 15 | B36: ТЦ_12.1.01.00_78_7804606806_25.01.2024_02 | C36: Воронки выпускные D185/150 | D36: шт | E36: 4 | F36: =G36/E36 -> 0 | G36: 0 | H36: =I36/E36 -> 808.02 | I36: 3232.08 | J36: 3232.08
A37: 16 | B37: ТЕР12-01-012-01 | C37: Ограждение кровель перилами // прим. | D37: 100 м ограждения | E37: 0.26 | F37: =G37/E37 -> 16107.35 | G37: 4187.91 | H37: =I37/E37 -> 402.08 | I37: 104.54 | J37: 4292.45
B38: 101-1529 | C38: Электроды диаметром: 6 мм Э42 | D38: т | J38: 0
B39: 101-1851 | C39: Резина прессованная | D39: кг | J39: 0
A40: 17 | B40: ТЦ_12.1.01.00_78_7804606806_25.01.2024_02 | C40: Снегозадержатель трубчатый (L=3 м. в комплекте с креплением) | D40: шт | E40: 8.666667 | F40: =G40/E40 -> 0 | G40: 0 | H40: =I40/E40 -> 2407.39 | I40: 20864.01 | J40: 20864.01
A41: Раздел 3. Окна
A42: 18 | B42: ТЕР10-01-034-05 | C42: Установка в жилых и общественных зданиях оконных блоков из ПВХ профилей: поворотных (откидных, поворотно-откидных) с площадью проема до 2 м2 двухстворчатых | D42: 100 м2 проемов | E42: 0.1512 | F42: =G42/E42 -> 408216.34 | G42: 61722.31 | H42: =I42/E42 -> 128138.1 | I42: 19374.48 | J42: 81096.79
B43: 101-2052 | C43: Лента бутиловая | D43: м | J43: 0
B44: 101-2054 | C44: Лента бутиловая диффузионная | D44: м | J44: 0
B45: 101-2388 | C45: Герметик пенополиуретановый (пена монтажная) типа Makrofleks, Soudal в баллонах по 750 мл | D45: шт. | J45: 0
B46: 101-2789 | C46: Лента ПСУЛ | D46: 10 м | J46: 0
B47: 101-4173 | C47: Дюбели монтажные 10х130 (10х132, 10х150) мм | D47: 10 шт. | J47: 0
B48: 102-0303 | C48: Клинья пластиковые монтажные | D48: 100 шт. | J48: 0
A49: 19 | B49: ТЦ_07.1.02.00_78_7840318754_30.01.2024_02 | C49: ОК-1. 1200х1400 | D49: шт | E49: 9 | F49: =G49/E49 -> 0 | G49: 0 | H49: =I49/E49 -> 15738.26 | I49: 141644.37 | J49: 141644.37
A50: 20 | B50: ТЕР10-01-034-03 | C50: Установка в жилых и общественных зданиях оконных блоков из ПВХ профилей: поворотных (откидных, поворотно-откидных) с площадью проема до 2 м2 одностворчатых | D50: 100 м2 проемов | E50: 0.238 | F50: =G50/E50 -> 468378.07 | G50: 111473.98 | H50: =I50/E50 -> 156176.26 | I50: 37169.95 | J50: 148643.93
B51: 101-2052 | C51: Лента бутиловая | D51: м | J51: 0
B52: 101-2054 | C52: Лента бутиловая диффузионная | D52: м | J52: 0
B53: 101-2388 | C53: Герметик пенополиуретановый (пена монтажная) типа Makrofleks, Soudal в баллонах по 750 мл | D53: шт. | J53: 0
B54: 101-2789 | C54: Лента ПСУЛ | D54: 10 м | J54: 0
B55: 101-4173 | C55: Дюбели монтажные 10х130 (10х132, 10х150) мм | D55: 10 шт. | J55: 0
B56: 102-0303 | C56: Клинья пластиковые монтажные | D56: 100 шт. | J56: 0
A57: 21 | B57: ТЦ_07.1.02.00_78_7840318754_30.01.2024_02 | C57: ОК-2. 1000х1400 | D57: шт | E57: 17 | F57: =G57/E57 -> 0 | G57: 0 | H57: =I57/E57 -> 13609.67 | I57: 231364.41 | J57: 231364.41
A58: 22 | B58: ТЕР15-01-070-01 | C58: Облицовка: оконных проемов в наружных стенах откосной планкой из оцинкованной стали с полимерным покрытием с устройством водоотлива оконного из оцинкованной стали с полимерным покрытием | D58: 1 м2 проемов | E58: 38.92 | F58: =G58/E58 -> 3276.74 | G58: 127530.71 | H58: =I58/E58 -> 1423.83 | I58: 55415.45 | J58: 182946.16
B59: 101-1691 | C59: Шурупы-саморезы 4,2х16 мм | D59: 100 шт. | J59: 0
B60: 101-2409 | C60: Аквилон из оцинкованной стали с полимерным покрытием | D60: п.м | J60: 0
B61: 101-2410 | C61: Откосная планка шириной 250 мм из оцинкованной стали с полимерным покрытием | D61: п.м | J61: 0
B62: 101-2411 | C62: Водоотлив оконный шириной планки 250 мм из оцинкованной стали с полимерным покрытием | D62: п.м | J62: 0
A63: Раздел 4. Дверные проемы и ворота
A64: 23 | B64: ТЕР09-04-012-01 | C64: Установка металлических дверных блоков в готовые проемы | D64: 1 м2 проема | E64: 13.335 | F64: =G64/E64 -> 6003.1 | G64: 80051.3 | H64: =I64/E64 -> 327.69 | I64: 4369.69 | J64: 84420.99
B65: 101-1513 | C65: Электроды диаметром: 4 мм Э42 | D65: т | J65: 0
B66: 101-1921 | C66: Пена монтажная: для герметизации стыков в баллончике емкостью 0,85 л | D66: шт. | J66: 0
B67: 204-0062 | C67: Детали закладные и накладные изготовленные: без применения сварки, гнутья, сверления (пробивки) отверстий поставляемые отдельно | D67: т | J67: 0
A68: 24 | B68: ТЦ_07.1.01.03_78_7810842826_14.05.2025_02 | C68: Дверь стальная внутренняя, наружная 1000х2100 | D68: шт | E68: 5 | F68: =G68/E68 -> 0 | G68: 0 | H68: =I68/E68 -> 19154.21 | I68: 95771.06 | J68: 95771.06
A69: 25 | B69: ТЦ_07.1.01.03_78_7810842826_14.05.2025_02 | C69: Дверь стальная внутренняя, наружная 1350х2100 | D69: шт | E69: 1 | F69: =G69/E69 -> 0 | G69: 0 | H69: =I69/E69 -> 26097.57 | I69: 26097.57 | J69: 26097.57
A70: 26 | B70: ТЕР09-04-013-01 | C70: Установка противопожарных дверей: однопольных глухих | D70: 1 м2 проема | E70: 27.3 | F70: =G70/E70 -> 5120.16 | G70: 139780.29 | H70: =I70/E70 -> 675.03 | I70: 18428.27 | J70: 158208.56
B71: 101-1513 | C71: Электроды диаметром: 4 мм Э42 | D71: т | J71: 0
B72: 101-1929 | C72: Болты анкерные | D72: т | J72: 0
B73: 101-3661 | C73: Пена монтажная: противопожарная полиуретановая NULLIFIRE (0,88 л) | D73: шт. | J73: 0
A74: 27 | B74: ТЦ_07.1.01.03_78_7810842826_14.05.2025_02 | C74: Дверь противопожарная металлическая: однопольная ДПС-01/60, размером 1000х2100 мм | D74: шт | E74: 13 | F74: =G74/E74 -> 0 | G74: 0 | H74: =I74/E74 -> 19154.21 | I74: 249004.73 | J74: 249004.73
A75: 28 | B75: ТЕР15-01-070-02 | C75: Облицовка: дверных проемов в наружных стенах откосной планкой из оцинкованной стали с полимерным покрытием с установкой наличников из оцинкованной стали с полимерным покрытием | D75: 1 м2 проемов | E75: 14.335 | F75: =G75/E75 -> 3593.9 | G75: 51518.56 | H75: =I75/E75 -> 1660.7 | I75: 23806.13 | J75: 75324.69
B76: 101-1691 | C76: Шурупы-саморезы 4,2х16 мм | D76: 100 шт. | J76: 0
B77: 101-2409 | C77: Аквилон из оцинкованной стали с полимерным покрытием | D77: п.м | J77: 0
B78: 101-2410 | C78: Откосная планка шириной 250 мм из оцинкованной стали с полимерным покрытием | D78: п.м | J78: 0
B79: 101-2412 | C79: Наличники из оцинкованной стали с полимерным покрытием | D79: п.м | J79: 0
A80: Ворота
A81: 29 | B81: ТЕР09-04-011-01 | C81: Монтаж каркасов ворот большепролетных зданий, ангаров и др. без механизмов открывания | D81: 1 т конструкций | E81: 1.422 | F81: =G81/E81 -> 174276.41 | G81: 247821.05 | H81: =I81/E81 -> 8950.9 | I81: 12728.18 | J81: =G81+I81 -> 260549.23
B82: 101-0309 | C82: Канаты пеньковые пропитанные | D82: т | J82: 0
B83: 101-0324 | C83: Кислород технический: газообразный | D83: м3 | J83: 0
B84: 101-0797 | C84: Проволока горячекатаная в мотках, диаметром 6,3-6,5 мм | D84: т | J84: 0
B85: 101-1019 | C85: Швеллеры № 40 из стали марки: Ст0 | D85: т | J85: 0
B86: 101-1515 | C86: Электроды диаметром: 4 мм Э46 | D86: т | J86: 0
B87: 101-1805 | C87: Гвозди строительные | D87: т | J87: 0
B88: 101-2278 | C88: Пропан-бутан, смесь техническая | D88: кг | J88: 0
B89: 101-2467 | C89: Растворитель марки: Р-4 | D89: т | J89: 0
B90: 102-0023 | C90: Бруски обрезные хвойных пород длиной: 4-6,5 м, шириной 75-150 мм, толщиной 40-75 мм, I сорта | D90: м3 | J90: 0
B91: 113-0021 | C91: Грунтовка: ГФ-021 красно-коричневая | D91: т | J91: 0
B92: 201-0756 | C92: Отдельные конструктивные элементы зданий и сооружений с преобладанием: горячекатаных профилей, средняя масса сборочной единицы от 0,1 до 0,5 т | D92: т | J92: 0
B93: 508-0097 | C93: Канат двойной свивки типа ТК, конструкции 6х19(1+6+12)+1 о.с., оцинкованный из проволок марки В, маркировочная группа: 1770 н/мм2, диаметром 5,5 мм | D93: 10 м | J93: 0
A94: 30 | B94: ТЕРм11-05-001-01 | C94: Механизм исполнительный, масса: до 20 кг | D94: 1 шт. | E94: 2 | F94: =G94/E94 -> 2196.02 | G94: 4392.03 | H94: =I94/E94 -> 108.23 | I94: 216.46 | J94: 4608.49
B95: 101-2039 | C95: Болты с гайками и шайбами оцинкованные, диаметр: 12 мм | D95: кг | J95: 0
B96: 999-9950 | C96: Вспомогательные ненормируемые ресурсы (2% от Оплаты труда рабочих) | D96: руб | J96: 0
A97: 31 | B97: ТЦ_01.16.00.00_78_7810842826_14.05.2025_02 | C97: Ворота распашные металлические, с порогом открыванием наружу,с калиткой EI60 3100х3100мм | D97: шт | E97: 1 | F97: =G97/E97 -> 0 | G97: 0 | H97: =I97/E97 -> 173704.24 | I97: 173704.24 | J97: 173704.24
A98: 32 | B98: ТЦ_01.16.00.00_78_7841375755_14.05.2025_02 | C98: Ворота распашные металлические, с порогом утепленные, открыванием наружу EI60 2600х2300мм | D98: шт | E98: 1 | F98: =G98/E98 -> 0 | G98: 0 | H98: =I98/E98 -> 111278.54 | I98: 111278.54 | J98: 111278.54
A99: Раздел 5. Полы
A100: Тип 1. S=331,8 м2
A101: 33 | B101: ТЕР11-01-011-03 | C101: Устройство стяжек: бетонных толщиной 20 мм | D101: 100 м2 стяжки | E101: 3.318 | F101: =G101/E101 -> 83767.74 | G101: 277941.35 | H101: =I101/E101 -> 94.05 | I101: 312.06 | J101: 278253.41
B102: 411-0001 | C102: Вода | D102: м3 | J102: 0
A103: 34 | B103: ТЕР11-01-011-04 | C103: Устройство стяжек: на каждые 5 мм изменения толщины стяжки добавлять или исключать к расценке 11-01-011-03 // до толщ. 250 мм | D103: 100 м2 стяжки | E103: 3.318 | F103: =G103/E103 -> 74212.41 | G103: 246236.76 | H103: =I103/E103 -> 0 | I103: 0 | J103: 246236.76
A104: 35 | B104: ТЦ_59.1.04.01_47_4705078395_08.02.2024_02 | C104: Бетон В22,5 | D104: м3 | E104: 84.609 | F104: =G104/E104 -> 0 | G104: 0 | H104: =I104/E104 -> 5087.84 | I104: 430477.29 | J104: 430477.29
A105: 36 | B105: ТЕР06-01-015-10 | C105: Армирование подстилающих слоев и набетонок | D105: 1 т | E105: 0.581 | F105: =G105/E105 -> 27714.49 | G105: 16102.12 | H105: =I105/E105 -> 3009.64 | I105: 1748.6 | J105: 17850.72
B106: 101-0816 | C106: Проволока светлая диаметром: 1,1 мм | D106: т | J106: 0
A107: 37 | B107: ТЦ_08.4.02.05_66_6686134976_08.02.2024_02 | C107: Сетка арм. 100х100 4Вр1 | D107: м2 | E107: 331.8 | F107: =G107/E107 -> 0 | G107: 0 | H107: =I107/E107 -> 116.07 | I107: 38512.37 | J107: 38512.37
A108: 38 | B108: ТЕР11-01-020-03 | C108: Устройство покрытий поливинилацетатных: толщиной 3 мм // прим. покрытие полимерное | D108: 100 м2 покрытия | E108: 3.318 | F108: =G108/E108 -> 180031.38 | G108: 597344.11 | H108: =I108/E108 -> 147312.06 | I108: 488781.43 | J108: 1086125.54
B109: 101-0430 | C109: Краски масляные и алкидные земляные, готовые к применению: сурик железный МА-15, ПФ-14 | D109: т | J109: 0
B110: 101-0433 | C110: Краски масляные и алкидные земляные, готовые к применению: охра МА-15 | D110: т | J110: 0
B111: 101-1305 | C111: Портландцемент общестроительного назначения бездобавочный, марки: 400 | D111: т | J111: 0
B112: 101-1591 | C112: Смола каменноугольная для дорожного строительства | D112: т | J112: 0
B113: 101-2293 | C113: Кислота ортофосфорная: техническая, сорт I | D113: т | J113: 0
B114: 101-2358 | C114: Дисперсия поливинилацетатная непластифицированная марки Д50Н | D114: кг | J114: 0
B115: 113-0306 | C115: Маршалит | D115: т | J115: 0
B116: 408-0122 | C116: Песок природный для строительных: работ средний | D116: м3 | J116: 0
B117: 411-0001 | C117: Вода | D117: м3 | J117: 0
A118: Тип 2. S=12,1 м2
A119: 39 | B119: ТЕР11-01-009-01 | C119: Устройство тепло- и звукоизоляции сплошной из плит: или матов минераловатных или стекловолокнистых | D119: 100 м2 изолируемой поверхности | E119: 0.121 | F119: =G119/E119 -> 67007.93 | G119: 8107.96 | H119: =I119/E119 -> 0 | I119: 0 | J119: 8107.96
A120: 40 | B120: ТССЦ-104-0496 | C120: Плиты минераловатные "Руф Баттс" ROCKWOOL | D120: м3 | E120: 1.25 | F120: =G120/E120 -> 0 | G120: 0 | H120: =I120/E120 -> 15021.68 | I120: 18777.1 | J120: 18777.1
A121: 41 | B121: ТЕР11-01-050-01 | C121: Устройство пароизоляции из полиэтиленовой пленки в один слой насухо | D121: 100 м2 поверхности | E121: 0.121 | F121: =G121/E121 -> 7471.82 | G121: 904.09 | H121: =I121/E121 -> 19003.72 | I121: 2299.45 | J121: 3203.54
B122: 113-0324 | C122: Пленка полиэтиленовая толщиной: 0,2-0,5 мм | D122: м2 | J122: 0
A123: 42 | B123: ТЕР11-01-011-03 | C123: Устройство стяжек: бетонных толщиной 20 мм | D123: 100 м2 стяжки | E123: 0.121 | F123: =G123/E123 -> 83760.83 | G123: 10135.06 | H123: =I123/E123 -> 94.05 | I123: 11.38 | J123: 10146.44
B124: 411-0001 | C124: Вода | D124: м3 | J124: 0
A125: 43 | B125: ТЕР11-01-011-04 | C125: Устройство стяжек: на каждые 5 мм изменения толщины стяжки добавлять или исключать к расценке 11-01-011-03 // до 150 мм | D125: 100 м2 стяжки | E125: 0.121 | F125: =G125/E125 -> 41945.21 | G125: 5075.37 | H125: =I125/E125 -> 0 | I125: 0 | J125: 5075.37
A126: 44 | B126: ТЦ_59.1.04.01_47_4705078395_08.02.2024_02 | C126: Бетон В22,5 | D126: м3 | E126: 1.851 | F126: =G126/E126 -> 0 | G126: 0 | H126: =I126/E126 -> 5087.84 | I126: 9417.6 | J126: 9417.6
A127: 45 | B127: ТЕР06-01-015-10 | C127: Армирование подстилающих слоев и набетонок | D127: 1 т | E127: 0.021175 | F127: =G127/E127 -> 27655.25 | G127: 585.6 | H127: =I127/E127 -> 3009.68 | I127: 63.73 | J127: 649.33
B128: 101-0816 | C128: Проволока светлая диаметром: 1,1 мм | D128: т | J128: 0
A129: 46 | B129: ТЦ_08.4.02.05_66_6686134976_08.02.2024_02 | C129: Сетка арм. 100х100 4Вр1 | D129: м2 | E129: 12.1 | F129: =G129/E129 -> 0 | G129: 0 | H129: =I129/E129 -> 116.07 | I129: 1404.45 | J129: 1404.45
A130: 47 | B130: ТЕР11-01-020-03 | C130: Устройство покрытий поливинилацетатных: толщиной 3 мм // прим. покрытие полимерное | D130: 100 м2 покрытия | E130: 0.121 | F130: =G130/E130 -> 180022.23 | G130: 21782.69 | H130: =I130/E130 -> 147312.07 | I130: 17824.76 | J130: 39607.45
B131: 101-0430 | C131: Краски масляные и алкидные земляные, готовые к применению: сурик железный МА-15, ПФ-14 | D131: т | J131: 0
B132: 101-0433 | C132: Краски масляные и алкидные земляные, готовые к применению: охра МА-15 | D132: т | J132: 0
B133: 101-1305 | C133: Портландцемент общестроительного назначения бездобавочный, марки: 400 | D133: т | J133: 0
B134: 101-1591 | C134: Смола каменноугольная для дорожного строительства | D134: т | J134: 0
B135: 101-2293 | C135: Кислота ортофосфорная: техническая, сорт I | D135: т | J135: 0
B136: 101-2358 | C136: Дисперсия поливинилацетатная непластифицированная марки Д50Н | D136: кг | J136: 0
B137: 113-0306 | C137: Маршалит | D137: т | J137: 0
B138: 408-0122 | C138: Песок природный для строительных: работ средний | D138: м3 | J138: 0
B139: 411-0001 | C139: Вода | D139: м3 | J139: 0
A140: Тип 3. S=558,8 м2
A141: 48 | B141: ТЕР11-01-011-03 | C141: Устройство стяжек: бетонных толщиной 20 мм | D141: 100 м2 стяжки | E141: 5.588 | F141: =G141/E141 -> 83767.95 | G141: 468095.3 | H141: =I141/E141 -> 94.05 | I141: 525.55 | J141: 468620.85
B142: 411-0001 | C142: Вода | D142: м3 | J142: 0
A143: 49 | B143: ТЕР11-01-011-04 | C143: Устройство стяжек: на каждые 5 мм изменения толщины стяжки добавлять или исключать к расценке 11-01-011-03 // толщ. 30 мм | D143: 100 м2 стяжки | E143: 5.588 | F143: =G143/E143 -> 3226.61 | G143: 18030.29 | H143: =I143/E143 -> 0 | I143: 0 | J143: 18030.29
A144: 50 | B144: ТЦ_59.1.04.01_47_4705078395_08.02.2024_02 | C144: Бетон В22,5 | D144: м3 | E144: 17.099 | F144: =G144/E144 -> 0 | G144: 0 | H144: =I144/E144 -> 5087.84 | I144: 86997.02 | J144: =G144+I144 -> 86997.02
A145: 51 | B145: ТЕР11-01-020-03 | C145: Устройство покрытий поливинилацетатных: толщиной 3 мм // прим. покрытие полимерное | D145: 100 м2 покрытия | E145: 5.588 | F145: =G145/E145 -> 180031.49 | G145: 1006015.98 | H145: =I145/E145 -> 147312.06 | I145: 823179.81 | J145: 1829195.79
B146: 101-0430 | C146: Краски масляные и алкидные земляные, готовые к применению: сурик железный МА-15, ПФ-14 | D146: т | J146: 0
B147: 101-0433 | C147: Краски масляные и алкидные земляные, готовые к применению: охра МА-15 | D147: т | J147: 0
B148: 101-1305 | C148: Портландцемент общестроительного назначения бездобавочный, марки: 400 | D148: т | J148: 0
B149: 101-1591 | C149: Смола каменноугольная для дорожного строительства | D149: т | J149: 0
B150: 101-2293 | C150: Кислота ортофосфорная: техническая, сорт I | D150: т | J150: 0
B151: 101-2358 | C151: Дисперсия поливинилацетатная непластифицированная марки Д50Н | D151: кг | J151: 0
B152: 113-0306 | C152: Маршалит | D152: т | J152: 0
B153: 408-0122 | C153: Песок природный для строительных: работ средний | D153: м3 | J153: 0
B154: 411-0001 | C154: Вода | D154: м3 | J154: 0
A155: Тип 4. S=62,7 м2
A156: 52 | B156: ТЕР11-01-015-07 | C156: Шлифовка бетонных или металлоцементных покрытий // прим. | D156: 100 м2 покрытия | E156: 0.627 | F156: =G156/E156 -> 191485.18 | G156: 120061.21 | H156: =I156/E156 -> 180.13 | I156: 112.94 | J156: 120174.15
B157: 101-2109 | C157: Карборунд | D157: кг | J157: 0
B158: 411-0001 | C158: Вода | D158: м3 | J158: 0
A159: 53 | B159: ТЕР11-01-015-08 | C159: Железнение цементных покрытий // прим. | D159: 100 м2 покрытия | E159: 0.627 | F159: =G159/E159 -> 26257.51 | G159: 16463.46 | H159: =I159/E159 -> 537.69 | I159: 337.13 | J159: 16800.59
B160: 101-1305 | C160: Портландцемент общестроительного назначения бездобавочный, марки: 400 | D160: т | J160: 0
B161: 411-0001 | C161: Вода | D161: м3 | J161: 0
A162: Тип 5. S=32,8 м2
A163: 54 | B163: ТЕР11-01-011-03 | C163: Устройство стяжек: бетонных толщиной 20 мм | D163: 100 м2 стяжки | E163: 0.328 | F163: =G163/E163 -> 83765.27 | G163: 27475.01 | H163: =I163/E163 -> 94.02 | I163: 30.84 | J163: 27505.85
B164: 411-0001 | C164: Вода | D164: м3 | J164: 0
A165: 55 | B165: ТЕР11-01-011-04 | C165: Устройство стяжек: на каждые 5 мм изменения толщины стяжки добавлять или исключать к расценке 11-01-011-03 // толщ.250 мм | D165: 100 м2 стяжки | E165: 0.328 | F165: =G165/E165 -> 74210.67 | G165: 24341.1 | H165: =I165/E165 -> 0 | I165: 0 | J165: 24341.1
A166: 56 | B166: ТЦ_59.1.04.01_47_4705078395_08.02.2024_02 | C166: Бетон В22,5 | D166: м3 | E166: 8.364 | F166: =G166/E166 -> 0 | G166: 0 | H166: =I166/E166 -> 5087.84 | I166: 42554.71 | J166: 42554.71
A167: 57 | B167: ТЕР09-03-049-01 | C167: Монтаж съемных металлических полов из плит размером 500х500 мм: стальных штампованных | D167: 100 м2 пола | E167: 0.328 | F167: =G167/E167 -> 1011383.35 | G167: 331733.74 | H167: =I167/E167 -> 0 | I167: 0 | J167: 331733.74
A168: 58 | B168: ТЦ_11.2.09.08_77_7720563313_21.05.2025_02 | C168: Фальшпол 32 8 м2 | D168: компл. | E168: 1 | F168: =G168/E168 -> 0 | G168: 0 | H168: =I168/E168 -> 643421.7 | I168: 643421.7 | J168: 643421.7
A169: Тип 6. S=47 м2
A170: 59 | B170: ТЕР11-01-009-01 | C170: Устройство тепло- и звукоизоляции сплошной из плит: или матов минераловатных или стекловолокнистых | D170: 100 м2 изолируемой поверхности | E170: 0.47 | F170: =G170/E170 -> 67007.98 | G170: 31493.75 | H170: =I170/E170 -> 0 | I170: 0 | J170: 31493.75
A171: 60 | B171: ТССЦ-104-0496 | C171: Плиты минераловатные "Руф Баттс" ROCKWOOL | D171: м3 | E171: 4.84 | F171: =G171/E171 -> 0 | G171: 0 | H171: =I171/E171 -> 15021.68 | I171: 72704.94 | J171: 72704.94
A172: 61 | B172: ТЕР11-01-050-01 | C172: Устройство пароизоляции из полиэтиленовой пленки в один слой насухо | D172: 100 м2 поверхности | E172: 0.47 | F172: =G172/E172 -> 7474.91 | G172: 3513.21 | H172: =I172/E172 -> 19003.66 | I172: 8931.72 | J172: 12444.93
B173: 113-0324 | C173: Пленка полиэтиленовая толщиной: 0,2-0,5 мм | D173: м2 | J173: 0
A174: 62 | B174: ТЕР06-01-015-10 | C174: Армирование подстилающих слоев и набетонок | D174: 1 т | E174: 0.08225 | F174: =G174/E174 -> 27712.58 | G174: 2279.36 | H174: =I174/E174 -> 3009.73 | I174: 247.55 | J174: 2526.91
B175: 101-0816 | C175: Проволока светлая диаметром: 1,1 мм | D175: т | J175: 0
A176: 63 | B176: ТЦ_08.4.02.05_66_6686134976_08.02.2024_02 | C176: Сетка арм. 100х100 4Вр1 | D176: м2 | E176: 47 | F176: =G176/E176 -> 0 | G176: 0 | H176: =I176/E176 -> 116.07 | I176: 5455.34 | J176: 5455.34
A177: 64 | B177: ТЕР11-01-011-03 | C177: Устройство стяжек: бетонных толщиной 20 мм | D177: 100 м2 стяжки | E177: 0.47 | F177: =G177/E177 -> 83767.55 | G177: 39370.75 | H177: =I177/E177 -> 94.04 | I177: 44.2 | J177: 39414.95
B178: 411-0001 | C178: Вода | D178: м3 | J178: 0
A179: 65 | B179: ТЕР11-01-011-04 | C179: Устройство стяжек: на каждые 5 мм изменения толщины стяжки добавлять или исключать к расценке 11-01-011-03 | D179: 100 м2 стяжки | E179: 0.47 | F179: =G179/E179 -> 33878.4 | G179: 15922.85 | H179: =I179/E179 -> 0 | I179: 0 | J179: 15922.85
A180: 66 | B180: ТЦ_59.1.04.01_47_4705078395_08.02.2024_02 | C180: Бетон В22,5 | D180: м3 | E180: 5.993 | F180: =G180/E180 -> 0 | G180: 0 | H180: =I180/E180 -> 5087.84 | I180: 30491.44 | J180: 30491.44
A181: 67 | B181: ТЕР11-01-020-03 | C181: Устройство покрытий поливинилацетатных: толщиной 3 мм // прим. покрытие полимерное | D181: 100 м2 покрытия | E181: 0.47 | F181: =G181/E181 -> 180031.49 | G181: 84614.8 | H181: =I181/E181 -> 147312.06 | I181: 69236.67 | J181: 153851.47
B182: 101-0430 | C182: Краски масляные и алкидные земляные, готовые к применению: сурик железный МА-15, ПФ-14 | D182: т | J182: 0
B183: 101-0433 | C183: Краски масляные и алкидные земляные, готовые к применению: охра МА-15 | D183: т | J183: 0
B184: 101-1305 | C184: Портландцемент общестроительного назначения бездобавочный, марки: 400 | D184: т | J184: 0
B185: 101-1591 | C185: Смола каменноугольная для дорожного строительства | D185: т | J185: 0
B186: 101-2293 | C186: Кислота ортофосфорная: техническая, сорт I | D186: т | J186: 0
B187: 101-2358 | C187: Дисперсия поливинилацетатная непластифицированная марки Д50Н | D187: кг | J187: 0
B188: 113-0306 | C188: Маршалит | D188: т | J188: 0
B189: 408-0122 | C189: Песок природный для строительных: работ средний | D189: м3 | J189: 0
B190: 411-0001 | C190: Вода | D190: м3 | J190: 0
A191: Раздел 6. Отделка
A192: Цоколь
A193: 68 | B193: ТЕР11-01-015-07 | C193: Шлифовка бетонных или металлоцементных покрытий // прим. затирка поверхности цоколя | D193: 100 м2 покрытия | E193: 2.3364 | F193: =G193/E193 -> 175018.44 | G193: 408913.09 | H193: =I193/E193 -> 180.14 | I193: 420.88 | J193: 409333.97
B194: 101-2109 | C194: Карборунд | D194: кг | J194: 0
B195: 411-0001 | C195: Вода | D195: м3 | J195: 0
A196: 69 | B196: ТЕР15-04-015-02 | C196: Окраска фасадов с люлек с подготовкой поверхности: силикатная // прим. | D196: 100 м2 фасада | E196: 2.3364 | F196: =G196/E196 -> 71764.89 | G196: 167671.5 | H196: =I196/E196 -> 8107.43 | I196: 18942.2 | J196: 186613.7
B197: 101-1757 | C197: Ветошь | D197: кг | J197: 0
B198: 101-1841 | C198: Краски силикатные зеленая и красная | D198: т | J198: 0
B199: 113-0043 | C199: Жидкость: гидрофобизирующая ГКЖ-10 | D199: т | J199: 0
B200: 113-0368 | C200: Стекло жидкое калийное | D200: т | J200: 0
B201: 402-0083 | C201: Раствор готовый отделочный тяжелый,: цементно-известковый 1:1:6 | D201: м3 | J201: 0
B202: 409-0639 | C202: Пемза шлаковая (щебень пористый из металлургического шлака), марка 600, фракция 5-10 мм | D202: м3 | J202: 0
... 25 more rows

Sheet 1-1632-2021-2.1.2,2.1.7-АР1
A2: Терминал по перевалке минеральных удобрений в морском торговом порту Усть-Луга. Береговые объекты терминала
A3: (наименование стройки)
A4: 1632-2021-2.1.2, 2.1.7-АР1_07.04.041-П-00-00
A5: (локальная смета)
A6: на Архитектурные решения, 07.04.041 Конвейерная галерея №2 (код SAP 01.02.010) код ГП 2.1.2
A7: (наименование работ и затрат, наименование объекта)
B8: Основание: | C8: 1632-2021-2.1.2, 2.1.7-АР1_0_0_RU_IFС
A10: № п/п | B10: Обоснование | C10: Наименование работ и затрат | D10: Ед. изм. | E10: Кол-во | F10: Цена за ед.измерения работ, руб. с НДС | G10: Всего, стоимость работ,руб. с НДС | H10: Цена за ед.измерения материалов, руб. с НДС | I10: Всего, стоимость материалов, руб. с НДС | J10: Итого, руб. с НДС
A11: 1 | B11: 2 | C11: 3 | D11: 4 | E11: 5 | F11: 6 | G11: 7 | H11: 8 | I11: 9 | J11: 10
A12: Раздел 1. Кровля | J12: =G12+I12 -> 0
A13: Монтаж кровельного покрытия из профнастила учтен в разделе КМ | J13: 0
A14: 1632-2021-2.1.2, 2.1.7-АР1. ( в осях 1-7 ) | J14: 0
A15: 1 | B15: ТЕР11-01-009-02 | C15: Устройство тепло- и звукоизоляции сплошной из плит: древесноволокнистых // прим. ЦСП в 2 слоя | D15: 100 м2 изолируемой поверхности | E15: 1.459 | F15: =G15/E15 -> 36149.37 | G15: 52741.93 | H15: =I15/E15 -> 0 | I15: 0 | J15: 52741.93
A16: 2 | B16: ТЦ_01.6.01.10_78_7810994931_08.02.2024_02 | C16: ЦСП 13200х1200х8 | D16: м2 | E16: 300.55 | F16: =G16/E16 -> 0 | G16: 0 | H16: =I16/E16 -> 496.75 | I16: 149299.48 | J16: 149299.48
A17: 3 | B17: ТЕР12-01-002-09 | C17: Устройство кровель плоских из наплавляемых материалов: в два слоя | D17: 100 м2 кровли | E17: 1.459 | F17: =G17/E17 -> 34049.27 | G17: 49677.88 | H17: =I17/E17 -> 1974.08 | I17: 2880.18 | J17: 52558.06
B18: 101-2278 | C18: Пропан-бутан, смесь техническая | D18: кг | J18: 0
A19: 4 | B19: ТЦ_12.0.00.00_78_7826181040_08.02.2024_02 | C19: Техноэласт Пламя Стоп | D19: м2 | E19: 166.33 | F19: =G19/E19 -> 0 | G19: 0 | H19: =I19/E19 -> 527.11 | I19: 87674.09 | J19: 87674.09
A20: 5 | B20: ТЦ_12.0.00.00_78_7802585999_08.02.2024_02 | C20: Техноэласт ЭПП | D20: м2 | E20: 169.24 | F20: =G20/E20 -> 0 | G20: 0 | H20: =I20/E20 -> 417.88 | I20: 70722.11 | J20: 70722.11
A21: Раздел 2. Дверные проемы
A22: 1632-2021-2.1.2, 2.1.7-АР1. ( в осях 1-7 )
A23: 6 | B23: ТЕР09-04-012-01 | C23: Установка металлических дверных блоков в готовые проемы | D23: 1 м2 проема | E23: 6.3 | F23: =G23/E23 -> 5666.82 | G23: 35700.99 | H23: =I23/E23 -> 327.69 | I23: 2064.43 | J23: 37765.42
B24: 101-1513 | C24: Электроды диаметром: 4 мм Э42 | D24: т | J24: 0
B25: 101-1921 | C25: Пена монтажная: для герметизации стыков в баллончике емкостью 0,85 л | D25: шт. | J25: 0
B26: 204-0062 | C26: Детали закладные и накладные изготовленные: без применения сварки, гнутья, сверления (пробивки) отверстий поставляемые отдельно | D26: т | J26: 0
A27: 7 | B27: ТЦ_07.1.01.03_78_7841375755_25.01.2024_02 | C27: Дверь стальная наружная (левая, правая) 1000х2100 | D27: шт | E27: 1 | F27: =G27/E27 -> 0 | G27: 0 | H27: =I27/E27 -> 25965.83 | I27: 25965.83 | J27: 25965.83
A28: 8 | B28: ТЦ_07.1.01.03_78_7841375755_25.01.2024_02 | C28: Дверь стальная внутренняя (правая) 1000х2100 | D28: шт | E28: 2 | F28: =G28/E28 -> 0 | G28: 0 | H28: =I28/E28 -> 25965.83 | I28: 51931.65 | J28: 51931.65
A29: 9 | B29: ТССЦ-101-0961 | C29: Закрыватель дверной гидравлический рычажный в алюминиевом корпусе | D29: шт. | E29: 3 | F29: =G29/E29 -> 0 | G29: 0 | H29: =I29/E29 -> 4747.09 | I29: 14241.28 | J29: 14241.28
A30: 10 | B30: ТССЦ-101-6976 | C30: Замок электромагнитный универсальный сдвиговый AL-400S | D30: шт. | E30: 3 | F30: =G30/E30 -> 0 | G30: 0 | H30: =I30/E30 -> 14109.04 | I30: 42327.12 | J30: 42327.12
A31: 11 | B31: ТЕР15-01-070-02 | C31: Облицовка: дверных проемов в наружных стенах откосной планкой из оцинкованной стали с полимерным покрытием с установкой наличников из оцинкованной стали с полимерным покрытием | D31: 1 м2 проемов | E31: 6.3 | F31: =G31/E31 -> 3593.7 | G31: 22640.29 | H31: =I31/E31 -> 1660.7 | I31: 10462.41 | J31: 33102.7
B32: 101-1691 | C32: Шурупы-саморезы 4,2х16 мм | D32: 100 шт. | J32: 0
B33: 101-2409 | C33: Аквилон из оцинкованной стали с полимерным покрытием | D33: п.м | J33: 0
B34: 101-2410 | C34: Откосная планка шириной 250 мм из оцинкованной стали с полимерным покрытием | D34: п.м | J34: 0
B35: 101-2412 | C35: Наличники из оцинкованной стали с полимерным покрытием | D35: п.м | J35: 0
C36: Всего, руб. с НДС | G36: =SUM(G12:G35) -> 160761.09 | I36: =SUM(I12:I35) -> 457568.58 | J36: =SUM(J12:J35) -> 618329.67
C37: Всего, руб. без НДС | G37: =G36/1.2 -> 133967.58 | I37: =I36/1.2 -> 381307.15 | J37: =J36/1.2 -> 515274.73

Sheet 1632-2021-2.1.11-АР
A2: Терминал по перевалке минеральных удобрений в морском торговом порту Усть-Луга. Береговые объекты терминала
A3: (наименование стройки)
A4: 1632-2021-2.1.11-АР_07.04.050-П-00-00
A5: (локальная смета)
A6: на Архитектурные решения, 07.04.050 Конвейерная галерея №11 (код SAP 01.02.008) код ГП 2.1.11
A7: (наименование работ и затрат, наименование объекта)
B8: Основание: | C8: 1632-2021-2.1.11-АР_0_0_RU_IFC
A10: № п/п | B10: Обоснование | C10: Наименование работ и затрат | D10: Ед. изм. | E10: Кол-во | F10: Цена за ед.измерения работ, руб. с НДС | G10: Всего, стоимость работ,руб. с НДС | H10: Цена за ед.измерения материалов, руб. с НДС | I10: Всего, стоимость материалов, руб. с НДС | J10: Итого, руб. с НДС
A11: 1 | B11: 2 | C11: 3 | D11: 4 | E11: 5 | F11: 6 | G11: 7 | H11: 8 | I11: 9 | J11: 10
A12: Раздел 2. Дверные проемы | J12: =G12+I12 -> 0
A13: 6 | B13: ТЕР09-04-012-01 | C13: Установка металлических дверных блоков в готовые проемы | D13: 1 м2 проема | E13: 8.4 | F13: =G13/E13 -> 6003.1 | G13: 50426.08 | H13: =I13/E13 -> 327.69 | I13: 2752.57 | J13: 53178.65
B14: 101-1513 | C14: Электроды диаметром: 4 мм Э42 | D14: т | J14: =G14+I14 -> 0
B15: 101-1921 | C15: Пена монтажная: для герметизации стыков в баллончике емкостью 0,85 л | D15: шт. | J15: 0
B16: 204-0062 | C16: Детали закладные и накладные изготовленные: без применения сварки, гнутья, сверления (пробивки) отверстий поставляемые отдельно | D16: т | J16: 0
A17: 7 | B17: ТЦ_07.1.01.03_50_5020088027_05.08.2024_02 Аналог ТССЦ-203-8146 1429,18/1397,12=2% | C17: Дверь ДСН 1000-2100 | D17: шт | E17: 4 | F17: =G17/E17 -> 0 | G17: 0 | H17: =I17/E17 -> 33091.2 | I17: 132364.78 | J17: 132364.78
A18: 8 | B18: ТЕР15-01-070-02 | C18: Облицовка: дверных проемов в наружных стенах откосной планкой из оцинкованной стали с полимерным покрытием с установкой наличников из оцинкованной стали с полимерным покрытием | D18: 1 м2 проемов | E18: 8.4 | F18: =G18/E18 -> 3593.76 | G18: 30187.57 | H18: =I18/E18 -> 1462.77 | I18: 12287.26 | J18: 42474.83
B19: 101-1691 | C19: Шурупы-саморезы 4,2х16 мм | D19: 100 шт. | J19: 0
B20: 101-2409 | C20: Аквилон из оцинкованной стали с полимерным покрытием | D20: п.м | J20: 0
B21: 101-2410 | C21: Откосная планка шириной 250 мм из оцинкованной стали с полимерным покрытием | D21: п.м | J21: 0
A22: Раздел 3. Снегозадерживающие устройства | F22: =G22/E22 ->  | G22: 0 | H22: =I22/E22 ->  | I22: 0 | J22: 0
A23: 9 | B23: ТЕР12-01-012-01 | C23: Ограждение кровель перилами | D23: 100 м ограждения | E23: 1.84 | F23: =G23/E23 -> 16112.14 | G23: 29646.33 | H23: =I23/E23 -> 402.08 | I23: 739.83 | J23: 30386.16
B24: 101-1529 | C24: Электроды диаметром: 6 мм Э42 | D24: т | J24: 0
B25: 101-1851 | C25: Резина прессованная | D25: кг | J25: 0
A26: 10 | B26: ТЦ_11.3.02.02_78_7804606806_25.01.2024_02 Аналог ТССЦ-101-7317 128,60/126,01=2% | C26: Металлическое ограждение | D26: м | E26: 184 | F26: =G26/E26 -> 0 | G26: 0 | H26: =I26/E26 -> 1460.41 | I26: 268714.53 | J26: 268714.53
A27: Раздел 4. Водосточная система | F27: =G27/E27 ->  | G27: 0 | H27: =I27/E27 ->  | I27: 0 | J27: 0
A28: 11 | B28: ТЕР12-01-009-02 | C28: Устройство желобов: подвесных | D28: 100 м желобов | E28: 1.86 | F28: =G28/E28 -> 65794.95 | G28: 122378.61 | H28: =I28/E28 -> 427.46 | I28: 795.08 | J28: 123173.69
B29: 101-0173 | C29: Гвозди проволочные оцинкованные для асбестоцементной кровли: 4,5х120 мм | D29: т | J29: 0
A30: 12 | B30: ТЦ_12.1.01.05_78_7804550906_25.01.2024_02 Аналог ТССЦ-203-0960 5219,18/5114,28=2% | C30: Водосточный желоб д.185х3000 | D30: м | E30: 186 | F30: =G30/E30 -> 0 | G30: 0 | H30: =I30/E30 -> 581.23 | I30: 108108.05 | J30: 108108.05
A31: 13 | B31: ТЦ_12.1.01.05_78_7804550906_25.01.2024_02 Аналог ТССЦ-203-0960 5219,18/5114,28=2% | C31: 185 мм Крюк желоба под профлист на болтовом соединении RAL 7004 Мебельный болт М8х30 - 2 шт; Гайка М8 - 2 шт; Шайба М8 - 2 шт; Шайба уплотнительная - 2 шт | D31: шт | E31: 186 | F31: =G31/E31 -> 0 | G31: 0 | H31: =I31/E31 -> 769.33 | I31: 143095.07 | J31: 143095.07
A32: 14 | B32: ТЕР12-01-008-01 | C32: Устройство обделок на фасадах (наружные подоконники, пояски, балконы и др.): включая водосточные трубы, с изготовлением элементов труб | D32: 100 м2фасада (без вычета проемов) | E32: 4.425 | F32: =G32/E32 -> 27777.14 | G32: 122913.84 | H32: =I32/E32 -> 790.48 | I32: 3497.86 | J32: 126411.7
B33: 101-0195 | C33: Гвозди толевые круглые: 3,0х40 мм | D33: т | J33: 0
B34: 101-0795 | C34: Проволока канатная оцинкованная, диаметром: 3 мм | D34: т | J34: 0
A35: 15 | B35: ТЕР12-01-008-02 | C35: Устройство обделок на фасадах (наружные подоконники, пояски, балконы и др.): без водосточных труб | D35: 100 м2фасада (без вычета проемов) | E35: -4.425 | F35: =G35/E35 -> 10154.38 | G35: -44933.14 | H35: =I35/E35 -> 164.84 | I35: -729.41 | J35: -45662.55
B36: 101-0195 | C36: Гвозди толевые круглые: 3,0х40 мм | D36: т | J36: 0
A37: 16 | B37: ТЦ_12.1.01.05_78_7804550906_25.01.2024_02 Аналог ТССЦ-203-0960 5219,18/5114,28=2% | C37: 150 мм Труба 3000 мм RAL 7004 | D37: м | E37: 228 | F37: =G37/E37 -> 0 | G37: 0 | H37: =I37/E37 -> 708.24 | I37: 161479.83 | J37: 161479.83
A38: 17 | B38: ТЦ_12.1.01.05_78_7804550906_25.01.2024_02 Аналог ТССЦ-203-0960 5219,18/5114,28=2% | C38: 150 мм Охват на площадке (прут- 10х100мм; площадка- 2,5х100х50мм) (черная полоса) RAL 7004 Болт 6х30 - 2 шт; Гайка М6 - 2 шт; Шайба М6 - 4 шт | D38: шт | E38: 228 | F38: =G38/E38 -> 0 | G38: 0 | H38: =I38/E38 -> 321.09 | I38: 73209.1 | J38: 73209.1
A39: 18 | B39: ТЦ_12.1.01.05_78_7804550906_25.01.2024_02 Аналог ТССЦ-203-0960 5219,18/5114,28=2% | C39: 150 мм Труба 3000 мм RAL 7004 | D39: м | E39: 228 | F39: =G39/E39 -> 0 | G39: 0 | H39: =I39/E39 -> 708.24 | I39: 161479.83 | J39: 161479.83
A40: 19 | B40: ТЦ_12.1.01.05_78_7804550906_25.01.2024_02 Аналог ТССЦ-203-0960 5219,18/5114,28=2% | C40: 150 мм Охват на площадке (прут- 10х100мм; площадка- 2,5х100х50мм) (черная полоса) RAL 7004 Болт 6х30 - 2 шт; Гайка М6 - 2 шт; Шайба М6 - 4 шт | D40: шт | E40: 228 | F40: =G40/E40 -> 0 | G40: 0 | H40: =I40/E40 -> 321.09 | I40: 73209.1 | J40: 73209.1
A41: 20 | B41: ТЕР16-07-002-01 | C41: Установка воронок водосточных | D41: 1 воронка | E41: 10 | F41: =G41/E41 -> 7449.09 | G41: 74490.92 | H41: =I41/E41 -> 54.12 | I41: 541.17 | J41: 75032.09
B42: 101-0311 | C42: Каболка | D42: т | J42: 0
B43: 101-1355 | C43: Цемент гипсоглиноземистый расширяющийся | D43: т | J43: 0
B44: 101-1522 | C44: Электроды диаметром: 5 мм Э42А | D44: т | J44: 0
A45: 21 | B45: ТЦ_12.1.01.05_78_7804550906_25.01.2024_02 Аналог ТССЦ-203-0960 5219,18/5114,28=2% | C45: 150 мм Воронка под желоб (верх 185мм.) RAL 7004Водосточный желоб д.185х3000 | D45: шт | E45: 10 | F45: =G45/E45 -> 0 | G45: 0 | H45: =I45/E45 -> 824.19 | I45: 8241.91 | J45: 8241.91
C46: Всего, руб. с НДС | G46: =SUM(G12:G45) -> 385110.21 | I46: =SUM(I12:I45) -> 1149786.56 | J46: =SUM(J12:J45) -> 1534896.77
C47: Всего, руб. без НДС | G47: =G46/1.2 -> 320925.18 | I47: =I46/1.2 -> 958155.47 | J47: =J46/1.2 -> 1279080.64

Sheet 1632-2021-2.1.2,2.1.7-АР3
A2: Терминал по перевалке минеральных удобрений в морском торговом порту Усть-Луга. Береговые объекты терминала
A3: (наименование стройки)
A4: 1632-2021-2.1.2, 2.1.7-АР3_07.04.041-П-00-00
A5: (локальная смета)
A6: на Архитектурные решения, 07.04.041 Конвейерная галерея №2 (код SAP 01.02.010) код ГП 2.1.2
A7: (наименование работ и затрат, наименование объекта)
B8: Основание: | C8: 1632-2021-2.1.2, 2.1.7-АР1_0_0_RU_IFС
A10: № п/п | B10: Обоснование | C10: Наименование работ и затрат | D10: Ед. изм. | E10: Кол-во | F10: Цена за ед.измерения работ, руб. с НДС | G10: Всего, стоимость работ,руб. с НДС | H10: Цена за ед.измерения материалов, руб. с НДС | I10: Всего, стоимость материалов, руб. с НДС | J10: Итого, руб. с НДС
A11: 1 | B11: 2 | C11: 3 | D11: 4 | E11: 5 | F11: 6 | G11: 7 | H11: 8 | I11: 9 | J11: 10
A12: Раздел 2. Кровля | J12: =G12+I12 -> 0
A13: Монтаж кровельного покрытия из профнастила учтен в разделе КМ | J13: 0
A14: 1632-2021-2.1.2, 2.1.7-АР3. ( в осях 15-23 ) | J14: 0
A15: 1 | B15: ТЕР11-01-009-02 | C15: Устройство тепло- и звукоизоляции сплошной из плит: древесноволокнистых // прим. ЦСП в 2 слоя | D15: 100 м2 изолируемой поверхности | E15: 1.379 | F15: =G15/E15 -> 36149.48 | G15: 49850.13 | H15: =I15/E15 -> 0 | I15: 0 | J15: 49850.13
A16: 2 | B16: ТЦ_01.6.01.10_78_7810994931_08.02.2024_02 | C16: ЦСП 13200х1200х8 | D16: м2 | E16: 284.07 | F16: =G16/E16 -> 0 | G16: 0 | H16: =I16/E16 -> 496.75 | I16: 141112.96 | J16: 141112.96
A17: 3 | B17: ТЕР12-01-002-09 | C17: Устройство кровель плоских из наплавляемых материалов: в два слоя | D17: 100 м2 кровли | E17: 1.379 | F17: =G17/E17 -> 34049.35 | G17: 46954.05 | H17: =I17/E17 -> 1974.08 | I17: 2722.26 | J17: 49676.31
B18: 101-2278 | C18: Пропан-бутан, смесь техническая | D18: кг | J18: 0
A19: 4 | B19: ТЦ_12.0.00.00_78_7826181040_08.02.2024_02 | C19: Техноэласт Пламя Стоп | D19: м2 | E19: 157.21 | F19: =G19/E19 -> 0 | G19: 0 | H19: =I19/E19 -> 527.11 | I19: 82866.85 | J19: 82866.85
A20: 5 | B20: ТЦ_12.0.00.00_78_7802585999_08.02.2024_02 | C20: Техноэласт ЭПП | D20: м2 | E20: 159.96 | F20: =G20/E20 -> 0 | G20: 0 | H20: =I20/E20 -> 417.88 | I20: 66844.19 | J20: 66844.19
A21: Раздел 3. Дверные проемы
A22: 1632-2021-2.1.2, 2.1.7-АР3. ( в осях 15-23 )
A23: 6 | B23: ТЕР09-04-012-01 | C23: Установка металлических дверных блоков в готовые проемы | D23: 1 м2 проема | E23: 4.2 | F23: =G23/E23 -> 6003.1 | G23: 25213.04 | H23: =I23/E23 -> 327.69 | I23: 1376.28 | J23: 26589.32
B24: 101-1513 | C24: Электроды диаметром: 4 мм Э42 | D24: т | J24: 0
B25: 101-1921 | C25: Пена монтажная: для герметизации стыков в баллончике емкостью 0,85 л | D25: шт. | J25: 0
B26: 204-0062 | C26: Детали закладные и накладные изготовленные: без применения сварки, гнутья, сверления (пробивки) отверстий поставляемые отдельно | D26: т | J26: 0
A27: 7 | B27: ТЦ_07.1.01.03_78_7841375755_25.01.2024_02 | C27: Дверь стальная наружная 1000х2100 | D27: шт | E27: 2 | F27: =G27/E27 -> 0 | G27: 0 | H27: =I27/E27 -> 25965.83 | I27: 51931.65 | J27: 51931.65
A28: 8 | B28: ТЕР09-04-013-01 | C28: Установка противопожарных дверей: однопольных глухих | D28: 1 м2 проема | E28: 2.1 | F28: =G28/E28 -> 5119.79 | G28: 10751.56 | H28: =I28/E28 -> 675.03 | I28: 1417.56 | J28: 12169.12
B29: 101-1513 | C29: Электроды диаметром: 4 мм Э42 | D29: т | J29: 0
B30: 101-1929 | C30: Болты анкерные | D30: т | J30: 0
B31: 101-3661 | C31: Пена монтажная: противопожарная полиуретановая NULLIFIRE (0,88 л) | D31: шт. | J31: 0
A32: 9 | B32: ТЦ_07.1.01.03_78_7841375755_25.01.2024_02 | C32: Дверь противопожарная металлическая: однопольная ДПМ-01/30, размером 1000х2100 мм | D32: шт | E32: 1 | F32: =G32/E32 -> 0 | G32: 0 | H32: =I32/E32 -> 25965.83 | I32: 25965.83 | J32: 25965.83
A33: 10 | B33: ТССЦ-101-0961 | C33: Закрыватель дверной гидравлический рычажный в алюминиевом корпусе | D33: шт. | E33: 3 | F33: =G33/E33 -> 0 | G33: 0 | H33: =I33/E33 -> 4747.09 | I33: 14241.28 | J33: 14241.28
A34: 11 | B34: ТССЦ-101-6976 | C34: Замок электромагнитный универсальный сдвиговый AL-400S | D34: шт. | E34: 3 | F34: =G34/E34 -> 0 | G34: 0 | H34: =I34/E34 -> 14109.04 | I34: 42327.12 | J34: 42327.12
A35: 12 | B35: ТЕР15-01-070-02 | C35: Облицовка: дверных проемов в наружных стенах откосной планкой из оцинкованной стали с полимерным покрытием с установкой наличников из оцинкованной стали с полимерным покрытием | D35: 1 м2 проемов | E35: 6.3 | F35: =G35/E35 -> 3234.33 | G35: 20376.26 | H35: =I35/E35 -> 1660.7 | I35: 10462.41 | J35: 30838.67
B36: 101-1691 | C36: Шурупы-саморезы 4,2х16 мм | D36: 100 шт. | J36: 0
B37: 101-2409 | C37: Аквилон из оцинкованной стали с полимерным покрытием | D37: п.м | J37: 0
B38: 101-2410 | C38: Откосная планка шириной 250 мм из оцинкованной стали с полимерным покрытием | D38: п.м | J38: 0
B39: 101-2412 | C39: Наличники из оцинкованной стали с полимерным покрытием | D39: п.м | J39: 0
C40: Всего, руб. с НДС | G40: =SUM(G15:G39) -> 153145.04 | I40: =SUM(I15:I39) -> 441268.39 | J40: =SUM(J15:J39) -> 594413.43
C41: Всего, руб. без НДС | G41: =G40/1.2 -> 127620.87 | I41: =I40/1.2 -> 367723.66 | J41: =J40/1.2 -> 495344.53

Sheet 1632-2021-2.1.2,2.1.7-АР2
A2: Терминал по перевалке минеральных удобрений в морском торговом порту Усть-Луга. Береговые объекты терминала
A3: (наименование стройки)
A4: 1632-2021-2.1.2, 2.1.7-АР2-07.04.041-П-00-00
A5: (локальная смета)
A6: на Архитектурные решения, 07.04.041 Конвейерная галерея №2 (код SAP 01.02.010) код ГП 2.1.2
A7: (наименование работ и затрат, наименование объекта)
B8: Основание: | C8: 1632-2021-2.1.2, 2.1.7-АР1_0_0_RU_IFС
A10: № п/п | B10: Обоснование | C10: Наименование работ и затрат | D10: Ед. изм. | E10: Кол-во | F10: Цена за ед.измерения работ, руб. с НДС | G10: Всего, стоимость работ,руб. с НДС | H10: Цена за ед.измерения материалов, руб. с НДС | I10: Всего, стоимость материалов, руб. с НДС | J10: Итого, руб. с НДС
A11: 1 | B11: 2 | C11: 3 | D11: 4 | E11: 5 | F11: 6 | G11: 7 | H11: 8 | I11: 9 | J11: 10
A12: Раздел 2. Кровля | J12: =G12+I12 -> 0
A13: Монтаж кровельного покрытия из профнастила учтен в разделе КМ | J13: 0
A14: 1632-2021-2.1.2, 2.1.7-АР2. ( в осях 8-14 ) | J14: 0
A15: 1 | B15: ТЕР11-01-009-02 | C15: Устройство тепло- и звукоизоляции сплошной из плит: древесноволокнистых // прим. ЦСП | D15: 100 м2 изолируемой поверхности | E15: 1.32 | F15: =G15/E15 -> 36149.12 | G15: 47716.84 | H15: =I15/E15 -> 0 | I15: 0 | J15: 47716.84
A16: 2 | B16: ТЦ_01.6.01.10_78_7810994931_08.02.2024_02 Аналог ТССЦ-101-5068 25,77/24,64=2% | C16: ЦСП 13200х1200х8 | D16: м2 | E16: 271.92 | F16: =G16/E16 -> 0 | G16: 0 | H16: =I16/E16 -> 506.71 | I16: 137783.68 | J16: 137783.68
A17: 3 | B17: ТЕР12-01-002-09 | C17: Устройство кровель плоских из наплавляемых материалов: в два слоя | D17: 100 м2 кровли | E17: 1.32 | F17: =G17/E17 -> 34049.89 | G17: 44945.86 | H17: =I17/E17 -> 1974.08 | I17: 2605.78 | J17: 47551.64
B18: 101-2278 | C18: Пропан-бутан, смесь техническая | D18: кг | J18: 0
A19: 4 | B19: ТЦ_12.0.00.00_78_7826181040_08.02.2024_02 Аналог ТССЦ-101-4724 26,31/25,55=2% | C19: Техноэласт Пламя Стоп | D19: м2 | E19: 150.48 | F19: =G19/E19 -> 0 | G19: 0 | H19: =I19/E19 -> 537.68 | I19: 80910.67 | J19: 80910.67
A20: 5 | B20: ТЦ_12.0.00.00_78_7802585999_08.02.2024_02 Аналог ТССЦ-101-4702 22,34/21,66=3% | C20: Техноэласт ЭПП | D20: м2 | E20: 153.12 | F20: =G20/E20 -> 0 | G20: 0 | H20: =I20/E20 -> 430.45 | I20: 65909.83 | J20: 65909.83
A21: Раздел 3. Дверные проемы
A22: 1632-2021-2.1.2, 2.1.7-АР2. ( в осях 8-14 )
